Workbook

Sheet Filtros
A1: Hospital | B1: (Todas)
A2: Mes | B2: (Todas)
A4: Etiquetas de fila | B4: Suma de Col01 | C4: Suma de Col02 | D4: Suma de Col03 | E4: Suma de Col04 | F4: Suma de Col05 | G4: Suma de Col06 | H4: Suma de Col07 | I4: Suma de Col08 | J4: Suma de Col09 | K4: Suma de Col10 | L4: Suma de Col11 | M4: Suma de Col12 | N4: Suma de Col13 | O4: Suma de Col14 | P4: Suma de Col15 | Q4: Suma de Col16 | R4: Suma de Col17 | S4: Suma de Col18 | T4: Suma de Col19 | U4: Suma de Col20 | V4: Suma de Col21 | W4: Suma de Col22 | X4: Suma de Col23 | Y4: Suma de Col24 | Z4: Suma de Col25 | AA4: Suma de Col26 | AB4: Suma de Col27 | AC4: Suma de Col28 | AD4: Suma de Col29 | AE4: Suma de Col30 | AF4: Suma de Col31 | AG4: Suma de Col32 | AH4: Suma de Col33 | AI4: Suma de Col34 | AJ4: Suma de Col35 | AK4: Suma de Col36
A5: 01010014 | B5: 82353 | C5: 82353 | D5: 82353 | Z5: 0 | AA5: 82087 | AB5: 0 | AJ5: 803880 | AK5: 501529770
A6: 01010020 | B6: 2049 | C6: 2049 | D6: 2049 | Z6: 0 | AA6: 2019 | AB6: 0 | AJ6: 99000 | AK6: 1536750
A7: 01010021 | B7: 54891 | C7: 54832 | D7: 54832 | F7: 59 | Z7: 0 | AA7: 20310 | AB7: 34581 | AJ7: 242880 | AK7: 100890880
A8: 01010022 | B8: 12584 | C8: 12459 | D8: 12459 | F8: 125 | Z8: 4450 | AA8: 8069 | AB8: 65 | AJ8: 178200 | AK8: 16819650
A9: 01010025 | B9: 36276 | C9: 33875 | D9: 33875 | F9: 2401 | Z9: 0 | AA9: 35138 | AB9: 0 | AC9: 364
A10: 01010029 | B10: 248 | C10: 248 | D10: 248 | Z10: 0 | AA10: 248 | AB10: 0 | AJ10: 586080 | AK10: 1101120
A11: 01010031 | B11: 130 | C11: 130 | D11: 130 | AA11: 130 | AJ11: 99000 | AK11: 97500
A12: 01010032 | B12: 3 | C12: 3 | D12: 3 | AA12: 3 | AJ12: 322080 | AK12: 7320
A13: 01010033 | B13: 450 | C13: 450 | D13: 450 | Z13: 73 | AA13: 349 | AB13: 0
A14: 01010035 | B14: 3371 | C14: 3369 | D14: 3369 | F14: 2 | Z14: 0 | AA14: 3354 | AB14: 0 | AJ14: 279840 | AK14: 7142280
A15: 01010036 | B15: 16976 | C15: 16976 | D15: 16976 | F15: 0 | Z15: 9572 | AA15: 7374 | AB15: 0 | AJ15: 161040 | AK15: 20710720
A16: 01010037 | B16: 9319 | C16: 9310 | D16: 9310 | F16: 9 | Z16: 2978 | AA16: 6167 | AB16: 0
A17: 01010038 | B17: 1993 | C17: 1993 | D17: 1993 | AA17: 2009
A18: 01010042 | B18: 33322 | C18: 33226 | D18: 32912 | E18: 314 | F18: 96 | Z18: 2447 | AA18: 27525 | AB18: 3321 | AJ18: 106920 | AK18: 26658720
A19: 01010047 | B19: 1756 | C19: 1756 | D19: 1756 | Z19: 0 | AA19: 1756 | AB19: 0
A20: 01010048 | B20: 751859 | C20: 751859 | D20: 751859 | Z20: 82900 | AA20: 647543 | AB20: 21416
A21: 01010050 | B21: 1340 | C21: 1340 | D21: 1340 | Z21: 523 | AA21: 817
A22: 01010051 | B22: 878 | C22: 878 | D22: 878 | E22: 0 | F22: 0 | Z22: 420 | AA22: 458 | AB22: 0
A23: 01010053 | B23: 88 | C23: 88 | D23: 88 | Z23: 54 | AA23: 34
A24: 01010054 | B24: 657 | C24: 657 | D24: 657 | Z24: 632 | AA24: 25
A25: 01010055 | B25: 17532 | C25: 17530 | D25: 17521 | E25: 9 | F25: 2 | Z25: 2743 | AA25: 14298 | AB25: 491
A26: 01010056 | B26: 111 | C26: 111 | D26: 111 | Z26: 65 | AA26: 103
A27: 01010057 | B27: 114 | C27: 114 | D27: 114 | E27: 0 | F27: 0 | Z27: 47 | AA27: 67 | AB27: 0
A28: 01010058 | B28: 8696 | C28: 8696 | D28: 8696 | Z28: 4455 | AA28: 4241
A29: 01010061 | B29: 452 | C29: 452 | D29: 452 | Z29: 9 | AA29: 443 | AB29: 0
A30: 01010062 | B30: 26 | C30: 26 | D30: 26 | Z30: 21 | AA30: 5
A31: 01010063 | B31: 434 | C31: 434 | D31: 434 | Z31: 313 | AA31: 121
A32: 01010065 | B32: 693 | C32: 693 | D32: 693 | Z32: 19 | AA32: 674
A33: 01010066 | B33: 17810 | C33: 17810 | D33: 17810 | E33: 0 | F33: 0 | Z33: 0 | AA33: 16208 | AB33: 1602 | AE33: 866
A34: 01010067 | B34: 3 | C34: 3 | D34: 3 | AA34: 3
A35: 01010068 | B35: 25280 | C35: 25280 | D35: 25241 | E35: 39 | Z35: 2125 | AA35: 23155 | AB35: 0
A36: 01010069 | B36: 755 | C36: 755 | D36: 755 | Z36: 0 | AA36: 755 | AB36: 0
A37: 01010071 | B37: 1 | C37: 1 | D37: 1 | Z37: 1
A38: 01010072 | B38: 4 | C38: 4 | D38: 4 | Z38: 4 | AA38: 1
A39: 01010080 | B39: 5 | C39: 5 | D39: 5 | Z39: 5
A40: 01010082 | B40: 9 | C40: 9 | D40: 9 | Z40: 9
A41: 01010106 | B41: 267 | C41: 267 | D41: 267 | Z41: 127 | AA41: 140
A42: 01010108 | B42: 1131 | C42: 1130 | D42: 1128 | E42: 2 | F42: 1 | Z42: 98 | AA42: 1006 | AB42: 27 | AG42: 3 | AH42: 34 | AI42: 1 | AJ42: 564960 | AK42: 4827840
A43: 01010109 | B43: 31 | C43: 31 | D43: 31 | E43: 0 | F43: 0 | Z43: 0 | AA43: 31 | AB43: 0 | AG43: 0 | AH43: 0 | AI43: 0 | AJ43: 702240 | AK43: 164920
A44: 01010112 | B44: 0 | C44: 0 | D44: 0 | E44: 0 | F44: 0 | Z44: 0 | AA44: 0 | AB44: 0 | AG44: 0 | AH44: 0 | AI44: 0 | AJ44: 502920 | AK44: 0
A45: 01010113 | B45: 158 | C45: 138 | D45: 138 | E45: 0 | F45: 20 | Z45: 5 | AA45: 153 | AB45: 0 | AG45: 0 | AH45: 4 | AI45: 0 | AJ45: 502920 | AK45: 525780
A46: 01010114 | B46: 0 | C46: 0 | D46: 0 | E46: 0 | F46: 0 | Z46: 0 | AA46: 0 | AB46: 0 | AG46: 0 | AH46: 8 | AI46: 0 | AJ46: 502920 | AK46: 0
A47: 01010117 | B47: 8 | C47: 8 | D47: 8 | E47: 0 | F47: 0 | Z47: 4 | AA47: 0 | AB47: 4 | AG47: 0 | AH47: 0 | AI47: 0 | AJ47: 174240 | AK47: 10560
A48: 01010119 | B48: 0 | C48: 0 | D48: 0 | E48: 0 | F48: 0 | Z48: 0 | AA48: 0 | AB48: 0 | AG48: 0 | AH48: 0 | AI48: 0 | AJ48: 66000 | AK48: 0
A49: 01010120 | B49: 6267 | C49: 6254 | D49: 6254 | E49: 0 | F49: 13 | Z49: 5120 | AA49: 688 | AB49: 460 | AG49: 0 | AH49: 0 | AI49: 107 | AJ49: 137280 | AK49: 6504160
A50: 01010123 | B50: 2 | C50: 2 | D50: 2 | E50: 0 | F50: 0 | Z50: 0 | AA50: 1 | AB50: 1 | AG50: 0 | AH50: 4 | AI50: 0 | AJ50: 528000 | AK50: 8000
A51: 01010126 | B51: 0 | C51: 0 | D51: 0 | E51: 0 | F51: 0 | Z51: 0 | AA51: 0 | AB51: 0 | AG51: 0 | AH51: 0 | AI51: 0 | AJ51: 174240 | AK51: 0
A52: 01010127 | B52: 2417 | C52: 2414 | D52: 2410 | E52: 4 | F52: 3 | Z52: 1065 | AA52: 1297 | AB52: 55 | AG52: 0 | AH52: 55 | AI52: 0 | AJ52: 250800 | AK52: 4579000
A53: 01010128 | B53: 0 | C53: 0 | D53: 0 | E53: 0 | F53: 0 | Z53: 0 | AA53: 0 | AB53: 0 | AG53: 0 | AH53: 0 | AI53: 0 | AJ53: 502920 | AK53: 0
A54: 01010130 | B54: 0 | C54: 0 | D54: 0 | E54: 0 | F54: 0 | Z54: 0 | AA54: 0 | AB54: 0 | AG54: 0 | AH54: 2 | AI54: 0 | AJ54: 250800 | AK54: 0
A55: 01010131 | B55: 0 | C55: 0 | D55: 0 | E55: 0 | F55: 0 | Z55: 0 | AA55: 0 | AB55: 0 | AG55: 0 | AH55: 2 | AI55: 0 | AJ55: 528000 | AK55: 0
A56: 01010132 | B56: 4923 | C56: 4844 | D56: 4843 | E56: 1 | F56: 79 | Z56: 835 | AA56: 3446 | AB56: 642 | AG56: 113 | AH56: 955 | AI56: 17 | AJ56: 642840 | AK56: 23585410
A57: 01010133 | B57: 3792 | C57: 3792 | D57: 3792 | E57: 0 | F57: 0 | Z57: 1255 | AA57: 145 | AB57: 2392 | AG57: 0 | AH57: 0 | AI57: 0 | AJ57: 528000 | AK57: 15168000
A58: 01010134 | B58: 957 | C58: 956 | D58: 955 | E58: 1 | F58: 1 | Z58: 120 | AA58: 617 | AB58: 220 | AG58: 103 | AH58: 6 | AI58: 0 | AJ58: 250800 | AK58: 1814500
A59: 01010135 | B59: 102 | C59: 102 | D59: 102 | E59: 0 | F59: 0 | Z59: 1 | AA59: 101 | AB59: 0 | AG59: 100 | AH59: 2 | AI59: 0 | AJ59: 528000 | AK59: 408000
A60: 01010136 | B60: 2517 | C60: 2495 | D60: 2490 | E60: 5 | F60: 22 | Z60: 242 | AA60: 2217 | AB60: 58 | AG60: 2 | AH60: 82 | AI60: 18 | AJ60: 642840 | AK60: 12126300
A61: 01010140 | B61: 64670 | C61: 63709 | D61: 63705 | E61: 4 | F61: 961 | Z61: 34453 | AA61: 17650 | AB61: 12567 | AG61: 0 | AH61: 0 | AI61: 209 | AJ61: 285120 | AK61: 137602800
A62: 01010141 | B62: 142 | C62: 142 | D62: 142 | E62: 0 | F62: 0 | Z62: 12 | AA62: 128 | AB62: 2 | AG62: 0 | AH62: 5 | AI62: 0 | AJ62: 475200 | AK62: 511200
A63: 01010142 | B63: 47920 | C63: 47889 | D63: 47889 | E63: 0 | F63: 31 | Z63: 25749 | AA63: 6999 | AB63: 15172 | AG63: 0 | AH63: 0 | AI63: 531 | AJ63: 77880 | AK63: 28254510
A64: 01010144 | B64: 52613 | C64: 52013 | D64: 52013 | E64: 0 | F64: 600 | Z64: 25487 | AA64: 12373 | AB64: 14736 | AG64: 0 | AH64: 0 | AI64: 275 | AJ64: 77880 | AK64: 30687670
A65: 01010146 | B65: 1729 | C65: 1729 | D65: 1729 | E65: 0 | F65: 0 | Z65: 1 | AA65: 1728 | AB65: 0 | AG65: 0 | AH65: 0 | AI65: 0 | AJ65: 528000 | AK65: 6916000
A66: 01010147 | B66: 35919 | C66: 33228 | D66: 33226 | E66: 2 | F66: 2691 | Z66: 3416 | AA66: 32155 | AB66: 349 | AG66: 0 | AH66: 0 | AI66: 5866 | AJ66: 549120 | AK66: 138220160
A67: 01010148 | B67: 0 | C67: 0 | D67: 0 | E67: 0 | F67: 0 | Z67: 0 | AA67: 0 | AB67: 0 | AG67: 0 | AH67: 0 | AI67: 0 | AJ67: 106920 | AK67: 0
A68: 01010150 | B68: 4 | C68: 4 | D68: 4 | E68: 0 | F68: 0 | Z68: 2 | AA68: 1 | AB68: 1 | AG68: 0 | AH68: 4 | AI68: 0 | AJ68: 564960 | AK68: 17120
A69: 01010151 | B69: 237410 | C69: 232891 | D69: 232693 | E69: 198 | F69: 4519 | Z69: 70966 | AA69: 114135 | AB69: 52307 | AG69: 0 | AH69: 0 | AI69: 9223 | AJ69: 361680 | AK69: 637578820
A70: 01010154 | B70: 0 | C70: 0 | D70: 0 | E70: 0 | F70: 0 | Z70: 0 | AA70: 0 | AB70: 0 | AG70: 0 | AH70: 0 | AI70: 0 | AJ70: 106920 | AK70: 0
A71: 01010155 | B71: 3908 | C71: 3908 | D71: 3908 | E71: 0 | F71: 0 | Z71: 1141 | AA71: 1398 | AB71: 1369 | AG71: 0 | AH71: 0 | AI71: 0 | AJ71: 528000 | AK71: 15632000
A72: 01010157 | B72: 3413 | C72: 3413 | D72: 3413 | E72: 0 | F72: 0 | Z72: 1808 | AA72: 42 | AB72: 1563 | AG72: 5 | AH72: 0 | AI72: 0 | AJ72: 528000 | AK72: 13652000
A73: 01010160 | B73: 23165 | C73: 23165 | D73: 23165 | E73: 0 | F73: 0 | Z73: 17325 | AA73: 329 | AB73: 5511 | AG73: 0 | AH73: 0 | AI73: 0 | AJ73: 137280 | AK73: 24091600
A74: 01010165 | B74: 153404 | C74: 152868 | D74: 152658 | E74: 210 | F74: 536 | Z74: 48995 | AA74: 62574 | AB74: 41834 | AG74: 0 | AH74: 32 | AI74: 1365 | AJ74: 174240 | AK74: 201508560
A75: 01010166 | B75: 63228 | C75: 59398 | D75: 59252 | E75: 146 | F75: 3830 | Z75: 20550 | AA75: 27247 | AB75: 15431 | AG75: 0 | AH75: 0 | AI75: 3830 | AJ75: 106920 | AK75: 47994120
A76: 01010167 | B76: 63234 | C76: 59404 | D76: 59258 | E76: 146 | F76: 3830 | Z76: 20556 | AA76: 27247 | AB76: 15431 | AG76: 0 | AH76: 0 | AI76: 3830 | AJ76: 106920 | AK76: 47998980
A77: 01010168 | B77: 35195 | C77: 35192 | D77: 35192 | E77: 0 | F77: 3 | Z77: 18416 | AA77: 2362 | AB77: 14417 | AG77: 0 | AH77: 0 | AI77: 2 | AJ77: 77880 | AK77: 20763280
A78: 01010169 | B78: 44364 | C78: 44361 | D78: 44361 | E78: 0 | F78: 3 | Z78: 23477 | AA78: 5150 | AB78: 15737 | AG78: 0 | AH78: 0 | AI78: 2 | AJ78: 77880 | AK78: 26172990
A79: 01010170 | B79: 63279 | C79: 59449 | D79: 59303 | E79: 146 | F79: 3830 | Z79: 20601 | AA79: 27247 | AB79: 15431 | AG79: 0 | AH79: 0 | AI79: 3830 | AJ79: 137280 | AK79: 61675120
A80: 01010171 | B80: 115260 | C80: 111427 | D80: 111289 | E80: 138 | F80: 3833 | Z80: 44391 | AA80: 37235 | AB80: 33632 | AG80: 0 | AH80: 0 | AI80: 3834 | AJ80: 137280 | AK80: 115740560
A81: 01010172 | B81: 276 | C81: 276 | D81: 276 | E81: 0 | F81: 0 | Z81: 158 | AA81: 114 | AB81: 4 | AG81: 0 | AH81: 0 | AI81: 0 | AJ81: 106920 | AK81: 223560
A82: 01010173 | B82: 34603 | C82: 34600 | D82: 34600 | E82: 0 | F82: 3 | Z82: 18027 | AA82: 2159 | AB82: 14417 | AG82: 0 | AH82: 0 | AI82: 1 | AJ82: 216480 | AK82: 56744000
A83: 01010174 | B83: 0 | C83: 0 | D83: 0 | E83: 0 | F83: 0 | Z83: 0 | AA83: 0 | AB83: 0 | AG83: 0 | AH83: 0 | AI83: 0 | AJ83: 353760 | AK83: 0
A84: 01010176 | B84: 134 | C84: 134 | D84: 134 | E84: 0 | F84: 0 | Z84: 44 | AA84: 87 | AB84: 3 | AG84: 0 | AH84: 0 | AI84: 0 | AJ84: 174240 | AK84: 176880
A85: 01010185 | B85: 648 | C85: 647 | D85: 647 | E85: 0 | F85: 1 | Z85: 10 | AA85: 636 | AB85: 2 | AG85: 150 | AH85: 3 | AI85: 0 | AJ85: 624360 | AK85: 3060310
A86: 01010186 | B86: 0 | C86: 0 | D86: 0 | E86: 0 | F86: 0 | Z86: 0 | AA86: 0 | AB86: 0 | AG86: 0 | AH86: 0 | AI86: 0 | AJ86: 216480 | AK86: 0
A87: 01010188 | B87: 121824 | C87: 121457 | D87: 121245 | E87: 212 | F87: 367 | Z87: 49176 | AA87: 30582 | AB87: 42065 | AG87: 0 | AH87: 11 | AI87: 393 | AJ87: 275880 | AK87: 253402050
A88: 01010189 | B88: 46585 | C88: 42692 | D88: 42645 | E88: 47 | F88: 3893 | Z88: 7560 | AA88: 35634 | AB88: 3398 | AG88: 0 | AH88: 0 | AI88: 4188 | AJ88: 64680 | AK88: 20896050
A89: 01010192 | B89: 0 | C89: 0 | D89: 0 | E89: 0 | F89: 0 | Z89: 0 | AA89: 0 | AB89: 0 | AG89: 0 | AH89: 0 | AI89: 0 | AJ89: 1012440 | AK89: 0
A90: 01010193 | B90: 0 | C90: 0 | D90: 0 | E90: 0 | F90: 0 | Z90: 0 | AA90: 0 | AB90: 0 | AG90: 0 | AH90: 0 | AI90: 0 | AJ90: 1012440 | AK90: 0
A91: 01010194 | B91: 0 | C91: 0 | D91: 0 | E91: 0 | F91: 0 | Z91: 0 | AA91: 0 | AB91: 0 | AG91: 0 | AH91: 9 | AI91: 0 | AJ91: 3474240 | AK91: 0
A92: 01010195 | B92: 0 | C92: 0 | D92: 0 | E92: 0 | F92: 0 | Z92: 0 | AA92: 0 | AB92: 0 | AG92: 0 | AH92: 6 | AI92: 0 | AJ92: 3784440 | AK92: 0
A93: 01010196 | B93: 0 | C93: 0 | D93: 0 | E93: 0 | F93: 0 | Z93: 0 | AA93: 0 | AB93: 0 | AG93: 0 | AH93: 0 | AI93: 0 | AJ93: 2481600 | AK93: 0
A94: 01010197 | B94: 0 | C94: 0 | D94: 0 | E94: 0 | F94: 0 | Z94: 0 | AA94: 0 | AB94: 0 | AG94: 0 | AH94: 0 | AI94: 0 | AJ94: 5357880 | AK94: 0
A95: 01010198 | B95: 11219 | C95: 11197 | D95: 11191 | E95: 6 | F95: 22 | Z95: 3147 | AA95: 1568 | AB95: 6504 | AG95: 0 | AH95: 0 | AI95: 1 | AJ95: 1177440 | AK95: 99823720
A96: 01010199 | B96: 1900 | C96: 1891 | D96: 1891 | E96: 0 | F96: 9 | Z96: 368 | AA96: 1165 | AB96: 367 | AG96: 0 | AH96: 0 | AI96: 2 | AJ96: 97680 | AK96: 1399340
A97: 01010200 | B97: 0 | C97: 0 | D97: 0 | E97: 0 | F97: 0 | Z97: 0 | AA97: 0 | AB97: 0 | AG97: 0 | AH97: 0 | AI97: 0 | AJ97: 274560 | AK97: 0
A98: 01010201 | B98: 45155 | C98: 45152 | D98: 45118 | E98: 34 | F98: 3 | Z98: 31113 | AA98: 1919 | AB98: 12116 | AG98: 0 | AH98: 0 | AI98: 0 | AJ98: 447480 | AK98: 152950020
A99: 01010202 | B99: 41686 | C99: 40690 | D99: 40661 | E99: 29 | F99: 996 | Z99: 5656 | AA99: 34829 | AB99: 1200 | AG99: 0 | AH99: 0 | AI99: 4494 | AJ99: 190080 | AK99: 58551840
A100: 01010204 | B100: 19675 | C100: 19575 | D100: 19571 | E100: 4 | F100: 100 | Z100: 3154 | AA100: 3554 | AB100: 12954 | AG100: 0 | AH100: 0 | AI100: 20 | AJ100: 279840 | AK100: 41490520
A101: 01010205 | B101: 1 | C101: 1 | D101: 1 | E101: 0 | F101: 0 | Z101: 1 | AA101: 0 | AB101: 0 | AG101: 0 | AH101: 1 | AI101: 0 | AJ101: 662640 | AK101: 5020
A102: 01010206 | B102: 1625 | C102: 1625 | D102: 1623 | E102: 2 | F102: 0 | Z102: 430 | AA102: 888 | AB102: 307 | AG102: 0 | AH102: 0 | AI102: 0 | AJ102: 250800 | AK102: 3083700
A103: 01010207 | B103: 0 | C103: 0 | D103: 0 | E103: 0 | F103: 0 | Z103: 0 | AA103: 0 | AB103: 0 | AG103: 0 | AH103: 0 | AI103: 0 | AJ103: 773520 | AK103: 0
A104: 01010208 | B104: 2024 | C104: 2024 | D104: 2024 | E104: 0 | F104: 0 | Z104: 60 | AA104: 1963 | AB104: 1 | AG104: 0 | AH104: 0 | AI104: 0 | AJ104: 77880 | AK104: 1194160
A105: 01010209 | B105: 6495 | C105: 6489 | D105: 6486 | E105: 3 | F105: 6 | Z105: 1189 | AA105: 2992 | AB105: 2312 | AG105: 0 | AH105: 0 | AI105: 94 | AJ105: 157080 | AK105: 7718340
A106: 01010210 | B106: 13771 | C106: 13767 | D106: 13762 | E106: 5 | F106: 4 | Z106: 4689 | AA106: 6095 | AB106: 2987 | AG106: 0 | AH106: 0 | AI106: 82 | AJ106: 174240 | AK106: 18165840
A107: 01010212 | B107: 75428 | C107: 74758 | D107: 74720 | E107: 38 | F107: 670 | Z107: 36034 | AA107: 24319 | AB107: 15073 | AG107: 0 | AH107: 0 | AI107: 196 | AJ107: 137280 | AK107: 77708800
A108: 01010214 | B108: 0 | C108: 0 | D108: 0 | E108: 0 | F108: 0 | Z108: 0 | AA108: 0 | AB108: 0 | AG108: 0 | AH108: 0 | AI108: 0 | AJ108: 250800 | AK108: 0
A109: 01010215 | B109: 0 | C109: 0 | D109: 0 | E109: 0 | F109: 0 | Z109: 0 | AA109: 0 | AB109: 0 | AG109: 0 | AH109: 0 | AI109: 0 | AJ109: 564960 | AK109: 0
A110: 01010216 | B110: 0 | C110: 0 | D110: 0 | E110: 0 | F110: 0 | Z110: 0 | AA110: 0 | AB110: 0 | AG110: 0 | AH110: 0 | AI110: 0 | AJ110: 385440 | AK110: 0
A111: 01010217 | B111: 2 | C111: 2 | D111: 2 | E111: 0 | F111: 0 | Z111: 1 | AA111: 1 | AB111: 0 | AG111: 0 | AH111: 2 | AI111: 0 | AJ111: 183480 | AK111: 2780
A112: 01010218 | B112: 16990 | C112: 16493 | D112: 16493 | E112: 0 | F112: 497 | Z112: 864 | AA112: 15539 | AB112: 586 | AG112: 0 | AH112: 1 | AI112: 855 | AJ112: 163680 | AK112: 20451320
A113: 01010219 | B113: 16600 | C113: 16559 | D113: 16559 | E113: 0 | F113: 41 | Z113: 854 | AA113: 15460 | AB113: 286 | AG113: 0 | AH113: 0 | AI113: 165 | AJ113: 242880 | AK113: 30468560
A114: 01010220 | B114: 0 | C114: 0 | D114: 0 | E114: 0 | F114: 0 | Z114: 0 | AA114: 0 | AB114: 0 | AG114: 0 | AH114: 0 | AI114: 0 | AJ114: 352440 | AK114: 0
A115: 01010222 | B115: 234403 | C115: 229240 | D115: 229104 | E115: 136 | F115: 5163 | Z115: 74304 | AA115: 104252 | AB115: 55835 | AG115: 0 | AH115: 0 | AI115: 11586 | AJ115: 159720 | AK115: 277215840
A116: 01010223 | B116: 2215 | C116: 2209 | D116: 2209 | E116: 0 | F116: 6 | Z116: 259 | AA116: 1948 | AB116: 8 | AG116: 0 | AH116: 0 | AI116: 11 | AJ116: 352440 | AK116: 5898030
A117: 01010224 | B117: 22457 | C117: 22361 | D117: 22356 | E117: 5 | F117: 96 | Z117: 6064 | AA117: 3834 | AB117: 12559 | AG117: 0 | AH117: 0 | AI117: 12 | AJ117: 564960 | AK117: 95683680
A118: 01010225 | B118: 28243 | C118: 28140 | D118: 28131 | E118: 9 | F118: 103 | Z118: 7341 | AA118: 7355 | AB118: 13547 | AG118: 0 | AH118: 0 | AI118: 19 | AJ118: 431640 | AK118: 91988370
A119: 01010226 | B119: 22261 | C119: 22212 | D119: 22206 | E119: 6 | F119: 49 | Z119: 6535 | AA119: 824 | AB119: 14902 | AG119: 0 | AH119: 0 | AI119: 5 | AJ119: 1177440 | AK119: 198077520
A120: 01010229 | B120: 26559 | C120: 26518 | D120: 26496 | E120: 22 | F120: 41 | Z120: 7562 | AA120: 9787 | AB120: 9209 | AG120: 71 | AH120: 0 | AI120: 53 | AJ120: 257400 | AK120: 51667200
A121: 01010230 | B121: 0 | C121: 0 | D121: 0 | E121: 0 | F121: 0 | Z121: 0 | AA121: 0 | AB121: 0 | AG121: 0 | AH121: 0 | AI121: 0 | AJ121: 702240 | AK121: 0
A122: 01010231 | B122: 590979 | C122: 580086 | D122: 579713 | E122: 373 | F122: 10893 | Z122: 292771 | AA122: 148035 | AB122: 150167 | AG122: 0 | AH122: 0 | AI122: 16487 | AJ122: 147840 | AK122: 649278560
A123: 01010232 | B123: 0 | C123: 0 | D123: 0 | E123: 0 | F123: 0 | Z123: 0 | AA123: 0 | AB123: 0 | AG123: 0 | AH123: 0 | AI123: 0 | AJ123: 702240 | AK123: 0
A124: 01010233 | B124: 81015 | C124: 75789 | D124: 75785 | E124: 4 | F124: 5226 | Z124: 11165 | AA124: 66117 | AB124: 3732 | AG124: 0 | AH124: 0 | AI124: 13129 | AJ124: 747120 | AK124: 428943100
A125: 01010234 | B125: 3411 | C125: 3394 | D125: 3394 | E125: 0 | F125: 17 | Z125: 228 | AA125: 3172 | AB125: 11 | AG125: 4 | AH125: 150 | AI125: 13 | AJ125: 671880 | AK125: 17275460
A126: 01010235 | B126: 0 | C126: 0 | D126: 0 | E126: 0 | F126: 0 | Z126: 0 | AA126: 0 | AB126: 0 | AG126: 0 | AH126: 0 | AI126: 0 | AJ126: 250800 | AK126: 0
A127: 01010238 | B127: 0 | C127: 0 | D127: 0 | E127: 0 | F127: 0 | Z127: 0 | AA127: 0 | AB127: 0 | AG127: 0 | AH127: 0 | AI127: 0 | AJ127: 682440 | AK127: 0
A128: 01010239 | B128: 10365 | C128: 10152 | D128: 10152 | E128: 0 | F128: 213 | Z128: 946 | AA128: 6942 | AB128: 2475 | AG128: 0 | AH128: 0 | AI128: 81 | AJ128: 161040 | AK128: 12385440
A129: 01010241 | B129: 62319 | C129: 61684 | D129: 61653 | E129: 31 | F129: 635 | Z129: 33427 | AA129: 16500 | AB129: 12391 | AG129: 0 | AH129: 0 | AI129: 123 | AJ129: 207240 | AK129: 96795210
A130: 01010242 | B130: 0 | C130: 0 | D130: 0 | E130: 0 | F130: 0 | Z130: 0 | AA130: 0 | AB130: 0 | AG130: 0 | AH130: 0 | AI130: 0 | AJ130: 77880 | AK130: 0
A131: 01010244 | B131: 9722 | C131: 9695 | D131: 9695 | E131: 0 | F131: 27 | Z131: 1047 | AA131: 6656 | AB131: 2018 | AG131: 153 | AH131: 0 | AI131: 15 | AJ131: 266640 | AK131: 19583900
A132: 01010245 | B132: 88585 | C132: 88388 | D132: 88352 | E132: 36 | F132: 197 | Z132: 60438 | AA132: 5726 | AB132: 22421 | AG132: 0 | AH132: 0 | AI132: 1 | AJ132: 444840 | AK132: 297746240
A133: 01010246 | B133: 159939 | C133: 153843 | D133: 153732 | E133: 111 | F133: 6096 | Z133: 25960 | AA133: 106029 | AB133: 27950 | AG133: 0 | AH133: 0 | AI133: 13300 | AJ133: 159720 | AK133: 186015720
A134: 01010247 | B134: 4741 | C134: 4381 | D134: 4381 | E134: 0 | F134: 360 | Z134: 268 | AA134: 4435 | AB134: 18 | AG134: 0 | AH134: 0 | AI134: 834 | AJ134: 716760 | AK134: 23788830
A135: 01010248 | B135: 856 | C135: 856 | D135: 856 | E135: 0 | F135: 0 | Z135: 226 | AA135: 540 | AB135: 90 | AG135: 0 | AH135: 0 | AI135: 0 | AJ135: 528000 | AK135: 3424000
A136: 01010250 | B136: 0 | C136: 0 | D136: 0 | E136: 0 | F136: 0 | Z136: 0 | AA136: 0 | AB136: 0 | AG136: 0 | AH136: 0 | AI136: 0 | AJ136: 250800 | AK136: 0
A137: 01010251 | B137: 20136 | C137: 20038 | D137: 20035 | E137: 3 | F137: 98 | Z137: 3074 | AA137: 4602 | AB137: 12460 | AG137: 24 | AH137: 0 | AI137: 18 | AJ137: 274560 | AK137: 41672800
A138: 01010254 | B138: 1027 | C138: 1011 | D138: 1011 | E138: 0 | F138: 16 | Z138: 127 | AA138: 870 | AB138: 30 | AG138: 0 | AH138: 9 | AI138: 7 | AJ138: 352440 | AK138: 2699370
A139: 01010255 | B139: 4500 | C139: 4488 | D139: 4486 | E139: 2 | F139: 12 | Z139: 2648 | AA139: 1590 | AB139: 262 | AG139: 22 | AH139: 2 | AI139: 21 | AJ139: 352440 | AK139: 11977620
A140: 01010256 | B140: 276006 | C140: 272906 | D140: 272682 | E140: 224 | F140: 3100 | Z140: 104991 | AA140: 91315 | AB140: 79498 | AG140: 0 | AH140: 0 | AI140: 7216 | AJ140: 159720 | AK140: 329945220
A141: 01010257 | B141: 20780 | C141: 20780 | D141: 20757 | E141: 23 | F141: 0 | Z141: 13355 | AA141: 1903 | AB141: 5522 | AG141: 0 | AH141: 4 | AI141: 0 | AJ141: 201960 | AK141: 31758210
A142: 01010258 | B142: 25383 | C142: 25062 | D142: 25058 | E142: 4 | F142: 321 | Z142: 6314 | AA142: 10069 | AB142: 9909 | AG142: 0 | AH142: 0 | AI142: 517 | AJ142: 1012440 | AK142: 192194860
A143: 01010261 | B143: 442 | C143: 442 | D143: 442 | E143: 0 | F143: 0 | Z143: 66 | AA143: 375 | AB143: 3 | AG143: 4 | AH143: 506 | AI143: 0 | AJ143: 733920 | AK143: 2457520
A144: 01010262 | B144: 121700 | C144: 119138 | D144: 119077 | E144: 61 | F144: 2562 | Z144: 32944 | AA144: 55184 | AB144: 33587 | AG144: 0 | AH144: 0 | AI144: 3985 | AJ144: 1272480 | AK144: 1147902280
A145: 01010263 | B145: 36476 | C145: 36204 | D145: 36204 | E145: 0 | F145: 272 | Z145: 2984 | AA145: 27531 | AB145: 5958 | AG145: 0 | AH145: 0 | AI145: 2745 | AJ145: 229680 | AK145: 62994960
A146: 01010264 | B146: 20451 | C146: 20244 | D146: 20243 | E146: 1 | F146: 207 | Z146: 1807 | AA146: 17907 | AB146: 736 | AG146: 0 | AH146: 0 | AI146: 449 | AJ146: 208560 | AK146: 31983940
A147: 01010266 | B147: 427 | C147: 427 | D147: 427 | E147: 0 | F147: 0 | Z147: 5 | AA147: 408 | AB147: 14 | AG147: 0 | AH147: 0 | AI147: 0 | AJ147: 373560 | AK147: 1208410
A148: 01010267 | B148: 2654 | C148: 2543 | D148: 2540 | E148: 3 | F148: 111 | Z148: 295 | AA148: 2314 | AB148: 45 | AG148: 44 | AH148: 146 | AI148: 113 | AJ148: 854040 | AK148: 16433800
A149: 01010268 | B149: 3836 | C149: 3730 | D149: 3726 | E149: 4 | F149: 106 | Z149: 211 | AA149: 3596 | AB149: 29 | AG149: 71 | AH149: 9 | AI149: 108 | AJ149: 1701480 | AK149: 48028140
A150: 01010270 | B150: 3 | C150: 3 | D150: 3 | E150: 0 | F150: 0 | Z150: 3 | AA150: 0 | AB150: 0 | AG150: 0 | AH150: 3 | AI150: 0 | AJ150: 5381640 | AK150: 122310
A151: 01010271 | B151: 77418 | C151: 77418 | D151: 77331 | E151: 87 | F151: 0 | Z151: 44099 | AA151: 8943 | AB151: 24376 | AG151: 0 | AH151: 0 | AI151: 0 | AJ151: 244200 | AK151: 143062350
A152: 01010272 | B152: 0 | C152: 0 | D152: 0 | E152: 0 | F152: 0 | Z152: 0 | AA152: 0 | AB152: 0 | AG152: 0 | AH152: 0 | AI152: 0 | AJ152: 959640 | AK152: 0
A153: 01010273 | B153: 6 | C153: 6 | D153: 6 | E153: 0 | F153: 0 | Z153: 2 | AA153: 4 | AB153: 0 | AG153: 4 | AH153: 2 | AI153: 2 | AJ153: 972840 | AK153: 44220
A154: 01010274 | B154: 0 | C154: 0 | D154: 0 | E154: 0 | F154: 0 | Z154: 0 | AA154: 0 | AB154: 0 | AG154: 0 | AH154: 1 | AI154: 0 | AJ154: 838200 | AK154: 0
A155: 01010275 | B155: 3 | C155: 3 | D155: 3 | E155: 0 | F155: 0 | Z155: 0 | AA155: 3 | AB155: 0 | AG155: 4 | AH155: 10 | AI155: 0 | AJ155: 628320 | AK155: 14280
A156: 01010276 | B156: 0 | C156: 0 | D156: 0 | E156: 0 | F156: 0 | Z156: 0 | AA156: 0 | AB156: 0 | AG156: 0 | AH156: 0 | AI156: 0 | AJ156: 762960 | AK156: 0
A157: 01010278 | B157: 916 | C157: 916 | D157: 914 | E157: 2 | F157: 0 | Z157: 42 | AA157: 872 | AB157: 2 | AG157: 7 | AH157: 1 | AI157: 0 | AJ157: 628320 | AK157: 4350640
A158: 01010279 | B158: 2 | C158: 2 | D158: 2 | E158: 0 | F158: 0 | Z158: 0 | AA158: 2 | AB158: 0 | AG158: 2 | AH158: 0 | AI158: 3 | AJ158: 838200 | AK158: 12700
A159: 01010280 | B159: 887 | C159: 887 | D159: 887 | E159: 0 | F159: 0 | Z159: 6 | AA159: 880 | AB159: 1 | AG159: 5 | AH159: 0 | AI159: 0 | AJ159: 838200 | AK159: 5632450
A160: 01010281 | B160: 4 | C160: 4 | D160: 4 | E160: 0 | F160: 0 | Z160: 1 | AA160: 3 | AB160: 0 | AG160: 0 | AH160: 9 | AI160: 0 | AJ160: 595320 | AK160: 18040
A161: 01010284 | B161: 0 | C161: 0 | D161: 0 | E161: 0 | F161: 0 | Z161: 0 | AA161: 0 | AB161: 0 | AG161: 0 | AH161: 0 | AI161: 0 | AJ161: 838200 | AK161: 0
A162: 01010286 | B162: 5036 | C162: 5025 | D162: 5024 | E162: 1 | F162: 11 | Z162: 1973 | AA162: 2301 | AB162: 762 | AG162: 29 | AH162: 0 | AI162: 21 | AJ162: 623040 | AK162: 23713280
A163: 01010287 | B163: 4744 | C163: 4741 | D163: 4741 | E163: 0 | F163: 3 | Z163: 189 | AA163: 4499 | AB163: 20 | AG163: 527 | AH163: 0 | AI163: 209 | AJ163: 623040 | AK163: 22377520
A164: 01010288 | B164: 3758 | C164: 3757 | D164: 3757 | E164: 0 | F164: 1 | Z164: 148 | AA164: 3596 | AB164: 14 | AG164: 575 | AH164: 0 | AI164: 165 | AJ164: 623040 | AK164: 17733040
A165: 01010289 | B165: 1 | C165: 1 | D165: 1 | E165: 0 | F165: 0 | Z165: 0 | AA165: 1 | AB165: 0 | AG165: 2 | AH165: 1 | AI165: 0 | AJ165: 1454640 | AK165: 11020
A166: 01010290 | B166: 6 | C166: 6 | D166: 6 | E166: 0 | F166: 0 | Z166: 0 | AA166: 6 | AB166: 0 | AG166: 7 | AH166: 1 | AI166: 0 | AJ166: 1454640 | AK166: 66120
A167: 01010291 | B167: 5424 | C167: 5418 | D167: 5418 | E167: 0 | F167: 6 | Z167: 408 | AA167: 4947 | AB167: 69 | AG167: 270 | AH167: 0 | AI167: 170 | AJ167: 623040 | AK167: 25572960
A168: 01010292 | B168: 3395 | C168: 3389 | D168: 3389 | E168: 0 | F168: 6 | Z168: 122 | AA168: 3269 | AB168: 4 | AG168: 252 | AH168: 0 | AI168: 46 | AJ168: 1680360 | AK168: 43141970
A169: 01010293 | B169: 1846 | C169: 1845 | D169: 1845 | E169: 0 | F169: 1 | Z169: 37 | AA169: 1801 | AB169: 8 | AG169: 200 | AH169: 5 | AI169: 0 | AJ169: 953040 | AK169: 13320900
A170: 01010294 | B170: 769 | C170: 769 | D170: 769 | E170: 0 | F170: 0 | Z170: 4 | AA170: 763 | AB170: 2 | AG170: 34 | AH170: 0 | AI170: 9 | AJ170: 623040 | AK170: 3629680
A171: 01010295 | B171: 2789 | C171: 2787 | D171: 2787 | E171: 0 | F171: 2 | Z171: 135 | AA171: 2646 | AB171: 8 | AG171: 469 | AH171: 0 | AI171: 82 | AJ171: 623040 | AK171: 13154640
A172: 01010296 | B172: 0 | C172: 0 | D172: 0 | E172: 0 | F172: 0 | Z172: 0 | AA172: 0 | AB172: 0 | AG172: 0 | AH172: 3 | AI172: 0 | AJ172: 838200 | AK172: 0
A173: 01010297 | B173: 786 | C173: 786 | D173: 786 | E173: 0 | F173: 0 | Z173: 0 | AA173: 785 | AB173: 1 | AG173: 3 | AH173: 0 | AI173: 1 | AJ173: 1454640 | AK173: 8661720
A174: 01010298 | B174: 1292 | C174: 1290 | D174: 1290 | E174: 0 | F174: 2 | Z174: 13 | AA174: 1276 | AB174: 3 | AG174: 35 | AH174: 1 | AI174: 14 | AJ174: 628320 | AK174: 6140400
A175: 01010299 | B175: 4 | C175: 4 | D175: 4 | E175: 0 | F175: 0 | Z175: 0 | AA175: 4 | AB175: 0 | AG175: 4 | AH175: 26 | AI175: 2 | AJ175: 762960 | AK175: 23120
A176: 01010300 | B176: 735 | C176: 735 | D176: 735 | E176: 0 | F176: 0 | Z176: 0 | AA176: 735 | AB176: 0 | AG176: 0 | AH176: 1 | AI176: 0 | AJ176: 1552320 | AK176: 8643600
A177: 01010301 | B177: 81357 | C177: 78247 | D177: 78230 | E177: 17 | F177: 3110 | Z177: 6265 | AA177: 74363 | AB177: 730 | AG177: 8589 | AH177: 0 | AI177: 8518 | AJ177: 545160 | AK177: 323089900
A178: 01010302 | B178: 890 | C178: 889 | D178: 889 | E178: 0 | F178: 1 | Z178: 3 | AA178: 887 | AB178: 0 | AG178: 28 | AH178: 4 | AI178: 3 | AJ178: 838200 | AK178: 5645150
A179: 01010303 | B179: 32316 | C179: 30413 | D179: 30411 | E179: 2 | F179: 1903 | Z179: 1631 | AA179: 30301 | AB179: 384 | AG179: 4402 | AH179: 925 | AI179: 4129 | AJ179: 623040 | AK179: 143539920
A180: 01010304 | B180: 19218 | C180: 19121 | D180: 19118 | E180: 3 | F180: 97 | Z180: 2396 | AA180: 16610 | AB180: 212 | AG180: 491 | AH180: 0 | AI180: 122 | AJ180: 545160 | AK180: 78957340
A181: 01010305 | B181: 18078 | C181: 17994 | D181: 17991 | E181: 3 | F181: 84 | Z181: 1980 | AA181: 15873 | AB181: 225 | AG181: 526 | AH181: 0 | AI181: 132 | AJ181: 545160 | AK181: 74302830
A182: 01010306 | B182: 5 | C182: 5 | D182: 5 | E182: 0 | F182: 0 | Z182: 1 | AA182: 4 | AB182: 0 | AG182: 5 | AH182: 18 | AI182: 0 | AJ182: 838200 | AK182: 31750
A183: 01010307 | B183: 2623 | C183: 2623 | D183: 2623 | E183: 0 | F183: 0 | Z183: 107 | AA183: 2509 | AB183: 7 | AG183: 193 | AH183: 0 | AI183: 102 | AJ183: 623040 | AK183: 12380560
A184: 01010309 | B184: 0 | C184: 0 | D184: 0 | E184: 0 | F184: 0 | Z184: 0 | AA184: 0 | AB184: 0 | AG184: 0 | AH184: 0 | AI184: 0 | AJ184: 762960 | AK184: 0
A185: 01010311 | B185: 255 | C185: 255 | D185: 255 | E185: 0 | F185: 0 | Z185: 2 | AA185: 253 | AB185: 0 | AG185: 0 | AH185: 0 | AI185: 0 | AJ185: 685080 | AK185: 1323450
A186: 01010313 | B186: 1145 | C186: 1145 | D186: 1145 | E186: 0 | F186: 0 | Z186: 119 | AA186: 298 | AB186: 728 | AG186: 0 | AH186: 0 | AI186: 0 | AJ186: 628320 | AK186: 5450200
A187: 01010319 | B187: 0 | C187: 0 | D187: 0 | E187: 0 | F187: 0 | Z187: 0 | AA187: 0 | AB187: 0 | AG187: 0 | AH187: 0 | AI187: 0 | AJ187: 3678840 | AK187: 0
A188: 01010320 | B188: 0 | C188: 0 | D188: 0 | E188: 0 | F188: 0 | Z188: 0 | AA188: 0 | AB188: 0 | AG188: 0 | AH188: 0 | AI188: 0 | AJ188: 4161960 | AK188: 0
A189: 01010321 | B189: 0 | C189: 0 | D189: 0 | E189: 0 | F189: 0 | Z189: 0 | AA189: 0 | AB189: 0 | AG189: 0 | AH189: 0 | AI189: 0 | AJ189: 3678840 | AK189: 0
A190: 01010322 | B190: 0 | C190: 0 | D190: 0 | E190: 0 | F190: 0 | Z190: 0 | AA190: 0 | AB190: 0 | AG190: 0 | AH190: 3 | AI190: 0 | AJ190: 5504400 | AK190: 0
A191: 01010323 | B191: 0 | C191: 0 | D191: 0 | E191: 0 | F191: 0 | Z191: 0 | AA191: 0 | AB191: 0 | AG191: 0 | AH191: 5 | AI191: 0 | AJ191: 5885880 | AK191: 0
A192: 01010324 | B192: 0 | C192: 0 | D192: 0 | E192: 0 | F192: 0 | Z192: 0 | AA192: 0 | AB192: 0 | AG192: 0 | AH192: 3 | AI192: 0 | AJ192: 5885880 | AK192: 0
A193: 01010327 | B193: 0 | C193: 0 | D193: 0 | E193: 0 | F193: 0 | Z193: 0 | AA193: 0 | AB193: 0 | AG193: 0 | AH193: 0 | AI193: 0 | AJ193: 7817040 | AK193: 0
A194: 01010328 | B194: 1 | C194: 1 | D194: 1 | E194: 0 | F194: 0 | Z194: 1 | AA194: 0 | AB194: 0 | AG194: 0 | AH194: 1 | AI194: 0 | AJ194: 628320 | AK194: 4760
A195: 01010329 | B195: 0 | C195: 0 | D195: 0 | E195: 0 | F195: 0 | Z195: 0 | AA195: 0 | AB195: 0 | AG195: 0 | AH195: 0 | AI195: 0 | AJ195: 609840 | AK195: 0
A196: 01010330 | B196: 1690 | C196: 1689 | D196: 1688 | E196: 1 | F196: 1 | Z196: 179 | AA196: 1497 | AB196: 14 | AG196: 39 | AH196: 0 | AI196: 0 | AJ196: 623040 | AK196: 7967360
A197: 01010331 | B197: 49 | C197: 49 | D197: 49 | E197: 0 | F197: 0 | Z197: 1 | AA197: 48 | AB197: 0 | AG197: 118 | AH197: 442 | AI197: 5 | AJ197: 1247400 | AK197: 463050
A198: 01010332 | B198: 104 | C198: 104 | D198: 104 | E198: 0 | F198: 0 | Z198: 1 | AA198: 103 | AB198: 0 | AG198: 299 | AH198: 1046 | AI198: 17 | AJ198: 855360 | AK198: 673920
A199: 01010334 | B199: 2347 | C199: 2342 | D199: 2342 | E199: 0 | F199: 5 | Z199: 21 | AA199: 2324 | AB199: 2 | AG199: 57 | AH199: 201 | AI199: 10 | AJ199: 691680 | AK199: 12272080
A200: 01010335 | B200: 648 | C200: 648 | D200: 648 | E200: 0 | F200: 0 | Z200: 55 | AA200: 586 | AB200: 7 | AG200: 2 | AH200: 0 | AI200: 0 | AJ200: 549120 | AK200: 2695680
A201: 01010336 | B201: 755 | C201: 753 | D201: 752 | E201: 1 | F201: 2 | Z201: 43 | AA201: 708 | AB201: 4 | AG201: 15 | AH201: 7 | AI201: 7 | AJ201: 839520 | AK201: 4782720
... 2705 more rows

Sheet B
D1: TOTAL | E1: ACTIVIDADES | I1: INTERVENCIONES QUIRÚRGICAS | P1: INTERVENCIONES QUIRÚRGICAS MAYORES NO AMBULATORIAS ELECTIVAS | S1: INTERVENCIONES QUIRÚRGICAS MAYORES AMBULATORIAS ELECTIVA | V1: INTERVENCIONES QUIRÚRGICAS MAYORES AMBULATORIAS URGENCIA | Y1: INTERVENCIONES QUIRÚRGICAS MAYORES NO AMBULATORIAS URGENCIA | AB1: PROCEDENCIA | AE1: PRODUCCION INTRA HOSPITAL | AH1: OPERATIVO | AI1: COMPRAS REALIZADAS | AK1: VENTAS DE SERVICIOS | AL1: TRANSFERENCIA 2021
B2: CODIGO | C2: GLOSA | E2: TOTAL BENEFI-CIARIOS | F2: BENEFICIARIOS | H2: NO BENEFI-CIARIOS | I2: TOTAL BENEFI- CIARIOS | J2: PRINCIPAL | M2: SECUNDARIA | S2: < 15 AÑOS | V2: < 15 AÑOS | Y2: < 15 AÑOS
F3: MAI | G3: MLE | J3: MAI | K3: MLE | L3: NO BENEFI-CIARIO | M3: MAI | N3: MLE | O3: NO BENEFI-CIARIO | P3: TOTAL | Q3: < 15 AÑOS | R3: 15 AÑOS Y MÁS | S3: TOTAL | T3: < 15 AÑOS | U3: 15 AÑOS Y MÁS | V3: TOTAL | W3: < 15 AÑOS | X3: 15 AÑOS Y MÁS | Y3: TOTAL | Z3: < 15 AÑOS | AA3: 15 AÑOS Y MÁS | AB3: ATENCION CERRADA | AC3: ATENCION ABIERTA | AD3: EMERGENCIA | AE3: POR HONO- RARIOS | AF3: POR CONVENIOS | AG3: POR CONSULTO- RES DE LLAMADA | AI3: AL SISTEMA | AJ3: EXTRA-SISTEMA
C4: CONSULTAS Y ATENCION MEDICA
C5: CONSULTAS DE ESPECIALIDADES MEDICAS
A6: 01014275 | B6: 0101201 | C6: Consulta Médica de Especialidad en Dermatología | D6: =IFERROR(VLOOKUP($A6,Filtros!$A$4:$AK$2906,2,FALSE),0) -> 4657 | E6: =IFERROR(VLOOKUP($A6,Filtros!$A$4:$AK$2906,3,FALSE),0) -> 4655 | F6: =IFERROR(VLOOKUP($A6,Filtros!$A$4:$AK$2906,4,FALSE),0) -> 4655 | G6: =IFERROR(VLOOKUP($A6,Filtros!$A$4:$AK$2906,5,FALSE),0) -> 0 | H6: =IFERROR(VLOOKUP($A6,Filtros!$A$4:$AK$2906,6,FALSE),0) -> 2 | I6: =IFERROR(VLOOKUP($A6,Filtros!$A$4:$AK$2906,7,FALSE),0) -> 0 | J6: =IFERROR(VLOOKUP($A6,Filtros!$A$4:$AK$2906,8,FALSE),0) -> 0 | K6: =IFERROR(VLOOKUP($A6,Filtros!$A$4:$AK$2906,9,FALSE),0) -> 0 | L6: =IFERROR(VLOOKUP($A6,Filtros!$A$4:$AK$2906,10,FALSE),0) -> 0 | M6: =IFERROR(VLOOKUP($A6,Filtros!$A$4:$AK$2906,11,FALSE),0) -> 0 | N6: =IFERROR(VLOOKUP($A6,Filtros!$A$4:$AK$2906,12,FALSE),0) -> 0 | O6: =IFERROR(VLOOKUP($A6,Filtros!$A$4:$AK$2906,13,FALSE),0) -> 0 | P6: =IFERROR(VLOOKUP($A6,Filtros!$A$4:$AK$2906,14,FALSE),0) -> 0 | Q6: =IFERROR(VLOOKUP($A6,Filtros!$A$4:$AK$2906,15,FALSE),0) -> 0 | R6: =IFERROR(VLOOKUP($A6,Filtros!$A$4:$AK$2906,16,FALSE),0) -> 0 | S6: =IFERROR(VLOOKUP($A6,Filtros!$A$4:$AK$2906,17,FALSE),0) -> 0 | T6: =IFERROR(VLOOKUP($A6,Filtros!$A$4:$AK$2906,18,FALSE),0) -> 0 | U6: =IFERROR(VLOOKUP($A6,Filtros!$A$4:$AK$2906,19,FALSE),0) -> 0 | V6: =IFERROR(VLOOKUP($A6,Filtros!$A$4:$AK$2906,20,FALSE),0) -> 0 | W6: =IFERROR(VLOOKUP($A6,Filtros!$A$4:$AK$2906,21,FALSE),0) -> 0 | X6: =IFERROR(VLOOKUP($A6,Filtros!$A$4:$AK$2906,22,FALSE),0) -> 0 | Y6: =IFERROR(VLOOKUP($A6,Filtros!$A$4:$AK$2906,23,FALSE),0) -> 0 | Z6: =IFERROR(VLOOKUP($A6,Filtros!$A$4:$AK$2906,24,FALSE),0) -> 0 | AA6: =IFERROR(VLOOKUP($A6,Filtros!$A$4:$AK$2906,25,FALSE),0) -> 0 | AB6: =IFERROR(VLOOKUP($A6,Filtros!$A$4:$AK$2906,26,FALSE),0) -> 0 | AC6: =IFERROR(VLOOKUP($A6,Filtros!$A$4:$AK$2906,27,FALSE),0) -> 4657 | AD6: =IFERROR(VLOOKUP($A6,Filtros!$A$4:$AK$2906,28,FALSE),0) -> 0 | AE6: =IFERROR(VLOOKUP($A6,Filtros!$A$4:$AK$2906,29,FALSE),0) -> 0 | AF6: =IFERROR(VLOOKUP($A6,Filtros!$A$4:$AK$2906,30,FALSE),0) -> 0 | AG6: =IFERROR(VLOOKUP($A6,Filtros!$A$4:$AK$2906,31,FALSE),0) -> 0 | AH6: =IFERROR(VLOOKUP($A6,Filtros!$A$4:$AK$2906,32,FALSE),0) -> 0 | AI6: =IFERROR(VLOOKUP($A6,Filtros!$A$4:$AK$2906,33,FALSE),0) -> 0 | AJ6: =IFERROR(VLOOKUP($A6,Filtros!$A$4:$AK$2906,34,FALSE),0) -> 0 | AK6: =IFERROR(VLOOKUP($A6,Filtros!$A$4:$AK$2906,35,FALSE),0) -> 0 | AL6: =IFERROR(VLOOKUP($A6,Filtros!$A$4:$AK$2906,36,FALSE),0) -> 1,144,440 | AM6: =IFERROR(VLOOKUP($A6,Filtros!$A$4:$AK$2906,37,FALSE),0) -> 40,358,850
A7: 01014276 | B7: 0101202 | C7: Consulta Médica de Especialidad en Geriatría | D7: =IFERROR(VLOOKUP($A7,Filtros!$A$4:$AK$2906,2,FALSE),0) -> 359 | E7: =IFERROR(VLOOKUP($A7,Filtros!$A$4:$AK$2906,3,FALSE),0) -> 359 | F7: =IFERROR(VLOOKUP($A7,Filtros!$A$4:$AK$2906,4,FALSE),0) -> 359 | G7: =IFERROR(VLOOKUP($A7,Filtros!$A$4:$AK$2906,5,FALSE),0) -> 0 | H7: =IFERROR(VLOOKUP($A7,Filtros!$A$4:$AK$2906,6,FALSE),0) -> 0 | I7: =IFERROR(VLOOKUP($A7,Filtros!$A$4:$AK$2906,7,FALSE),0) -> 0 | J7: =IFERROR(VLOOKUP($A7,Filtros!$A$4:$AK$2906,8,FALSE),0) -> 0 | K7: =IFERROR(VLOOKUP($A7,Filtros!$A$4:$AK$2906,9,FALSE),0) -> 0 | L7: =IFERROR(VLOOKUP($A7,Filtros!$A$4:$AK$2906,10,FALSE),0) -> 0 | M7: =IFERROR(VLOOKUP($A7,Filtros!$A$4:$AK$2906,11,FALSE),0) -> 0 | N7: =IFERROR(VLOOKUP($A7,Filtros!$A$4:$AK$2906,12,FALSE),0) -> 0 | O7: =IFERROR(VLOOKUP($A7,Filtros!$A$4:$AK$2906,13,FALSE),0) -> 0 | P7: =IFERROR(VLOOKUP($A7,Filtros!$A$4:$AK$2906,14,FALSE),0) -> 0 | Q7: =IFERROR(VLOOKUP($A7,Filtros!$A$4:$AK$2906,15,FALSE),0) -> 0 | R7: =IFERROR(VLOOKUP($A7,Filtros!$A$4:$AK$2906,16,FALSE),0) -> 0 | S7: =IFERROR(VLOOKUP($A7,Filtros!$A$4:$AK$2906,17,FALSE),0) -> 0 | T7: =IFERROR(VLOOKUP($A7,Filtros!$A$4:$AK$2906,18,FALSE),0) -> 0 | U7: =IFERROR(VLOOKUP($A7,Filtros!$A$4:$AK$2906,19,FALSE),0) -> 0 | V7: =IFERROR(VLOOKUP($A7,Filtros!$A$4:$AK$2906,20,FALSE),0) -> 0 | W7: =IFERROR(VLOOKUP($A7,Filtros!$A$4:$AK$2906,21,FALSE),0) -> 0 | X7: =IFERROR(VLOOKUP($A7,Filtros!$A$4:$AK$2906,22,FALSE),0) -> 0 | Y7: =IFERROR(VLOOKUP($A7,Filtros!$A$4:$AK$2906,23,FALSE),0) -> 0 | Z7: =IFERROR(VLOOKUP($A7,Filtros!$A$4:$AK$2906,24,FALSE),0) -> 0 | AA7: =IFERROR(VLOOKUP($A7,Filtros!$A$4:$AK$2906,25,FALSE),0) -> 0 | AB7: =IFERROR(VLOOKUP($A7,Filtros!$A$4:$AK$2906,26,FALSE),0) -> 0 | AC7: =IFERROR(VLOOKUP($A7,Filtros!$A$4:$AK$2906,27,FALSE),0) -> 359 | AD7: =IFERROR(VLOOKUP($A7,Filtros!$A$4:$AK$2906,28,FALSE),0) -> 0 | AE7: =IFERROR(VLOOKUP($A7,Filtros!$A$4:$AK$2906,29,FALSE),0) -> 0 | AF7: =IFERROR(VLOOKUP($A7,Filtros!$A$4:$AK$2906,30,FALSE),0) -> 0 | AG7: =IFERROR(VLOOKUP($A7,Filtros!$A$4:$AK$2906,31,FALSE),0) -> 0 | AH7: =IFERROR(VLOOKUP($A7,Filtros!$A$4:$AK$2906,32,FALSE),0) -> 0 | AI7: =IFERROR(VLOOKUP($A7,Filtros!$A$4:$AK$2906,33,FALSE),0) -> 0 | AJ7: =IFERROR(VLOOKUP($A7,Filtros!$A$4:$AK$2906,34,FALSE),0) -> 0 | AK7: =IFERROR(VLOOKUP($A7,Filtros!$A$4:$AK$2906,35,FALSE),0) -> 0 | AL7: =IFERROR(VLOOKUP($A7,Filtros!$A$4:$AK$2906,36,FALSE),0) -> 1,144,440 | AM7: =IFERROR(VLOOKUP($A7,Filtros!$A$4:$AK$2906,37,FALSE),0) -> 3,112,530
A8: 01014277 | B8: 0101203 | C8: Consulta Médica de Especialidad en Neurocirugía | D8: =IFERROR(VLOOKUP($A8,Filtros!$A$4:$AK$2906,2,FALSE),0) -> 7053 | E8: =IFERROR(VLOOKUP($A8,Filtros!$A$4:$AK$2906,3,FALSE),0) -> 7053 | F8: =IFERROR(VLOOKUP($A8,Filtros!$A$4:$AK$2906,4,FALSE),0) -> 7053 | G8: =IFERROR(VLOOKUP($A8,Filtros!$A$4:$AK$2906,5,FALSE),0) -> 0 | H8: =IFERROR(VLOOKUP($A8,Filtros!$A$4:$AK$2906,6,FALSE),0) -> 0 | I8: =IFERROR(VLOOKUP($A8,Filtros!$A$4:$AK$2906,7,FALSE),0) -> 0 | J8: =IFERROR(VLOOKUP($A8,Filtros!$A$4:$AK$2906,8,FALSE),0) -> 0 | K8: =IFERROR(VLOOKUP($A8,Filtros!$A$4:$AK$2906,9,FALSE),0) -> 0 | L8: =IFERROR(VLOOKUP($A8,Filtros!$A$4:$AK$2906,10,FALSE),0) -> 0 | M8: =IFERROR(VLOOKUP($A8,Filtros!$A$4:$AK$2906,11,FALSE),0) -> 0 | N8: =IFERROR(VLOOKUP($A8,Filtros!$A$4:$AK$2906,12,FALSE),0) -> 0 | O8: =IFERROR(VLOOKUP($A8,Filtros!$A$4:$AK$2906,13,FALSE),0) -> 0 | P8: =IFERROR(VLOOKUP($A8,Filtros!$A$4:$AK$2906,14,FALSE),0) -> 0 | Q8: =IFERROR(VLOOKUP($A8,Filtros!$A$4:$AK$2906,15,FALSE),0) -> 0 | R8: =IFERROR(VLOOKUP($A8,Filtros!$A$4:$AK$2906,16,FALSE),0) -> 0 | S8: =IFERROR(VLOOKUP($A8,Filtros!$A$4:$AK$2906,17,FALSE),0) -> 0 | T8: =IFERROR(VLOOKUP($A8,Filtros!$A$4:$AK$2906,18,FALSE),0) -> 0 | U8: =IFERROR(VLOOKUP($A8,Filtros!$A$4:$AK$2906,19,FALSE),0) -> 0 | V8: =IFERROR(VLOOKUP($A8,Filtros!$A$4:$AK$2906,20,FALSE),0) -> 0 | W8: =IFERROR(VLOOKUP($A8,Filtros!$A$4:$AK$2906,21,FALSE),0) -> 0 | X8: =IFERROR(VLOOKUP($A8,Filtros!$A$4:$AK$2906,22,FALSE),0) -> 0 | Y8: =IFERROR(VLOOKUP($A8,Filtros!$A$4:$AK$2906,23,FALSE),0) -> 0 | Z8: =IFERROR(VLOOKUP($A8,Filtros!$A$4:$AK$2906,24,FALSE),0) -> 0 | AA8: =IFERROR(VLOOKUP($A8,Filtros!$A$4:$AK$2906,25,FALSE),0) -> 0 | AB8: =IFERROR(VLOOKUP($A8,Filtros!$A$4:$AK$2906,26,FALSE),0) -> 0 | AC8: =IFERROR(VLOOKUP($A8,Filtros!$A$4:$AK$2906,27,FALSE),0) -> 7053 | AD8: =IFERROR(VLOOKUP($A8,Filtros!$A$4:$AK$2906,28,FALSE),0) -> 0 | AE8: =IFERROR(VLOOKUP($A8,Filtros!$A$4:$AK$2906,29,FALSE),0) -> 0 | AF8: =IFERROR(VLOOKUP($A8,Filtros!$A$4:$AK$2906,30,FALSE),0) -> 0 | AG8: =IFERROR(VLOOKUP($A8,Filtros!$A$4:$AK$2906,31,FALSE),0) -> 0 | AH8: =IFERROR(VLOOKUP($A8,Filtros!$A$4:$AK$2906,32,FALSE),0) -> 0 | AI8: =IFERROR(VLOOKUP($A8,Filtros!$A$4:$AK$2906,33,FALSE),0) -> 0 | AJ8: =IFERROR(VLOOKUP($A8,Filtros!$A$4:$AK$2906,34,FALSE),0) -> 0 | AK8: =IFERROR(VLOOKUP($A8,Filtros!$A$4:$AK$2906,35,FALSE),0) -> 0 | AL8: =IFERROR(VLOOKUP($A8,Filtros!$A$4:$AK$2906,36,FALSE),0) -> 1,144,440 | AM8: =IFERROR(VLOOKUP($A8,Filtros!$A$4:$AK$2906,37,FALSE),0) -> 61,149,510
A9: 01014278 | B9: 0101204 | C9: Consulta Médica de Especialidad en Oftalmología | D9: =IFERROR(VLOOKUP($A9,Filtros!$A$4:$AK$2906,2,FALSE),0) -> 20755 | E9: =IFERROR(VLOOKUP($A9,Filtros!$A$4:$AK$2906,3,FALSE),0) -> 20654 | F9: =IFERROR(VLOOKUP($A9,Filtros!$A$4:$AK$2906,4,FALSE),0) -> 20654 | G9: =IFERROR(VLOOKUP($A9,Filtros!$A$4:$AK$2906,5,FALSE),0) -> 0 | H9: =IFERROR(VLOOKUP($A9,Filtros!$A$4:$AK$2906,6,FALSE),0) -> 101 | I9: =IFERROR(VLOOKUP($A9,Filtros!$A$4:$AK$2906,7,FALSE),0) -> 0 | J9: =IFERROR(VLOOKUP($A9,Filtros!$A$4:$AK$2906,8,FALSE),0) -> 0 | K9: =IFERROR(VLOOKUP($A9,Filtros!$A$4:$AK$2906,9,FALSE),0) -> 0 | L9: =IFERROR(VLOOKUP($A9,Filtros!$A$4:$AK$2906,10,FALSE),0) -> 0 | M9: =IFERROR(VLOOKUP($A9,Filtros!$A$4:$AK$2906,11,FALSE),0) -> 0 | N9: =IFERROR(VLOOKUP($A9,Filtros!$A$4:$AK$2906,12,FALSE),0) -> 0 | O9: =IFERROR(VLOOKUP($A9,Filtros!$A$4:$AK$2906,13,FALSE),0) -> 0 | P9: =IFERROR(VLOOKUP($A9,Filtros!$A$4:$AK$2906,14,FALSE),0) -> 0 | Q9: =IFERROR(VLOOKUP($A9,Filtros!$A$4:$AK$2906,15,FALSE),0) -> 0 | R9: =IFERROR(VLOOKUP($A9,Filtros!$A$4:$AK$2906,16,FALSE),0) -> 0 | S9: =IFERROR(VLOOKUP($A9,Filtros!$A$4:$AK$2906,17,FALSE),0) -> 0 | T9: =IFERROR(VLOOKUP($A9,Filtros!$A$4:$AK$2906,18,FALSE),0) -> 0 | U9: =IFERROR(VLOOKUP($A9,Filtros!$A$4:$AK$2906,19,FALSE),0) -> 0 | V9: =IFERROR(VLOOKUP($A9,Filtros!$A$4:$AK$2906,20,FALSE),0) -> 0 | W9: =IFERROR(VLOOKUP($A9,Filtros!$A$4:$AK$2906,21,FALSE),0) -> 0 | X9: =IFERROR(VLOOKUP($A9,Filtros!$A$4:$AK$2906,22,FALSE),0) -> 0 | Y9: =IFERROR(VLOOKUP($A9,Filtros!$A$4:$AK$2906,23,FALSE),0) -> 0 | Z9: =IFERROR(VLOOKUP($A9,Filtros!$A$4:$AK$2906,24,FALSE),0) -> 0 | AA9: =IFERROR(VLOOKUP($A9,Filtros!$A$4:$AK$2906,25,FALSE),0) -> 0 | AB9: =IFERROR(VLOOKUP($A9,Filtros!$A$4:$AK$2906,26,FALSE),0) -> 4 | AC9: =IFERROR(VLOOKUP($A9,Filtros!$A$4:$AK$2906,27,FALSE),0) -> 20377 | AD9: =IFERROR(VLOOKUP($A9,Filtros!$A$4:$AK$2906,28,FALSE),0) -> 49 | AE9: =IFERROR(VLOOKUP($A9,Filtros!$A$4:$AK$2906,29,FALSE),0) -> 43 | AF9: =IFERROR(VLOOKUP($A9,Filtros!$A$4:$AK$2906,30,FALSE),0) -> 0 | AG9: =IFERROR(VLOOKUP($A9,Filtros!$A$4:$AK$2906,31,FALSE),0) -> 0 | AH9: =IFERROR(VLOOKUP($A9,Filtros!$A$4:$AK$2906,32,FALSE),0) -> 0 | AI9: =IFERROR(VLOOKUP($A9,Filtros!$A$4:$AK$2906,33,FALSE),0) -> 0 | AJ9: =IFERROR(VLOOKUP($A9,Filtros!$A$4:$AK$2906,34,FALSE),0) -> 121 | AK9: =IFERROR(VLOOKUP($A9,Filtros!$A$4:$AK$2906,35,FALSE),0) -> 0 | AL9: =IFERROR(VLOOKUP($A9,Filtros!$A$4:$AK$2906,36,FALSE),0) -> 1,144,440 | AM9: =IFERROR(VLOOKUP($A9,Filtros!$A$4:$AK$2906,37,FALSE),0) -> 179,070,180
A10: 01014279 | B10: 0101205 | C10: Consulta Médica de Especialidad en Otorrinolaringología | D10: =IFERROR(VLOOKUP($A10,Filtros!$A$4:$AK$2906,2,FALSE),0) -> 18076 | E10: =IFERROR(VLOOKUP($A10,Filtros!$A$4:$AK$2906,3,FALSE),0) -> 18009 | F10: =IFERROR(VLOOKUP($A10,Filtros!$A$4:$AK$2906,4,FALSE),0) -> 18009 | G10: =IFERROR(VLOOKUP($A10,Filtros!$A$4:$AK$2906,5,FALSE),0) -> 0 | H10: =IFERROR(VLOOKUP($A10,Filtros!$A$4:$AK$2906,6,FALSE),0) -> 67 | I10: =IFERROR(VLOOKUP($A10,Filtros!$A$4:$AK$2906,7,FALSE),0) -> 0 | J10: =IFERROR(VLOOKUP($A10,Filtros!$A$4:$AK$2906,8,FALSE),0) -> 0 | K10: =IFERROR(VLOOKUP($A10,Filtros!$A$4:$AK$2906,9,FALSE),0) -> 0 | L10: =IFERROR(VLOOKUP($A10,Filtros!$A$4:$AK$2906,10,FALSE),0) -> 0 | M10: =IFERROR(VLOOKUP($A10,Filtros!$A$4:$AK$2906,11,FALSE),0) -> 0 | N10: =IFERROR(VLOOKUP($A10,Filtros!$A$4:$AK$2906,12,FALSE),0) -> 0 | O10: =IFERROR(VLOOKUP($A10,Filtros!$A$4:$AK$2906,13,FALSE),0) -> 0 | P10: =IFERROR(VLOOKUP($A10,Filtros!$A$4:$AK$2906,14,FALSE),0) -> 0 | Q10: =IFERROR(VLOOKUP($A10,Filtros!$A$4:$AK$2906,15,FALSE),0) -> 0 | R10: =IFERROR(VLOOKUP($A10,Filtros!$A$4:$AK$2906,16,FALSE),0) -> 0 | S10: =IFERROR(VLOOKUP($A10,Filtros!$A$4:$AK$2906,17,FALSE),0) -> 0 | T10: =IFERROR(VLOOKUP($A10,Filtros!$A$4:$AK$2906,18,FALSE),0) -> 0 | U10: =IFERROR(VLOOKUP($A10,Filtros!$A$4:$AK$2906,19,FALSE),0) -> 0 | V10: =IFERROR(VLOOKUP($A10,Filtros!$A$4:$AK$2906,20,FALSE),0) -> 0 | W10: =IFERROR(VLOOKUP($A10,Filtros!$A$4:$AK$2906,21,FALSE),0) -> 0 | X10: =IFERROR(VLOOKUP($A10,Filtros!$A$4:$AK$2906,22,FALSE),0) -> 0 | Y10: =IFERROR(VLOOKUP($A10,Filtros!$A$4:$AK$2906,23,FALSE),0) -> 0 | Z10: =IFERROR(VLOOKUP($A10,Filtros!$A$4:$AK$2906,24,FALSE),0) -> 0 | AA10: =IFERROR(VLOOKUP($A10,Filtros!$A$4:$AK$2906,25,FALSE),0) -> 0 | AB10: =IFERROR(VLOOKUP($A10,Filtros!$A$4:$AK$2906,26,FALSE),0) -> 1 | AC10: =IFERROR(VLOOKUP($A10,Filtros!$A$4:$AK$2906,27,FALSE),0) -> 17848 | AD10: =IFERROR(VLOOKUP($A10,Filtros!$A$4:$AK$2906,28,FALSE),0) -> 25 | AE10: =IFERROR(VLOOKUP($A10,Filtros!$A$4:$AK$2906,29,FALSE),0) -> 1187 | AF10: =IFERROR(VLOOKUP($A10,Filtros!$A$4:$AK$2906,30,FALSE),0) -> 0 | AG10: =IFERROR(VLOOKUP($A10,Filtros!$A$4:$AK$2906,31,FALSE),0) -> 0 | AH10: =IFERROR(VLOOKUP($A10,Filtros!$A$4:$AK$2906,32,FALSE),0) -> 0 | AI10: =IFERROR(VLOOKUP($A10,Filtros!$A$4:$AK$2906,33,FALSE),0) -> 0 | AJ10: =IFERROR(VLOOKUP($A10,Filtros!$A$4:$AK$2906,34,FALSE),0) -> 0 | AK10: =IFERROR(VLOOKUP($A10,Filtros!$A$4:$AK$2906,35,FALSE),0) -> 0 | AL10: =IFERROR(VLOOKUP($A10,Filtros!$A$4:$AK$2906,36,FALSE),0) -> 1,144,440 | AM10: =IFERROR(VLOOKUP($A10,Filtros!$A$4:$AK$2906,37,FALSE),0) -> 156,138,030
A11: 01014280 | B11: 0101206 | C11: Consulta Médica de Especialidad en Reumatología | D11: =IFERROR(VLOOKUP($A11,Filtros!$A$4:$AK$2906,2,FALSE),0) -> 4789 | E11: =IFERROR(VLOOKUP($A11,Filtros!$A$4:$AK$2906,3,FALSE),0) -> 4770 | F11: =IFERROR(VLOOKUP($A11,Filtros!$A$4:$AK$2906,4,FALSE),0) -> 4770 | G11: =IFERROR(VLOOKUP($A11,Filtros!$A$4:$AK$2906,5,FALSE),0) -> 0 | H11: =IFERROR(VLOOKUP($A11,Filtros!$A$4:$AK$2906,6,FALSE),0) -> 19 | I11: =IFERROR(VLOOKUP($A11,Filtros!$A$4:$AK$2906,7,FALSE),0) -> 0 | J11: =IFERROR(VLOOKUP($A11,Filtros!$A$4:$AK$2906,8,FALSE),0) -> 0 | K11: =IFERROR(VLOOKUP($A11,Filtros!$A$4:$AK$2906,9,FALSE),0) -> 0 | L11: =IFERROR(VLOOKUP($A11,Filtros!$A$4:$AK$2906,10,FALSE),0) -> 0 | M11: =IFERROR(VLOOKUP($A11,Filtros!$A$4:$AK$2906,11,FALSE),0) -> 0 | N11: =IFERROR(VLOOKUP($A11,Filtros!$A$4:$AK$2906,12,FALSE),0) -> 0 | O11: =IFERROR(VLOOKUP($A11,Filtros!$A$4:$AK$2906,13,FALSE),0) -> 0 | P11: =IFERROR(VLOOKUP($A11,Filtros!$A$4:$AK$2906,14,FALSE),0) -> 0 | Q11: =IFERROR(VLOOKUP($A11,Filtros!$A$4:$AK$2906,15,FALSE),0) -> 0 | R11: =IFERROR(VLOOKUP($A11,Filtros!$A$4:$AK$2906,16,FALSE),0) -> 0 | S11: =IFERROR(VLOOKUP($A11,Filtros!$A$4:$AK$2906,17,FALSE),0) -> 0 | T11: =IFERROR(VLOOKUP($A11,Filtros!$A$4:$AK$2906,18,FALSE),0) -> 0 | U11: =IFERROR(VLOOKUP($A11,Filtros!$A$4:$AK$2906,19,FALSE),0) -> 0 | V11: =IFERROR(VLOOKUP($A11,Filtros!$A$4:$AK$2906,20,FALSE),0) -> 0 | W11: =IFERROR(VLOOKUP($A11,Filtros!$A$4:$AK$2906,21,FALSE),0) -> 0 | X11: =IFERROR(VLOOKUP($A11,Filtros!$A$4:$AK$2906,22,FALSE),0) -> 0 | Y11: =IFERROR(VLOOKUP($A11,Filtros!$A$4:$AK$2906,23,FALSE),0) -> 0 | Z11: =IFERROR(VLOOKUP($A11,Filtros!$A$4:$AK$2906,24,FALSE),0) -> 0 | AA11: =IFERROR(VLOOKUP($A11,Filtros!$A$4:$AK$2906,25,FALSE),0) -> 0 | AB11: =IFERROR(VLOOKUP($A11,Filtros!$A$4:$AK$2906,26,FALSE),0) -> 0 | AC11: =IFERROR(VLOOKUP($A11,Filtros!$A$4:$AK$2906,27,FALSE),0) -> 4789 | AD11: =IFERROR(VLOOKUP($A11,Filtros!$A$4:$AK$2906,28,FALSE),0) -> 0 | AE11: =IFERROR(VLOOKUP($A11,Filtros!$A$4:$AK$2906,29,FALSE),0) -> 0 | AF11: =IFERROR(VLOOKUP($A11,Filtros!$A$4:$AK$2906,30,FALSE),0) -> 0 | AG11: =IFERROR(VLOOKUP($A11,Filtros!$A$4:$AK$2906,31,FALSE),0) -> 0 | AH11: =IFERROR(VLOOKUP($A11,Filtros!$A$4:$AK$2906,32,FALSE),0) -> 0 | AI11: =IFERROR(VLOOKUP($A11,Filtros!$A$4:$AK$2906,33,FALSE),0) -> 0 | AJ11: =IFERROR(VLOOKUP($A11,Filtros!$A$4:$AK$2906,34,FALSE),0) -> 0 | AK11: =IFERROR(VLOOKUP($A11,Filtros!$A$4:$AK$2906,35,FALSE),0) -> 0 | AL11: =IFERROR(VLOOKUP($A11,Filtros!$A$4:$AK$2906,36,FALSE),0) -> 1,144,440 | AM11: =IFERROR(VLOOKUP($A11,Filtros!$A$4:$AK$2906,37,FALSE),0) -> 41,355,900
A12: 01014281 | B12: 0101207 | C12: Consulta Médica de Especialidad en Endocrinología Adulto | D12: =IFERROR(VLOOKUP($A12,Filtros!$A$4:$AK$2906,2,FALSE),0) -> 5225 | E12: =IFERROR(VLOOKUP($A12,Filtros!$A$4:$AK$2906,3,FALSE),0) -> 5213 | F12: =IFERROR(VLOOKUP($A12,Filtros!$A$4:$AK$2906,4,FALSE),0) -> 5213 | G12: =IFERROR(VLOOKUP($A12,Filtros!$A$4:$AK$2906,5,FALSE),0) -> 0 | H12: =IFERROR(VLOOKUP($A12,Filtros!$A$4:$AK$2906,6,FALSE),0) -> 12 | I12: =IFERROR(VLOOKUP($A12,Filtros!$A$4:$AK$2906,7,FALSE),0) -> 0 | J12: =IFERROR(VLOOKUP($A12,Filtros!$A$4:$AK$2906,8,FALSE),0) -> 0 | K12: =IFERROR(VLOOKUP($A12,Filtros!$A$4:$AK$2906,9,FALSE),0) -> 0 | L12: =IFERROR(VLOOKUP($A12,Filtros!$A$4:$AK$2906,10,FALSE),0) -> 0 | M12: =IFERROR(VLOOKUP($A12,Filtros!$A$4:$AK$2906,11,FALSE),0) -> 0 | N12: =IFERROR(VLOOKUP($A12,Filtros!$A$4:$AK$2906,12,FALSE),0) -> 0 | O12: =IFERROR(VLOOKUP($A12,Filtros!$A$4:$AK$2906,13,FALSE),0) -> 0 | P12: =IFERROR(VLOOKUP($A12,Filtros!$A$4:$AK$2906,14,FALSE),0) -> 0 | Q12: =IFERROR(VLOOKUP($A12,Filtros!$A$4:$AK$2906,15,FALSE),0) -> 0 | R12: =IFERROR(VLOOKUP($A12,Filtros!$A$4:$AK$2906,16,FALSE),0) -> 0 | S12: =IFERROR(VLOOKUP($A12,Filtros!$A$4:$AK$2906,17,FALSE),0) -> 0 | T12: =IFERROR(VLOOKUP($A12,Filtros!$A$4:$AK$2906,18,FALSE),0) -> 0 | U12: =IFERROR(VLOOKUP($A12,Filtros!$A$4:$AK$2906,19,FALSE),0) -> 0 | V12: =IFERROR(VLOOKUP($A12,Filtros!$A$4:$AK$2906,20,FALSE),0) -> 0 | W12: =IFERROR(VLOOKUP($A12,Filtros!$A$4:$AK$2906,21,FALSE),0) -> 0 | X12: =IFERROR(VLOOKUP($A12,Filtros!$A$4:$AK$2906,22,FALSE),0) -> 0 | Y12: =IFERROR(VLOOKUP($A12,Filtros!$A$4:$AK$2906,23,FALSE),0) -> 0 | Z12: =IFERROR(VLOOKUP($A12,Filtros!$A$4:$AK$2906,24,FALSE),0) -> 0 | AA12: =IFERROR(VLOOKUP($A12,Filtros!$A$4:$AK$2906,25,FALSE),0) -> 0 | AB12: =IFERROR(VLOOKUP($A12,Filtros!$A$4:$AK$2906,26,FALSE),0) -> 0 | AC12: =IFERROR(VLOOKUP($A12,Filtros!$A$4:$AK$2906,27,FALSE),0) -> 5225 | AD12: =IFERROR(VLOOKUP($A12,Filtros!$A$4:$AK$2906,28,FALSE),0) -> 0 | AE12: =IFERROR(VLOOKUP($A12,Filtros!$A$4:$AK$2906,29,FALSE),0) -> 0 | AF12: =IFERROR(VLOOKUP($A12,Filtros!$A$4:$AK$2906,30,FALSE),0) -> 0 | AG12: =IFERROR(VLOOKUP($A12,Filtros!$A$4:$AK$2906,31,FALSE),0) -> 0 | AH12: =IFERROR(VLOOKUP($A12,Filtros!$A$4:$AK$2906,32,FALSE),0) -> 0 | AI12: =IFERROR(VLOOKUP($A12,Filtros!$A$4:$AK$2906,33,FALSE),0) -> 0 | AJ12: =IFERROR(VLOOKUP($A12,Filtros!$A$4:$AK$2906,34,FALSE),0) -> 0 | AK12: =IFERROR(VLOOKUP($A12,Filtros!$A$4:$AK$2906,35,FALSE),0) -> 0 | AL12: =IFERROR(VLOOKUP($A12,Filtros!$A$4:$AK$2906,36,FALSE),0) -> 1,144,440 | AM12: =IFERROR(VLOOKUP($A12,Filtros!$A$4:$AK$2906,37,FALSE),0) -> 45,196,710
A13: 01014282 | B13: 0101208 | C13: Consulta Médica de Especialidad en Endocrinología Pediátrica | D13: =IFERROR(VLOOKUP($A13,Filtros!$A$4:$AK$2906,2,FALSE),0) -> 4011 | E13: =IFERROR(VLOOKUP($A13,Filtros!$A$4:$AK$2906,3,FALSE),0) -> 4009 | F13: =IFERROR(VLOOKUP($A13,Filtros!$A$4:$AK$2906,4,FALSE),0) -> 4009 | G13: =IFERROR(VLOOKUP($A13,Filtros!$A$4:$AK$2906,5,FALSE),0) -> 0 | H13: =IFERROR(VLOOKUP($A13,Filtros!$A$4:$AK$2906,6,FALSE),0) -> 2 | I13: =IFERROR(VLOOKUP($A13,Filtros!$A$4:$AK$2906,7,FALSE),0) -> 0 | J13: =IFERROR(VLOOKUP($A13,Filtros!$A$4:$AK$2906,8,FALSE),0) -> 0 | K13: =IFERROR(VLOOKUP($A13,Filtros!$A$4:$AK$2906,9,FALSE),0) -> 0 | L13: =IFERROR(VLOOKUP($A13,Filtros!$A$4:$AK$2906,10,FALSE),0) -> 0 | M13: =IFERROR(VLOOKUP($A13,Filtros!$A$4:$AK$2906,11,FALSE),0) -> 0 | N13: =IFERROR(VLOOKUP($A13,Filtros!$A$4:$AK$2906,12,FALSE),0) -> 0 | O13: =IFERROR(VLOOKUP($A13,Filtros!$A$4:$AK$2906,13,FALSE),0) -> 0 | P13: =IFERROR(VLOOKUP($A13,Filtros!$A$4:$AK$2906,14,FALSE),0) -> 0 | Q13: =IFERROR(VLOOKUP($A13,Filtros!$A$4:$AK$2906,15,FALSE),0) -> 0 | R13: =IFERROR(VLOOKUP($A13,Filtros!$A$4:$AK$2906,16,FALSE),0) -> 0 | S13: =IFERROR(VLOOKUP($A13,Filtros!$A$4:$AK$2906,17,FALSE),0) -> 0 | T13: =IFERROR(VLOOKUP($A13,Filtros!$A$4:$AK$2906,18,FALSE),0) -> 0 | U13: =IFERROR(VLOOKUP($A13,Filtros!$A$4:$AK$2906,19,FALSE),0) -> 0 | V13: =IFERROR(VLOOKUP($A13,Filtros!$A$4:$AK$2906,20,FALSE),0) -> 0 | W13: =IFERROR(VLOOKUP($A13,Filtros!$A$4:$AK$2906,21,FALSE),0) -> 0 | X13: =IFERROR(VLOOKUP($A13,Filtros!$A$4:$AK$2906,22,FALSE),0) -> 0 | Y13: =IFERROR(VLOOKUP($A13,Filtros!$A$4:$AK$2906,23,FALSE),0) -> 0 | Z13: =IFERROR(VLOOKUP($A13,Filtros!$A$4:$AK$2906,24,FALSE),0) -> 0 | AA13: =IFERROR(VLOOKUP($A13,Filtros!$A$4:$AK$2906,25,FALSE),0) -> 0 | AB13: =IFERROR(VLOOKUP($A13,Filtros!$A$4:$AK$2906,26,FALSE),0) -> 0 | AC13: =IFERROR(VLOOKUP($A13,Filtros!$A$4:$AK$2906,27,FALSE),0) -> 4011 | AD13: =IFERROR(VLOOKUP($A13,Filtros!$A$4:$AK$2906,28,FALSE),0) -> 0 | AE13: =IFERROR(VLOOKUP($A13,Filtros!$A$4:$AK$2906,29,FALSE),0) -> 0 | AF13: =IFERROR(VLOOKUP($A13,Filtros!$A$4:$AK$2906,30,FALSE),0) -> 0 | AG13: =IFERROR(VLOOKUP($A13,Filtros!$A$4:$AK$2906,31,FALSE),0) -> 0 | AH13: =IFERROR(VLOOKUP($A13,Filtros!$A$4:$AK$2906,32,FALSE),0) -> 0 | AI13: =IFERROR(VLOOKUP($A13,Filtros!$A$4:$AK$2906,33,FALSE),0) -> 0 | AJ13: =IFERROR(VLOOKUP($A13,Filtros!$A$4:$AK$2906,34,FALSE),0) -> 0 | AK13: =IFERROR(VLOOKUP($A13,Filtros!$A$4:$AK$2906,35,FALSE),0) -> 0 | AL13: =IFERROR(VLOOKUP($A13,Filtros!$A$4:$AK$2906,36,FALSE),0) -> 1,144,440 | AM13: =IFERROR(VLOOKUP($A13,Filtros!$A$4:$AK$2906,37,FALSE),0) -> 34,758,030
A14: 01014283 | B14: 0101209 | C14: Consulta Médica de Especialidad en Neurología Adultos | D14: =IFERROR(VLOOKUP($A14,Filtros!$A$4:$AK$2906,2,FALSE),0) -> 8913 | E14: =IFERROR(VLOOKUP($A14,Filtros!$A$4:$AK$2906,3,FALSE),0) -> 8904 | F14: =IFERROR(VLOOKUP($A14,Filtros!$A$4:$AK$2906,4,FALSE),0) -> 8904 | G14: =IFERROR(VLOOKUP($A14,Filtros!$A$4:$AK$2906,5,FALSE),0) -> 0 | H14: =IFERROR(VLOOKUP($A14,Filtros!$A$4:$AK$2906,6,FALSE),0) -> 9 | I14: =IFERROR(VLOOKUP($A14,Filtros!$A$4:$AK$2906,7,FALSE),0) -> 0 | J14: =IFERROR(VLOOKUP($A14,Filtros!$A$4:$AK$2906,8,FALSE),0) -> 0 | K14: =IFERROR(VLOOKUP($A14,Filtros!$A$4:$AK$2906,9,FALSE),0) -> 0 | L14: =IFERROR(VLOOKUP($A14,Filtros!$A$4:$AK$2906,10,FALSE),0) -> 0 | M14: =IFERROR(VLOOKUP($A14,Filtros!$A$4:$AK$2906,11,FALSE),0) -> 0 | N14: =IFERROR(VLOOKUP($A14,Filtros!$A$4:$AK$2906,12,FALSE),0) -> 0 | O14: =IFERROR(VLOOKUP($A14,Filtros!$A$4:$AK$2906,13,FALSE),0) -> 0 | P14: =IFERROR(VLOOKUP($A14,Filtros!$A$4:$AK$2906,14,FALSE),0) -> 0 | Q14: =IFERROR(VLOOKUP($A14,Filtros!$A$4:$AK$2906,15,FALSE),0) -> 0 | R14: =IFERROR(VLOOKUP($A14,Filtros!$A$4:$AK$2906,16,FALSE),0) -> 0 | S14: =IFERROR(VLOOKUP($A14,Filtros!$A$4:$AK$2906,17,FALSE),0) -> 0 | T14: =IFERROR(VLOOKUP($A14,Filtros!$A$4:$AK$2906,18,FALSE),0) -> 0 | U14: =IFERROR(VLOOKUP($A14,Filtros!$A$4:$AK$2906,19,FALSE),0) -> 0 | V14: =IFERROR(VLOOKUP($A14,Filtros!$A$4:$AK$2906,20,FALSE),0) -> 0 | W14: =IFERROR(VLOOKUP($A14,Filtros!$A$4:$AK$2906,21,FALSE),0) -> 0 | X14: =IFERROR(VLOOKUP($A14,Filtros!$A$4:$AK$2906,22,FALSE),0) -> 0 | Y14: =IFERROR(VLOOKUP($A14,Filtros!$A$4:$AK$2906,23,FALSE),0) -> 0 | Z14: =IFERROR(VLOOKUP($A14,Filtros!$A$4:$AK$2906,24,FALSE),0) -> 0 | AA14: =IFERROR(VLOOKUP($A14,Filtros!$A$4:$AK$2906,25,FALSE),0) -> 0 | AB14: =IFERROR(VLOOKUP($A14,Filtros!$A$4:$AK$2906,26,FALSE),0) -> 0 | AC14: =IFERROR(VLOOKUP($A14,Filtros!$A$4:$AK$2906,27,FALSE),0) -> 8913 | AD14: =IFERROR(VLOOKUP($A14,Filtros!$A$4:$AK$2906,28,FALSE),0) -> 0 | AE14: =IFERROR(VLOOKUP($A14,Filtros!$A$4:$AK$2906,29,FALSE),0) -> 248 | AF14: =IFERROR(VLOOKUP($A14,Filtros!$A$4:$AK$2906,30,FALSE),0) -> 0 | AG14: =IFERROR(VLOOKUP($A14,Filtros!$A$4:$AK$2906,31,FALSE),0) -> 0 | AH14: =IFERROR(VLOOKUP($A14,Filtros!$A$4:$AK$2906,32,FALSE),0) -> 0 | AI14: =IFERROR(VLOOKUP($A14,Filtros!$A$4:$AK$2906,33,FALSE),0) -> 0 | AJ14: =IFERROR(VLOOKUP($A14,Filtros!$A$4:$AK$2906,34,FALSE),0) -> 0 | AK14: =IFERROR(VLOOKUP($A14,Filtros!$A$4:$AK$2906,35,FALSE),0) -> 0 | AL14: =IFERROR(VLOOKUP($A14,Filtros!$A$4:$AK$2906,36,FALSE),0) -> 1,144,440 | AM14: =IFERROR(VLOOKUP($A14,Filtros!$A$4:$AK$2906,37,FALSE),0) -> 77,197,680
A15: 01014284 | B15: 0101210 | C15: Consulta Médica de Especialidad en Neurología Pediátrica | D15: =IFERROR(VLOOKUP($A15,Filtros!$A$4:$AK$2906,2,FALSE),0) -> 8719 | E15: =IFERROR(VLOOKUP($A15,Filtros!$A$4:$AK$2906,3,FALSE),0) -> 8706 | F15: =IFERROR(VLOOKUP($A15,Filtros!$A$4:$AK$2906,4,FALSE),0) -> 8706 | G15: =IFERROR(VLOOKUP($A15,Filtros!$A$4:$AK$2906,5,FALSE),0) -> 0 | H15: =IFERROR(VLOOKUP($A15,Filtros!$A$4:$AK$2906,6,FALSE),0) -> 13 | I15: =IFERROR(VLOOKUP($A15,Filtros!$A$4:$AK$2906,7,FALSE),0) -> 0 | J15: =IFERROR(VLOOKUP($A15,Filtros!$A$4:$AK$2906,8,FALSE),0) -> 0 | K15: =IFERROR(VLOOKUP($A15,Filtros!$A$4:$AK$2906,9,FALSE),0) -> 0 | L15: =IFERROR(VLOOKUP($A15,Filtros!$A$4:$AK$2906,10,FALSE),0) -> 0 | M15: =IFERROR(VLOOKUP($A15,Filtros!$A$4:$AK$2906,11,FALSE),0) -> 0 | N15: =IFERROR(VLOOKUP($A15,Filtros!$A$4:$AK$2906,12,FALSE),0) -> 0 | O15: =IFERROR(VLOOKUP($A15,Filtros!$A$4:$AK$2906,13,FALSE),0) -> 0 | P15: =IFERROR(VLOOKUP($A15,Filtros!$A$4:$AK$2906,14,FALSE),0) -> 0 | Q15: =IFERROR(VLOOKUP($A15,Filtros!$A$4:$AK$2906,15,FALSE),0) -> 0 | R15: =IFERROR(VLOOKUP($A15,Filtros!$A$4:$AK$2906,16,FALSE),0) -> 0 | S15: =IFERROR(VLOOKUP($A15,Filtros!$A$4:$AK$2906,17,FALSE),0) -> 0 | T15: =IFERROR(VLOOKUP($A15,Filtros!$A$4:$AK$2906,18,FALSE),0) -> 0 | U15: =IFERROR(VLOOKUP($A15,Filtros!$A$4:$AK$2906,19,FALSE),0) -> 0 | V15: =IFERROR(VLOOKUP($A15,Filtros!$A$4:$AK$2906,20,FALSE),0) -> 0 | W15: =IFERROR(VLOOKUP($A15,Filtros!$A$4:$AK$2906,21,FALSE),0) -> 0 | X15: =IFERROR(VLOOKUP($A15,Filtros!$A$4:$AK$2906,22,FALSE),0) -> 0 | Y15: =IFERROR(VLOOKUP($A15,Filtros!$A$4:$AK$2906,23,FALSE),0) -> 0 | Z15: =IFERROR(VLOOKUP($A15,Filtros!$A$4:$AK$2906,24,FALSE),0) -> 0 | AA15: =IFERROR(VLOOKUP($A15,Filtros!$A$4:$AK$2906,25,FALSE),0) -> 0 | AB15: =IFERROR(VLOOKUP($A15,Filtros!$A$4:$AK$2906,26,FALSE),0) -> 0 | AC15: =IFERROR(VLOOKUP($A15,Filtros!$A$4:$AK$2906,27,FALSE),0) -> 8719 | AD15: =IFERROR(VLOOKUP($A15,Filtros!$A$4:$AK$2906,28,FALSE),0) -> 0 | AE15: =IFERROR(VLOOKUP($A15,Filtros!$A$4:$AK$2906,29,FALSE),0) -> 0 | AF15: =IFERROR(VLOOKUP($A15,Filtros!$A$4:$AK$2906,30,FALSE),0) -> 0 | AG15: =IFERROR(VLOOKUP($A15,Filtros!$A$4:$AK$2906,31,FALSE),0) -> 0 | AH15: =IFERROR(VLOOKUP($A15,Filtros!$A$4:$AK$2906,32,FALSE),0) -> 0 | AI15: =IFERROR(VLOOKUP($A15,Filtros!$A$4:$AK$2906,33,FALSE),0) -> 0 | AJ15: =IFERROR(VLOOKUP($A15,Filtros!$A$4:$AK$2906,34,FALSE),0) -> 0 | AK15: =IFERROR(VLOOKUP($A15,Filtros!$A$4:$AK$2906,35,FALSE),0) -> 0 | AL15: =IFERROR(VLOOKUP($A15,Filtros!$A$4:$AK$2906,36,FALSE),0) -> 1,144,440 | AM15: =IFERROR(VLOOKUP($A15,Filtros!$A$4:$AK$2906,37,FALSE),0) -> 75,481,020
A16: 01014285 | B16: 0101211 | C16: Consulta Médica de Especialidad en Oncología Médica | D16: =IFERROR(VLOOKUP($A16,Filtros!$A$4:$AK$2906,2,FALSE),0) -> 8833 | E16: =IFERROR(VLOOKUP($A16,Filtros!$A$4:$AK$2906,3,FALSE),0) -> 8795 | F16: =IFERROR(VLOOKUP($A16,Filtros!$A$4:$AK$2906,4,FALSE),0) -> 8795 | G16: =IFERROR(VLOOKUP($A16,Filtros!$A$4:$AK$2906,5,FALSE),0) -> 0 | H16: =IFERROR(VLOOKUP($A16,Filtros!$A$4:$AK$2906,6,FALSE),0) -> 38 | I16: =IFERROR(VLOOKUP($A16,Filtros!$A$4:$AK$2906,7,FALSE),0) -> 0 | J16: =IFERROR(VLOOKUP($A16,Filtros!$A$4:$AK$2906,8,FALSE),0) -> 0 | K16: =IFERROR(VLOOKUP($A16,Filtros!$A$4:$AK$2906,9,FALSE),0) -> 0 | L16: =IFERROR(VLOOKUP($A16,Filtros!$A$4:$AK$2906,10,FALSE),0) -> 0 | M16: =IFERROR(VLOOKUP($A16,Filtros!$A$4:$AK$2906,11,FALSE),0) -> 0 | N16: =IFERROR(VLOOKUP($A16,Filtros!$A$4:$AK$2906,12,FALSE),0) -> 0 | O16: =IFERROR(VLOOKUP($A16,Filtros!$A$4:$AK$2906,13,FALSE),0) -> 0 | P16: =IFERROR(VLOOKUP($A16,Filtros!$A$4:$AK$2906,14,FALSE),0) -> 0 | Q16: =IFERROR(VLOOKUP($A16,Filtros!$A$4:$AK$2906,15,FALSE),0) -> 0 | R16: =IFERROR(VLOOKUP($A16,Filtros!$A$4:$AK$2906,16,FALSE),0) -> 0 | S16: =IFERROR(VLOOKUP($A16,Filtros!$A$4:$AK$2906,17,FALSE),0) -> 0 | T16: =IFERROR(VLOOKUP($A16,Filtros!$A$4:$AK$2906,18,FALSE),0) -> 0 | U16: =IFERROR(VLOOKUP($A16,Filtros!$A$4:$AK$2906,19,FALSE),0) -> 0 | V16: =IFERROR(VLOOKUP($A16,Filtros!$A$4:$AK$2906,20,FALSE),0) -> 0 | W16: =IFERROR(VLOOKUP($A16,Filtros!$A$4:$AK$2906,21,FALSE),0) -> 0 | X16: =IFERROR(VLOOKUP($A16,Filtros!$A$4:$AK$2906,22,FALSE),0) -> 0 | Y16: =IFERROR(VLOOKUP($A16,Filtros!$A$4:$AK$2906,23,FALSE),0) -> 0 | Z16: =IFERROR(VLOOKUP($A16,Filtros!$A$4:$AK$2906,24,FALSE),0) -> 0 | AA16: =IFERROR(VLOOKUP($A16,Filtros!$A$4:$AK$2906,25,FALSE),0) -> 0 | AB16: =IFERROR(VLOOKUP($A16,Filtros!$A$4:$AK$2906,26,FALSE),0) -> 0 | AC16: =IFERROR(VLOOKUP($A16,Filtros!$A$4:$AK$2906,27,FALSE),0) -> 8833 | AD16: =IFERROR(VLOOKUP($A16,Filtros!$A$4:$AK$2906,28,FALSE),0) -> 0 | AE16: =IFERROR(VLOOKUP($A16,Filtros!$A$4:$AK$2906,29,FALSE),0) -> 0 | AF16: =IFERROR(VLOOKUP($A16,Filtros!$A$4:$AK$2906,30,FALSE),0) -> 0 | AG16: =IFERROR(VLOOKUP($A16,Filtros!$A$4:$AK$2906,31,FALSE),0) -> 0 | AH16: =IFERROR(VLOOKUP($A16,Filtros!$A$4:$AK$2906,32,FALSE),0) -> 0 | AI16: =IFERROR(VLOOKUP($A16,Filtros!$A$4:$AK$2906,33,FALSE),0) -> 0 | AJ16: =IFERROR(VLOOKUP($A16,Filtros!$A$4:$AK$2906,34,FALSE),0) -> 0 | AK16: =IFERROR(VLOOKUP($A16,Filtros!$A$4:$AK$2906,35,FALSE),0) -> 0 | AL16: =IFERROR(VLOOKUP($A16,Filtros!$A$4:$AK$2906,36,FALSE),0) -> 1,144,440 | AM16: =IFERROR(VLOOKUP($A16,Filtros!$A$4:$AK$2906,37,FALSE),0) -> 76,252,650
A17: 01014286 | B17: 0101212 | C17: Consulta Médica de Especialidad en Psiquiatría adultos | D17: =IFERROR(VLOOKUP($A17,Filtros!$A$4:$AK$2906,2,FALSE),0) -> 17270 | E17: =IFERROR(VLOOKUP($A17,Filtros!$A$4:$AK$2906,3,FALSE),0) -> 17014 | F17: =IFERROR(VLOOKUP($A17,Filtros!$A$4:$AK$2906,4,FALSE),0) -> 17014 | G17: =IFERROR(VLOOKUP($A17,Filtros!$A$4:$AK$2906,5,FALSE),0) -> 0 | H17: =IFERROR(VLOOKUP($A17,Filtros!$A$4:$AK$2906,6,FALSE),0) -> 256 | I17: =IFERROR(VLOOKUP($A17,Filtros!$A$4:$AK$2906,7,FALSE),0) -> 0 | J17: =IFERROR(VLOOKUP($A17,Filtros!$A$4:$AK$2906,8,FALSE),0) -> 0 | K17: =IFERROR(VLOOKUP($A17,Filtros!$A$4:$AK$2906,9,FALSE),0) -> 0 | L17: =IFERROR(VLOOKUP($A17,Filtros!$A$4:$AK$2906,10,FALSE),0) -> 0 | M17: =IFERROR(VLOOKUP($A17,Filtros!$A$4:$AK$2906,11,FALSE),0) -> 0 | N17: =IFERROR(VLOOKUP($A17,Filtros!$A$4:$AK$2906,12,FALSE),0) -> 0 | O17: =IFERROR(VLOOKUP($A17,Filtros!$A$4:$AK$2906,13,FALSE),0) -> 0 | P17: =IFERROR(VLOOKUP($A17,Filtros!$A$4:$AK$2906,14,FALSE),0) -> 0 | Q17: =IFERROR(VLOOKUP($A17,Filtros!$A$4:$AK$2906,15,FALSE),0) -> 0 | R17: =IFERROR(VLOOKUP($A17,Filtros!$A$4:$AK$2906,16,FALSE),0) -> 0 | S17: =IFERROR(VLOOKUP($A17,Filtros!$A$4:$AK$2906,17,FALSE),0) -> 0 | T17: =IFERROR(VLOOKUP($A17,Filtros!$A$4:$AK$2906,18,FALSE),0) -> 0 | U17: =IFERROR(VLOOKUP($A17,Filtros!$A$4:$AK$2906,19,FALSE),0) -> 0 | V17: =IFERROR(VLOOKUP($A17,Filtros!$A$4:$AK$2906,20,FALSE),0) -> 0 | W17: =IFERROR(VLOOKUP($A17,Filtros!$A$4:$AK$2906,21,FALSE),0) -> 0 | X17: =IFERROR(VLOOKUP($A17,Filtros!$A$4:$AK$2906,22,FALSE),0) -> 0 | Y17: =IFERROR(VLOOKUP($A17,Filtros!$A$4:$AK$2906,23,FALSE),0) -> 0 | Z17: =IFERROR(VLOOKUP($A17,Filtros!$A$4:$AK$2906,24,FALSE),0) -> 0 | AA17: =IFERROR(VLOOKUP($A17,Filtros!$A$4:$AK$2906,25,FALSE),0) -> 0 | AB17: =IFERROR(VLOOKUP($A17,Filtros!$A$4:$AK$2906,26,FALSE),0) -> 16 | AC17: =IFERROR(VLOOKUP($A17,Filtros!$A$4:$AK$2906,27,FALSE),0) -> 17253 | AD17: =IFERROR(VLOOKUP($A17,Filtros!$A$4:$AK$2906,28,FALSE),0) -> 1 | AE17: =IFERROR(VLOOKUP($A17,Filtros!$A$4:$AK$2906,29,FALSE),0) -> 16 | AF17: =IFERROR(VLOOKUP($A17,Filtros!$A$4:$AK$2906,30,FALSE),0) -> 0 | AG17: =IFERROR(VLOOKUP($A17,Filtros!$A$4:$AK$2906,31,FALSE),0) -> 0 | AH17: =IFERROR(VLOOKUP($A17,Filtros!$A$4:$AK$2906,32,FALSE),0) -> 0 | AI17: =IFERROR(VLOOKUP($A17,Filtros!$A$4:$AK$2906,33,FALSE),0) -> 0 | AJ17: =IFERROR(VLOOKUP($A17,Filtros!$A$4:$AK$2906,34,FALSE),0) -> 0 | AK17: =IFERROR(VLOOKUP($A17,Filtros!$A$4:$AK$2906,35,FALSE),0) -> 0 | AL17: =IFERROR(VLOOKUP($A17,Filtros!$A$4:$AK$2906,36,FALSE),0) -> 1,144,440 | AM17: =IFERROR(VLOOKUP($A17,Filtros!$A$4:$AK$2906,37,FALSE),0) -> 147,511,380
A18: 01014287 | B18: 0101213 | C18: Consulta Médica de Especialidad en Psiquiatría pediátrica y de la adolescencia | D18: =IFERROR(VLOOKUP($A18,Filtros!$A$4:$AK$2906,2,FALSE),0) -> 4511 | E18: =IFERROR(VLOOKUP($A18,Filtros!$A$4:$AK$2906,3,FALSE),0) -> 4439 | F18: =IFERROR(VLOOKUP($A18,Filtros!$A$4:$AK$2906,4,FALSE),0) -> 4439 | G18: =IFERROR(VLOOKUP($A18,Filtros!$A$4:$AK$2906,5,FALSE),0) -> 0 | H18: =IFERROR(VLOOKUP($A18,Filtros!$A$4:$AK$2906,6,FALSE),0) -> 72 | I18: =IFERROR(VLOOKUP($A18,Filtros!$A$4:$AK$2906,7,FALSE),0) -> 0 | J18: =IFERROR(VLOOKUP($A18,Filtros!$A$4:$AK$2906,8,FALSE),0) -> 0 | K18: =IFERROR(VLOOKUP($A18,Filtros!$A$4:$AK$2906,9,FALSE),0) -> 0 | L18: =IFERROR(VLOOKUP($A18,Filtros!$A$4:$AK$2906,10,FALSE),0) -> 0 | M18: =IFERROR(VLOOKUP($A18,Filtros!$A$4:$AK$2906,11,FALSE),0) -> 0 | N18: =IFERROR(VLOOKUP($A18,Filtros!$A$4:$AK$2906,12,FALSE),0) -> 0 | O18: =IFERROR(VLOOKUP($A18,Filtros!$A$4:$AK$2906,13,FALSE),0) -> 0 | P18: =IFERROR(VLOOKUP($A18,Filtros!$A$4:$AK$2906,14,FALSE),0) -> 0 | Q18: =IFERROR(VLOOKUP($A18,Filtros!$A$4:$AK$2906,15,FALSE),0) -> 0 | R18: =IFERROR(VLOOKUP($A18,Filtros!$A$4:$AK$2906,16,FALSE),0) -> 0 | S18: =IFERROR(VLOOKUP($A18,Filtros!$A$4:$AK$2906,17,FALSE),0) -> 0 | T18: =IFERROR(VLOOKUP($A18,Filtros!$A$4:$AK$2906,18,FALSE),0) -> 0 | U18: =IFERROR(VLOOKUP($A18,Filtros!$A$4:$AK$2906,19,FALSE),0) -> 0 | V18: =IFERROR(VLOOKUP($A18,Filtros!$A$4:$AK$2906,20,FALSE),0) -> 0 | W18: =IFERROR(VLOOKUP($A18,Filtros!$A$4:$AK$2906,21,FALSE),0) -> 0 | X18: =IFERROR(VLOOKUP($A18,Filtros!$A$4:$AK$2906,22,FALSE),0) -> 0 | Y18: =IFERROR(VLOOKUP($A18,Filtros!$A$4:$AK$2906,23,FALSE),0) -> 0 | Z18: =IFERROR(VLOOKUP($A18,Filtros!$A$4:$AK$2906,24,FALSE),0) -> 0 | AA18: =IFERROR(VLOOKUP($A18,Filtros!$A$4:$AK$2906,25,FALSE),0) -> 0 | AB18: =IFERROR(VLOOKUP($A18,Filtros!$A$4:$AK$2906,26,FALSE),0) -> 0 | AC18: =IFERROR(VLOOKUP($A18,Filtros!$A$4:$AK$2906,27,FALSE),0) -> 4511 | AD18: =IFERROR(VLOOKUP($A18,Filtros!$A$4:$AK$2906,28,FALSE),0) -> 0 | AE18: =IFERROR(VLOOKUP($A18,Filtros!$A$4:$AK$2906,29,FALSE),0) -> 7 | AF18: =IFERROR(VLOOKUP($A18,Filtros!$A$4:$AK$2906,30,FALSE),0) -> 0 | AG18: =IFERROR(VLOOKUP($A18,Filtros!$A$4:$AK$2906,31,FALSE),0) -> 0 | AH18: =IFERROR(VLOOKUP($A18,Filtros!$A$4:$AK$2906,32,FALSE),0) -> 0 | AI18: =IFERROR(VLOOKUP($A18,Filtros!$A$4:$AK$2906,33,FALSE),0) -> 0 | AJ18: =IFERROR(VLOOKUP($A18,Filtros!$A$4:$AK$2906,34,FALSE),0) -> 0 | AK18: =IFERROR(VLOOKUP($A18,Filtros!$A$4:$AK$2906,35,FALSE),0) -> 0 | AL18: =IFERROR(VLOOKUP($A18,Filtros!$A$4:$AK$2906,36,FALSE),0) -> 1,144,440 | AM18: =IFERROR(VLOOKUP($A18,Filtros!$A$4:$AK$2906,37,FALSE),0) -> 38,486,130
A19: 01014288 | B19: 0101300 | C19: Consulta Médica otras Especialidades | D19: =IFERROR(VLOOKUP($A19,Filtros!$A$4:$AK$2906,2,FALSE),0) -> 2523 | E19: =IFERROR(VLOOKUP($A19,Filtros!$A$4:$AK$2906,3,FALSE),0) -> 2519 | F19: =IFERROR(VLOOKUP($A19,Filtros!$A$4:$AK$2906,4,FALSE),0) -> 2519 | G19: =IFERROR(VLOOKUP($A19,Filtros!$A$4:$AK$2906,5,FALSE),0) -> 0 | H19: =IFERROR(VLOOKUP($A19,Filtros!$A$4:$AK$2906,6,FALSE),0) -> 4 | I19: =IFERROR(VLOOKUP($A19,Filtros!$A$4:$AK$2906,7,FALSE),0) -> 0 | J19: =IFERROR(VLOOKUP($A19,Filtros!$A$4:$AK$2906,8,FALSE),0) -> 0 | K19: =IFERROR(VLOOKUP($A19,Filtros!$A$4:$AK$2906,9,FALSE),0) -> 0 | L19: =IFERROR(VLOOKUP($A19,Filtros!$A$4:$AK$2906,10,FALSE),0) -> 0 | M19: =IFERROR(VLOOKUP($A19,Filtros!$A$4:$AK$2906,11,FALSE),0) -> 0 | N19: =IFERROR(VLOOKUP($A19,Filtros!$A$4:$AK$2906,12,FALSE),0) -> 0 | O19: =IFERROR(VLOOKUP($A19,Filtros!$A$4:$AK$2906,13,FALSE),0) -> 0 | P19: =IFERROR(VLOOKUP($A19,Filtros!$A$4:$AK$2906,14,FALSE),0) -> 0 | Q19: =IFERROR(VLOOKUP($A19,Filtros!$A$4:$AK$2906,15,FALSE),0) -> 0 | R19: =IFERROR(VLOOKUP($A19,Filtros!$A$4:$AK$2906,16,FALSE),0) -> 0 | S19: =IFERROR(VLOOKUP($A19,Filtros!$A$4:$AK$2906,17,FALSE),0) -> 0 | T19: =IFERROR(VLOOKUP($A19,Filtros!$A$4:$AK$2906,18,FALSE),0) -> 0 | U19: =IFERROR(VLOOKUP($A19,Filtros!$A$4:$AK$2906,19,FALSE),0) -> 0 | V19: =IFERROR(VLOOKUP($A19,Filtros!$A$4:$AK$2906,20,FALSE),0) -> 0 | W19: =IFERROR(VLOOKUP($A19,Filtros!$A$4:$AK$2906,21,FALSE),0) -> 0 | X19: =IFERROR(VLOOKUP($A19,Filtros!$A$4:$AK$2906,22,FALSE),0) -> 0 | Y19: =IFERROR(VLOOKUP($A19,Filtros!$A$4:$AK$2906,23,FALSE),0) -> 0 | Z19: =IFERROR(VLOOKUP($A19,Filtros!$A$4:$AK$2906,24,FALSE),0) -> 0 | AA19: =IFERROR(VLOOKUP($A19,Filtros!$A$4:$AK$2906,25,FALSE),0) -> 0 | AB19: =IFERROR(VLOOKUP($A19,Filtros!$A$4:$AK$2906,26,FALSE),0) -> 0 | AC19: =IFERROR(VLOOKUP($A19,Filtros!$A$4:$AK$2906,27,FALSE),0) -> 2523 | AD19: =IFERROR(VLOOKUP($A19,Filtros!$A$4:$AK$2906,28,FALSE),0) -> 0 | AE19: =IFERROR(VLOOKUP($A19,Filtros!$A$4:$AK$2906,29,FALSE),0) -> 0 | AF19: =IFERROR(VLOOKUP($A19,Filtros!$A$4:$AK$2906,30,FALSE),0) -> 0 | AG19: =IFERROR(VLOOKUP($A19,Filtros!$A$4:$AK$2906,31,FALSE),0) -> 0 | AH19: =IFERROR(VLOOKUP($A19,Filtros!$A$4:$AK$2906,32,FALSE),0) -> 0 | AI19: =IFERROR(VLOOKUP($A19,Filtros!$A$4:$AK$2906,33,FALSE),0) -> 0 | AJ19: =IFERROR(VLOOKUP($A19,Filtros!$A$4:$AK$2906,34,FALSE),0) -> 0 | AK19: =IFERROR(VLOOKUP($A19,Filtros!$A$4:$AK$2906,35,FALSE),0) -> 0 | AL19: =IFERROR(VLOOKUP($A19,Filtros!$A$4:$AK$2906,36,FALSE),0) -> 1,144,440 | AM19: =IFERROR(VLOOKUP($A19,Filtros!$A$4:$AK$2906,37,FALSE),0) -> 21,839,730
A20: 01014289 | B20: 0101301 | C20: Consulta Médica de Especialidad en Cardiología | D20: =IFERROR(VLOOKUP($A20,Filtros!$A$4:$AK$2906,2,FALSE),0) -> 13070 | E20: =IFERROR(VLOOKUP($A20,Filtros!$A$4:$AK$2906,3,FALSE),0) -> 13040 | F20: =IFERROR(VLOOKUP($A20,Filtros!$A$4:$AK$2906,4,FALSE),0) -> 13040 | G20: =IFERROR(VLOOKUP($A20,Filtros!$A$4:$AK$2906,5,FALSE),0) -> 0 | H20: =IFERROR(VLOOKUP($A20,Filtros!$A$4:$AK$2906,6,FALSE),0) -> 30 | I20: =IFERROR(VLOOKUP($A20,Filtros!$A$4:$AK$2906,7,FALSE),0) -> 0 | J20: =IFERROR(VLOOKUP($A20,Filtros!$A$4:$AK$2906,8,FALSE),0) -> 0 | K20: =IFERROR(VLOOKUP($A20,Filtros!$A$4:$AK$2906,9,FALSE),0) -> 0 | L20: =IFERROR(VLOOKUP($A20,Filtros!$A$4:$AK$2906,10,FALSE),0) -> 0 | M20: =IFERROR(VLOOKUP($A20,Filtros!$A$4:$AK$2906,11,FALSE),0) -> 0 | N20: =IFERROR(VLOOKUP($A20,Filtros!$A$4:$AK$2906,12,FALSE),0) -> 0 | O20: =IFERROR(VLOOKUP($A20,Filtros!$A$4:$AK$2906,13,FALSE),0) -> 0 | P20: =IFERROR(VLOOKUP($A20,Filtros!$A$4:$AK$2906,14,FALSE),0) -> 0 | Q20: =IFERROR(VLOOKUP($A20,Filtros!$A$4:$AK$2906,15,FALSE),0) -> 0 | R20: =IFERROR(VLOOKUP($A20,Filtros!$A$4:$AK$2906,16,FALSE),0) -> 0 | S20: =IFERROR(VLOOKUP($A20,Filtros!$A$4:$AK$2906,17,FALSE),0) -> 0 | T20: =IFERROR(VLOOKUP($A20,Filtros!$A$4:$AK$2906,18,FALSE),0) -> 0 | U20: =IFERROR(VLOOKUP($A20,Filtros!$A$4:$AK$2906,19,FALSE),0) -> 0 | V20: =IFERROR(VLOOKUP($A20,Filtros!$A$4:$AK$2906,20,FALSE),0) -> 0 | W20: =IFERROR(VLOOKUP($A20,Filtros!$A$4:$AK$2906,21,FALSE),0) -> 0 | X20: =IFERROR(VLOOKUP($A20,Filtros!$A$4:$AK$2906,22,FALSE),0) -> 0 | Y20: =IFERROR(VLOOKUP($A20,Filtros!$A$4:$AK$2906,23,FALSE),0) -> 0 | Z20: =IFERROR(VLOOKUP($A20,Filtros!$A$4:$AK$2906,24,FALSE),0) -> 0 | AA20: =IFERROR(VLOOKUP($A20,Filtros!$A$4:$AK$2906,25,FALSE),0) -> 0 | AB20: =IFERROR(VLOOKUP($A20,Filtros!$A$4:$AK$2906,26,FALSE),0) -> 0 | AC20: =IFERROR(VLOOKUP($A20,Filtros!$A$4:$AK$2906,27,FALSE),0) -> 13070 | AD20: =IFERROR(VLOOKUP($A20,Filtros!$A$4:$AK$2906,28,FALSE),0) -> 0 | AE20: =IFERROR(VLOOKUP($A20,Filtros!$A$4:$AK$2906,29,FALSE),0) -> 0 | AF20: =IFERROR(VLOOKUP($A20,Filtros!$A$4:$AK$2906,30,FALSE),0) -> 0 | AG20: =IFERROR(VLOOKUP($A20,Filtros!$A$4:$AK$2906,31,FALSE),0) -> 0 | AH20: =IFERROR(VLOOKUP($A20,Filtros!$A$4:$AK$2906,32,FALSE),0) -> 0 | AI20: =IFERROR(VLOOKUP($A20,Filtros!$A$4:$AK$2906,33,FALSE),0) -> 0 | AJ20: =IFERROR(VLOOKUP($A20,Filtros!$A$4:$AK$2906,34,FALSE),0) -> 0 | AK20: =IFERROR(VLOOKUP($A20,Filtros!$A$4:$AK$2906,35,FALSE),0) -> 0 | AL20: =IFERROR(VLOOKUP($A20,Filtros!$A$4:$AK$2906,36,FALSE),0) -> 1,144,440 | AM20: =IFERROR(VLOOKUP($A20,Filtros!$A$4:$AK$2906,37,FALSE),0) -> 113,056,800
A21: 01014290 | B21: 0101302 | C21: Consulta Médica de Especialidad en Hematología | D21: =IFERROR(VLOOKUP($A21,Filtros!$A$4:$AK$2906,2,FALSE),0) -> 6580 | E21: =IFERROR(VLOOKUP($A21,Filtros!$A$4:$AK$2906,3,FALSE),0) -> 6553 | F21: =IFERROR(VLOOKUP($A21,Filtros!$A$4:$AK$2906,4,FALSE),0) -> 6553 | G21: =IFERROR(VLOOKUP($A21,Filtros!$A$4:$AK$2906,5,FALSE),0) -> 0 | H21: =IFERROR(VLOOKUP($A21,Filtros!$A$4:$AK$2906,6,FALSE),0) -> 27 | I21: =IFERROR(VLOOKUP($A21,Filtros!$A$4:$AK$2906,7,FALSE),0) -> 0 | J21: =IFERROR(VLOOKUP($A21,Filtros!$A$4:$AK$2906,8,FALSE),0) -> 0 | K21: =IFERROR(VLOOKUP($A21,Filtros!$A$4:$AK$2906,9,FALSE),0) -> 0 | L21: =IFERROR(VLOOKUP($A21,Filtros!$A$4:$AK$2906,10,FALSE),0) -> 0 | M21: =IFERROR(VLOOKUP($A21,Filtros!$A$4:$AK$2906,11,FALSE),0) -> 0 | N21: =IFERROR(VLOOKUP($A21,Filtros!$A$4:$AK$2906,12,FALSE),0) -> 0 | O21: =IFERROR(VLOOKUP($A21,Filtros!$A$4:$AK$2906,13,FALSE),0) -> 0 | P21: =IFERROR(VLOOKUP($A21,Filtros!$A$4:$AK$2906,14,FALSE),0) -> 0 | Q21: =IFERROR(VLOOKUP($A21,Filtros!$A$4:$AK$2906,15,FALSE),0) -> 0 | R21: =IFERROR(VLOOKUP($A21,Filtros!$A$4:$AK$2906,16,FALSE),0) -> 0 | S21: =IFERROR(VLOOKUP($A21,Filtros!$A$4:$AK$2906,17,FALSE),0) -> 0 | T21: =IFERROR(VLOOKUP($A21,Filtros!$A$4:$AK$2906,18,FALSE),0) -> 0 | U21: =IFERROR(VLOOKUP($A21,Filtros!$A$4:$AK$2906,19,FALSE),0) -> 0 | V21: =IFERROR(VLOOKUP($A21,Filtros!$A$4:$AK$2906,20,FALSE),0) -> 0 | W21: =IFERROR(VLOOKUP($A21,Filtros!$A$4:$AK$2906,21,FALSE),0) -> 0 | X21: =IFERROR(VLOOKUP($A21,Filtros!$A$4:$AK$2906,22,FALSE),0) -> 0 | Y21: =IFERROR(VLOOKUP($A21,Filtros!$A$4:$AK$2906,23,FALSE),0) -> 0 | Z21: =IFERROR(VLOOKUP($A21,Filtros!$A$4:$AK$2906,24,FALSE),0) -> 0 | AA21: =IFERROR(VLOOKUP($A21,Filtros!$A$4:$AK$2906,25,FALSE),0) -> 0 | AB21: =IFERROR(VLOOKUP($A21,Filtros!$A$4:$AK$2906,26,FALSE),0) -> 0 | AC21: =IFERROR(VLOOKUP($A21,Filtros!$A$4:$AK$2906,27,FALSE),0) -> 6580 | AD21: =IFERROR(VLOOKUP($A21,Filtros!$A$4:$AK$2906,28,FALSE),0) -> 0 | AE21: =IFERROR(VLOOKUP($A21,Filtros!$A$4:$AK$2906,29,FALSE),0) -> 0 | AF21: =IFERROR(VLOOKUP($A21,Filtros!$A$4:$AK$2906,30,FALSE),0) -> 0 | AG21: =IFERROR(VLOOKUP($A21,Filtros!$A$4:$AK$2906,31,FALSE),0) -> 0 | AH21: =IFERROR(VLOOKUP($A21,Filtros!$A$4:$AK$2906,32,FALSE),0) -> 0 | AI21: =IFERROR(VLOOKUP($A21,Filtros!$A$4:$AK$2906,33,FALSE),0) -> 0 | AJ21: =IFERROR(VLOOKUP($A21,Filtros!$A$4:$AK$2906,34,FALSE),0) -> 0 | AK21: =IFERROR(VLOOKUP($A21,Filtros!$A$4:$AK$2906,35,FALSE),0) -> 0 | AL21: =IFERROR(VLOOKUP($A21,Filtros!$A$4:$AK$2906,36,FALSE),0) -> 1,144,440 | AM21: =IFERROR(VLOOKUP($A21,Filtros!$A$4:$AK$2906,37,FALSE),0) -> 56,814,510
A22: 01014291 | B22: 0101303 | C22: Consulta Médica de Especialidad en Infectología | D22: =IFERROR(VLOOKUP($A22,Filtros!$A$4:$AK$2906,2,FALSE),0) -> 4495 | E22: =IFERROR(VLOOKUP($A22,Filtros!$A$4:$AK$2906,3,FALSE),0) -> 4485 | F22: =IFERROR(VLOOKUP($A22,Filtros!$A$4:$AK$2906,4,FALSE),0) -> 4485 | G22: =IFERROR(VLOOKUP($A22,Filtros!$A$4:$AK$2906,5,FALSE),0) -> 0 | H22: =IFERROR(VLOOKUP($A22,Filtros!$A$4:$AK$2906,6,FALSE),0) -> 10 | I22: =IFERROR(VLOOKUP($A22,Filtros!$A$4:$AK$2906,7,FALSE),0) -> 0 | J22: =IFERROR(VLOOKUP($A22,Filtros!$A$4:$AK$2906,8,FALSE),0) -> 0 | K22: =IFERROR(VLOOKUP($A22,Filtros!$A$4:$AK$2906,9,FALSE),0) -> 0 | L22: =IFERROR(VLOOKUP($A22,Filtros!$A$4:$AK$2906,10,FALSE),0) -> 0 | M22: =IFERROR(VLOOKUP($A22,Filtros!$A$4:$AK$2906,11,FALSE),0) -> 0 | N22: =IFERROR(VLOOKUP($A22,Filtros!$A$4:$AK$2906,12,FALSE),0) -> 0 | O22: =IFERROR(VLOOKUP($A22,Filtros!$A$4:$AK$2906,13,FALSE),0) -> 0 | P22: =IFERROR(VLOOKUP($A22,Filtros!$A$4:$AK$2906,14,FALSE),0) -> 0 | Q22: =IFERROR(VLOOKUP($A22,Filtros!$A$4:$AK$2906,15,FALSE),0) -> 0 | R22: =IFERROR(VLOOKUP($A22,Filtros!$A$4:$AK$2906,16,FALSE),0) -> 0 | S22: =IFERROR(VLOOKUP($A22,Filtros!$A$4:$AK$2906,17,FALSE),0) -> 0 | T22: =IFERROR(VLOOKUP($A22,Filtros!$A$4:$AK$2906,18,FALSE),0) -> 0 | U22: =IFERROR(VLOOKUP($A22,Filtros!$A$4:$AK$2906,19,FALSE),0) -> 0 | V22: =IFERROR(VLOOKUP($A22,Filtros!$A$4:$AK$2906,20,FALSE),0) -> 0 | W22: =IFERROR(VLOOKUP($A22,Filtros!$A$4:$AK$2906,21,FALSE),0) -> 0 | X22: =IFERROR(VLOOKUP($A22,Filtros!$A$4:$AK$2906,22,FALSE),0) -> 0 | Y22: =IFERROR(VLOOKUP($A22,Filtros!$A$4:$AK$2906,23,FALSE),0) -> 0 | Z22: =IFERROR(VLOOKUP($A22,Filtros!$A$4:$AK$2906,24,FALSE),0) -> 0 | AA22: =IFERROR(VLOOKUP($A22,Filtros!$A$4:$AK$2906,25,FALSE),0) -> 0 | AB22: =IFERROR(VLOOKUP($A22,Filtros!$A$4:$AK$2906,26,FALSE),0) -> 0 | AC22: =IFERROR(VLOOKUP($A22,Filtros!$A$4:$AK$2906,27,FALSE),0) -> 4495 | AD22: =IFERROR(VLOOKUP($A22,Filtros!$A$4:$AK$2906,28,FALSE),0) -> 0 | AE22: =IFERROR(VLOOKUP($A22,Filtros!$A$4:$AK$2906,29,FALSE),0) -> 0 | AF22: =IFERROR(VLOOKUP($A22,Filtros!$A$4:$AK$2906,30,FALSE),0) -> 0 | AG22: =IFERROR(VLOOKUP($A22,Filtros!$A$4:$AK$2906,31,FALSE),0) -> 0 | AH22: =IFERROR(VLOOKUP($A22,Filtros!$A$4:$AK$2906,32,FALSE),0) -> 0 | AI22: =IFERROR(VLOOKUP($A22,Filtros!$A$4:$AK$2906,33,FALSE),0) -> 0 | AJ22: =IFERROR(VLOOKUP($A22,Filtros!$A$4:$AK$2906,34,FALSE),0) -> 0 | AK22: =IFERROR(VLOOKUP($A22,Filtros!$A$4:$AK$2906,35,FALSE),0) -> 0 | AL22: =IFERROR(VLOOKUP($A22,Filtros!$A$4:$AK$2906,36,FALSE),0) -> 1,144,440 | AM22: =IFERROR(VLOOKUP($A22,Filtros!$A$4:$AK$2906,37,FALSE),0) -> 38,884,950
A23: 01014292 | B23: 0101304 | C23: Consulta Médica de Especialidad en Inmunología | D23: =IFERROR(VLOOKUP($A23,Filtros!$A$4:$AK$2906,2,FALSE),0) -> 1672 | E23: =IFERROR(VLOOKUP($A23,Filtros!$A$4:$AK$2906,3,FALSE),0) -> 1672 | F23: =IFERROR(VLOOKUP($A23,Filtros!$A$4:$AK$2906,4,FALSE),0) -> 1672 | G23: =IFERROR(VLOOKUP($A23,Filtros!$A$4:$AK$2906,5,FALSE),0) -> 0 | H23: =IFERROR(VLOOKUP($A23,Filtros!$A$4:$AK$2906,6,FALSE),0) -> 0 | I23: =IFERROR(VLOOKUP($A23,Filtros!$A$4:$AK$2906,7,FALSE),0) -> 0 | J23: =IFERROR(VLOOKUP($A23,Filtros!$A$4:$AK$2906,8,FALSE),0) -> 0 | K23: =IFERROR(VLOOKUP($A23,Filtros!$A$4:$AK$2906,9,FALSE),0) -> 0 | L23: =IFERROR(VLOOKUP($A23,Filtros!$A$4:$AK$2906,10,FALSE),0) -> 0 | M23: =IFERROR(VLOOKUP($A23,Filtros!$A$4:$AK$2906,11,FALSE),0) -> 0 | N23: =IFERROR(VLOOKUP($A23,Filtros!$A$4:$AK$2906,12,FALSE),0) -> 0 | O23: =IFERROR(VLOOKUP($A23,Filtros!$A$4:$AK$2906,13,FALSE),0) -> 0 | P23: =IFERROR(VLOOKUP($A23,Filtros!$A$4:$AK$2906,14,FALSE),0) -> 0 | Q23: =IFERROR(VLOOKUP($A23,Filtros!$A$4:$AK$2906,15,FALSE),0) -> 0 | R23: =IFERROR(VLOOKUP($A23,Filtros!$A$4:$AK$2906,16,FALSE),0) -> 0 | S23: =IFERROR(VLOOKUP($A23,Filtros!$A$4:$AK$2906,17,FALSE),0) -> 0 | T23: =IFERROR(VLOOKUP($A23,Filtros!$A$4:$AK$2906,18,FALSE),0) -> 0 | U23: =IFERROR(VLOOKUP($A23,Filtros!$A$4:$AK$2906,19,FALSE),0) -> 0 | V23: =IFERROR(VLOOKUP($A23,Filtros!$A$4:$AK$2906,20,FALSE),0) -> 0 | W23: =IFERROR(VLOOKUP($A23,Filtros!$A$4:$AK$2906,21,FALSE),0) -> 0 | X23: =IFERROR(VLOOKUP($A23,Filtros!$A$4:$AK$2906,22,FALSE),0) -> 0 | Y23: =IFERROR(VLOOKUP($A23,Filtros!$A$4:$AK$2906,23,FALSE),0) -> 0 | Z23: =IFERROR(VLOOKUP($A23,Filtros!$A$4:$AK$2906,24,FALSE),0) -> 0 | AA23: =IFERROR(VLOOKUP($A23,Filtros!$A$4:$AK$2906,25,FALSE),0) -> 0 | AB23: =IFERROR(VLOOKUP($A23,Filtros!$A$4:$AK$2906,26,FALSE),0) -> 0 | AC23: =IFERROR(VLOOKUP($A23,Filtros!$A$4:$AK$2906,27,FALSE),0) -> 1672 | AD23: =IFERROR(VLOOKUP($A23,Filtros!$A$4:$AK$2906,28,FALSE),0) -> 0 | AE23: =IFERROR(VLOOKUP($A23,Filtros!$A$4:$AK$2906,29,FALSE),0) -> 0 | AF23: =IFERROR(VLOOKUP($A23,Filtros!$A$4:$AK$2906,30,FALSE),0) -> 0 | AG23: =IFERROR(VLOOKUP($A23,Filtros!$A$4:$AK$2906,31,FALSE),0) -> 0 | AH23: =IFERROR(VLOOKUP($A23,Filtros!$A$4:$AK$2906,32,FALSE),0) -> 0 | AI23: =IFERROR(VLOOKUP($A23,Filtros!$A$4:$AK$2906,33,FALSE),0) -> 0 | AJ23: =IFERROR(VLOOKUP($A23,Filtros!$A$4:$AK$2906,34,FALSE),0) -> 0 | AK23: =IFERROR(VLOOKUP($A23,Filtros!$A$4:$AK$2906,35,FALSE),0) -> 0 | AL23: =IFERROR(VLOOKUP($A23,Filtros!$A$4:$AK$2906,36,FALSE),0) -> 1,144,440 | AM23: =IFERROR(VLOOKUP($A23,Filtros!$A$4:$AK$2906,37,FALSE),0) -> 14,496,240
A24: 01014293 | B24: 0101305 | C24: Consulta Médica de Especialidad en Medicina Familiar | D24: =IFERROR(VLOOKUP($A24,Filtros!$A$4:$AK$2906,2,FALSE),0) -> 0 | E24: =IFERROR(VLOOKUP($A24,Filtros!$A$4:$AK$2906,3,FALSE),0) -> 0 | F24: =IFERROR(VLOOKUP($A24,Filtros!$A$4:$AK$2906,4,FALSE),0) -> 0 | G24: =IFERROR(VLOOKUP($A24,Filtros!$A$4:$AK$2906,5,FALSE),0) -> 0 | H24: =IFERROR(VLOOKUP($A24,Filtros!$A$4:$AK$2906,6,FALSE),0) -> 0 | I24: =IFERROR(VLOOKUP($A24,Filtros!$A$4:$AK$2906,7,FALSE),0) -> 0 | J24: =IFERROR(VLOOKUP($A24,Filtros!$A$4:$AK$2906,8,FALSE),0) -> 0 | K24: =IFERROR(VLOOKUP($A24,Filtros!$A$4:$AK$2906,9,FALSE),0) -> 0 | L24: =IFERROR(VLOOKUP($A24,Filtros!$A$4:$AK$2906,10,FALSE),0) -> 0 | M24: =IFERROR(VLOOKUP($A24,Filtros!$A$4:$AK$2906,11,FALSE),0) -> 0 | N24: =IFERROR(VLOOKUP($A24,Filtros!$A$4:$AK$2906,12,FALSE),0) -> 0 | O24: =IFERROR(VLOOKUP($A24,Filtros!$A$4:$AK$2906,13,FALSE),0) -> 0 | P24: =IFERROR(VLOOKUP($A24,Filtros!$A$4:$AK$2906,14,FALSE),0) -> 0 | Q24: =IFERROR(VLOOKUP($A24,Filtros!$A$4:$AK$2906,15,FALSE),0) -> 0 | R24: =IFERROR(VLOOKUP($A24,Filtros!$A$4:$AK$2906,16,FALSE),0) -> 0 | S24: =IFERROR(VLOOKUP($A24,Filtros!$A$4:$AK$2906,17,FALSE),0) -> 0 | T24: =IFERROR(VLOOKUP($A24,Filtros!$A$4:$AK$2906,18,FALSE),0) -> 0 | U24: =IFERROR(VLOOKUP($A24,Filtros!$A$4:$AK$2906,19,FALSE),0) -> 0 | V24: =IFERROR(VLOOKUP($A24,Filtros!$A$4:$AK$2906,20,FALSE),0) -> 0 | W24: =IFERROR(VLOOKUP($A24,Filtros!$A$4:$AK$2906,21,FALSE),0) -> 0 | X24: =IFERROR(VLOOKUP($A24,Filtros!$A$4:$AK$2906,22,FALSE),0) -> 0 | Y24: =IFERROR(VLOOKUP($A24,Filtros!$A$4:$AK$2906,23,FALSE),0) -> 0 | Z24: =IFERROR(VLOOKUP($A24,Filtros!$A$4:$AK$2906,24,FALSE),0) -> 0 | AA24: =IFERROR(VLOOKUP($A24,Filtros!$A$4:$AK$2906,25,FALSE),0) -> 0 | AB24: =IFERROR(VLOOKUP($A24,Filtros!$A$4:$AK$2906,26,FALSE),0) -> 0 | AC24: =IFERROR(VLOOKUP($A24,Filtros!$A$4:$AK$2906,27,FALSE),0) -> 0 | AD24: =IFERROR(VLOOKUP($A24,Filtros!$A$4:$AK$2906,28,FALSE),0) -> 0 | AE24: =IFERROR(VLOOKUP($A24,Filtros!$A$4:$AK$2906,29,FALSE),0) -> 0 | AF24: =IFERROR(VLOOKUP($A24,Filtros!$A$4:$AK$2906,30,FALSE),0) -> 0 | AG24: =IFERROR(VLOOKUP($A24,Filtros!$A$4:$AK$2906,31,FALSE),0) -> 0 | AH24: =IFERROR(VLOOKUP($A24,Filtros!$A$4:$AK$2906,32,FALSE),0) -> 0 | AI24: =IFERROR(VLOOKUP($A24,Filtros!$A$4:$AK$2906,33,FALSE),0) -> 0 | AJ24: =IFERROR(VLOOKUP($A24,Filtros!$A$4:$AK$2906,34,FALSE),0) -> 0 | AK24: =IFERROR(VLOOKUP($A24,Filtros!$A$4:$AK$2906,35,FALSE),0) -> 0 | AL24: =IFERROR(VLOOKUP($A24,Filtros!$A$4:$AK$2906,36,FALSE),0) -> 1,144,440 | AM24: =IFERROR(VLOOKUP($A24,Filtros!$A$4:$AK$2906,37,FALSE),0) -> 0
A25: 01014294 | B25: 0101306 | C25: Consulta Médica de Especialidad en Medicina Física y Rehabilitación | D25: =IFERROR(VLOOKUP($A25,Filtros!$A$4:$AK$2906,2,FALSE),0) -> 5321 | E25: =IFERROR(VLOOKUP($A25,Filtros!$A$4:$AK$2906,3,FALSE),0) -> 5319 | F25: =IFERROR(VLOOKUP($A25,Filtros!$A$4:$AK$2906,4,FALSE),0) -> 5319 | G25: =IFERROR(VLOOKUP($A25,Filtros!$A$4:$AK$2906,5,FALSE),0) -> 0 | H25: =IFERROR(VLOOKUP($A25,Filtros!$A$4:$AK$2906,6,FALSE),0) -> 2 | I25: =IFERROR(VLOOKUP($A25,Filtros!$A$4:$AK$2906,7,FALSE),0) -> 0 | J25: =IFERROR(VLOOKUP($A25,Filtros!$A$4:$AK$2906,8,FALSE),0) -> 0 | K25: =IFERROR(VLOOKUP($A25,Filtros!$A$4:$AK$2906,9,FALSE),0) -> 0 | L25: =IFERROR(VLOOKUP($A25,Filtros!$A$4:$AK$2906,10,FALSE),0) -> 0 | M25: =IFERROR(VLOOKUP($A25,Filtros!$A$4:$AK$2906,11,FALSE),0) -> 0 | N25: =IFERROR(VLOOKUP($A25,Filtros!$A$4:$AK$2906,12,FALSE),0) -> 0 | O25: =IFERROR(VLOOKUP($A25,Filtros!$A$4:$AK$2906,13,FALSE),0) -> 0 | P25: =IFERROR(VLOOKUP($A25,Filtros!$A$4:$AK$2906,14,FALSE),0) -> 0 | Q25: =IFERROR(VLOOKUP($A25,Filtros!$A$4:$AK$2906,15,FALSE),0) -> 0 | R25: =IFERROR(VLOOKUP($A25,Filtros!$A$4:$AK$2906,16,FALSE),0) -> 0 | S25: =IFERROR(VLOOKUP($A25,Filtros!$A$4:$AK$2906,17,FALSE),0) -> 0 | T25: =IFERROR(VLOOKUP($A25,Filtros!$A$4:$AK$2906,18,FALSE),0) -> 0 | U25: =IFERROR(VLOOKUP($A25,Filtros!$A$4:$AK$2906,19,FALSE),0) -> 0 | V25: =IFERROR(VLOOKUP($A25,Filtros!$A$4:$AK$2906,20,FALSE),0) -> 0 | W25: =IFERROR(VLOOKUP($A25,Filtros!$A$4:$AK$2906,21,FALSE),0) -> 0 | X25: =IFERROR(VLOOKUP($A25,Filtros!$A$4:$AK$2906,22,FALSE),0) -> 0 | Y25: =IFERROR(VLOOKUP($A25,Filtros!$A$4:$AK$2906,23,FALSE),0) -> 0 | Z25: =IFERROR(VLOOKUP($A25,Filtros!$A$4:$AK$2906,24,FALSE),0) -> 0 | AA25: =IFERROR(VLOOKUP($A25,Filtros!$A$4:$AK$2906,25,FALSE),0) -> 0 | AB25: =IFERROR(VLOOKUP($A25,Filtros!$A$4:$AK$2906,26,FALSE),0) -> 0 | AC25: =IFERROR(VLOOKUP($A25,Filtros!$A$4:$AK$2906,27,FALSE),0) -> 5321 | AD25: =IFERROR(VLOOKUP($A25,Filtros!$A$4:$AK$2906,28,FALSE),0) -> 0 | AE25: =IFERROR(VLOOKUP($A25,Filtros!$A$4:$AK$2906,29,FALSE),0) -> 0 | AF25: =IFERROR(VLOOKUP($A25,Filtros!$A$4:$AK$2906,30,FALSE),0) -> 0 | AG25: =IFERROR(VLOOKUP($A25,Filtros!$A$4:$AK$2906,31,FALSE),0) -> 0 | AH25: =IFERROR(VLOOKUP($A25,Filtros!$A$4:$AK$2906,32,FALSE),0) -> 0 | AI25: =IFERROR(VLOOKUP($A25,Filtros!$A$4:$AK$2906,33,FALSE),0) -> 0 | AJ25: =IFERROR(VLOOKUP($A25,Filtros!$A$4:$AK$2906,34,FALSE),0) -> 0 | AK25: =IFERROR(VLOOKUP($A25,Filtros!$A$4:$AK$2906,35,FALSE),0) -> 0 | AL25: =IFERROR(VLOOKUP($A25,Filtros!$A$4:$AK$2906,36,FALSE),0) -> 1,144,440 | AM25: =IFERROR(VLOOKUP($A25,Filtros!$A$4:$AK$2906,37,FALSE),0) -> 46,115,730
A26: 01014295 | B26: 0101307 | C26: Consulta Médica de Especialidad en Medicina Interna | D26: =IFERROR(VLOOKUP($A26,Filtros!$A$4:$AK$2906,2,FALSE),0) -> 36770 | E26: =IFERROR(VLOOKUP($A26,Filtros!$A$4:$AK$2906,3,FALSE),0) -> 36616 | F26: =IFERROR(VLOOKUP($A26,Filtros!$A$4:$AK$2906,4,FALSE),0) -> 36616 | G26: =IFERROR(VLOOKUP($A26,Filtros!$A$4:$AK$2906,5,FALSE),0) -> 0 | H26: =IFERROR(VLOOKUP($A26,Filtros!$A$4:$AK$2906,6,FALSE),0) -> 154 | I26: =IFERROR(VLOOKUP($A26,Filtros!$A$4:$AK$2906,7,FALSE),0) -> 0 | J26: =IFERROR(VLOOKUP($A26,Filtros!$A$4:$AK$2906,8,FALSE),0) -> 0 | K26: =IFERROR(VLOOKUP($A26,Filtros!$A$4:$AK$2906,9,FALSE),0) -> 0 | L26: =IFERROR(VLOOKUP($A26,Filtros!$A$4:$AK$2906,10,FALSE),0) -> 0 | M26: =IFERROR(VLOOKUP($A26,Filtros!$A$4:$AK$2906,11,FALSE),0) -> 0 | N26: =IFERROR(VLOOKUP($A26,Filtros!$A$4:$AK$2906,12,FALSE),0) -> 0 | O26: =IFERROR(VLOOKUP($A26,Filtros!$A$4:$AK$2906,13,FALSE),0) -> 0 | P26: =IFERROR(VLOOKUP($A26,Filtros!$A$4:$AK$2906,14,FALSE),0) -> 0 | Q26: =IFERROR(VLOOKUP($A26,Filtros!$A$4:$AK$2906,15,FALSE),0) -> 0 | R26: =IFERROR(VLOOKUP($A26,Filtros!$A$4:$AK$2906,16,FALSE),0) -> 0 | S26: =IFERROR(VLOOKUP($A26,Filtros!$A$4:$AK$2906,17,FALSE),0) -> 0 | T26: =IFERROR(VLOOKUP($A26,Filtros!$A$4:$AK$2906,18,FALSE),0) -> 0 | U26: =IFERROR(VLOOKUP($A26,Filtros!$A$4:$AK$2906,19,FALSE),0) -> 0 | V26: =IFERROR(VLOOKUP($A26,Filtros!$A$4:$AK$2906,20,FALSE),0) -> 0 | W26: =IFERROR(VLOOKUP($A26,Filtros!$A$4:$AK$2906,21,FALSE),0) -> 0 | X26: =IFERROR(VLOOKUP($A26,Filtros!$A$4:$AK$2906,22,FALSE),0) -> 0 | Y26: =IFERROR(VLOOKUP($A26,Filtros!$A$4:$AK$2906,23,FALSE),0) -> 0 | Z26: =IFERROR(VLOOKUP($A26,Filtros!$A$4:$AK$2906,24,FALSE),0) -> 0 | AA26: =IFERROR(VLOOKUP($A26,Filtros!$A$4:$AK$2906,25,FALSE),0) -> 0 | AB26: =IFERROR(VLOOKUP($A26,Filtros!$A$4:$AK$2906,26,FALSE),0) -> 15 | AC26: =IFERROR(VLOOKUP($A26,Filtros!$A$4:$AK$2906,27,FALSE),0) -> 35936 | AD26: =IFERROR(VLOOKUP($A26,Filtros!$A$4:$AK$2906,28,FALSE),0) -> 4 | AE26: =IFERROR(VLOOKUP($A26,Filtros!$A$4:$AK$2906,29,FALSE),0) -> 109 | AF26: =IFERROR(VLOOKUP($A26,Filtros!$A$4:$AK$2906,30,FALSE),0) -> 0 | AG26: =IFERROR(VLOOKUP($A26,Filtros!$A$4:$AK$2906,31,FALSE),0) -> 0 | AH26: =IFERROR(VLOOKUP($A26,Filtros!$A$4:$AK$2906,32,FALSE),0) -> 0 | AI26: =IFERROR(VLOOKUP($A26,Filtros!$A$4:$AK$2906,33,FALSE),0) -> 0 | AJ26: =IFERROR(VLOOKUP($A26,Filtros!$A$4:$AK$2906,34,FALSE),0) -> 0 | AK26: =IFERROR(VLOOKUP($A26,Filtros!$A$4:$AK$2906,35,FALSE),0) -> 0 | AL26: =IFERROR(VLOOKUP($A26,Filtros!$A$4:$AK$2906,36,FALSE),0) -> 1,144,440 | AM26: =IFERROR(VLOOKUP($A26,Filtros!$A$4:$AK$2906,37,FALSE),0) -> 317,460,720
A27: 01012816 | B27: 0101308 | C27: Consulta Médica de Especialidad en Obstetricia y Ginecología | D27: =IFERROR(VLOOKUP($A27,Filtros!$A$4:$AK$2906,2,FALSE),0) -> 44695 | E27: =IFERROR(VLOOKUP($A27,Filtros!$A$4:$AK$2906,3,FALSE),0) -> 44642 | F27: =IFERROR(VLOOKUP($A27,Filtros!$A$4:$AK$2906,4,FALSE),0) -> 44501 | G27: =IFERROR(VLOOKUP($A27,Filtros!$A$4:$AK$2906,5,FALSE),0) -> 141 | H27: =IFERROR(VLOOKUP($A27,Filtros!$A$4:$AK$2906,6,FALSE),0) -> 53 | I27: =IFERROR(VLOOKUP($A27,Filtros!$A$4:$AK$2906,7,FALSE),0) -> 0 | J27: =IFERROR(VLOOKUP($A27,Filtros!$A$4:$AK$2906,8,FALSE),0) -> 0 | K27: =IFERROR(VLOOKUP($A27,Filtros!$A$4:$AK$2906,9,FALSE),0) -> 0 | L27: =IFERROR(VLOOKUP($A27,Filtros!$A$4:$AK$2906,10,FALSE),0) -> 0 | M27: =IFERROR(VLOOKUP($A27,Filtros!$A$4:$AK$2906,11,FALSE),0) -> 0 | N27: =IFERROR(VLOOKUP($A27,Filtros!$A$4:$AK$2906,12,FALSE),0) -> 0 | O27: =IFERROR(VLOOKUP($A27,Filtros!$A$4:$AK$2906,13,FALSE),0) -> 0 | P27: =IFERROR(VLOOKUP($A27,Filtros!$A$4:$AK$2906,14,FALSE),0) -> 0 | Q27: =IFERROR(VLOOKUP($A27,Filtros!$A$4:$AK$2906,15,FALSE),0) -> 0 | R27: =IFERROR(VLOOKUP($A27,Filtros!$A$4:$AK$2906,16,FALSE),0) -> 0 | S27: =IFERROR(VLOOKUP($A27,Filtros!$A$4:$AK$2906,17,FALSE),0) -> 0 | T27: =IFERROR(VLOOKUP($A27,Filtros!$A$4:$AK$2906,18,FALSE),0) -> 0 | U27: =IFERROR(VLOOKUP($A27,Filtros!$A$4:$AK$2906,19,FALSE),0) -> 0 | V27: =IFERROR(VLOOKUP($A27,Filtros!$A$4:$AK$2906,20,FALSE),0) -> 0 | W27: =IFERROR(VLOOKUP($A27,Filtros!$A$4:$AK$2906,21,FALSE),0) -> 0 | X27: =IFERROR(VLOOKUP($A27,Filtros!$A$4:$AK$2906,22,FALSE),0) -> 0 | Y27: =IFERROR(VLOOKUP($A27,Filtros!$A$4:$AK$2906,23,FALSE),0) -> 0 | Z27: =IFERROR(VLOOKUP($A27,Filtros!$A$4:$AK$2906,24,FALSE),0) -> 0 | AA27: =IFERROR(VLOOKUP($A27,Filtros!$A$4:$AK$2906,25,FALSE),0) -> 0 | AB27: =IFERROR(VLOOKUP($A27,Filtros!$A$4:$AK$2906,26,FALSE),0) -> 16 | AC27: =IFERROR(VLOOKUP($A27,Filtros!$A$4:$AK$2906,27,FALSE),0) -> 43142 | AD27: =IFERROR(VLOOKUP($A27,Filtros!$A$4:$AK$2906,28,FALSE),0) -> 1537 | AE27: =IFERROR(VLOOKUP($A27,Filtros!$A$4:$AK$2906,29,FALSE),0) -> 0 | AF27: =IFERROR(VLOOKUP($A27,Filtros!$A$4:$AK$2906,30,FALSE),0) -> 0 | AG27: =IFERROR(VLOOKUP($A27,Filtros!$A$4:$AK$2906,31,FALSE),0) -> 0 | AH27: =IFERROR(VLOOKUP($A27,Filtros!$A$4:$AK$2906,32,FALSE),0) -> 0 | AI27: =IFERROR(VLOOKUP($A27,Filtros!$A$4:$AK$2906,33,FALSE),0) -> 0 | AJ27: =IFERROR(VLOOKUP($A27,Filtros!$A$4:$AK$2906,34,FALSE),0) -> 0 | AK27: =IFERROR(VLOOKUP($A27,Filtros!$A$4:$AK$2906,35,FALSE),0) -> 0 | AL27: =IFERROR(VLOOKUP($A27,Filtros!$A$4:$AK$2906,36,FALSE),0) -> 1,144,440 | AM27: =IFERROR(VLOOKUP($A27,Filtros!$A$4:$AK$2906,37,FALSE),0) -> 385,823,670
A28: 01014296 | B28: 0101309 | C28: Consulta Médica de Especialidad en Pediatría | D28: =IFERROR(VLOOKUP($A28,Filtros!$A$4:$AK$2906,2,FALSE),0) -> 13640 | E28: =IFERROR(VLOOKUP($A28,Filtros!$A$4:$AK$2906,3,FALSE),0) -> 13633 | F28: =IFERROR(VLOOKUP($A28,Filtros!$A$4:$AK$2906,4,FALSE),0) -> 13633 | G28: =IFERROR(VLOOKUP($A28,Filtros!$A$4:$AK$2906,5,FALSE),0) -> 0 | H28: =IFERROR(VLOOKUP($A28,Filtros!$A$4:$AK$2906,6,FALSE),0) -> 7 | I28: =IFERROR(VLOOKUP($A28,Filtros!$A$4:$AK$2906,7,FALSE),0) -> 0 | J28: =IFERROR(VLOOKUP($A28,Filtros!$A$4:$AK$2906,8,FALSE),0) -> 0 | K28: =IFERROR(VLOOKUP($A28,Filtros!$A$4:$AK$2906,9,FALSE),0) -> 0 | L28: =IFERROR(VLOOKUP($A28,Filtros!$A$4:$AK$2906,10,FALSE),0) -> 0 | M28: =IFERROR(VLOOKUP($A28,Filtros!$A$4:$AK$2906,11,FALSE),0) -> 0 | N28: =IFERROR(VLOOKUP($A28,Filtros!$A$4:$AK$2906,12,FALSE),0) -> 0 | O28: =IFERROR(VLOOKUP($A28,Filtros!$A$4:$AK$2906,13,FALSE),0) -> 0 | P28: =IFERROR(VLOOKUP($A28,Filtros!$A$4:$AK$2906,14,FALSE),0) -> 0 | Q28: =IFERROR(VLOOKUP($A28,Filtros!$A$4:$AK$2906,15,FALSE),0) -> 0 | R28: =IFERROR(VLOOKUP($A28,Filtros!$A$4:$AK$2906,16,FALSE),0) -> 0 | S28: =IFERROR(VLOOKUP($A28,Filtros!$A$4:$AK$2906,17,FALSE),0) -> 0 | T28: =IFERROR(VLOOKUP($A28,Filtros!$A$4:$AK$2906,18,FALSE),0) -> 0 | U28: =IFERROR(VLOOKUP($A28,Filtros!$A$4:$AK$2906,19,FALSE),0) -> 0 | V28: =IFERROR(VLOOKUP($A28,Filtros!$A$4:$AK$2906,20,FALSE),0) -> 0 | W28: =IFERROR(VLOOKUP($A28,Filtros!$A$4:$AK$2906,21,FALSE),0) -> 0 | X28: =IFERROR(VLOOKUP($A28,Filtros!$A$4:$AK$2906,22,FALSE),0) -> 0 | Y28: =IFERROR(VLOOKUP($A28,Filtros!$A$4:$AK$2906,23,FALSE),0) -> 0 | Z28: =IFERROR(VLOOKUP($A28,Filtros!$A$4:$AK$2906,24,FALSE),0) -> 0 | AA28: =IFERROR(VLOOKUP($A28,Filtros!$A$4:$AK$2906,25,FALSE),0) -> 0 | AB28: =IFERROR(VLOOKUP($A28,Filtros!$A$4:$AK$2906,26,FALSE),0) -> 142 | AC28: =IFERROR(VLOOKUP($A28,Filtros!$A$4:$AK$2906,27,FALSE),0) -> 13463 | AD28: =IFERROR(VLOOKUP($A28,Filtros!$A$4:$AK$2906,28,FALSE),0) -> 35 | AE28: =IFERROR(VLOOKUP($A28,Filtros!$A$4:$AK$2906,29,FALSE),0) -> 0 | AF28: =IFERROR(VLOOKUP($A28,Filtros!$A$4:$AK$2906,30,FALSE),0) -> 0 | AG28: =IFERROR(VLOOKUP($A28,Filtros!$A$4:$AK$2906,31,FALSE),0) -> 0 | AH28: =IFERROR(VLOOKUP($A28,Filtros!$A$4:$AK$2906,32,FALSE),0) -> 0 | AI28: =IFERROR(VLOOKUP($A28,Filtros!$A$4:$AK$2906,33,FALSE),0) -> 0 | AJ28: =IFERROR(VLOOKUP($A28,Filtros!$A$4:$AK$2906,34,FALSE),0) -> 0 | AK28: =IFERROR(VLOOKUP($A28,Filtros!$A$4:$AK$2906,35,FALSE),0) -> 0 | AL28: =IFERROR(VLOOKUP($A28,Filtros!$A$4:$AK$2906,36,FALSE),0) -> 1,144,440 | AM28: =IFERROR(VLOOKUP($A28,Filtros!$A$4:$AK$2906,37,FALSE),0) -> 118,198,110
A29: 01014297 | B29: 0101310 | C29: Consulta Médica de Especialidad en Traumatología y Ortopedia | D29: =IFERROR(VLOOKUP($A29,Filtros!$A$4:$AK$2906,2,FALSE),0) -> 32415 | E29: =IFERROR(VLOOKUP($A29,Filtros!$A$4:$AK$2906,3,FALSE),0) -> 32130 | F29: =IFERROR(VLOOKUP($A29,Filtros!$A$4:$AK$2906,4,FALSE),0) -> 32130 | G29: =IFERROR(VLOOKUP($A29,Filtros!$A$4:$AK$2906,5,FALSE),0) -> 0 | H29: =IFERROR(VLOOKUP($A29,Filtros!$A$4:$AK$2906,6,FALSE),0) -> 285 | I29: =IFERROR(VLOOKUP($A29,Filtros!$A$4:$AK$2906,7,FALSE),0) -> 0 | J29: =IFERROR(VLOOKUP($A29,Filtros!$A$4:$AK$2906,8,FALSE),0) -> 0 | K29: =IFERROR(VLOOKUP($A29,Filtros!$A$4:$AK$2906,9,FALSE),0) -> 0 | L29: =IFERROR(VLOOKUP($A29,Filtros!$A$4:$AK$2906,10,FALSE),0) -> 0 | M29: =IFERROR(VLOOKUP($A29,Filtros!$A$4:$AK$2906,11,FALSE),0) -> 0 | N29: =IFERROR(VLOOKUP($A29,Filtros!$A$4:$AK$2906,12,FALSE),0) -> 0 | O29: =IFERROR(VLOOKUP($A29,Filtros!$A$4:$AK$2906,13,FALSE),0) -> 0 | P29: =IFERROR(VLOOKUP($A29,Filtros!$A$4:$AK$2906,14,FALSE),0) -> 0 | Q29: =IFERROR(VLOOKUP($A29,Filtros!$A$4:$AK$2906,15,FALSE),0) -> 0 | R29: =IFERROR(VLOOKUP($A29,Filtros!$A$4:$AK$2906,16,FALSE),0) -> 0 | S29: =IFERROR(VLOOKUP($A29,Filtros!$A$4:$AK$2906,17,FALSE),0) -> 0 | T29: =IFERROR(VLOOKUP($A29,Filtros!$A$4:$AK$2906,18,FALSE),0) -> 0 | U29: =IFERROR(VLOOKUP($A29,Filtros!$A$4:$AK$2906,19,FALSE),0) -> 0 | V29: =IFERROR(VLOOKUP($A29,Filtros!$A$4:$AK$2906,20,FALSE),0) -> 0 | W29: =IFERROR(VLOOKUP($A29,Filtros!$A$4:$AK$2906,21,FALSE),0) -> 0 | X29: =IFERROR(VLOOKUP($A29,Filtros!$A$4:$AK$2906,22,FALSE),0) -> 0 | Y29: =IFERROR(VLOOKUP($A29,Filtros!$A$4:$AK$2906,23,FALSE),0) -> 0 | Z29: =IFERROR(VLOOKUP($A29,Filtros!$A$4:$AK$2906,24,FALSE),0) -> 0 | AA29: =IFERROR(VLOOKUP($A29,Filtros!$A$4:$AK$2906,25,FALSE),0) -> 0 | AB29: =IFERROR(VLOOKUP($A29,Filtros!$A$4:$AK$2906,26,FALSE),0) -> 8 | AC29: =IFERROR(VLOOKUP($A29,Filtros!$A$4:$AK$2906,27,FALSE),0) -> 31962 | AD29: =IFERROR(VLOOKUP($A29,Filtros!$A$4:$AK$2906,28,FALSE),0) -> 19 | AE29: =IFERROR(VLOOKUP($A29,Filtros!$A$4:$AK$2906,29,FALSE),0) -> 86 | AF29: =IFERROR(VLOOKUP($A29,Filtros!$A$4:$AK$2906,30,FALSE),0) -> 0 | AG29: =IFERROR(VLOOKUP($A29,Filtros!$A$4:$AK$2906,31,FALSE),0) -> 0 | AH29: =IFERROR(VLOOKUP($A29,Filtros!$A$4:$AK$2906,32,FALSE),0) -> 0 | AI29: =IFERROR(VLOOKUP($A29,Filtros!$A$4:$AK$2906,33,FALSE),0) -> 0 | AJ29: =IFERROR(VLOOKUP($A29,Filtros!$A$4:$AK$2906,34,FALSE),0) -> 0 | AK29: =IFERROR(VLOOKUP($A29,Filtros!$A$4:$AK$2906,35,FALSE),0) -> 0 | AL29: =IFERROR(VLOOKUP($A29,Filtros!$A$4:$AK$2906,36,FALSE),0) -> 1,144,440 | AM29: =IFERROR(VLOOKUP($A29,Filtros!$A$4:$AK$2906,37,FALSE),0) -> 278,567,100
A30: 01014298 | B30: 0101311 | C30: Consulta Médica de Especialidad en Urología | D30: =IFERROR(VLOOKUP($A30,Filtros!$A$4:$AK$2906,2,FALSE),0) -> 19160 | E30: =IFERROR(VLOOKUP($A30,Filtros!$A$4:$AK$2906,3,FALSE),0) -> 19126 | F30: =IFERROR(VLOOKUP($A30,Filtros!$A$4:$AK$2906,4,FALSE),0) -> 19126 | G30: =IFERROR(VLOOKUP($A30,Filtros!$A$4:$AK$2906,5,FALSE),0) -> 0 | H30: =IFERROR(VLOOKUP($A30,Filtros!$A$4:$AK$2906,6,FALSE),0) -> 34 | I30: =IFERROR(VLOOKUP($A30,Filtros!$A$4:$AK$2906,7,FALSE),0) -> 0 | J30: =IFERROR(VLOOKUP($A30,Filtros!$A$4:$AK$2906,8,FALSE),0) -> 0 | K30: =IFERROR(VLOOKUP($A30,Filtros!$A$4:$AK$2906,9,FALSE),0) -> 0 | L30: =IFERROR(VLOOKUP($A30,Filtros!$A$4:$AK$2906,10,FALSE),0) -> 0 | M30: =IFERROR(VLOOKUP($A30,Filtros!$A$4:$AK$2906,11,FALSE),0) -> 0 | N30: =IFERROR(VLOOKUP($A30,Filtros!$A$4:$AK$2906,12,FALSE),0) -> 0 | O30: =IFERROR(VLOOKUP($A30,Filtros!$A$4:$AK$2906,13,FALSE),0) -> 0 | P30: =IFERROR(VLOOKUP($A30,Filtros!$A$4:$AK$2906,14,FALSE),0) -> 0 | Q30: =IFERROR(VLOOKUP($A30,Filtros!$A$4:$AK$2906,15,FALSE),0) -> 0 | R30: =IFERROR(VLOOKUP($A30,Filtros!$A$4:$AK$2906,16,FALSE),0) -> 0 | S30: =IFERROR(VLOOKUP($A30,Filtros!$A$4:$AK$2906,17,FALSE),0) -> 0 | T30: =IFERROR(VLOOKUP($A30,Filtros!$A$4:$AK$2906,18,FALSE),0) -> 0 | U30: =IFERROR(VLOOKUP($A30,Filtros!$A$4:$AK$2906,19,FALSE),0) -> 0 | V30: =IFERROR(VLOOKUP($A30,Filtros!$A$4:$AK$2906,20,FALSE),0) -> 0 | W30: =IFERROR(VLOOKUP($A30,Filtros!$A$4:$AK$2906,21,FALSE),0) -> 0 | X30: =IFERROR(VLOOKUP($A30,Filtros!$A$4:$AK$2906,22,FALSE),0) -> 0 | Y30: =IFERROR(VLOOKUP($A30,Filtros!$A$4:$AK$2906,23,FALSE),0) -> 0 | Z30: =IFERROR(VLOOKUP($A30,Filtros!$A$4:$AK$2906,24,FALSE),0) -> 0 | AA30: =IFERROR(VLOOKUP($A30,Filtros!$A$4:$AK$2906,25,FALSE),0) -> 0 | AB30: =IFERROR(VLOOKUP($A30,Filtros!$A$4:$AK$2906,26,FALSE),0) -> 0 | AC30: =IFERROR(VLOOKUP($A30,Filtros!$A$4:$AK$2906,27,FALSE),0) -> 18932 | AD30: =IFERROR(VLOOKUP($A30,Filtros!$A$4:$AK$2906,28,FALSE),0) -> 1 | AE30: =IFERROR(VLOOKUP($A30,Filtros!$A$4:$AK$2906,29,FALSE),0) -> 777 | AF30: =IFERROR(VLOOKUP($A30,Filtros!$A$4:$AK$2906,30,FALSE),0) -> 0 | AG30: =IFERROR(VLOOKUP($A30,Filtros!$A$4:$AK$2906,31,FALSE),0) -> 0 | AH30: =IFERROR(VLOOKUP($A30,Filtros!$A$4:$AK$2906,32,FALSE),0) -> 0 | AI30: =IFERROR(VLOOKUP($A30,Filtros!$A$4:$AK$2906,33,FALSE),0) -> 0 | AJ30: =IFERROR(VLOOKUP($A30,Filtros!$A$4:$AK$2906,34,FALSE),0) -> 0 | AK30: =IFERROR(VLOOKUP($A30,Filtros!$A$4:$AK$2906,35,FALSE),0) -> 0 | AL30: =IFERROR(VLOOKUP($A30,Filtros!$A$4:$AK$2906,36,FALSE),0) -> 1,144,440 | AM30: =IFERROR(VLOOKUP($A30,Filtros!$A$4:$AK$2906,37,FALSE),0) -> 165,822,420
A31: 01014299 | B31: 0101312 | C31: Consulta Médica de Especialidad en Cirugía General | D31: =IFERROR(VLOOKUP($A31,Filtros!$A$4:$AK$2906,2,FALSE),0) -> 23178 | E31: =IFERROR(VLOOKUP($A31,Filtros!$A$4:$AK$2906,3,FALSE),0) -> 23141 | F31: =IFERROR(VLOOKUP($A31,Filtros!$A$4:$AK$2906,4,FALSE),0) -> 23141 | G31: =IFERROR(VLOOKUP($A31,Filtros!$A$4:$AK$2906,5,FALSE),0) -> 0 | H31: =IFERROR(VLOOKUP($A31,Filtros!$A$4:$AK$2906,6,FALSE),0) -> 37 | I31: =IFERROR(VLOOKUP($A31,Filtros!$A$4:$AK$2906,7,FALSE),0) -> 0 | J31: =IFERROR(VLOOKUP($A31,Filtros!$A$4:$AK$2906,8,FALSE),0) -> 0 | K31: =IFERROR(VLOOKUP($A31,Filtros!$A$4:$AK$2906,9,FALSE),0) -> 0 | L31: =IFERROR(VLOOKUP($A31,Filtros!$A$4:$AK$2906,10,FALSE),0) -> 0 | M31: =IFERROR(VLOOKUP($A31,Filtros!$A$4:$AK$2906,11,FALSE),0) -> 0 | N31: =IFERROR(VLOOKUP($A31,Filtros!$A$4:$AK$2906,12,FALSE),0) -> 0 | O31: =IFERROR(VLOOKUP($A31,Filtros!$A$4:$AK$2906,13,FALSE),0) -> 0 | P31: =IFERROR(VLOOKUP($A31,Filtros!$A$4:$AK$2906,14,FALSE),0) -> 0 | Q31: =IFERROR(VLOOKUP($A31,Filtros!$A$4:$AK$2906,15,FALSE),0) -> 0 | R31: =IFERROR(VLOOKUP($A31,Filtros!$A$4:$AK$2906,16,FALSE),0) -> 0 | S31: =IFERROR(VLOOKUP($A31,Filtros!$A$4:$AK$2906,17,FALSE),0) -> 0 | T31: =IFERROR(VLOOKUP($A31,Filtros!$A$4:$AK$2906,18,FALSE),0) -> 0 | U31: =IFERROR(VLOOKUP($A31,Filtros!$A$4:$AK$2906,19,FALSE),0) -> 0 | V31: =IFERROR(VLOOKUP($A31,Filtros!$A$4:$AK$2906,20,FALSE),0) -> 0 | W31: =IFERROR(VLOOKUP($A31,Filtros!$A$4:$AK$2906,21,FALSE),0) -> 0 | X31: =IFERROR(VLOOKUP($A31,Filtros!$A$4:$AK$2906,22,FALSE),0) -> 0 | Y31: =IFERROR(VLOOKUP($A31,Filtros!$A$4:$AK$2906,23,FALSE),0) -> 0 | Z31: =IFERROR(VLOOKUP($A31,Filtros!$A$4:$AK$2906,24,FALSE),0) -> 0 | AA31: =IFERROR(VLOOKUP($A31,Filtros!$A$4:$AK$2906,25,FALSE),0) -> 0 | AB31: =IFERROR(VLOOKUP($A31,Filtros!$A$4:$AK$2906,26,FALSE),0) -> 3 | AC31: =IFERROR(VLOOKUP($A31,Filtros!$A$4:$AK$2906,27,FALSE),0) -> 23149 | AD31: =IFERROR(VLOOKUP($A31,Filtros!$A$4:$AK$2906,28,FALSE),0) -> 27 | AE31: =IFERROR(VLOOKUP($A31,Filtros!$A$4:$AK$2906,29,FALSE),0) -> 1583 | AF31: =IFERROR(VLOOKUP($A31,Filtros!$A$4:$AK$2906,30,FALSE),0) -> 0 | AG31: =IFERROR(VLOOKUP($A31,Filtros!$A$4:$AK$2906,31,FALSE),0) -> 0 | AH31: =IFERROR(VLOOKUP($A31,Filtros!$A$4:$AK$2906,32,FALSE),0) -> 0 | AI31: =IFERROR(VLOOKUP($A31,Filtros!$A$4:$AK$2906,33,FALSE),0) -> 0 | AJ31: =IFERROR(VLOOKUP($A31,Filtros!$A$4:$AK$2906,34,FALSE),0) -> 0 | AK31: =IFERROR(VLOOKUP($A31,Filtros!$A$4:$AK$2906,35,FALSE),0) -> 0 | AL31: =IFERROR(VLOOKUP($A31,Filtros!$A$4:$AK$2906,36,FALSE),0) -> 1,144,440 | AM31: =IFERROR(VLOOKUP($A31,Filtros!$A$4:$AK$2906,37,FALSE),0) -> 200,632,470
A32: 01014300 | B32: 0101313 | C32: Consulta Médica de Especialidad en Cirugía de Cabeza, Cuello y Maxilofacial | D32: =IFERROR(VLOOKUP($A32,Filtros!$A$4:$AK$2906,2,FALSE),0) -> 1623 | E32: =IFERROR(VLOOKUP($A32,Filtros!$A$4:$AK$2906,3,FALSE),0) -> 1623 | F32: =IFERROR(VLOOKUP($A32,Filtros!$A$4:$AK$2906,4,FALSE),0) -> 1623 | G32: =IFERROR(VLOOKUP($A32,Filtros!$A$4:$AK$2906,5,FALSE),0) -> 0 | H32: =IFERROR(VLOOKUP($A32,Filtros!$A$4:$AK$2906,6,FALSE),0) -> 0 | I32: =IFERROR(VLOOKUP($A32,Filtros!$A$4:$AK$2906,7,FALSE),0) -> 0 | J32: =IFERROR(VLOOKUP($A32,Filtros!$A$4:$AK$2906,8,FALSE),0) -> 0 | K32: =IFERROR(VLOOKUP($A32,Filtros!$A$4:$AK$2906,9,FALSE),0) -> 0 | L32: =IFERROR(VLOOKUP($A32,Filtros!$A$4:$AK$2906,10,FALSE),0) -> 0 | M32: =IFERROR(VLOOKUP($A32,Filtros!$A$4:$AK$2906,11,FALSE),0) -> 0 | N32: =IFERROR(VLOOKUP($A32,Filtros!$A$4:$AK$2906,12,FALSE),0) -> 0 | O32: =IFERROR(VLOOKUP($A32,Filtros!$A$4:$AK$2906,13,FALSE),0) -> 0 | P32: =IFERROR(VLOOKUP($A32,Filtros!$A$4:$AK$2906,14,FALSE),0) -> 0 | Q32: =IFERROR(VLOOKUP($A32,Filtros!$A$4:$AK$2906,15,FALSE),0) -> 0 | R32: =IFERROR(VLOOKUP($A32,Filtros!$A$4:$AK$2906,16,FALSE),0) -> 0 | S32: =IFERROR(VLOOKUP($A32,Filtros!$A$4:$AK$2906,17,FALSE),0) -> 0 | T32: =IFERROR(VLOOKUP($A32,Filtros!$A$4:$AK$2906,18,FALSE),0) -> 0 | U32: =IFERROR(VLOOKUP($A32,Filtros!$A$4:$AK$2906,19,FALSE),0) -> 0 | V32: =IFERROR(VLOOKUP($A32,Filtros!$A$4:$AK$2906,20,FALSE),0) -> 0 | W32: =IFERROR(VLOOKUP($A32,Filtros!$A$4:$AK$2906,21,FALSE),0) -> 0 | X32: =IFERROR(VLOOKUP($A32,Filtros!$A$4:$AK$2906,22,FALSE),0) -> 0 | Y32: =IFERROR(VLOOKUP($A32,Filtros!$A$4:$AK$2906,23,FALSE),0) -> 0 | Z32: =IFERROR(VLOOKUP($A32,Filtros!$A$4:$AK$2906,24,FALSE),0) -> 0 | AA32: =IFERROR(VLOOKUP($A32,Filtros!$A$4:$AK$2906,25,FALSE),0) -> 0 | AB32: =IFERROR(VLOOKUP($A32,Filtros!$A$4:$AK$2906,26,FALSE),0) -> 0 | AC32: =IFERROR(VLOOKUP($A32,Filtros!$A$4:$AK$2906,27,FALSE),0) -> 1623 | AD32: =IFERROR(VLOOKUP($A32,Filtros!$A$4:$AK$2906,28,FALSE),0) -> 0 | AE32: =IFERROR(VLOOKUP($A32,Filtros!$A$4:$AK$2906,29,FALSE),0) -> 0 | AF32: =IFERROR(VLOOKUP($A32,Filtros!$A$4:$AK$2906,30,FALSE),0) -> 0 | AG32: =IFERROR(VLOOKUP($A32,Filtros!$A$4:$AK$2906,31,FALSE),0) -> 0 | AH32: =IFERROR(VLOOKUP($A32,Filtros!$A$4:$AK$2906,32,FALSE),0) -> 0 | AI32: =IFERROR(VLOOKUP($A32,Filtros!$A$4:$AK$2906,33,FALSE),0) -> 0 | AJ32: =IFERROR(VLOOKUP($A32,Filtros!$A$4:$AK$2906,34,FALSE),0) -> 0 | AK32: =IFERROR(VLOOKUP($A32,Filtros!$A$4:$AK$2906,35,FALSE),0) -> 0 | AL32: =IFERROR(VLOOKUP($A32,Filtros!$A$4:$AK$2906,36,FALSE),0) -> 1,144,440 | AM32: =IFERROR(VLOOKUP($A32,Filtros!$A$4:$AK$2906,37,FALSE),0) -> 14,071,410
A33: 01014301 | B33: 0101314 | C33: Consulta Médica de Especialidad en Cirugía Cardiovascular | D33: =IFERROR(VLOOKUP($A33,Filtros!$A$4:$AK$2906,2,FALSE),0) -> 0 | E33: =IFERROR(VLOOKUP($A33,Filtros!$A$4:$AK$2906,3,FALSE),0) -> 0 | F33: =IFERROR(VLOOKUP($A33,Filtros!$A$4:$AK$2906,4,FALSE),0) -> 0 | G33: =IFERROR(VLOOKUP($A33,Filtros!$A$4:$AK$2906,5,FALSE),0) -> 0 | H33: =IFERROR(VLOOKUP($A33,Filtros!$A$4:$AK$2906,6,FALSE),0) -> 0 | I33: =IFERROR(VLOOKUP($A33,Filtros!$A$4:$AK$2906,7,FALSE),0) -> 0 | J33: =IFERROR(VLOOKUP($A33,Filtros!$A$4:$AK$2906,8,FALSE),0) -> 0 | K33: =IFERROR(VLOOKUP($A33,Filtros!$A$4:$AK$2906,9,FALSE),0) -> 0 | L33: =IFERROR(VLOOKUP($A33,Filtros!$A$4:$AK$2906,10,FALSE),0) -> 0 | M33: =IFERROR(VLOOKUP($A33,Filtros!$A$4:$AK$2906,11,FALSE),0) -> 0 | N33: =IFERROR(VLOOKUP($A33,Filtros!$A$4:$AK$2906,12,FALSE),0) -> 0 | O33: =IFERROR(VLOOKUP($A33,Filtros!$A$4:$AK$2906,13,FALSE),0) -> 0 | P33: =IFERROR(VLOOKUP($A33,Filtros!$A$4:$AK$2906,14,FALSE),0) -> 0 | Q33: =IFERROR(VLOOKUP($A33,Filtros!$A$4:$AK$2906,15,FALSE),0) -> 0 | R33: =IFERROR(VLOOKUP($A33,Filtros!$A$4:$AK$2906,16,FALSE),0) -> 0 | S33: =IFERROR(VLOOKUP($A33,Filtros!$A$4:$AK$2906,17,FALSE),0) -> 0 | T33: =IFERROR(VLOOKUP($A33,Filtros!$A$4:$AK$2906,18,FALSE),0) -> 0 | U33: =IFERROR(VLOOKUP($A33,Filtros!$A$4:$AK$2906,19,FALSE),0) -> 0 | V33: =IFERROR(VLOOKUP($A33,Filtros!$A$4:$AK$2906,20,FALSE),0) -> 0 | W33: =IFERROR(VLOOKUP($A33,Filtros!$A$4:$AK$2906,21,FALSE),0) -> 0 | X33: =IFERROR(VLOOKUP($A33,Filtros!$A$4:$AK$2906,22,FALSE),0) -> 0 | Y33: =IFERROR(VLOOKUP($A33,Filtros!$A$4:$AK$2906,23,FALSE),0) -> 0 | Z33: =IFERROR(VLOOKUP($A33,Filtros!$A$4:$AK$2906,24,FALSE),0) -> 0 | AA33: =IFERROR(VLOOKUP($A33,Filtros!$A$4:$AK$2906,25,FALSE),0) -> 0 | AB33: =IFERROR(VLOOKUP($A33,Filtros!$A$4:$AK$2906,26,FALSE),0) -> 0 | AC33: =IFERROR(VLOOKUP($A33,Filtros!$A$4:$AK$2906,27,FALSE),0) -> 0 | AD33: =IFERROR(VLOOKUP($A33,Filtros!$A$4:$AK$2906,28,FALSE),0) -> 0 | AE33: =IFERROR(VLOOKUP($A33,Filtros!$A$4:$AK$2906,29,FALSE),0) -> 0 | AF33: =IFERROR(VLOOKUP($A33,Filtros!$A$4:$AK$2906,30,FALSE),0) -> 0 | AG33: =IFERROR(VLOOKUP($A33,Filtros!$A$4:$AK$2906,31,FALSE),0) -> 0 | AH33: =IFERROR(VLOOKUP($A33,Filtros!$A$4:$AK$2906,32,FALSE),0) -> 0 | AI33: =IFERROR(VLOOKUP($A33,Filtros!$A$4:$AK$2906,33,FALSE),0) -> 0 | AJ33: =IFERROR(VLOOKUP($A33,Filtros!$A$4:$AK$2906,34,FALSE),0) -> 0 | AK33: =IFERROR(VLOOKUP($A33,Filtros!$A$4:$AK$2906,35,FALSE),0) -> 0 | AL33: =IFERROR(VLOOKUP($A33,Filtros!$A$4:$AK$2906,36,FALSE),0) -> 1,144,440 | AM33: =IFERROR(VLOOKUP($A33,Filtros!$A$4:$AK$2906,37,FALSE),0) -> 0
A34: 01014302 | B34: 0101315 | C34: Consulta Médica de Especialidad en Cirugía de Tórax | D34: =IFERROR(VLOOKUP($A34,Filtros!$A$4:$AK$2906,2,FALSE),0) -> 900 | E34: =IFERROR(VLOOKUP($A34,Filtros!$A$4:$AK$2906,3,FALSE),0) -> 900 | F34: =IFERROR(VLOOKUP($A34,Filtros!$A$4:$AK$2906,4,FALSE),0) -> 900 | G34: =IFERROR(VLOOKUP($A34,Filtros!$A$4:$AK$2906,5,FALSE),0) -> 0 | H34: =IFERROR(VLOOKUP($A34,Filtros!$A$4:$AK$2906,6,FALSE),0) -> 0 | I34: =IFERROR(VLOOKUP($A34,Filtros!$A$4:$AK$2906,7,FALSE),0) -> 0 | J34: =IFERROR(VLOOKUP($A34,Filtros!$A$4:$AK$2906,8,FALSE),0) -> 0 | K34: =IFERROR(VLOOKUP($A34,Filtros!$A$4:$AK$2906,9,FALSE),0) -> 0 | L34: =IFERROR(VLOOKUP($A34,Filtros!$A$4:$AK$2906,10,FALSE),0) -> 0 | M34: =IFERROR(VLOOKUP($A34,Filtros!$A$4:$AK$2906,11,FALSE),0) -> 0 | N34: =IFERROR(VLOOKUP($A34,Filtros!$A$4:$AK$2906,12,FALSE),0) -> 0 | O34: =IFERROR(VLOOKUP($A34,Filtros!$A$4:$AK$2906,13,FALSE),0) -> 0 | P34: =IFERROR(VLOOKUP($A34,Filtros!$A$4:$AK$2906,14,FALSE),0) -> 0 | Q34: =IFERROR(VLOOKUP($A34,Filtros!$A$4:$AK$2906,15,FALSE),0) -> 0 | R34: =IFERROR(VLOOKUP($A34,Filtros!$A$4:$AK$2906,16,FALSE),0) -> 0 | S34: =IFERROR(VLOOKUP($A34,Filtros!$A$4:$AK$2906,17,FALSE),0) -> 0 | T34: =IFERROR(VLOOKUP($A34,Filtros!$A$4:$AK$2906,18,FALSE),0) -> 0 | U34: =IFERROR(VLOOKUP($A34,Filtros!$A$4:$AK$2906,19,FALSE),0) -> 0 | V34: =IFERROR(VLOOKUP($A34,Filtros!$A$4:$AK$2906,20,FALSE),0) -> 0 | W34: =IFERROR(VLOOKUP($A34,Filtros!$A$4:$AK$2906,21,FALSE),0) -> 0 | X34: =IFERROR(VLOOKUP($A34,Filtros!$A$4:$AK$2906,22,FALSE),0) -> 0 | Y34: =IFERROR(VLOOKUP($A34,Filtros!$A$4:$AK$2906,23,FALSE),0) -> 0 | Z34: =IFERROR(VLOOKUP($A34,Filtros!$A$4:$AK$2906,24,FALSE),0) -> 0 | AA34: =IFERROR(VLOOKUP($A34,Filtros!$A$4:$AK$2906,25,FALSE),0) -> 0 | AB34: =IFERROR(VLOOKUP($A34,Filtros!$A$4:$AK$2906,26,FALSE),0) -> 0 | AC34: =IFERROR(VLOOKUP($A34,Filtros!$A$4:$AK$2906,27,FALSE),0) -> 900 | AD34: =IFERROR(VLOOKUP($A34,Filtros!$A$4:$AK$2906,28,FALSE),0) -> 0 | AE34: =IFERROR(VLOOKUP($A34,Filtros!$A$4:$AK$2906,29,FALSE),0) -> 0 | AF34: =IFERROR(VLOOKUP($A34,Filtros!$A$4:$AK$2906,30,FALSE),0) -> 0 | AG34: =IFERROR(VLOOKUP($A34,Filtros!$A$4:$AK$2906,31,FALSE),0) -> 0 | AH34: =IFERROR(VLOOKUP($A34,Filtros!$A$4:$AK$2906,32,FALSE),0) -> 0 | AI34: =IFERROR(VLOOKUP($A34,Filtros!$A$4:$AK$2906,33,FALSE),0) -> 0 | AJ34: =IFERROR(VLOOKUP($A34,Filtros!$A$4:$AK$2906,34,FALSE),0) -> 0 | AK34: =IFERROR(VLOOKUP($A34,Filtros!$A$4:$AK$2906,35,FALSE),0) -> 0 | AL34: =IFERROR(VLOOKUP($A34,Filtros!$A$4:$AK$2906,36,FALSE),0) -> 1,144,440 | AM34: =IFERROR(VLOOKUP($A34,Filtros!$A$4:$AK$2906,37,FALSE),0) -> 7,803,000
A35: 01014303 | B35: 0101316 | C35: Consulta Médica de Especialidad en Cirugía Plástica y Reparadora | D35: =IFERROR(VLOOKUP($A35,Filtros!$A$4:$AK$2906,2,FALSE),0) -> 232 | E35: =IFERROR(VLOOKUP($A35,Filtros!$A$4:$AK$2906,3,FALSE),0) -> 232 | F35: =IFERROR(VLOOKUP($A35,Filtros!$A$4:$AK$2906,4,FALSE),0) -> 232 | G35: =IFERROR(VLOOKUP($A35,Filtros!$A$4:$AK$2906,5,FALSE),0) -> 0 | H35: =IFERROR(VLOOKUP($A35,Filtros!$A$4:$AK$2906,6,FALSE),0) -> 0 | I35: =IFERROR(VLOOKUP($A35,Filtros!$A$4:$AK$2906,7,FALSE),0) -> 0 | J35: =IFERROR(VLOOKUP($A35,Filtros!$A$4:$AK$2906,8,FALSE),0) -> 0 | K35: =IFERROR(VLOOKUP($A35,Filtros!$A$4:$AK$2906,9,FALSE),0) -> 0 | L35: =IFERROR(VLOOKUP($A35,Filtros!$A$4:$AK$2906,10,FALSE),0) -> 0 | M35: =IFERROR(VLOOKUP($A35,Filtros!$A$4:$AK$2906,11,FALSE),0) -> 0 | N35: =IFERROR(VLOOKUP($A35,Filtros!$A$4:$AK$2906,12,FALSE),0) -> 0 | O35: =IFERROR(VLOOKUP($A35,Filtros!$A$4:$AK$2906,13,FALSE),0) -> 0 | P35: =IFERROR(VLOOKUP($A35,Filtros!$A$4:$AK$2906,14,FALSE),0) -> 0 | Q35: =IFERROR(VLOOKUP($A35,Filtros!$A$4:$AK$2906,15,FALSE),0) -> 0 | R35: =IFERROR(VLOOKUP($A35,Filtros!$A$4:$AK$2906,16,FALSE),0) -> 0 | S35: =IFERROR(VLOOKUP($A35,Filtros!$A$4:$AK$2906,17,FALSE),0) -> 0 | T35: =IFERROR(VLOOKUP($A35,Filtros!$A$4:$AK$2906,18,FALSE),0) -> 0 | U35: =IFERROR(VLOOKUP($A35,Filtros!$A$4:$AK$2906,19,FALSE),0) -> 0 | V35: =IFERROR(VLOOKUP($A35,Filtros!$A$4:$AK$2906,20,FALSE),0) -> 0 | W35: =IFERROR(VLOOKUP($A35,Filtros!$A$4:$AK$2906,21,FALSE),0) -> 0 | X35: =IFERROR(VLOOKUP($A35,Filtros!$A$4:$AK$2906,22,FALSE),0) -> 0 | Y35: =IFERROR(VLOOKUP($A35,Filtros!$A$4:$AK$2906,23,FALSE),0) -> 0 | Z35: =IFERROR(VLOOKUP($A35,Filtros!$A$4:$AK$2906,24,FALSE),0) -> 0 | AA35: =IFERROR(VLOOKUP($A35,Filtros!$A$4:$AK$2906,25,FALSE),0) -> 0 | AB35: =IFERROR(VLOOKUP($A35,Filtros!$A$4:$AK$2906,26,FALSE),0) -> 0 | AC35: =IFERROR(VLOOKUP($A35,Filtros!$A$4:$AK$2906,27,FALSE),0) -> 232 | AD35: =IFERROR(VLOOKUP($A35,Filtros!$A$4:$AK$2906,28,FALSE),0) -> 0 | AE35: =IFERROR(VLOOKUP($A35,Filtros!$A$4:$AK$2906,29,FALSE),0) -> 0 | AF35: =IFERROR(VLOOKUP($A35,Filtros!$A$4:$AK$2906,30,FALSE),0) -> 0 | AG35: =IFERROR(VLOOKUP($A35,Filtros!$A$4:$AK$2906,31,FALSE),0) -> 0 | AH35: =IFERROR(VLOOKUP($A35,Filtros!$A$4:$AK$2906,32,FALSE),0) -> 0 | AI35: =IFERROR(VLOOKUP($A35,Filtros!$A$4:$AK$2906,33,FALSE),0) -> 0 | AJ35: =IFERROR(VLOOKUP($A35,Filtros!$A$4:$AK$2906,34,FALSE),0) -> 0 | AK35: =IFERROR(VLOOKUP($A35,Filtros!$A$4:$AK$2906,35,FALSE),0) -> 0 | AL35: =IFERROR(VLOOKUP($A35,Filtros!$A$4:$AK$2906,36,FALSE),0) -> 1,144,440 | AM35: =IFERROR(VLOOKUP($A35,Filtros!$A$4:$AK$2906,37,FALSE),0) -> 2,011,440
A36: 01014304 | B36: 0101317 | C36: Consulta Médica de Especialidad en Cirugía Pediátrica | D36: =IFERROR(VLOOKUP($A36,Filtros!$A$4:$AK$2906,2,FALSE),0) -> 8004 | E36: =IFERROR(VLOOKUP($A36,Filtros!$A$4:$AK$2906,3,FALSE),0) -> 7970 | F36: =IFERROR(VLOOKUP($A36,Filtros!$A$4:$AK$2906,4,FALSE),0) -> 7970 | G36: =IFERROR(VLOOKUP($A36,Filtros!$A$4:$AK$2906,5,FALSE),0) -> 0 | H36: =IFERROR(VLOOKUP($A36,Filtros!$A$4:$AK$2906,6,FALSE),0) -> 34 | I36: =IFERROR(VLOOKUP($A36,Filtros!$A$4:$AK$2906,7,FALSE),0) -> 0 | J36: =IFERROR(VLOOKUP($A36,Filtros!$A$4:$AK$2906,8,FALSE),0) -> 0 | K36: =IFERROR(VLOOKUP($A36,Filtros!$A$4:$AK$2906,9,FALSE),0) -> 0 | L36: =IFERROR(VLOOKUP($A36,Filtros!$A$4:$AK$2906,10,FALSE),0) -> 0 | M36: =IFERROR(VLOOKUP($A36,Filtros!$A$4:$AK$2906,11,FALSE),0) -> 0 | N36: =IFERROR(VLOOKUP($A36,Filtros!$A$4:$AK$2906,12,FALSE),0) -> 0 | O36: =IFERROR(VLOOKUP($A36,Filtros!$A$4:$AK$2906,13,FALSE),0) -> 0 | P36: =IFERROR(VLOOKUP($A36,Filtros!$A$4:$AK$2906,14,FALSE),0) -> 0 | Q36: =IFERROR(VLOOKUP($A36,Filtros!$A$4:$AK$2906,15,FALSE),0) -> 0 | R36: =IFERROR(VLOOKUP($A36,Filtros!$A$4:$AK$2906,16,FALSE),0) -> 0 | S36: =IFERROR(VLOOKUP($A36,Filtros!$A$4:$AK$2906,17,FALSE),0) -> 0 | T36: =IFERROR(VLOOKUP($A36,Filtros!$A$4:$AK$2906,18,FALSE),0) -> 0 | U36: =IFERROR(VLOOKUP($A36,Filtros!$A$4:$AK$2906,19,FALSE),0) -> 0 | V36: =IFERROR(VLOOKUP($A36,Filtros!$A$4:$AK$2906,20,FALSE),0) -> 0 | W36: =IFERROR(VLOOKUP($A36,Filtros!$A$4:$AK$2906,21,FALSE),0) -> 0 | X36: =IFERROR(VLOOKUP($A36,Filtros!$A$4:$AK$2906,22,FALSE),0) -> 0 | Y36: =IFERROR(VLOOKUP($A36,Filtros!$A$4:$AK$2906,23,FALSE),0) -> 0 | Z36: =IFERROR(VLOOKUP($A36,Filtros!$A$4:$AK$2906,24,FALSE),0) -> 0 | AA36: =IFERROR(VLOOKUP($A36,Filtros!$A$4:$AK$2906,25,FALSE),0) -> 0 | AB36: =IFERROR(VLOOKUP($A36,Filtros!$A$4:$AK$2906,26,FALSE),0) -> 11 | AC36: =IFERROR(VLOOKUP($A36,Filtros!$A$4:$AK$2906,27,FALSE),0) -> 7989 | AD36: =IFERROR(VLOOKUP($A36,Filtros!$A$4:$AK$2906,28,FALSE),0) -> 4 | AE36: =IFERROR(VLOOKUP($A36,Filtros!$A$4:$AK$2906,29,FALSE),0) -> 0 | AF36: =IFERROR(VLOOKUP($A36,Filtros!$A$4:$AK$2906,30,FALSE),0) -> 0 | AG36: =IFERROR(VLOOKUP($A36,Filtros!$A$4:$AK$2906,31,FALSE),0) -> 0 | AH36: =IFERROR(VLOOKUP($A36,Filtros!$A$4:$AK$2906,32,FALSE),0) -> 0 | AI36: =IFERROR(VLOOKUP($A36,Filtros!$A$4:$AK$2906,33,FALSE),0) -> 0 | AJ36: =IFERROR(VLOOKUP($A36,Filtros!$A$4:$AK$2906,34,FALSE),0) -> 0 | AK36: =IFERROR(VLOOKUP($A36,Filtros!$A$4:$AK$2906,35,FALSE),0) -> 0 | AL36: =IFERROR(VLOOKUP($A36,Filtros!$A$4:$AK$2906,36,FALSE),0) -> 1,144,440 | AM36: =IFERROR(VLOOKUP($A36,Filtros!$A$4:$AK$2906,37,FALSE),0) -> 69,099,900
A37: 01014305 | B37: 0101318 | C37: Consulta Médica de Especialidad en Cirugía Vascular Periférica | D37: =IFERROR(VLOOKUP($A37,Filtros!$A$4:$AK$2906,2,FALSE),0) -> 2556 | E37: =IFERROR(VLOOKUP($A37,Filtros!$A$4:$AK$2906,3,FALSE),0) -> 2549 | F37: =IFERROR(VLOOKUP($A37,Filtros!$A$4:$AK$2906,4,FALSE),0) -> 2549 | G37: =IFERROR(VLOOKUP($A37,Filtros!$A$4:$AK$2906,5,FALSE),0) -> 0 | H37: =IFERROR(VLOOKUP($A37,Filtros!$A$4:$AK$2906,6,FALSE),0) -> 7 | I37: =IFERROR(VLOOKUP($A37,Filtros!$A$4:$AK$2906,7,FALSE),0) -> 0 | J37: =IFERROR(VLOOKUP($A37,Filtros!$A$4:$AK$2906,8,FALSE),0) -> 0 | K37: =IFERROR(VLOOKUP($A37,Filtros!$A$4:$AK$2906,9,FALSE),0) -> 0 | L37: =IFERROR(VLOOKUP($A37,Filtros!$A$4:$AK$2906,10,FALSE),0) -> 0 | M37: =IFERROR(VLOOKUP($A37,Filtros!$A$4:$AK$2906,11,FALSE),0) -> 0 | N37: =IFERROR(VLOOKUP($A37,Filtros!$A$4:$AK$2906,12,FALSE),0) -> 0 | O37: =IFERROR(VLOOKUP($A37,Filtros!$A$4:$AK$2906,13,FALSE),0) -> 0 | P37: =IFERROR(VLOOKUP($A37,Filtros!$A$4:$AK$2906,14,FALSE),0) -> 0 | Q37: =IFERROR(VLOOKUP($A37,Filtros!$A$4:$AK$2906,15,FALSE),0) -> 0 | R37: =IFERROR(VLOOKUP($A37,Filtros!$A$4:$AK$2906,16,FALSE),0) -> 0 | S37: =IFERROR(VLOOKUP($A37,Filtros!$A$4:$AK$2906,17,FALSE),0) -> 0 | T37: =IFERROR(VLOOKUP($A37,Filtros!$A$4:$AK$2906,18,FALSE),0) -> 0 | U37: =IFERROR(VLOOKUP($A37,Filtros!$A$4:$AK$2906,19,FALSE),0) -> 0 | V37: =IFERROR(VLOOKUP($A37,Filtros!$A$4:$AK$2906,20,FALSE),0) -> 0 | W37: =IFERROR(VLOOKUP($A37,Filtros!$A$4:$AK$2906,21,FALSE),0) -> 0 | X37: =IFERROR(VLOOKUP($A37,Filtros!$A$4:$AK$2906,22,FALSE),0) -> 0 | Y37: =IFERROR(VLOOKUP($A37,Filtros!$A$4:$AK$2906,23,FALSE),0) -> 0 | Z37: =IFERROR(VLOOKUP($A37,Filtros!$A$4:$AK$2906,24,FALSE),0) -> 0 | AA37: =IFERROR(VLOOKUP($A37,Filtros!$A$4:$AK$2906,25,FALSE),0) -> 0 | AB37: =IFERROR(VLOOKUP($A37,Filtros!$A$4:$AK$2906,26,FALSE),0) -> 0 | AC37: =IFERROR(VLOOKUP($A37,Filtros!$A$4:$AK$2906,27,FALSE),0) -> 2556 | AD37: =IFERROR(VLOOKUP($A37,Filtros!$A$4:$AK$2906,28,FALSE),0) -> 0 | AE37: =IFERROR(VLOOKUP($A37,Filtros!$A$4:$AK$2906,29,FALSE),0) -> 36 | AF37: =IFERROR(VLOOKUP($A37,Filtros!$A$4:$AK$2906,30,FALSE),0) -> 0 | AG37: =IFERROR(VLOOKUP($A37,Filtros!$A$4:$AK$2906,31,FALSE),0) -> 0 | AH37: =IFERROR(VLOOKUP($A37,Filtros!$A$4:$AK$2906,32,FALSE),0) -> 0 | AI37: =IFERROR(VLOOKUP($A37,Filtros!$A$4:$AK$2906,33,FALSE),0) -> 0 | AJ37: =IFERROR(VLOOKUP($A37,Filtros!$A$4:$AK$2906,34,FALSE),0) -> 0 | AK37: =IFERROR(VLOOKUP($A37,Filtros!$A$4:$AK$2906,35,FALSE),0) -> 0 | AL37: =IFERROR(VLOOKUP($A37,Filtros!$A$4:$AK$2906,36,FALSE),0) -> 1,144,440 | AM37: =IFERROR(VLOOKUP($A37,Filtros!$A$4:$AK$2906,37,FALSE),0) -> 22,099,830
A38: 01014306 | B38: 0101319 | C38: Consulta Médica de Especialidad en Coloproctología | D38: =IFERROR(VLOOKUP($A38,Filtros!$A$4:$AK$2906,2,FALSE),0) -> 2279 | E38: =IFERROR(VLOOKUP($A38,Filtros!$A$4:$AK$2906,3,FALSE),0) -> 2277 | F38: =IFERROR(VLOOKUP($A38,Filtros!$A$4:$AK$2906,4,FALSE),0) -> 2277 | G38: =IFERROR(VLOOKUP($A38,Filtros!$A$4:$AK$2906,5,FALSE),0) -> 0 | H38: =IFERROR(VLOOKUP($A38,Filtros!$A$4:$AK$2906,6,FALSE),0) -> 2 | I38: =IFERROR(VLOOKUP($A38,Filtros!$A$4:$AK$2906,7,FALSE),0) -> 0 | J38: =IFERROR(VLOOKUP($A38,Filtros!$A$4:$AK$2906,8,FALSE),0) -> 0 | K38: =IFERROR(VLOOKUP($A38,Filtros!$A$4:$AK$2906,9,FALSE),0) -> 0 | L38: =IFERROR(VLOOKUP($A38,Filtros!$A$4:$AK$2906,10,FALSE),0) -> 0 | M38: =IFERROR(VLOOKUP($A38,Filtros!$A$4:$AK$2906,11,FALSE),0) -> 0 | N38: =IFERROR(VLOOKUP($A38,Filtros!$A$4:$AK$2906,12,FALSE),0) -> 0 | O38: =IFERROR(VLOOKUP($A38,Filtros!$A$4:$AK$2906,13,FALSE),0) -> 0 | P38: =IFERROR(VLOOKUP($A38,Filtros!$A$4:$AK$2906,14,FALSE),0) -> 0 | Q38: =IFERROR(VLOOKUP($A38,Filtros!$A$4:$AK$2906,15,FALSE),0) -> 0 | R38: =IFERROR(VLOOKUP($A38,Filtros!$A$4:$AK$2906,16,FALSE),0) -> 0 | S38: =IFERROR(VLOOKUP($A38,Filtros!$A$4:$AK$2906,17,FALSE),0) -> 0 | T38: =IFERROR(VLOOKUP($A38,Filtros!$A$4:$AK$2906,18,FALSE),0) -> 0 | U38: =IFERROR(VLOOKUP($A38,Filtros!$A$4:$AK$2906,19,FALSE),0) -> 0 | V38: =IFERROR(VLOOKUP($A38,Filtros!$A$4:$AK$2906,20,FALSE),0) -> 0 | W38: =IFERROR(VLOOKUP($A38,Filtros!$A$4:$AK$2906,21,FALSE),0) -> 0 | X38: =IFERROR(VLOOKUP($A38,Filtros!$A$4:$AK$2906,22,FALSE),0) -> 0 | Y38: =IFERROR(VLOOKUP($A38,Filtros!$A$4:$AK$2906,23,FALSE),0) -> 0 | Z38: =IFERROR(VLOOKUP($A38,Filtros!$A$4:$AK$2906,24,FALSE),0) -> 0 | AA38: =IFERROR(VLOOKUP($A38,Filtros!$A$4:$AK$2906,25,FALSE),0) -> 0 | AB38: =IFERROR(VLOOKUP($A38,Filtros!$A$4:$AK$2906,26,FALSE),0) -> 0 | AC38: =IFERROR(VLOOKUP($A38,Filtros!$A$4:$AK$2906,27,FALSE),0) -> 2279 | AD38: =IFERROR(VLOOKUP($A38,Filtros!$A$4:$AK$2906,28,FALSE),0) -> 0 | AE38: =IFERROR(VLOOKUP($A38,Filtros!$A$4:$AK$2906,29,FALSE),0) -> 0 | AF38: =IFERROR(VLOOKUP($A38,Filtros!$A$4:$AK$2906,30,FALSE),0) -> 0 | AG38: =IFERROR(VLOOKUP($A38,Filtros!$A$4:$AK$2906,31,FALSE),0) -> 0 | AH38: =IFERROR(VLOOKUP($A38,Filtros!$A$4:$AK$2906,32,FALSE),0) -> 0 | AI38: =IFERROR(VLOOKUP($A38,Filtros!$A$4:$AK$2906,33,FALSE),0) -> 0 | AJ38: =IFERROR(VLOOKUP($A38,Filtros!$A$4:$AK$2906,34,FALSE),0) -> 0 | AK38: =IFERROR(VLOOKUP($A38,Filtros!$A$4:$AK$2906,35,FALSE),0) -> 0 | AL38: =IFERROR(VLOOKUP($A38,Filtros!$A$4:$AK$2906,36,FALSE),0) -> 1,144,440 | AM38: =IFERROR(VLOOKUP($A38,Filtros!$A$4:$AK$2906,37,FALSE),0) -> 19,741,590
A39: 01014307 | B39: 0101320 | C39: Consulta Médica de Especialidad en Diabetología | D39: =IFERROR(VLOOKUP($A39,Filtros!$A$4:$AK$2906,2,FALSE),0) -> 674 | E39: =IFERROR(VLOOKUP($A39,Filtros!$A$4:$AK$2906,3,FALSE),0) -> 672 | F39: =IFERROR(VLOOKUP($A39,Filtros!$A$4:$AK$2906,4,FALSE),0) -> 672 | G39: =IFERROR(VLOOKUP($A39,Filtros!$A$4:$AK$2906,5,FALSE),0) -> 0 | H39: =IFERROR(VLOOKUP($A39,Filtros!$A$4:$AK$2906,6,FALSE),0) -> 2 | I39: =IFERROR(VLOOKUP($A39,Filtros!$A$4:$AK$2906,7,FALSE),0) -> 0 | J39: =IFERROR(VLOOKUP($A39,Filtros!$A$4:$AK$2906,8,FALSE),0) -> 0 | K39: =IFERROR(VLOOKUP($A39,Filtros!$A$4:$AK$2906,9,FALSE),0) -> 0 | L39: =IFERROR(VLOOKUP($A39,Filtros!$A$4:$AK$2906,10,FALSE),0) -> 0 | M39: =IFERROR(VLOOKUP($A39,Filtros!$A$4:$AK$2906,11,FALSE),0) -> 0 | N39: =IFERROR(VLOOKUP($A39,Filtros!$A$4:$AK$2906,12,FALSE),0) -> 0 | O39: =IFERROR(VLOOKUP($A39,Filtros!$A$4:$AK$2906,13,FALSE),0) -> 0 | P39: =IFERROR(VLOOKUP($A39,Filtros!$A$4:$AK$2906,14,FALSE),0) -> 0 | Q39: =IFERROR(VLOOKUP($A39,Filtros!$A$4:$AK$2906,15,FALSE),0) -> 0 | R39: =IFERROR(VLOOKUP($A39,Filtros!$A$4:$AK$2906,16,FALSE),0) -> 0 | S39: =IFERROR(VLOOKUP($A39,Filtros!$A$4:$AK$2906,17,FALSE),0) -> 0 | T39: =IFERROR(VLOOKUP($A39,Filtros!$A$4:$AK$2906,18,FALSE),0) -> 0 | U39: =IFERROR(VLOOKUP($A39,Filtros!$A$4:$AK$2906,19,FALSE),0) -> 0 | V39: =IFERROR(VLOOKUP($A39,Filtros!$A$4:$AK$2906,20,FALSE),0) -> 0 | W39: =IFERROR(VLOOKUP($A39,Filtros!$A$4:$AK$2906,21,FALSE),0) -> 0 | X39: =IFERROR(VLOOKUP($A39,Filtros!$A$4:$AK$2906,22,FALSE),0) -> 0 | Y39: =IFERROR(VLOOKUP($A39,Filtros!$A$4:$AK$2906,23,FALSE),0) -> 0 | Z39: =IFERROR(VLOOKUP($A39,Filtros!$A$4:$AK$2906,24,FALSE),0) -> 0 | AA39: =IFERROR(VLOOKUP($A39,Filtros!$A$4:$AK$2906,25,FALSE),0) -> 0 | AB39: =IFERROR(VLOOKUP($A39,Filtros!$A$4:$AK$2906,26,FALSE),0) -> 0 | AC39: =IFERROR(VLOOKUP($A39,Filtros!$A$4:$AK$2906,27,FALSE),0) -> 674 | AD39: =IFERROR(VLOOKUP($A39,Filtros!$A$4:$AK$2906,28,FALSE),0) -> 0 | AE39: =IFERROR(VLOOKUP($A39,Filtros!$A$4:$AK$2906,29,FALSE),0) -> 0 | AF39: =IFERROR(VLOOKUP($A39,Filtros!$A$4:$AK$2906,30,FALSE),0) -> 0 | AG39: =IFERROR(VLOOKUP($A39,Filtros!$A$4:$AK$2906,31,FALSE),0) -> 0 | AH39: =IFERROR(VLOOKUP($A39,Filtros!$A$4:$AK$2906,32,FALSE),0) -> 0 | AI39: =IFERROR(VLOOKUP($A39,Filtros!$A$4:$AK$2906,33,FALSE),0) -> 0 | AJ39: =IFERROR(VLOOKUP($A39,Filtros!$A$4:$AK$2906,34,FALSE),0) -> 0 | AK39: =IFERROR(VLOOKUP($A39,Filtros!$A$4:$AK$2906,35,FALSE),0) -> 0 | AL39: =IFERROR(VLOOKUP($A39,Filtros!$A$4:$AK$2906,36,FALSE),0) -> 1,144,440 | AM39: =IFERROR(VLOOKUP($A39,Filtros!$A$4:$AK$2906,37,FALSE),0) -> 5,826,240
A40: 01014308 | B40: 0101321 | C40: Consulta Médica de Especialidad en Enfermedades Respiratorias Adulto | D40: =IFERROR(VLOOKUP($A40,Filtros!$A$4:$AK$2906,2,FALSE),0) -> 5079 | E40: =IFERROR(VLOOKUP($A40,Filtros!$A$4:$AK$2906,3,FALSE),0) -> 5075 | F40: =IFERROR(VLOOKUP($A40,Filtros!$A$4:$AK$2906,4,FALSE),0) -> 5075 | G40: =IFERROR(VLOOKUP($A40,Filtros!$A$4:$AK$2906,5,FALSE),0) -> 0 | H40: =IFERROR(VLOOKUP($A40,Filtros!$A$4:$AK$2906,6,FALSE),0) -> 4 | I40: =IFERROR(VLOOKUP($A40,Filtros!$A$4:$AK$2906,7,FALSE),0) -> 0 | J40: =IFERROR(VLOOKUP($A40,Filtros!$A$4:$AK$2906,8,FALSE),0) -> 0 | K40: =IFERROR(VLOOKUP($A40,Filtros!$A$4:$AK$2906,9,FALSE),0) -> 0 | L40: =IFERROR(VLOOKUP($A40,Filtros!$A$4:$AK$2906,10,FALSE),0) -> 0 | M40: =IFERROR(VLOOKUP($A40,Filtros!$A$4:$AK$2906,11,FALSE),0) -> 0 | N40: =IFERROR(VLOOKUP($A40,Filtros!$A$4:$AK$2906,12,FALSE),0) -> 0 | O40: =IFERROR(VLOOKUP($A40,Filtros!$A$4:$AK$2906,13,FALSE),0) -> 0 | P40: =IFERROR(VLOOKUP($A40,Filtros!$A$4:$AK$2906,14,FALSE),0) -> 0 | Q40: =IFERROR(VLOOKUP($A40,Filtros!$A$4:$AK$2906,15,FALSE),0) -> 0 | R40: =IFERROR(VLOOKUP($A40,Filtros!$A$4:$AK$2906,16,FALSE),0) -> 0 | S40: =IFERROR(VLOOKUP($A40,Filtros!$A$4:$AK$2906,17,FALSE),0) -> 0 | T40: =IFERROR(VLOOKUP($A40,Filtros!$A$4:$AK$2906,18,FALSE),0) -> 0 | U40: =IFERROR(VLOOKUP($A40,Filtros!$A$4:$AK$2906,19,FALSE),0) -> 0 | V40: =IFERROR(VLOOKUP($A40,Filtros!$A$4:$AK$2906,20,FALSE),0) -> 0 | W40: =IFERROR(VLOOKUP($A40,Filtros!$A$4:$AK$2906,21,FALSE),0) -> 0 | X40: =IFERROR(VLOOKUP($A40,Filtros!$A$4:$AK$2906,22,FALSE),0) -> 0 | Y40: =IFERROR(VLOOKUP($A40,Filtros!$A$4:$AK$2906,23,FALSE),0) -> 0 | Z40: =IFERROR(VLOOKUP($A40,Filtros!$A$4:$AK$2906,24,FALSE),0) -> 0 | AA40: =IFERROR(VLOOKUP($A40,Filtros!$A$4:$AK$2906,25,FALSE),0) -> 0 | AB40: =IFERROR(VLOOKUP($A40,Filtros!$A$4:$AK$2906,26,FALSE),0) -> 0 | AC40: =IFERROR(VLOOKUP($A40,Filtros!$A$4:$AK$2906,27,FALSE),0) -> 5079 | AD40: =IFERROR(VLOOKUP($A40,Filtros!$A$4:$AK$2906,28,FALSE),0) -> 0 | AE40: =IFERROR(VLOOKUP($A40,Filtros!$A$4:$AK$2906,29,FALSE),0) -> 0 | AF40: =IFERROR(VLOOKUP($A40,Filtros!$A$4:$AK$2906,30,FALSE),0) -> 0 | AG40: =IFERROR(VLOOKUP($A40,Filtros!$A$4:$AK$2906,31,FALSE),0) -> 0 | AH40: =IFERROR(VLOOKUP($A40,Filtros!$A$4:$AK$2906,32,FALSE),0) -> 0 | AI40: =IFERROR(VLOOKUP($A40,Filtros!$A$4:$AK$2906,33,FALSE),0) -> 0 | AJ40: =IFERROR(VLOOKUP($A40,Filtros!$A$4:$AK$2906,34,FALSE),0) -> 0 | AK40: =IFERROR(VLOOKUP($A40,Filtros!$A$4:$AK$2906,35,FALSE),0) -> 0 | AL40: =IFERROR(VLOOKUP($A40,Filtros!$A$4:$AK$2906,36,FALSE),0) -> 1,144,440 | AM40: =IFERROR(VLOOKUP($A40,Filtros!$A$4:$AK$2906,37,FALSE),0) -> 44,000,250
A41: 01014309 | B41: 0101322 | C41: Consulta Médica de Especialidad en Enfermedades Respiratorias Pediátricas | D41: =IFERROR(VLOOKUP($A41,Filtros!$A$4:$AK$2906,2,FALSE),0) -> 3700 | E41: =IFERROR(VLOOKUP($A41,Filtros!$A$4:$AK$2906,3,FALSE),0) -> 3697 | F41: =IFERROR(VLOOKUP($A41,Filtros!$A$4:$AK$2906,4,FALSE),0) -> 3697 | G41: =IFERROR(VLOOKUP($A41,Filtros!$A$4:$AK$2906,5,FALSE),0) -> 0 | H41: =IFERROR(VLOOKUP($A41,Filtros!$A$4:$AK$2906,6,FALSE),0) -> 3 | I41: =IFERROR(VLOOKUP($A41,Filtros!$A$4:$AK$2906,7,FALSE),0) -> 0 | J41: =IFERROR(VLOOKUP($A41,Filtros!$A$4:$AK$2906,8,FALSE),0) -> 0 | K41: =IFERROR(VLOOKUP($A41,Filtros!$A$4:$AK$2906,9,FALSE),0) -> 0 | L41: =IFERROR(VLOOKUP($A41,Filtros!$A$4:$AK$2906,10,FALSE),0) -> 0 | M41: =IFERROR(VLOOKUP($A41,Filtros!$A$4:$AK$2906,11,FALSE),0) -> 0 | N41: =IFERROR(VLOOKUP($A41,Filtros!$A$4:$AK$2906,12,FALSE),0) -> 0 | O41: =IFERROR(VLOOKUP($A41,Filtros!$A$4:$AK$2906,13,FALSE),0) -> 0 | P41: =IFERROR(VLOOKUP($A41,Filtros!$A$4:$AK$2906,14,FALSE),0) -> 0 | Q41: =IFERROR(VLOOKUP($A41,Filtros!$A$4:$AK$2906,15,FALSE),0) -> 0 | R41: =IFERROR(VLOOKUP($A41,Filtros!$A$4:$AK$2906,16,FALSE),0) -> 0 | S41: =IFERROR(VLOOKUP($A41,Filtros!$A$4:$AK$2906,17,FALSE),0) -> 0 | T41: =IFERROR(VLOOKUP($A41,Filtros!$A$4:$AK$2906,18,FALSE),0) -> 0 | U41: =IFERROR(VLOOKUP($A41,Filtros!$A$4:$AK$2906,19,FALSE),0) -> 0 | V41: =IFERROR(VLOOKUP($A41,Filtros!$A$4:$AK$2906,20,FALSE),0) -> 0 | W41: =IFERROR(VLOOKUP($A41,Filtros!$A$4:$AK$2906,21,FALSE),0) -> 0 | X41: =IFERROR(VLOOKUP($A41,Filtros!$A$4:$AK$2906,22,FALSE),0) -> 0 | Y41: =IFERROR(VLOOKUP($A41,Filtros!$A$4:$AK$2906,23,FALSE),0) -> 0 | Z41: =IFERROR(VLOOKUP($A41,Filtros!$A$4:$AK$2906,24,FALSE),0) -> 0 | AA41: =IFERROR(VLOOKUP($A41,Filtros!$A$4:$AK$2906,25,FALSE),0) -> 0 | AB41: =IFERROR(VLOOKUP($A41,Filtros!$A$4:$AK$2906,26,FALSE),0) -> 0 | AC41: =IFERROR(VLOOKUP($A41,Filtros!$A$4:$AK$2906,27,FALSE),0) -> 3700 | AD41: =IFERROR(VLOOKUP($A41,Filtros!$A$4:$AK$2906,28,FALSE),0) -> 0 | AE41: =IFERROR(VLOOKUP($A41,Filtros!$A$4:$AK$2906,29,FALSE),0) -> 0 | AF41: =IFERROR(VLOOKUP($A41,Filtros!$A$4:$AK$2906,30,FALSE),0) -> 0 | AG41: =IFERROR(VLOOKUP($A41,Filtros!$A$4:$AK$2906,31,FALSE),0) -> 0 | AH41: =IFERROR(VLOOKUP($A41,Filtros!$A$4:$AK$2906,32,FALSE),0) -> 0 | AI41: =IFERROR(VLOOKUP($A41,Filtros!$A$4:$AK$2906,33,FALSE),0) -> 0 | AJ41: =IFERROR(VLOOKUP($A41,Filtros!$A$4:$AK$2906,34,FALSE),0) -> 0 | AK41: =IFERROR(VLOOKUP($A41,Filtros!$A$4:$AK$2906,35,FALSE),0) -> 0 | AL41: =IFERROR(VLOOKUP($A41,Filtros!$A$4:$AK$2906,36,FALSE),0) -> 1,144,440 | AM41: =IFERROR(VLOOKUP($A41,Filtros!$A$4:$AK$2906,37,FALSE),0) -> 32,052,990
A42: 01014310 | B42: 0101323 | C42: Consulta Médica de Especialidad en Gastroenterología Adulto | D42: =IFERROR(VLOOKUP($A42,Filtros!$A$4:$AK$2906,2,FALSE),0) -> 5274 | E42: =IFERROR(VLOOKUP($A42,Filtros!$A$4:$AK$2906,3,FALSE),0) -> 5257 | F42: =IFERROR(VLOOKUP($A42,Filtros!$A$4:$AK$2906,4,FALSE),0) -> 5257 | G42: =IFERROR(VLOOKUP($A42,Filtros!$A$4:$AK$2906,5,FALSE),0) -> 0 | H42: =IFERROR(VLOOKUP($A42,Filtros!$A$4:$AK$2906,6,FALSE),0) -> 17 | I42: =IFERROR(VLOOKUP($A42,Filtros!$A$4:$AK$2906,7,FALSE),0) -> 0 | J42: =IFERROR(VLOOKUP($A42,Filtros!$A$4:$AK$2906,8,FALSE),0) -> 0 | K42: =IFERROR(VLOOKUP($A42,Filtros!$A$4:$AK$2906,9,FALSE),0) -> 0 | L42: =IFERROR(VLOOKUP($A42,Filtros!$A$4:$AK$2906,10,FALSE),0) -> 0 | M42: =IFERROR(VLOOKUP($A42,Filtros!$A$4:$AK$2906,11,FALSE),0) -> 0 | N42: =IFERROR(VLOOKUP($A42,Filtros!$A$4:$AK$2906,12,FALSE),0) -> 0 | O42: =IFERROR(VLOOKUP($A42,Filtros!$A$4:$AK$2906,13,FALSE),0) -> 0 | P42: =IFERROR(VLOOKUP($A42,Filtros!$A$4:$AK$2906,14,FALSE),0) -> 0 | Q42: =IFERROR(VLOOKUP($A42,Filtros!$A$4:$AK$2906,15,FALSE),0) -> 0 | R42: =IFERROR(VLOOKUP($A42,Filtros!$A$4:$AK$2906,16,FALSE),0) -> 0 | S42: =IFERROR(VLOOKUP($A42,Filtros!$A$4:$AK$2906,17,FALSE),0) -> 0 | T42: =IFERROR(VLOOKUP($A42,Filtros!$A$4:$AK$2906,18,FALSE),0) -> 0 | U42: =IFERROR(VLOOKUP($A42,Filtros!$A$4:$AK$2906,19,FALSE),0) -> 0 | V42: =IFERROR(VLOOKUP($A42,Filtros!$A$4:$AK$2906,20,FALSE),0) -> 0 | W42: =IFERROR(VLOOKUP($A42,Filtros!$A$4:$AK$2906,21,FALSE),0) -> 0 | X42: =IFERROR(VLOOKUP($A42,Filtros!$A$4:$AK$2906,22,FALSE),0) -> 0 | Y42: =IFERROR(VLOOKUP($A42,Filtros!$A$4:$AK$2906,23,FALSE),0) -> 0 | Z42: =IFERROR(VLOOKUP($A42,Filtros!$A$4:$AK$2906,24,FALSE),0) -> 0 | AA42: =IFERROR(VLOOKUP($A42,Filtros!$A$4:$AK$2906,25,FALSE),0) -> 0 | AB42: =IFERROR(VLOOKUP($A42,Filtros!$A$4:$AK$2906,26,FALSE),0) -> 0 | AC42: =IFERROR(VLOOKUP($A42,Filtros!$A$4:$AK$2906,27,FALSE),0) -> 5274 | AD42: =IFERROR(VLOOKUP($A42,Filtros!$A$4:$AK$2906,28,FALSE),0) -> 0 | AE42: =IFERROR(VLOOKUP($A42,Filtros!$A$4:$AK$2906,29,FALSE),0) -> 0 | AF42: =IFERROR(VLOOKUP($A42,Filtros!$A$4:$AK$2906,30,FALSE),0) -> 0 | AG42: =IFERROR(VLOOKUP($A42,Filtros!$A$4:$AK$2906,31,FALSE),0) -> 0 | AH42: =IFERROR(VLOOKUP($A42,Filtros!$A$4:$AK$2906,32,FALSE),0) -> 0 | AI42: =IFERROR(VLOOKUP($A42,Filtros!$A$4:$AK$2906,33,FALSE),0) -> 0 | AJ42: =IFERROR(VLOOKUP($A42,Filtros!$A$4:$AK$2906,34,FALSE),0) -> 0 | AK42: =IFERROR(VLOOKUP($A42,Filtros!$A$4:$AK$2906,35,FALSE),0) -> 0 | AL42: =IFERROR(VLOOKUP($A42,Filtros!$A$4:$AK$2906,36,FALSE),0) -> 1,144,440 | AM42: =IFERROR(VLOOKUP($A42,Filtros!$A$4:$AK$2906,37,FALSE),0) -> 45,578,190
A43: 01014311 | B43: 0101324 | C43: Consulta Médica de Especialidad en Gastroenterología Pediátrico | D43: =IFERROR(VLOOKUP($A43,Filtros!$A$4:$AK$2906,2,FALSE),0) -> 3326 | E43: =IFERROR(VLOOKUP($A43,Filtros!$A$4:$AK$2906,3,FALSE),0) -> 3320 | F43: =IFERROR(VLOOKUP($A43,Filtros!$A$4:$AK$2906,4,FALSE),0) -> 3320 | G43: =IFERROR(VLOOKUP($A43,Filtros!$A$4:$AK$2906,5,FALSE),0) -> 0 | H43: =IFERROR(VLOOKUP($A43,Filtros!$A$4:$AK$2906,6,FALSE),0) -> 6 | I43: =IFERROR(VLOOKUP($A43,Filtros!$A$4:$AK$2906,7,FALSE),0) -> 0 | J43: =IFERROR(VLOOKUP($A43,Filtros!$A$4:$AK$2906,8,FALSE),0) -> 0 | K43: =IFERROR(VLOOKUP($A43,Filtros!$A$4:$AK$2906,9,FALSE),0) -> 0 | L43: =IFERROR(VLOOKUP($A43,Filtros!$A$4:$AK$2906,10,FALSE),0) -> 0 | M43: =IFERROR(VLOOKUP($A43,Filtros!$A$4:$AK$2906,11,FALSE),0) -> 0 | N43: =IFERROR(VLOOKUP($A43,Filtros!$A$4:$AK$2906,12,FALSE),0) -> 0 | O43: =IFERROR(VLOOKUP($A43,Filtros!$A$4:$AK$2906,13,FALSE),0) -> 0 | P43: =IFERROR(VLOOKUP($A43,Filtros!$A$4:$AK$2906,14,FALSE),0) -> 0 | Q43: =IFERROR(VLOOKUP($A43,Filtros!$A$4:$AK$2906,15,FALSE),0) -> 0 | R43: =IFERROR(VLOOKUP($A43,Filtros!$A$4:$AK$2906,16,FALSE),0) -> 0 | S43: =IFERROR(VLOOKUP($A43,Filtros!$A$4:$AK$2906,17,FALSE),0) -> 0 | T43: =IFERROR(VLOOKUP($A43,Filtros!$A$4:$AK$2906,18,FALSE),0) -> 0 | U43: =IFERROR(VLOOKUP($A43,Filtros!$A$4:$AK$2906,19,FALSE),0) -> 0 | V43: =IFERROR(VLOOKUP($A43,Filtros!$A$4:$AK$2906,20,FALSE),0) -> 0 | W43: =IFERROR(VLOOKUP($A43,Filtros!$A$4:$AK$2906,21,FALSE),0) -> 0 | X43: =IFERROR(VLOOKUP($A43,Filtros!$A$4:$AK$2906,22,FALSE),0) -> 0 | Y43: =IFERROR(VLOOKUP($A43,Filtros!$A$4:$AK$2906,23,FALSE),0) -> 0 | Z43: =IFERROR(VLOOKUP($A43,Filtros!$A$4:$AK$2906,24,FALSE),0) -> 0 | AA43: =IFERROR(VLOOKUP($A43,Filtros!$A$4:$AK$2906,25,FALSE),0) -> 0 | AB43: =IFERROR(VLOOKUP($A43,Filtros!$A$4:$AK$2906,26,FALSE),0) -> 0 | AC43: =IFERROR(VLOOKUP($A43,Filtros!$A$4:$AK$2906,27,FALSE),0) -> 3326 | AD43: =IFERROR(VLOOKUP($A43,Filtros!$A$4:$AK$2906,28,FALSE),0) -> 0 | AE43: =IFERROR(VLOOKUP($A43,Filtros!$A$4:$AK$2906,29,FALSE),0) -> 0 | AF43: =IFERROR(VLOOKUP($A43,Filtros!$A$4:$AK$2906,30,FALSE),0) -> 0 | AG43: =IFERROR(VLOOKUP($A43,Filtros!$A$4:$AK$2906,31,FALSE),0) -> 0 | AH43: =IFERROR(VLOOKUP($A43,Filtros!$A$4:$AK$2906,32,FALSE),0) -> 0 | AI43: =IFERROR(VLOOKUP($A43,Filtros!$A$4:$AK$2906,33,FALSE),0) -> 0 | AJ43: =IFERROR(VLOOKUP($A43,Filtros!$A$4:$AK$2906,34,FALSE),0) -> 0 | AK43: =IFERROR(VLOOKUP($A43,Filtros!$A$4:$AK$2906,35,FALSE),0) -> 0 | AL43: =IFERROR(VLOOKUP($A43,Filtros!$A$4:$AK$2906,36,FALSE),0) -> 1,144,440 | AM43: =IFERROR(VLOOKUP($A43,Filtros!$A$4:$AK$2906,37,FALSE),0) -> 28,784,400
A44: 01014312 | B44: 0101325 | C44: Consulta Médica de Especialidad en Genética Clínica | D44: =IFERROR(VLOOKUP($A44,Filtros!$A$4:$AK$2906,2,FALSE),0) -> 47 | E44: =IFERROR(VLOOKUP($A44,Filtros!$A$4:$AK$2906,3,FALSE),0) -> 47 | F44: =IFERROR(VLOOKUP($A44,Filtros!$A$4:$AK$2906,4,FALSE),0) -> 47 | G44: =IFERROR(VLOOKUP($A44,Filtros!$A$4:$AK$2906,5,FALSE),0) -> 0 | H44: =IFERROR(VLOOKUP($A44,Filtros!$A$4:$AK$2906,6,FALSE),0) -> 0 | I44: =IFERROR(VLOOKUP($A44,Filtros!$A$4:$AK$2906,7,FALSE),0) -> 0 | J44: =IFERROR(VLOOKUP($A44,Filtros!$A$4:$AK$2906,8,FALSE),0) -> 0 | K44: =IFERROR(VLOOKUP($A44,Filtros!$A$4:$AK$2906,9,FALSE),0) -> 0 | L44: =IFERROR(VLOOKUP($A44,Filtros!$A$4:$AK$2906,10,FALSE),0) -> 0 | M44: =IFERROR(VLOOKUP($A44,Filtros!$A$4:$AK$2906,11,FALSE),0) -> 0 | N44: =IFERROR(VLOOKUP($A44,Filtros!$A$4:$AK$2906,12,FALSE),0) -> 0 | O44: =IFERROR(VLOOKUP($A44,Filtros!$A$4:$AK$2906,13,FALSE),0) -> 0 | P44: =IFERROR(VLOOKUP($A44,Filtros!$A$4:$AK$2906,14,FALSE),0) -> 0 | Q44: =IFERROR(VLOOKUP($A44,Filtros!$A$4:$AK$2906,15,FALSE),0) -> 0 | R44: =IFERROR(VLOOKUP($A44,Filtros!$A$4:$AK$2906,16,FALSE),0) -> 0 | S44: =IFERROR(VLOOKUP($A44,Filtros!$A$4:$AK$2906,17,FALSE),0) -> 0 | T44: =IFERROR(VLOOKUP($A44,Filtros!$A$4:$AK$2906,18,FALSE),0) -> 0 | U44: =IFERROR(VLOOKUP($A44,Filtros!$A$4:$AK$2906,19,FALSE),0) -> 0 | V44: =IFERROR(VLOOKUP($A44,Filtros!$A$4:$AK$2906,20,FALSE),0) -> 0 | W44: =IFERROR(VLOOKUP($A44,Filtros!$A$4:$AK$2906,21,FALSE),0) -> 0 | X44: =IFERROR(VLOOKUP($A44,Filtros!$A$4:$AK$2906,22,FALSE),0) -> 0 | Y44: =IFERROR(VLOOKUP($A44,Filtros!$A$4:$AK$2906,23,FALSE),0) -> 0 | Z44: =IFERROR(VLOOKUP($A44,Filtros!$A$4:$AK$2906,24,FALSE),0) -> 0 | AA44: =IFERROR(VLOOKUP($A44,Filtros!$A$4:$AK$2906,25,FALSE),0) -> 0 | AB44: =IFERROR(VLOOKUP($A44,Filtros!$A$4:$AK$2906,26,FALSE),0) -> 0 | AC44: =IFERROR(VLOOKUP($A44,Filtros!$A$4:$AK$2906,27,FALSE),0) -> 47 | AD44: =IFERROR(VLOOKUP($A44,Filtros!$A$4:$AK$2906,28,FALSE),0) -> 0 | AE44: =IFERROR(VLOOKUP($A44,Filtros!$A$4:$AK$2906,29,FALSE),0) -> 0 | AF44: =IFERROR(VLOOKUP($A44,Filtros!$A$4:$AK$2906,30,FALSE),0) -> 0 | AG44: =IFERROR(VLOOKUP($A44,Filtros!$A$4:$AK$2906,31,FALSE),0) -> 0 | AH44: =IFERROR(VLOOKUP($A44,Filtros!$A$4:$AK$2906,32,FALSE),0) -> 0 | AI44: =IFERROR(VLOOKUP($A44,Filtros!$A$4:$AK$2906,33,FALSE),0) -> 0 | AJ44: =IFERROR(VLOOKUP($A44,Filtros!$A$4:$AK$2906,34,FALSE),0) -> 0 | AK44: =IFERROR(VLOOKUP($A44,Filtros!$A$4:$AK$2906,35,FALSE),0) -> 0 | AL44: =IFERROR(VLOOKUP($A44,Filtros!$A$4:$AK$2906,36,FALSE),0) -> 1,144,440 | AM44: =IFERROR(VLOOKUP($A44,Filtros!$A$4:$AK$2906,37,FALSE),0) -> 407,490
A45: 01014313 | B45: 0101326 | C45: Consulta Médica de Especialidad en Nefrología Adulto | D45: =IFERROR(VLOOKUP($A45,Filtros!$A$4:$AK$2906,2,FALSE),0) -> 7987 | E45: =IFERROR(VLOOKUP($A45,Filtros!$A$4:$AK$2906,3,FALSE),0) -> 7978 | F45: =IFERROR(VLOOKUP($A45,Filtros!$A$4:$AK$2906,4,FALSE),0) -> 7978 | G45: =IFERROR(VLOOKUP($A45,Filtros!$A$4:$AK$2906,5,FALSE),0) -> 0 | H45: =IFERROR(VLOOKUP($A45,Filtros!$A$4:$AK$2906,6,FALSE),0) -> 9 | I45: =IFERROR(VLOOKUP($A45,Filtros!$A$4:$AK$2906,7,FALSE),0) -> 0 | J45: =IFERROR(VLOOKUP($A45,Filtros!$A$4:$AK$2906,8,FALSE),0) -> 0 | K45: =IFERROR(VLOOKUP($A45,Filtros!$A$4:$AK$2906,9,FALSE),0) -> 0 | L45: =IFERROR(VLOOKUP($A45,Filtros!$A$4:$AK$2906,10,FALSE),0) -> 0 | M45: =IFERROR(VLOOKUP($A45,Filtros!$A$4:$AK$2906,11,FALSE),0) -> 0 | N45: =IFERROR(VLOOKUP($A45,Filtros!$A$4:$AK$2906,12,FALSE),0) -> 0 | O45: =IFERROR(VLOOKUP($A45,Filtros!$A$4:$AK$2906,13,FALSE),0) -> 0 | P45: =IFERROR(VLOOKUP($A45,Filtros!$A$4:$AK$2906,14,FALSE),0) -> 0 | Q45: =IFERROR(VLOOKUP($A45,Filtros!$A$4:$AK$2906,15,FALSE),0) -> 0 | R45: =IFERROR(VLOOKUP($A45,Filtros!$A$4:$AK$2906,16,FALSE),0) -> 0 | S45: =IFERROR(VLOOKUP($A45,Filtros!$A$4:$AK$2906,17,FALSE),0) -> 0 | T45: =IFERROR(VLOOKUP($A45,Filtros!$A$4:$AK$2906,18,FALSE),0) -> 0 | U45: =IFERROR(VLOOKUP($A45,Filtros!$A$4:$AK$2906,19,FALSE),0) -> 0 | V45: =IFERROR(VLOOKUP($A45,Filtros!$A$4:$AK$2906,20,FALSE),0) -> 0 | W45: =IFERROR(VLOOKUP($A45,Filtros!$A$4:$AK$2906,21,FALSE),0) -> 0 | X45: =IFERROR(VLOOKUP($A45,Filtros!$A$4:$AK$2906,22,FALSE),0) -> 0 | Y45: =IFERROR(VLOOKUP($A45,Filtros!$A$4:$AK$2906,23,FALSE),0) -> 0 | Z45: =IFERROR(VLOOKUP($A45,Filtros!$A$4:$AK$2906,24,FALSE),0) -> 0 | AA45: =IFERROR(VLOOKUP($A45,Filtros!$A$4:$AK$2906,25,FALSE),0) -> 0 | AB45: =IFERROR(VLOOKUP($A45,Filtros!$A$4:$AK$2906,26,FALSE),0) -> 3 | AC45: =IFERROR(VLOOKUP($A45,Filtros!$A$4:$AK$2906,27,FALSE),0) -> 7984 | AD45: =IFERROR(VLOOKUP($A45,Filtros!$A$4:$AK$2906,28,FALSE),0) -> 0 | AE45: =IFERROR(VLOOKUP($A45,Filtros!$A$4:$AK$2906,29,FALSE),0) -> 0 | AF45: =IFERROR(VLOOKUP($A45,Filtros!$A$4:$AK$2906,30,FALSE),0) -> 0 | AG45: =IFERROR(VLOOKUP($A45,Filtros!$A$4:$AK$2906,31,FALSE),0) -> 0 | AH45: =IFERROR(VLOOKUP($A45,Filtros!$A$4:$AK$2906,32,FALSE),0) -> 0 | AI45: =IFERROR(VLOOKUP($A45,Filtros!$A$4:$AK$2906,33,FALSE),0) -> 0 | AJ45: =IFERROR(VLOOKUP($A45,Filtros!$A$4:$AK$2906,34,FALSE),0) -> 0 | AK45: =IFERROR(VLOOKUP($A45,Filtros!$A$4:$AK$2906,35,FALSE),0) -> 0 | AL45: =IFERROR(VLOOKUP($A45,Filtros!$A$4:$AK$2906,36,FALSE),0) -> 1,144,440 | AM45: =IFERROR(VLOOKUP($A45,Filtros!$A$4:$AK$2906,37,FALSE),0) -> 69,169,260
A46: 01014314 | B46: 0101327 | C46: Consulta Médica de Especialidad en Nefrología Pediátrico | D46: =IFERROR(VLOOKUP($A46,Filtros!$A$4:$AK$2906,2,FALSE),0) -> 1437 | E46: =IFERROR(VLOOKUP($A46,Filtros!$A$4:$AK$2906,3,FALSE),0) -> 1433 | F46: =IFERROR(VLOOKUP($A46,Filtros!$A$4:$AK$2906,4,FALSE),0) -> 1433 | G46: =IFERROR(VLOOKUP($A46,Filtros!$A$4:$AK$2906,5,FALSE),0) -> 0 | H46: =IFERROR(VLOOKUP($A46,Filtros!$A$4:$AK$2906,6,FALSE),0) -> 4 | I46: =IFERROR(VLOOKUP($A46,Filtros!$A$4:$AK$2906,7,FALSE),0) -> 0 | J46: =IFERROR(VLOOKUP($A46,Filtros!$A$4:$AK$2906,8,FALSE),0) -> 0 | K46: =IFERROR(VLOOKUP($A46,Filtros!$A$4:$AK$2906,9,FALSE),0) -> 0 | L46: =IFERROR(VLOOKUP($A46,Filtros!$A$4:$AK$2906,10,FALSE),0) -> 0 | M46: =IFERROR(VLOOKUP($A46,Filtros!$A$4:$AK$2906,11,FALSE),0) -> 0 | N46: =IFERROR(VLOOKUP($A46,Filtros!$A$4:$AK$2906,12,FALSE),0) -> 0 | O46: =IFERROR(VLOOKUP($A46,Filtros!$A$4:$AK$2906,13,FALSE),0) -> 0 | P46: =IFERROR(VLOOKUP($A46,Filtros!$A$4:$AK$2906,14,FALSE),0) -> 0 | Q46: =IFERROR(VLOOKUP($A46,Filtros!$A$4:$AK$2906,15,FALSE),0) -> 0 | R46: =IFERROR(VLOOKUP($A46,Filtros!$A$4:$AK$2906,16,FALSE),0) -> 0 | S46: =IFERROR(VLOOKUP($A46,Filtros!$A$4:$AK$2906,17,FALSE),0) -> 0 | T46: =IFERROR(VLOOKUP($A46,Filtros!$A$4:$AK$2906,18,FALSE),0) -> 0 | U46: =IFERROR(VLOOKUP($A46,Filtros!$A$4:$AK$2906,19,FALSE),0) -> 0 | V46: =IFERROR(VLOOKUP($A46,Filtros!$A$4:$AK$2906,20,FALSE),0) -> 0 | W46: =IFERROR(VLOOKUP($A46,Filtros!$A$4:$AK$2906,21,FALSE),0) -> 0 | X46: =IFERROR(VLOOKUP($A46,Filtros!$A$4:$AK$2906,22,FALSE),0) -> 0 | Y46: =IFERROR(VLOOKUP($A46,Filtros!$A$4:$AK$2906,23,FALSE),0) -> 0 | Z46: =IFERROR(VLOOKUP($A46,Filtros!$A$4:$AK$2906,24,FALSE),0) -> 0 | AA46: =IFERROR(VLOOKUP($A46,Filtros!$A$4:$AK$2906,25,FALSE),0) -> 0 | AB46: =IFERROR(VLOOKUP($A46,Filtros!$A$4:$AK$2906,26,FALSE),0) -> 0 | AC46: =IFERROR(VLOOKUP($A46,Filtros!$A$4:$AK$2906,27,FALSE),0) -> 1437 | AD46: =IFERROR(VLOOKUP($A46,Filtros!$A$4:$AK$2906,28,FALSE),0) -> 0 | AE46: =IFERROR(VLOOKUP($A46,Filtros!$A$4:$AK$2906,29,FALSE),0) -> 0 | AF46: =IFERROR(VLOOKUP($A46,Filtros!$A$4:$AK$2906,30,FALSE),0) -> 0 | AG46: =IFERROR(VLOOKUP($A46,Filtros!$A$4:$AK$2906,31,FALSE),0) -> 0 | AH46: =IFERROR(VLOOKUP($A46,Filtros!$A$4:$AK$2906,32,FALSE),0) -> 0 | AI46: =IFERROR(VLOOKUP($A46,Filtros!$A$4:$AK$2906,33,FALSE),0) -> 0 | AJ46: =IFERROR(VLOOKUP($A46,Filtros!$A$4:$AK$2906,34,FALSE),0) -> 0 | AK46: =IFERROR(VLOOKUP($A46,Filtros!$A$4:$AK$2906,35,FALSE),0) -> 0 | AL46: =IFERROR(VLOOKUP($A46,Filtros!$A$4:$AK$2906,36,FALSE),0) -> 1,144,440 | AM46: =IFERROR(VLOOKUP($A46,Filtros!$A$4:$AK$2906,37,FALSE),0) -> 12,424,110
A47: 01014315 | B47: 0101328 | C47: Consulta Médica de Especialidad en Neonatología | D47: =IFERROR(VLOOKUP($A47,Filtros!$A$4:$AK$2906,2,FALSE),0) -> 1638 | E47: =IFERROR(VLOOKUP($A47,Filtros!$A$4:$AK$2906,3,FALSE),0) -> 1628 | F47: =IFERROR(VLOOKUP($A47,Filtros!$A$4:$AK$2906,4,FALSE),0) -> 1628 | G47: =IFERROR(VLOOKUP($A47,Filtros!$A$4:$AK$2906,5,FALSE),0) -> 0 | H47: =IFERROR(VLOOKUP($A47,Filtros!$A$4:$AK$2906,6,FALSE),0) -> 10 | I47: =IFERROR(VLOOKUP($A47,Filtros!$A$4:$AK$2906,7,FALSE),0) -> 0 | J47: =IFERROR(VLOOKUP($A47,Filtros!$A$4:$AK$2906,8,FALSE),0) -> 0 | K47: =IFERROR(VLOOKUP($A47,Filtros!$A$4:$AK$2906,9,FALSE),0) -> 0 | L47: =IFERROR(VLOOKUP($A47,Filtros!$A$4:$AK$2906,10,FALSE),0) -> 0 | M47: =IFERROR(VLOOKUP($A47,Filtros!$A$4:$AK$2906,11,FALSE),0) -> 0 | N47: =IFERROR(VLOOKUP($A47,Filtros!$A$4:$AK$2906,12,FALSE),0) -> 0 | O47: =IFERROR(VLOOKUP($A47,Filtros!$A$4:$AK$2906,13,FALSE),0) -> 0 | P47: =IFERROR(VLOOKUP($A47,Filtros!$A$4:$AK$2906,14,FALSE),0) -> 0 | Q47: =IFERROR(VLOOKUP($A47,Filtros!$A$4:$AK$2906,15,FALSE),0) -> 0 | R47: =IFERROR(VLOOKUP($A47,Filtros!$A$4:$AK$2906,16,FALSE),0) -> 0 | S47: =IFERROR(VLOOKUP($A47,Filtros!$A$4:$AK$2906,17,FALSE),0) -> 0 | T47: =IFERROR(VLOOKUP($A47,Filtros!$A$4:$AK$2906,18,FALSE),0) -> 0 | U47: =IFERROR(VLOOKUP($A47,Filtros!$A$4:$AK$2906,19,FALSE),0) -> 0 | V47: =IFERROR(VLOOKUP($A47,Filtros!$A$4:$AK$2906,20,FALSE),0) -> 0 | W47: =IFERROR(VLOOKUP($A47,Filtros!$A$4:$AK$2906,21,FALSE),0) -> 0 | X47: =IFERROR(VLOOKUP($A47,Filtros!$A$4:$AK$2906,22,FALSE),0) -> 0 | Y47: =IFERROR(VLOOKUP($A47,Filtros!$A$4:$AK$2906,23,FALSE),0) -> 0 | Z47: =IFERROR(VLOOKUP($A47,Filtros!$A$4:$AK$2906,24,FALSE),0) -> 0 | AA47: =IFERROR(VLOOKUP($A47,Filtros!$A$4:$AK$2906,25,FALSE),0) -> 0 | AB47: =IFERROR(VLOOKUP($A47,Filtros!$A$4:$AK$2906,26,FALSE),0) -> 0 | AC47: =IFERROR(VLOOKUP($A47,Filtros!$A$4:$AK$2906,27,FALSE),0) -> 1638 | AD47: =IFERROR(VLOOKUP($A47,Filtros!$A$4:$AK$2906,28,FALSE),0) -> 0 | AE47: =IFERROR(VLOOKUP($A47,Filtros!$A$4:$AK$2906,29,FALSE),0) -> 0 | AF47: =IFERROR(VLOOKUP($A47,Filtros!$A$4:$AK$2906,30,FALSE),0) -> 0 | AG47: =IFERROR(VLOOKUP($A47,Filtros!$A$4:$AK$2906,31,FALSE),0) -> 0 | AH47: =IFERROR(VLOOKUP($A47,Filtros!$A$4:$AK$2906,32,FALSE),0) -> 0 | AI47: =IFERROR(VLOOKUP($A47,Filtros!$A$4:$AK$2906,33,FALSE),0) -> 0 | AJ47: =IFERROR(VLOOKUP($A47,Filtros!$A$4:$AK$2906,34,FALSE),0) -> 0 | AK47: =IFERROR(VLOOKUP($A47,Filtros!$A$4:$AK$2906,35,FALSE),0) -> 0 | AL47: =IFERROR(VLOOKUP($A47,Filtros!$A$4:$AK$2906,36,FALSE),0) -> 1,144,440 | AM47: =IFERROR(VLOOKUP($A47,Filtros!$A$4:$AK$2906,37,FALSE),0) -> 14,114,760
A48: 01014316 | B48: 0101329 | C48: Consulta Médica de Especialidad en Anestesiología | D48: =IFERROR(VLOOKUP($A48,Filtros!$A$4:$AK$2906,2,FALSE),0) -> 5476 | E48: =IFERROR(VLOOKUP($A48,Filtros!$A$4:$AK$2906,3,FALSE),0) -> 5475 | F48: =IFERROR(VLOOKUP($A48,Filtros!$A$4:$AK$2906,4,FALSE),0) -> 5475 | G48: =IFERROR(VLOOKUP($A48,Filtros!$A$4:$AK$2906,5,FALSE),0) -> 0 | H48: =IFERROR(VLOOKUP($A48,Filtros!$A$4:$AK$2906,6,FALSE),0) -> 1 | I48: =IFERROR(VLOOKUP($A48,Filtros!$A$4:$AK$2906,7,FALSE),0) -> 0 | J48: =IFERROR(VLOOKUP($A48,Filtros!$A$4:$AK$2906,8,FALSE),0) -> 0 | K48: =IFERROR(VLOOKUP($A48,Filtros!$A$4:$AK$2906,9,FALSE),0) -> 0 | L48: =IFERROR(VLOOKUP($A48,Filtros!$A$4:$AK$2906,10,FALSE),0) -> 0 | M48: =IFERROR(VLOOKUP($A48,Filtros!$A$4:$AK$2906,11,FALSE),0) -> 0 | N48: =IFERROR(VLOOKUP($A48,Filtros!$A$4:$AK$2906,12,FALSE),0) -> 0 | O48: =IFERROR(VLOOKUP($A48,Filtros!$A$4:$AK$2906,13,FALSE),0) -> 0 | P48: =IFERROR(VLOOKUP($A48,Filtros!$A$4:$AK$2906,14,FALSE),0) -> 0 | Q48: =IFERROR(VLOOKUP($A48,Filtros!$A$4:$AK$2906,15,FALSE),0) -> 0 | R48: =IFERROR(VLOOKUP($A48,Filtros!$A$4:$AK$2906,16,FALSE),0) -> 0 | S48: =IFERROR(VLOOKUP($A48,Filtros!$A$4:$AK$2906,17,FALSE),0) -> 0 | T48: =IFERROR(VLOOKUP($A48,Filtros!$A$4:$AK$2906,18,FALSE),0) -> 0 | U48: =IFERROR(VLOOKUP($A48,Filtros!$A$4:$AK$2906,19,FALSE),0) -> 0 | V48: =IFERROR(VLOOKUP($A48,Filtros!$A$4:$AK$2906,20,FALSE),0) -> 0 | W48: =IFERROR(VLOOKUP($A48,Filtros!$A$4:$AK$2906,21,FALSE),0) -> 0 | X48: =IFERROR(VLOOKUP($A48,Filtros!$A$4:$AK$2906,22,FALSE),0) -> 0 | Y48: =IFERROR(VLOOKUP($A48,Filtros!$A$4:$AK$2906,23,FALSE),0) -> 0 | Z48: =IFERROR(VLOOKUP($A48,Filtros!$A$4:$AK$2906,24,FALSE),0) -> 0 | AA48: =IFERROR(VLOOKUP($A48,Filtros!$A$4:$AK$2906,25,FALSE),0) -> 0 | AB48: =IFERROR(VLOOKUP($A48,Filtros!$A$4:$AK$2906,26,FALSE),0) -> 20 | AC48: =IFERROR(VLOOKUP($A48,Filtros!$A$4:$AK$2906,27,FALSE),0) -> 5304 | AD48: =IFERROR(VLOOKUP($A48,Filtros!$A$4:$AK$2906,28,FALSE),0) -> 0 | AE48: =IFERROR(VLOOKUP($A48,Filtros!$A$4:$AK$2906,29,FALSE),0) -> 0 | AF48: =IFERROR(VLOOKUP($A48,Filtros!$A$4:$AK$2906,30,FALSE),0) -> 0 | AG48: =IFERROR(VLOOKUP($A48,Filtros!$A$4:$AK$2906,31,FALSE),0) -> 0 | AH48: =IFERROR(VLOOKUP($A48,Filtros!$A$4:$AK$2906,32,FALSE),0) -> 0 | AI48: =IFERROR(VLOOKUP($A48,Filtros!$A$4:$AK$2906,33,FALSE),0) -> 0 | AJ48: =IFERROR(VLOOKUP($A48,Filtros!$A$4:$AK$2906,34,FALSE),0) -> 0 | AK48: =IFERROR(VLOOKUP($A48,Filtros!$A$4:$AK$2906,35,FALSE),0) -> 0 | AL48: =IFERROR(VLOOKUP($A48,Filtros!$A$4:$AK$2906,36,FALSE),0) -> 1,144,440 | AM48: =IFERROR(VLOOKUP($A48,Filtros!$A$4:$AK$2906,37,FALSE),0) -> 47,468,250
A49: 01014317 | B49: 0101331 | C49: Consulta Médica de Especialidad en Radioterapia Oncológica | D49: =IFERROR(VLOOKUP($A49,Filtros!$A$4:$AK$2906,2,FALSE),0) -> 0 | E49: =IFERROR(VLOOKUP($A49,Filtros!$A$4:$AK$2906,3,FALSE),0) -> 0 | F49: =IFERROR(VLOOKUP($A49,Filtros!$A$4:$AK$2906,4,FALSE),0) -> 0 | G49: =IFERROR(VLOOKUP($A49,Filtros!$A$4:$AK$2906,5,FALSE),0) -> 0 | H49: =IFERROR(VLOOKUP($A49,Filtros!$A$4:$AK$2906,6,FALSE),0) -> 0 | I49: =IFERROR(VLOOKUP($A49,Filtros!$A$4:$AK$2906,7,FALSE),0) -> 0 | J49: =IFERROR(VLOOKUP($A49,Filtros!$A$4:$AK$2906,8,FALSE),0) -> 0 | K49: =IFERROR(VLOOKUP($A49,Filtros!$A$4:$AK$2906,9,FALSE),0) -> 0 | L49: =IFERROR(VLOOKUP($A49,Filtros!$A$4:$AK$2906,10,FALSE),0) -> 0 | M49: =IFERROR(VLOOKUP($A49,Filtros!$A$4:$AK$2906,11,FALSE),0) -> 0 | N49: =IFERROR(VLOOKUP($A49,Filtros!$A$4:$AK$2906,12,FALSE),0) -> 0 | O49: =IFERROR(VLOOKUP($A49,Filtros!$A$4:$AK$2906,13,FALSE),0) -> 0 | P49: =IFERROR(VLOOKUP($A49,Filtros!$A$4:$AK$2906,14,FALSE),0) -> 0 | Q49: =IFERROR(VLOOKUP($A49,Filtros!$A$4:$AK$2906,15,FALSE),0) -> 0 | R49: =IFERROR(VLOOKUP($A49,Filtros!$A$4:$AK$2906,16,FALSE),0) -> 0 | S49: =IFERROR(VLOOKUP($A49,Filtros!$A$4:$AK$2906,17,FALSE),0) -> 0 | T49: =IFERROR(VLOOKUP($A49,Filtros!$A$4:$AK$2906,18,FALSE),0) -> 0 | U49: =IFERROR(VLOOKUP($A49,Filtros!$A$4:$AK$2906,19,FALSE),0) -> 0 | V49: =IFERROR(VLOOKUP($A49,Filtros!$A$4:$AK$2906,20,FALSE),0) -> 0 | W49: =IFERROR(VLOOKUP($A49,Filtros!$A$4:$AK$2906,21,FALSE),0) -> 0 | X49: =IFERROR(VLOOKUP($A49,Filtros!$A$4:$AK$2906,22,FALSE),0) -> 0 | Y49: =IFERROR(VLOOKUP($A49,Filtros!$A$4:$AK$2906,23,FALSE),0) -> 0 | Z49: =IFERROR(VLOOKUP($A49,Filtros!$A$4:$AK$2906,24,FALSE),0) -> 0 | AA49: =IFERROR(VLOOKUP($A49,Filtros!$A$4:$AK$2906,25,FALSE),0) -> 0 | AB49: =IFERROR(VLOOKUP($A49,Filtros!$A$4:$AK$2906,26,FALSE),0) -> 0 | AC49: =IFERROR(VLOOKUP($A49,Filtros!$A$4:$AK$2906,27,FALSE),0) -> 0 | AD49: =IFERROR(VLOOKUP($A49,Filtros!$A$4:$AK$2906,28,FALSE),0) -> 0 | AE49: =IFERROR(VLOOKUP($A49,Filtros!$A$4:$AK$2906,29,FALSE),0) -> 0 | AF49: =IFERROR(VLOOKUP($A49,Filtros!$A$4:$AK$2906,30,FALSE),0) -> 0 | AG49: =IFERROR(VLOOKUP($A49,Filtros!$A$4:$AK$2906,31,FALSE),0) -> 0 | AH49: =IFERROR(VLOOKUP($A49,Filtros!$A$4:$AK$2906,32,FALSE),0) -> 0 | AI49: =IFERROR(VLOOKUP($A49,Filtros!$A$4:$AK$2906,33,FALSE),0) -> 0 | AJ49: =IFERROR(VLOOKUP($A49,Filtros!$A$4:$AK$2906,34,FALSE),0) -> 0 | AK49: =IFERROR(VLOOKUP($A49,Filtros!$A$4:$AK$2906,35,FALSE),0) -> 0 | AL49: =IFERROR(VLOOKUP($A49,Filtros!$A$4:$AK$2906,36,FALSE),0) -> 1,144,440 | AM49: =IFERROR(VLOOKUP($A49,Filtros!$A$4:$AK$2906,37,FALSE),0) -> 0
A50: 01014318 | B50: 0101332 | C50: Consulta Médica de Especialidad en Ginecología Pediátrica y de la Adolescencia | D50: =IFERROR(VLOOKUP($A50,Filtros!$A$4:$AK$2906,2,FALSE),0) -> 2514 | E50: =IFERROR(VLOOKUP($A50,Filtros!$A$4:$AK$2906,3,FALSE),0) -> 2514 | F50: =IFERROR(VLOOKUP($A50,Filtros!$A$4:$AK$2906,4,FALSE),0) -> 2514 | G50: =IFERROR(VLOOKUP($A50,Filtros!$A$4:$AK$2906,5,FALSE),0) -> 0 | H50: =IFERROR(VLOOKUP($A50,Filtros!$A$4:$AK$2906,6,FALSE),0) -> 0 | I50: =IFERROR(VLOOKUP($A50,Filtros!$A$4:$AK$2906,7,FALSE),0) -> 0 | J50: =IFERROR(VLOOKUP($A50,Filtros!$A$4:$AK$2906,8,FALSE),0) -> 0 | K50: =IFERROR(VLOOKUP($A50,Filtros!$A$4:$AK$2906,9,FALSE),0) -> 0 | L50: =IFERROR(VLOOKUP($A50,Filtros!$A$4:$AK$2906,10,FALSE),0) -> 0 | M50: =IFERROR(VLOOKUP($A50,Filtros!$A$4:$AK$2906,11,FALSE),0) -> 0 | N50: =IFERROR(VLOOKUP($A50,Filtros!$A$4:$AK$2906,12,FALSE),0) -> 0 | O50: =IFERROR(VLOOKUP($A50,Filtros!$A$4:$AK$2906,13,FALSE),0) -> 0 | P50: =IFERROR(VLOOKUP($A50,Filtros!$A$4:$AK$2906,14,FALSE),0) -> 0 | Q50: =IFERROR(VLOOKUP($A50,Filtros!$A$4:$AK$2906,15,FALSE),0) -> 0 | R50: =IFERROR(VLOOKUP($A50,Filtros!$A$4:$AK$2906,16,FALSE),0) -> 0 | S50: =IFERROR(VLOOKUP($A50,Filtros!$A$4:$AK$2906,17,FALSE),0) -> 0 | T50: =IFERROR(VLOOKUP($A50,Filtros!$A$4:$AK$2906,18,FALSE),0) -> 0 | U50: =IFERROR(VLOOKUP($A50,Filtros!$A$4:$AK$2906,19,FALSE),0) -> 0 | V50: =IFERROR(VLOOKUP($A50,Filtros!$A$4:$AK$2906,20,FALSE),0) -> 0 | W50: =IFERROR(VLOOKUP($A50,Filtros!$A$4:$AK$2906,21,FALSE),0) -> 0 | X50: =IFERROR(VLOOKUP($A50,Filtros!$A$4:$AK$2906,22,FALSE),0) -> 0 | Y50: =IFERROR(VLOOKUP($A50,Filtros!$A$4:$AK$2906,23,FALSE),0) -> 0 | Z50: =IFERROR(VLOOKUP($A50,Filtros!$A$4:$AK$2906,24,FALSE),0) -> 0 | AA50: =IFERROR(VLOOKUP($A50,Filtros!$A$4:$AK$2906,25,FALSE),0) -> 0 | AB50: =IFERROR(VLOOKUP($A50,Filtros!$A$4:$AK$2906,26,FALSE),0) -> 0 | AC50: =IFERROR(VLOOKUP($A50,Filtros!$A$4:$AK$2906,27,FALSE),0) -> 2514 | AD50: =IFERROR(VLOOKUP($A50,Filtros!$A$4:$AK$2906,28,FALSE),0) -> 0 | AE50: =IFERROR(VLOOKUP($A50,Filtros!$A$4:$AK$2906,29,FALSE),0) -> 0 | AF50: =IFERROR(VLOOKUP($A50,Filtros!$A$4:$AK$2906,30,FALSE),0) -> 0 | AG50: =IFERROR(VLOOKUP($A50,Filtros!$A$4:$AK$2906,31,FALSE),0) -> 0 | AH50: =IFERROR(VLOOKUP($A50,Filtros!$A$4:$AK$2906,32,FALSE),0) -> 0 | AI50: =IFERROR(VLOOKUP($A50,Filtros!$A$4:$AK$2906,33,FALSE),0) -> 0 | AJ50: =IFERROR(VLOOKUP($A50,Filtros!$A$4:$AK$2906,34,FALSE),0) -> 0 | AK50: =IFERROR(VLOOKUP($A50,Filtros!$A$4:$AK$2906,35,FALSE),0) -> 0 | AL50: =IFERROR(VLOOKUP($A50,Filtros!$A$4:$AK$2906,36,FALSE),0) -> 1,144,440 | AM50: =IFERROR(VLOOKUP($A50,Filtros!$A$4:$AK$2906,37,FALSE),0) -> 21,796,380
A51: 01014319 | B51: 0101334 | C51: Consulta Médica de Especialidad en Medicina Nuclear | D51: =IFERROR(VLOOKUP($A51,Filtros!$A$4:$AK$2906,2,FALSE),0) -> 0 | E51: =IFERROR(VLOOKUP($A51,Filtros!$A$4:$AK$2906,3,FALSE),0) -> 0 | F51: =IFERROR(VLOOKUP($A51,Filtros!$A$4:$AK$2906,4,FALSE),0) -> 0 | G51: =IFERROR(VLOOKUP($A51,Filtros!$A$4:$AK$2906,5,FALSE),0) -> 0 | H51: =IFERROR(VLOOKUP($A51,Filtros!$A$4:$AK$2906,6,FALSE),0) -> 0 | I51: =IFERROR(VLOOKUP($A51,Filtros!$A$4:$AK$2906,7,FALSE),0) -> 0 | J51: =IFERROR(VLOOKUP($A51,Filtros!$A$4:$AK$2906,8,FALSE),0) -> 0 | K51: =IFERROR(VLOOKUP($A51,Filtros!$A$4:$AK$2906,9,FALSE),0) -> 0 | L51: =IFERROR(VLOOKUP($A51,Filtros!$A$4:$AK$2906,10,FALSE),0) -> 0 | M51: =IFERROR(VLOOKUP($A51,Filtros!$A$4:$AK$2906,11,FALSE),0) -> 0 | N51: =IFERROR(VLOOKUP($A51,Filtros!$A$4:$AK$2906,12,FALSE),0) -> 0 | O51: =IFERROR(VLOOKUP($A51,Filtros!$A$4:$AK$2906,13,FALSE),0) -> 0 | P51: =IFERROR(VLOOKUP($A51,Filtros!$A$4:$AK$2906,14,FALSE),0) -> 0 | Q51: =IFERROR(VLOOKUP($A51,Filtros!$A$4:$AK$2906,15,FALSE),0) -> 0 | R51: =IFERROR(VLOOKUP($A51,Filtros!$A$4:$AK$2906,16,FALSE),0) -> 0 | S51: =IFERROR(VLOOKUP($A51,Filtros!$A$4:$AK$2906,17,FALSE),0) -> 0 | T51: =IFERROR(VLOOKUP($A51,Filtros!$A$4:$AK$2906,18,FALSE),0) -> 0 | U51: =IFERROR(VLOOKUP($A51,Filtros!$A$4:$AK$2906,19,FALSE),0) -> 0 | V51: =IFERROR(VLOOKUP($A51,Filtros!$A$4:$AK$2906,20,FALSE),0) -> 0 | W51: =IFERROR(VLOOKUP($A51,Filtros!$A$4:$AK$2906,21,FALSE),0) -> 0 | X51: =IFERROR(VLOOKUP($A51,Filtros!$A$4:$AK$2906,22,FALSE),0) -> 0 | Y51: =IFERROR(VLOOKUP($A51,Filtros!$A$4:$AK$2906,23,FALSE),0) -> 0 | Z51: =IFERROR(VLOOKUP($A51,Filtros!$A$4:$AK$2906,24,FALSE),0) -> 0 | AA51: =IFERROR(VLOOKUP($A51,Filtros!$A$4:$AK$2906,25,FALSE),0) -> 0 | AB51: =IFERROR(VLOOKUP($A51,Filtros!$A$4:$AK$2906,26,FALSE),0) -> 0 | AC51: =IFERROR(VLOOKUP($A51,Filtros!$A$4:$AK$2906,27,FALSE),0) -> 0 | AD51: =IFERROR(VLOOKUP($A51,Filtros!$A$4:$AK$2906,28,FALSE),0) -> 0 | AE51: =IFERROR(VLOOKUP($A51,Filtros!$A$4:$AK$2906,29,FALSE),0) -> 0 | AF51: =IFERROR(VLOOKUP($A51,Filtros!$A$4:$AK$2906,30,FALSE),0) -> 0 | AG51: =IFERROR(VLOOKUP($A51,Filtros!$A$4:$AK$2906,31,FALSE),0) -> 0 | AH51: =IFERROR(VLOOKUP($A51,Filtros!$A$4:$AK$2906,32,FALSE),0) -> 0 | AI51: =IFERROR(VLOOKUP($A51,Filtros!$A$4:$AK$2906,33,FALSE),0) -> 0 | AJ51: =IFERROR(VLOOKUP($A51,Filtros!$A$4:$AK$2906,34,FALSE),0) -> 0 | AK51: =IFERROR(VLOOKUP($A51,Filtros!$A$4:$AK$2906,35,FALSE),0) -> 0 | AL51: =IFERROR(VLOOKUP($A51,Filtros!$A$4:$AK$2906,36,FALSE),0) -> 1,144,440 | AM51: =IFERROR(VLOOKUP($A51,Filtros!$A$4:$AK$2906,37,FALSE),0) -> 0
C52: TOTAL ARANCEL MAI | D52: =SUM(D6:D51) -> 369436 | E52: =SUM(E6:E51) -> 368103 | F52: =SUM(F6:F51) -> 367962 | G52: =SUM(G6:G51) -> 141 | H52: =SUM(H6:H51) -> 1333 | AB52: =SUM(AB6:AB51) -> 239 | AC52: =SUM(AC6:AC51) -> 365349 | AD52: 1702 | AE52: 4092 | AF52: 0 | AG52: 0 | AH52: 0 | AI52: 0 | AJ52: 121 | AK52: 0 | AL52: =SUM(AL6:AL51) -> 52,644,240 | AM52: =SUM(AM6:AM51) -> 3,190,230,540
C53: OTRAS CONSULTAS MÉDICAS
A54: 01010014 | B54: 0101001 | C54: Consulta Medicina General | D54: =IFERROR(VLOOKUP($A54,Filtros!$A$4:$AK$2906,2,FALSE),0) -> 82353 | E54: =IFERROR(VLOOKUP($A54,Filtros!$A$4:$AK$2906,3,FALSE),0) -> 82353 | F54: =IFERROR(VLOOKUP($A54,Filtros!$A$4:$AK$2906,4,FALSE),0) -> 82353 | G54: =IFERROR(VLOOKUP($A54,Filtros!$A$4:$AK$2906,5,FALSE),0) -> 0 | H54: =IFERROR(VLOOKUP($A54,Filtros!$A$4:$AK$2906,6,FALSE),0) -> 0 | I54: =IFERROR(VLOOKUP($A54,Filtros!$A$4:$AK$2906,7,FALSE),0) -> 0 | J54: =IFERROR(VLOOKUP($A54,Filtros!$A$4:$AK$2906,8,FALSE),0) -> 0 | K54: =IFERROR(VLOOKUP($A54,Filtros!$A$4:$AK$2906,9,FALSE),0) -> 0 | L54: =IFERROR(VLOOKUP($A54,Filtros!$A$4:$AK$2906,10,FALSE),0) -> 0 | M54: =IFERROR(VLOOKUP($A54,Filtros!$A$4:$AK$2906,11,FALSE),0) -> 0 | N54: =IFERROR(VLOOKUP($A54,Filtros!$A$4:$AK$2906,12,FALSE),0) -> 0 | O54: =IFERROR(VLOOKUP($A54,Filtros!$A$4:$AK$2906,13,FALSE),0) -> 0 | P54: =IFERROR(VLOOKUP($A54,Filtros!$A$4:$AK$2906,14,FALSE),0) -> 0 | Q54: =IFERROR(VLOOKUP($A54,Filtros!$A$4:$AK$2906,15,FALSE),0) -> 0 | R54: =IFERROR(VLOOKUP($A54,Filtros!$A$4:$AK$2906,16,FALSE),0) -> 0 | S54: =IFERROR(VLOOKUP($A54,Filtros!$A$4:$AK$2906,17,FALSE),0) -> 0 | T54: =IFERROR(VLOOKUP($A54,Filtros!$A$4:$AK$2906,18,FALSE),0) -> 0 | U54: =IFERROR(VLOOKUP($A54,Filtros!$A$4:$AK$2906,19,FALSE),0) -> 0 | V54: =IFERROR(VLOOKUP($A54,Filtros!$A$4:$AK$2906,20,FALSE),0) -> 0 | W54: =IFERROR(VLOOKUP($A54,Filtros!$A$4:$AK$2906,21,FALSE),0) -> 0 | X54: =IFERROR(VLOOKUP($A54,Filtros!$A$4:$AK$2906,22,FALSE),0) -> 0 | Y54: =IFERROR(VLOOKUP($A54,Filtros!$A$4:$AK$2906,23,FALSE),0) -> 0 | Z54: =IFERROR(VLOOKUP($A54,Filtros!$A$4:$AK$2906,24,FALSE),0) -> 0 | AA54: =IFERROR(VLOOKUP($A54,Filtros!$A$4:$AK$2906,25,FALSE),0) -> 0 | AB54: =IFERROR(VLOOKUP($A54,Filtros!$A$4:$AK$2906,26,FALSE),0) -> 0 | AC54: =IFERROR(VLOOKUP($A54,Filtros!$A$4:$AK$2906,27,FALSE),0) -> 82087 | AD54: =IFERROR(VLOOKUP($A54,Filtros!$A$4:$AK$2906,28,FALSE),0) -> 0 | AE54: =IFERROR(VLOOKUP($A54,Filtros!$A$4:$AK$2906,29,FALSE),0) -> 0 | AF54: =IFERROR(VLOOKUP($A54,Filtros!$A$4:$AK$2906,30,FALSE),0) -> 0 | AG54: =IFERROR(VLOOKUP($A54,Filtros!$A$4:$AK$2906,31,FALSE),0) -> 0 | AH54: =IFERROR(VLOOKUP($A54,Filtros!$A$4:$AK$2906,32,FALSE),0) -> 0 | AI54: =IFERROR(VLOOKUP($A54,Filtros!$A$4:$AK$2906,33,FALSE),0) -> 0 | AJ54: =IFERROR(VLOOKUP($A54,Filtros!$A$4:$AK$2906,34,FALSE),0) -> 0 | AK54: =IFERROR(VLOOKUP($A54,Filtros!$A$4:$AK$2906,35,FALSE),0) -> 0 | AL54: =IFERROR(VLOOKUP($A54,Filtros!$A$4:$AK$2906,36,FALSE),0) -> 803,880 | AM54: =IFERROR(VLOOKUP($A54,Filtros!$A$4:$AK$2906,37,FALSE),0) -> 501,529,770
A55: 01014320 | B55: 0101007 | C55: Atención médica del recién nacido en sala de parto o pabellón quirúrgico c/s reanimación cardio-respiratoria | D55: =IFERROR(VLOOKUP($A55,Filtros!$A$4:$AK$2906,2,FALSE),0) -> 5582 | E55: =IFERROR(VLOOKUP($A55,Filtros!$A$4:$AK$2906,3,FALSE),0) -> 5563 | F55: =IFERROR(VLOOKUP($A55,Filtros!$A$4:$AK$2906,4,FALSE),0) -> 5467 | G55: =IFERROR(VLOOKUP($A55,Filtros!$A$4:$AK$2906,5,FALSE),0) -> 96 | H55: =IFERROR(VLOOKUP($A55,Filtros!$A$4:$AK$2906,6,FALSE),0) -> 19 | I55: =IFERROR(VLOOKUP($A55,Filtros!$A$4:$AK$2906,7,FALSE),0) -> 0 | J55: =IFERROR(VLOOKUP($A55,Filtros!$A$4:$AK$2906,8,FALSE),0) -> 0 | K55: =IFERROR(VLOOKUP($A55,Filtros!$A$4:$AK$2906,9,FALSE),0) -> 0 | L55: =IFERROR(VLOOKUP($A55,Filtros!$A$4:$AK$2906,10,FALSE),0) -> 0 | M55: =IFERROR(VLOOKUP($A55,Filtros!$A$4:$AK$2906,11,FALSE),0) -> 0 | N55: =IFERROR(VLOOKUP($A55,Filtros!$A$4:$AK$2906,12,FALSE),0) -> 0 | O55: =IFERROR(VLOOKUP($A55,Filtros!$A$4:$AK$2906,13,FALSE),0) -> 0 | P55: =IFERROR(VLOOKUP($A55,Filtros!$A$4:$AK$2906,14,FALSE),0) -> 0 | Q55: =IFERROR(VLOOKUP($A55,Filtros!$A$4:$AK$2906,15,FALSE),0) -> 0 | R55: =IFERROR(VLOOKUP($A55,Filtros!$A$4:$AK$2906,16,FALSE),0) -> 0 | S55: =IFERROR(VLOOKUP($A55,Filtros!$A$4:$AK$2906,17,FALSE),0) -> 0 | T55: =IFERROR(VLOOKUP($A55,Filtros!$A$4:$AK$2906,18,FALSE),0) -> 0 | U55: =IFERROR(VLOOKUP($A55,Filtros!$A$4:$AK$2906,19,FALSE),0) -> 0 | V55: =IFERROR(VLOOKUP($A55,Filtros!$A$4:$AK$2906,20,FALSE),0) -> 0 | W55: =IFERROR(VLOOKUP($A55,Filtros!$A$4:$AK$2906,21,FALSE),0) -> 0 | X55: =IFERROR(VLOOKUP($A55,Filtros!$A$4:$AK$2906,22,FALSE),0) -> 0 | Y55: =IFERROR(VLOOKUP($A55,Filtros!$A$4:$AK$2906,23,FALSE),0) -> 0 | Z55: =IFERROR(VLOOKUP($A55,Filtros!$A$4:$AK$2906,24,FALSE),0) -> 0 | AA55: =IFERROR(VLOOKUP($A55,Filtros!$A$4:$AK$2906,25,FALSE),0) -> 0 | AB55: =IFERROR(VLOOKUP($A55,Filtros!$A$4:$AK$2906,26,FALSE),0) -> 2513 | AC55: =IFERROR(VLOOKUP($A55,Filtros!$A$4:$AK$2906,27,FALSE),0) -> 1273 | AD55: =IFERROR(VLOOKUP($A55,Filtros!$A$4:$AK$2906,28,FALSE),0) -> 1758 | AE55: =IFERROR(VLOOKUP($A55,Filtros!$A$4:$AK$2906,29,FALSE),0) -> 0 | AF55: =IFERROR(VLOOKUP($A55,Filtros!$A$4:$AK$2906,30,FALSE),0) -> 0 | AG55: =IFERROR(VLOOKUP($A55,Filtros!$A$4:$AK$2906,31,FALSE),0) -> 0 | AH55: =IFERROR(VLOOKUP($A55,Filtros!$A$4:$AK$2906,32,FALSE),0) -> 0 | AI55: =IFERROR(VLOOKUP($A55,Filtros!$A$4:$AK$2906,33,FALSE),0) -> 0 | AJ55: =IFERROR(VLOOKUP($A55,Filtros!$A$4:$AK$2906,34,FALSE),0) -> 0 | AK55: =IFERROR(VLOOKUP($A55,Filtros!$A$4:$AK$2906,35,FALSE),0) -> 0 | AL55: =IFERROR(VLOOKUP($A55,Filtros!$A$4:$AK$2906,36,FALSE),0) -> 2,122,560 | AM55: =IFERROR(VLOOKUP($A55,Filtros!$A$4:$AK$2906,37,FALSE),0) -> 87,909,360
A56: 01014321 | B56: 0101103 | C56: Consulta en Unidades de Urgencia Hospitalaria | D56: =IFERROR(VLOOKUP($A56,Filtros!$A$4:$AK$2906,2,FALSE),0) -> 294440 | E56: =IFERROR(VLOOKUP($A56,Filtros!$A$4:$AK$2906,3,FALSE),0) -> 283507 | F56: =IFERROR(VLOOKUP($A56,Filtros!$A$4:$AK$2906,4,FALSE),0) -> 283507 | G56: =IFERROR(VLOOKUP($A56,Filtros!$A$4:$AK$2906,5,FALSE),0) -> 0 | H56: =IFERROR(VLOOKUP($A56,Filtros!$A$4:$AK$2906,6,FALSE),0) -> 10933 | I56: =IFERROR(VLOOKUP($A56,Filtros!$A$4:$AK$2906,7,FALSE),0) -> 0 | J56: =IFERROR(VLOOKUP($A56,Filtros!$A$4:$AK$2906,8,FALSE),0) -> 0 | K56: =IFERROR(VLOOKUP($A56,Filtros!$A$4:$AK$2906,9,FALSE),0) -> 0 | L56: =IFERROR(VLOOKUP($A56,Filtros!$A$4:$AK$2906,10,FALSE),0) -> 0 | M56: =IFERROR(VLOOKUP($A56,Filtros!$A$4:$AK$2906,11,FALSE),0) -> 0 | N56: =IFERROR(VLOOKUP($A56,Filtros!$A$4:$AK$2906,12,FALSE),0) -> 0 | O56: =IFERROR(VLOOKUP($A56,Filtros!$A$4:$AK$2906,13,FALSE),0) -> 0 | P56: =IFERROR(VLOOKUP($A56,Filtros!$A$4:$AK$2906,14,FALSE),0) -> 0 | Q56: =IFERROR(VLOOKUP($A56,Filtros!$A$4:$AK$2906,15,FALSE),0) -> 0 | R56: =IFERROR(VLOOKUP($A56,Filtros!$A$4:$AK$2906,16,FALSE),0) -> 0 | S56: =IFERROR(VLOOKUP($A56,Filtros!$A$4:$AK$2906,17,FALSE),0) -> 0 | T56: =IFERROR(VLOOKUP($A56,Filtros!$A$4:$AK$2906,18,FALSE),0) -> 0 | U56: =IFERROR(VLOOKUP($A56,Filtros!$A$4:$AK$2906,19,FALSE),0) -> 0 | V56: =IFERROR(VLOOKUP($A56,Filtros!$A$4:$AK$2906,20,FALSE),0) -> 0 | W56: =IFERROR(VLOOKUP($A56,Filtros!$A$4:$AK$2906,21,FALSE),0) -> 0 | X56: =IFERROR(VLOOKUP($A56,Filtros!$A$4:$AK$2906,22,FALSE),0) -> 0 | Y56: =IFERROR(VLOOKUP($A56,Filtros!$A$4:$AK$2906,23,FALSE),0) -> 0 | Z56: =IFERROR(VLOOKUP($A56,Filtros!$A$4:$AK$2906,24,FALSE),0) -> 0 | AA56: =IFERROR(VLOOKUP($A56,Filtros!$A$4:$AK$2906,25,FALSE),0) -> 0 | AB56: =IFERROR(VLOOKUP($A56,Filtros!$A$4:$AK$2906,26,FALSE),0) -> 0 | AC56: =IFERROR(VLOOKUP($A56,Filtros!$A$4:$AK$2906,27,FALSE),0) -> 13606 | AD56: =IFERROR(VLOOKUP($A56,Filtros!$A$4:$AK$2906,28,FALSE),0) -> 274055 | AE56: =IFERROR(VLOOKUP($A56,Filtros!$A$4:$AK$2906,29,FALSE),0) -> 0 | AF56: =IFERROR(VLOOKUP($A56,Filtros!$A$4:$AK$2906,30,FALSE),0) -> 0 | AG56: =IFERROR(VLOOKUP($A56,Filtros!$A$4:$AK$2906,31,FALSE),0) -> 0 | AH56: =IFERROR(VLOOKUP($A56,Filtros!$A$4:$AK$2906,32,FALSE),0) -> 0 | AI56: =IFERROR(VLOOKUP($A56,Filtros!$A$4:$AK$2906,33,FALSE),0) -> 0 | AJ56: =IFERROR(VLOOKUP($A56,Filtros!$A$4:$AK$2906,34,FALSE),0) -> 0 | AK56: =IFERROR(VLOOKUP($A56,Filtros!$A$4:$AK$2906,35,FALSE),0) -> 0 | AL56: =IFERROR(VLOOKUP($A56,Filtros!$A$4:$AK$2906,36,FALSE),0) -> 1,144,440 | AM56: =IFERROR(VLOOKUP($A56,Filtros!$A$4:$AK$2906,37,FALSE),0) -> 2,458,005,690
C57: TOTAL OTRAS CONSULTAS MÉDICAS | D57: =SUM(D54:D56) -> 382375 | E57: =SUM(E54:E56) -> 371423 | F57: =SUM(F54:F56) -> 371327 | G57: =SUM(G54:G56) -> 96 | H57: =SUM(H54:H56) -> 10952 | AB57: =SUM(AB54:AB56) -> 2513 | AC57: 96966 | AD57: 275813 | AE57: 0 | AF57: 0 | AG57: 0 | AH57: 0 | AI57: 0 | AJ57: 0 | AK57: 0 | AL57: 4,070,880 | AM57: 3,047,444,820
C58: TOTAL PRODUCCION | D58: =SUM(D52,D57) -> 751811 | E58: =SUM(E52,E57) -> 739526 | F58: =SUM(F52,F57) -> 739289 | G58: =SUM(G52,G57) -> 237 | H58: =SUM(H52,H57) -> 12285 | AB58: =SUM(AB52,AB57) -> 2752 | AC58: 462315 | AD58: 277515 | AE58: 4092 | AF58: 0 | AG58: 0 | AH58: 0 | AI58: 0 | AJ58: 121 | AK58: 0 | AL58: 56,715,120 | AM58: 6,237,675,360
C59: CONSULTAS POR OTROS PROFESIONALES DE LA SALUD
A60: 01014322 | B60: 0102008 | C60: Consulta o control por enfermera | D60: =IFERROR(VLOOKUP($A60,Filtros!$A$4:$AK$2906,2,FALSE),0) -> 119938 | E60: =IFERROR(VLOOKUP($A60,Filtros!$A$4:$AK$2906,3,FALSE),0) -> 118826 | F60: =IFERROR(VLOOKUP($A60,Filtros!$A$4:$AK$2906,4,FALSE),0) -> 118596 | G60: =IFERROR(VLOOKUP($A60,Filtros!$A$4:$AK$2906,5,FALSE),0) -> 230 | H60: =IFERROR(VLOOKUP($A60,Filtros!$A$4:$AK$2906,6,FALSE),0) -> 1112 | I60: =IFERROR(VLOOKUP($A60,Filtros!$A$4:$AK$2906,7,FALSE),0) -> 0 | J60: =IFERROR(VLOOKUP($A60,Filtros!$A$4:$AK$2906,8,FALSE),0) -> 0 | K60: =IFERROR(VLOOKUP($A60,Filtros!$A$4:$AK$2906,9,FALSE),0) -> 0 | L60: =IFERROR(VLOOKUP($A60,Filtros!$A$4:$AK$2906,10,FALSE),0) -> 0 | M60: =IFERROR(VLOOKUP($A60,Filtros!$A$4:$AK$2906,11,FALSE),0) -> 0 | N60: =IFERROR(VLOOKUP($A60,Filtros!$A$4:$AK$2906,12,FALSE),0) -> 0 | O60: =IFERROR(VLOOKUP($A60,Filtros!$A$4:$AK$2906,13,FALSE),0) -> 0 | P60: =IFERROR(VLOOKUP($A60,Filtros!$A$4:$AK$2906,14,FALSE),0) -> 0 | Q60: =IFERROR(VLOOKUP($A60,Filtros!$A$4:$AK$2906,15,FALSE),0) -> 0 | R60: =IFERROR(VLOOKUP($A60,Filtros!$A$4:$AK$2906,16,FALSE),0) -> 0 | S60: =IFERROR(VLOOKUP($A60,Filtros!$A$4:$AK$2906,17,FALSE),0) -> 0 | T60: =IFERROR(VLOOKUP($A60,Filtros!$A$4:$AK$2906,18,FALSE),0) -> 0 | U60: =IFERROR(VLOOKUP($A60,Filtros!$A$4:$AK$2906,19,FALSE),0) -> 0 | V60: =IFERROR(VLOOKUP($A60,Filtros!$A$4:$AK$2906,20,FALSE),0) -> 0 | W60: =IFERROR(VLOOKUP($A60,Filtros!$A$4:$AK$2906,21,FALSE),0) -> 0 | X60: =IFERROR(VLOOKUP($A60,Filtros!$A$4:$AK$2906,22,FALSE),0) -> 0 | Y60: =IFERROR(VLOOKUP($A60,Filtros!$A$4:$AK$2906,23,FALSE),0) -> 0 | Z60: =IFERROR(VLOOKUP($A60,Filtros!$A$4:$AK$2906,24,FALSE),0) -> 0 | AA60: =IFERROR(VLOOKUP($A60,Filtros!$A$4:$AK$2906,25,FALSE),0) -> 0 | AB60: =IFERROR(VLOOKUP($A60,Filtros!$A$4:$AK$2906,26,FALSE),0) -> 0 | AC60: =IFERROR(VLOOKUP($A60,Filtros!$A$4:$AK$2906,27,FALSE),0) -> 86011 | AD60: =IFERROR(VLOOKUP($A60,Filtros!$A$4:$AK$2906,28,FALSE),0) -> 33793 | AE60: =IFERROR(VLOOKUP($A60,Filtros!$A$4:$AK$2906,29,FALSE),0) -> 0 | AF60: =IFERROR(VLOOKUP($A60,Filtros!$A$4:$AK$2906,30,FALSE),0) -> 0 | AG60: =IFERROR(VLOOKUP($A60,Filtros!$A$4:$AK$2906,31,FALSE),0) -> 0 | AH60: =IFERROR(VLOOKUP($A60,Filtros!$A$4:$AK$2906,32,FALSE),0) -> 0 | AI60: =IFERROR(VLOOKUP($A60,Filtros!$A$4:$AK$2906,33,FALSE),0) -> 0 | AJ60: =IFERROR(VLOOKUP($A60,Filtros!$A$4:$AK$2906,34,FALSE),0) -> 0 | AK60: =IFERROR(VLOOKUP($A60,Filtros!$A$4:$AK$2906,35,FALSE),0) -> 0 | AL60: =IFERROR(VLOOKUP($A60,Filtros!$A$4:$AK$2906,36,FALSE),0) -> 304,920 | AM60: =IFERROR(VLOOKUP($A60,Filtros!$A$4:$AK$2906,37,FALSE),0) -> 273,956,760
A61: 01010020 | B61: 0102002 | C61: Control de salud niño con EDP por enfermera | D61: =IFERROR(VLOOKUP($A61,Filtros!$A$4:$AK$2906,2,FALSE),0) -> 2049 | E61: =IFERROR(VLOOKUP($A61,Filtros!$A$4:$AK$2906,3,FALSE),0) -> 2049 | F61: =IFERROR(VLOOKUP($A61,Filtros!$A$4:$AK$2906,4,FALSE),0) -> 2049 | G61: =IFERROR(VLOOKUP($A61,Filtros!$A$4:$AK$2906,5,FALSE),0) -> 0 | H61: =IFERROR(VLOOKUP($A61,Filtros!$A$4:$AK$2906,6,FALSE),0) -> 0 | I61: =IFERROR(VLOOKUP($A61,Filtros!$A$4:$AK$2906,7,FALSE),0) -> 0 | J61: =IFERROR(VLOOKUP($A61,Filtros!$A$4:$AK$2906,8,FALSE),0) -> 0 | K61: =IFERROR(VLOOKUP($A61,Filtros!$A$4:$AK$2906,9,FALSE),0) -> 0 | L61: =IFERROR(VLOOKUP($A61,Filtros!$A$4:$AK$2906,10,FALSE),0) -> 0 | M61: =IFERROR(VLOOKUP($A61,Filtros!$A$4:$AK$2906,11,FALSE),0) -> 0 | N61: =IFERROR(VLOOKUP($A61,Filtros!$A$4:$AK$2906,12,FALSE),0) -> 0 | O61: =IFERROR(VLOOKUP($A61,Filtros!$A$4:$AK$2906,13,FALSE),0) -> 0 | P61: =IFERROR(VLOOKUP($A61,Filtros!$A$4:$AK$2906,14,FALSE),0) -> 0 | Q61: =IFERROR(VLOOKUP($A61,Filtros!$A$4:$AK$2906,15,FALSE),0) -> 0 | R61: =IFERROR(VLOOKUP($A61,Filtros!$A$4:$AK$2906,16,FALSE),0) -> 0 | S61: =IFERROR(VLOOKUP($A61,Filtros!$A$4:$AK$2906,17,FALSE),0) -> 0 | T61: =IFERROR(VLOOKUP($A61,Filtros!$A$4:$AK$2906,18,FALSE),0) -> 0 | U61: =IFERROR(VLOOKUP($A61,Filtros!$A$4:$AK$2906,19,FALSE),0) -> 0 | V61: =IFERROR(VLOOKUP($A61,Filtros!$A$4:$AK$2906,20,FALSE),0) -> 0 | W61: =IFERROR(VLOOKUP($A61,Filtros!$A$4:$AK$2906,21,FALSE),0) -> 0 | X61: =IFERROR(VLOOKUP($A61,Filtros!$A$4:$AK$2906,22,FALSE),0) -> 0 | Y61: =IFERROR(VLOOKUP($A61,Filtros!$A$4:$AK$2906,23,FALSE),0) -> 0 | Z61: =IFERROR(VLOOKUP($A61,Filtros!$A$4:$AK$2906,24,FALSE),0) -> 0 | AA61: =IFERROR(VLOOKUP($A61,Filtros!$A$4:$AK$2906,25,FALSE),0) -> 0 | AB61: =IFERROR(VLOOKUP($A61,Filtros!$A$4:$AK$2906,26,FALSE),0) -> 0 | AC61: =IFERROR(VLOOKUP($A61,Filtros!$A$4:$AK$2906,27,FALSE),0) -> 2019 | AD61: =IFERROR(VLOOKUP($A61,Filtros!$A$4:$AK$2906,28,FALSE),0) -> 0 | AE61: =IFERROR(VLOOKUP($A61,Filtros!$A$4:$AK$2906,29,FALSE),0) -> 0 | AF61: =IFERROR(VLOOKUP($A61,Filtros!$A$4:$AK$2906,30,FALSE),0) -> 0 | AG61: =IFERROR(VLOOKUP($A61,Filtros!$A$4:$AK$2906,31,FALSE),0) -> 0 | AH61: =IFERROR(VLOOKUP($A61,Filtros!$A$4:$AK$2906,32,FALSE),0) -> 0 | AI61: =IFERROR(VLOOKUP($A61,Filtros!$A$4:$AK$2906,33,FALSE),0) -> 0 | AJ61: =IFERROR(VLOOKUP($A61,Filtros!$A$4:$AK$2906,34,FALSE),0) -> 0 | AK61: =IFERROR(VLOOKUP($A61,Filtros!$A$4:$AK$2906,35,FALSE),0) -> 0 | AL61: =IFERROR(VLOOKUP($A61,Filtros!$A$4:$AK$2906,36,FALSE),0) -> 99,000 | AM61: =IFERROR(VLOOKUP($A61,Filtros!$A$4:$AK$2906,37,FALSE),0) -> 1,536,750
A62: 01010021 | B62: 0102003 | C62: Consulta o control por auxiliar de enfermería | D62: =IFERROR(VLOOKUP($A62,Filtros!$A$4:$AK$2906,2,FALSE),0) -> 54891 | E62: =IFERROR(VLOOKUP($A62,Filtros!$A$4:$AK$2906,3,FALSE),0) -> 54832 | F62: =IFERROR(VLOOKUP($A62,Filtros!$A$4:$AK$2906,4,FALSE),0) -> 54832 | G62: =IFERROR(VLOOKUP($A62,Filtros!$A$4:$AK$2906,5,FALSE),0) -> 0 | H62: =IFERROR(VLOOKUP($A62,Filtros!$A$4:$AK$2906,6,FALSE),0) -> 59 | I62: =IFERROR(VLOOKUP($A62,Filtros!$A$4:$AK$2906,7,FALSE),0) -> 0 | J62: =IFERROR(VLOOKUP($A62,Filtros!$A$4:$AK$2906,8,FALSE),0) -> 0 | K62: =IFERROR(VLOOKUP($A62,Filtros!$A$4:$AK$2906,9,FALSE),0) -> 0 | L62: =IFERROR(VLOOKUP($A62,Filtros!$A$4:$AK$2906,10,FALSE),0) -> 0 | M62: =IFERROR(VLOOKUP($A62,Filtros!$A$4:$AK$2906,11,FALSE),0) -> 0 | N62: =IFERROR(VLOOKUP($A62,Filtros!$A$4:$AK$2906,12,FALSE),0) -> 0 | O62: =IFERROR(VLOOKUP($A62,Filtros!$A$4:$AK$2906,13,FALSE),0) -> 0 | P62: =IFERROR(VLOOKUP($A62,Filtros!$A$4:$AK$2906,14,FALSE),0) -> 0 | Q62: =IFERROR(VLOOKUP($A62,Filtros!$A$4:$AK$2906,15,FALSE),0) -> 0 | R62: =IFERROR(VLOOKUP($A62,Filtros!$A$4:$AK$2906,16,FALSE),0) -> 0 | S62: =IFERROR(VLOOKUP($A62,Filtros!$A$4:$AK$2906,17,FALSE),0) -> 0 | T62: =IFERROR(VLOOKUP($A62,Filtros!$A$4:$AK$2906,18,FALSE),0) -> 0 | U62: =IFERROR(VLOOKUP($A62,Filtros!$A$4:$AK$2906,19,FALSE),0) -> 0 | V62: =IFERROR(VLOOKUP($A62,Filtros!$A$4:$AK$2906,20,FALSE),0) -> 0 | W62: =IFERROR(VLOOKUP($A62,Filtros!$A$4:$AK$2906,21,FALSE),0) -> 0 | X62: =IFERROR(VLOOKUP($A62,Filtros!$A$4:$AK$2906,22,FALSE),0) -> 0 | Y62: =IFERROR(VLOOKUP($A62,Filtros!$A$4:$AK$2906,23,FALSE),0) -> 0 | Z62: =IFERROR(VLOOKUP($A62,Filtros!$A$4:$AK$2906,24,FALSE),0) -> 0 | AA62: =IFERROR(VLOOKUP($A62,Filtros!$A$4:$AK$2906,25,FALSE),0) -> 0 | AB62: =IFERROR(VLOOKUP($A62,Filtros!$A$4:$AK$2906,26,FALSE),0) -> 0 | AC62: =IFERROR(VLOOKUP($A62,Filtros!$A$4:$AK$2906,27,FALSE),0) -> 20310 | AD62: =IFERROR(VLOOKUP($A62,Filtros!$A$4:$AK$2906,28,FALSE),0) -> 34581 | AE62: =IFERROR(VLOOKUP($A62,Filtros!$A$4:$AK$2906,29,FALSE),0) -> 0 | AF62: =IFERROR(VLOOKUP($A62,Filtros!$A$4:$AK$2906,30,FALSE),0) -> 0 | AG62: =IFERROR(VLOOKUP($A62,Filtros!$A$4:$AK$2906,31,FALSE),0) -> 0 | AH62: =IFERROR(VLOOKUP($A62,Filtros!$A$4:$AK$2906,32,FALSE),0) -> 0 | AI62: =IFERROR(VLOOKUP($A62,Filtros!$A$4:$AK$2906,33,FALSE),0) -> 0 | AJ62: =IFERROR(VLOOKUP($A62,Filtros!$A$4:$AK$2906,34,FALSE),0) -> 0 | AK62: =IFERROR(VLOOKUP($A62,Filtros!$A$4:$AK$2906,35,FALSE),0) -> 0 | AL62: =IFERROR(VLOOKUP($A62,Filtros!$A$4:$AK$2906,36,FALSE),0) -> 242,880 | AM62: =IFERROR(VLOOKUP($A62,Filtros!$A$4:$AK$2906,37,FALSE),0) -> 100,890,880
A63: 01010022 | B63: 0102005 | C63: Consulta por fonoaudiólogo | D63: =IFERROR(VLOOKUP($A63,Filtros!$A$4:$AK$2906,2,FALSE),0) -> 12584 | E63: =IFERROR(VLOOKUP($A63,Filtros!$A$4:$AK$2906,3,FALSE),0) -> 12459 | F63: =IFERROR(VLOOKUP($A63,Filtros!$A$4:$AK$2906,4,FALSE),0) -> 12459 | G63: =IFERROR(VLOOKUP($A63,Filtros!$A$4:$AK$2906,5,FALSE),0) -> 0 | H63: =IFERROR(VLOOKUP($A63,Filtros!$A$4:$AK$2906,6,FALSE),0) -> 125 | I63: =IFERROR(VLOOKUP($A63,Filtros!$A$4:$AK$2906,7,FALSE),0) -> 0 | J63: =IFERROR(VLOOKUP($A63,Filtros!$A$4:$AK$2906,8,FALSE),0) -> 0 | K63: =IFERROR(VLOOKUP($A63,Filtros!$A$4:$AK$2906,9,FALSE),0) -> 0 | L63: =IFERROR(VLOOKUP($A63,Filtros!$A$4:$AK$2906,10,FALSE),0) -> 0 | M63: =IFERROR(VLOOKUP($A63,Filtros!$A$4:$AK$2906,11,FALSE),0) -> 0 | N63: =IFERROR(VLOOKUP($A63,Filtros!$A$4:$AK$2906,12,FALSE),0) -> 0 | O63: =IFERROR(VLOOKUP($A63,Filtros!$A$4:$AK$2906,13,FALSE),0) -> 0 | P63: =IFERROR(VLOOKUP($A63,Filtros!$A$4:$AK$2906,14,FALSE),0) -> 0 | Q63: =IFERROR(VLOOKUP($A63,Filtros!$A$4:$AK$2906,15,FALSE),0) -> 0 | R63: =IFERROR(VLOOKUP($A63,Filtros!$A$4:$AK$2906,16,FALSE),0) -> 0 | S63: =IFERROR(VLOOKUP($A63,Filtros!$A$4:$AK$2906,17,FALSE),0) -> 0 | T63: =IFERROR(VLOOKUP($A63,Filtros!$A$4:$AK$2906,18,FALSE),0) -> 0 | U63: =IFERROR(VLOOKUP($A63,Filtros!$A$4:$AK$2906,19,FALSE),0) -> 0 | V63: =IFERROR(VLOOKUP($A63,Filtros!$A$4:$AK$2906,20,FALSE),0) -> 0 | W63: =IFERROR(VLOOKUP($A63,Filtros!$A$4:$AK$2906,21,FALSE),0) -> 0 | X63: =IFERROR(VLOOKUP($A63,Filtros!$A$4:$AK$2906,22,FALSE),0) -> 0 | Y63: =IFERROR(VLOOKUP($A63,Filtros!$A$4:$AK$2906,23,FALSE),0) -> 0 | Z63: =IFERROR(VLOOKUP($A63,Filtros!$A$4:$AK$2906,24,FALSE),0) -> 0 | AA63: =IFERROR(VLOOKUP($A63,Filtros!$A$4:$AK$2906,25,FALSE),0) -> 0 | AB63: =IFERROR(VLOOKUP($A63,Filtros!$A$4:$AK$2906,26,FALSE),0) -> 4450 | AC63: =IFERROR(VLOOKUP($A63,Filtros!$A$4:$AK$2906,27,FALSE),0) -> 8069 | AD63: =IFERROR(VLOOKUP($A63,Filtros!$A$4:$AK$2906,28,FALSE),0) -> 65 | AE63: =IFERROR(VLOOKUP($A63,Filtros!$A$4:$AK$2906,29,FALSE),0) -> 0 | AF63: =IFERROR(VLOOKUP($A63,Filtros!$A$4:$AK$2906,30,FALSE),0) -> 0 | AG63: =IFERROR(VLOOKUP($A63,Filtros!$A$4:$AK$2906,31,FALSE),0) -> 0 | AH63: =IFERROR(VLOOKUP($A63,Filtros!$A$4:$AK$2906,32,FALSE),0) -> 0 | AI63: =IFERROR(VLOOKUP($A63,Filtros!$A$4:$AK$2906,33,FALSE),0) -> 0 | AJ63: =IFERROR(VLOOKUP($A63,Filtros!$A$4:$AK$2906,34,FALSE),0) -> 0 | AK63: =IFERROR(VLOOKUP($A63,Filtros!$A$4:$AK$2906,35,FALSE),0) -> 0 | AL63: =IFERROR(VLOOKUP($A63,Filtros!$A$4:$AK$2906,36,FALSE),0) -> 178,200 | AM63: =IFERROR(VLOOKUP($A63,Filtros!$A$4:$AK$2906,37,FALSE),0) -> 16,819,650
A64: 01014323 | B64: 0102009 | C64: Consulta o control por matrona | D64: =IFERROR(VLOOKUP($A64,Filtros!$A$4:$AK$2906,2,FALSE),0) -> 48454 | E64: =IFERROR(VLOOKUP($A64,Filtros!$A$4:$AK$2906,3,FALSE),0) -> 48212 | F64: =IFERROR(VLOOKUP($A64,Filtros!$A$4:$AK$2906,4,FALSE),0) -> 48212 | G64: =IFERROR(VLOOKUP($A64,Filtros!$A$4:$AK$2906,5,FALSE),0) -> 0 | H64: =IFERROR(VLOOKUP($A64,Filtros!$A$4:$AK$2906,6,FALSE),0) -> 242 | I64: =IFERROR(VLOOKUP($A64,Filtros!$A$4:$AK$2906,7,FALSE),0) -> 0 | J64: =IFERROR(VLOOKUP($A64,Filtros!$A$4:$AK$2906,8,FALSE),0) -> 0 | K64: =IFERROR(VLOOKUP($A64,Filtros!$A$4:$AK$2906,9,FALSE),0) -> 0 | L64: =IFERROR(VLOOKUP($A64,Filtros!$A$4:$AK$2906,10,FALSE),0) -> 0 | M64: =IFERROR(VLOOKUP($A64,Filtros!$A$4:$AK$2906,11,FALSE),0) -> 0 | N64: =IFERROR(VLOOKUP($A64,Filtros!$A$4:$AK$2906,12,FALSE),0) -> 0 | O64: =IFERROR(VLOOKUP($A64,Filtros!$A$4:$AK$2906,13,FALSE),0) -> 0 | P64: =IFERROR(VLOOKUP($A64,Filtros!$A$4:$AK$2906,14,FALSE),0) -> 0 | Q64: =IFERROR(VLOOKUP($A64,Filtros!$A$4:$AK$2906,15,FALSE),0) -> 0 | R64: =IFERROR(VLOOKUP($A64,Filtros!$A$4:$AK$2906,16,FALSE),0) -> 0 | S64: =IFERROR(VLOOKUP($A64,Filtros!$A$4:$AK$2906,17,FALSE),0) -> 0 | T64: =IFERROR(VLOOKUP($A64,Filtros!$A$4:$AK$2906,18,FALSE),0) -> 0 | U64: =IFERROR(VLOOKUP($A64,Filtros!$A$4:$AK$2906,19,FALSE),0) -> 0 | V64: =IFERROR(VLOOKUP($A64,Filtros!$A$4:$AK$2906,20,FALSE),0) -> 0 | W64: =IFERROR(VLOOKUP($A64,Filtros!$A$4:$AK$2906,21,FALSE),0) -> 0 | X64: =IFERROR(VLOOKUP($A64,Filtros!$A$4:$AK$2906,22,FALSE),0) -> 0 | Y64: =IFERROR(VLOOKUP($A64,Filtros!$A$4:$AK$2906,23,FALSE),0) -> 0 | Z64: =IFERROR(VLOOKUP($A64,Filtros!$A$4:$AK$2906,24,FALSE),0) -> 0 | AA64: =IFERROR(VLOOKUP($A64,Filtros!$A$4:$AK$2906,25,FALSE),0) -> 0 | AB64: =IFERROR(VLOOKUP($A64,Filtros!$A$4:$AK$2906,26,FALSE),0) -> 0 | AC64: =IFERROR(VLOOKUP($A64,Filtros!$A$4:$AK$2906,27,FALSE),0) -> 41943 | AD64: =IFERROR(VLOOKUP($A64,Filtros!$A$4:$AK$2906,28,FALSE),0) -> 6336 | AE64: =IFERROR(VLOOKUP($A64,Filtros!$A$4:$AK$2906,29,FALSE),0) -> 0 | AF64: =IFERROR(VLOOKUP($A64,Filtros!$A$4:$AK$2906,30,FALSE),0) -> 0 | AG64: =IFERROR(VLOOKUP($A64,Filtros!$A$4:$AK$2906,31,FALSE),0) -> 0 | AH64: =IFERROR(VLOOKUP($A64,Filtros!$A$4:$AK$2906,32,FALSE),0) -> 0 | AI64: =IFERROR(VLOOKUP($A64,Filtros!$A$4:$AK$2906,33,FALSE),0) -> 0 | AJ64: =IFERROR(VLOOKUP($A64,Filtros!$A$4:$AK$2906,34,FALSE),0) -> 0 | AK64: =IFERROR(VLOOKUP($A64,Filtros!$A$4:$AK$2906,35,FALSE),0) -> 0 | AL64: =IFERROR(VLOOKUP($A64,Filtros!$A$4:$AK$2906,36,FALSE),0) -> 178,200 | AM64: =IFERROR(VLOOKUP($A64,Filtros!$A$4:$AK$2906,37,FALSE),0) -> 65,086,200
A65: 01014324 | B65: 0102010 | C65: Consulta o control por nutricionista | D65: =IFERROR(VLOOKUP($A65,Filtros!$A$4:$AK$2906,2,FALSE),0) -> 24261 | E65: =IFERROR(VLOOKUP($A65,Filtros!$A$4:$AK$2906,3,FALSE),0) -> 24087 | F65: =IFERROR(VLOOKUP($A65,Filtros!$A$4:$AK$2906,4,FALSE),0) -> 24087 | G65: =IFERROR(VLOOKUP($A65,Filtros!$A$4:$AK$2906,5,FALSE),0) -> 0 | H65: =IFERROR(VLOOKUP($A65,Filtros!$A$4:$AK$2906,6,FALSE),0) -> 174 | I65: =IFERROR(VLOOKUP($A65,Filtros!$A$4:$AK$2906,7,FALSE),0) -> 0 | J65: =IFERROR(VLOOKUP($A65,Filtros!$A$4:$AK$2906,8,FALSE),0) -> 0 | K65: =IFERROR(VLOOKUP($A65,Filtros!$A$4:$AK$2906,9,FALSE),0) -> 0 | L65: =IFERROR(VLOOKUP($A65,Filtros!$A$4:$AK$2906,10,FALSE),0) -> 0 | M65: =IFERROR(VLOOKUP($A65,Filtros!$A$4:$AK$2906,11,FALSE),0) -> 0 | N65: =IFERROR(VLOOKUP($A65,Filtros!$A$4:$AK$2906,12,FALSE),0) -> 0 | O65: =IFERROR(VLOOKUP($A65,Filtros!$A$4:$AK$2906,13,FALSE),0) -> 0 | P65: =IFERROR(VLOOKUP($A65,Filtros!$A$4:$AK$2906,14,FALSE),0) -> 0 | Q65: =IFERROR(VLOOKUP($A65,Filtros!$A$4:$AK$2906,15,FALSE),0) -> 0 | R65: =IFERROR(VLOOKUP($A65,Filtros!$A$4:$AK$2906,16,FALSE),0) -> 0 | S65: =IFERROR(VLOOKUP($A65,Filtros!$A$4:$AK$2906,17,FALSE),0) -> 0 | T65: =IFERROR(VLOOKUP($A65,Filtros!$A$4:$AK$2906,18,FALSE),0) -> 0 | U65: =IFERROR(VLOOKUP($A65,Filtros!$A$4:$AK$2906,19,FALSE),0) -> 0 | V65: =IFERROR(VLOOKUP($A65,Filtros!$A$4:$AK$2906,20,FALSE),0) -> 0 | W65: =IFERROR(VLOOKUP($A65,Filtros!$A$4:$AK$2906,21,FALSE),0) -> 0 | X65: =IFERROR(VLOOKUP($A65,Filtros!$A$4:$AK$2906,22,FALSE),0) -> 0 | Y65: =IFERROR(VLOOKUP($A65,Filtros!$A$4:$AK$2906,23,FALSE),0) -> 0 | Z65: =IFERROR(VLOOKUP($A65,Filtros!$A$4:$AK$2906,24,FALSE),0) -> 0 | AA65: =IFERROR(VLOOKUP($A65,Filtros!$A$4:$AK$2906,25,FALSE),0) -> 0 | AB65: =IFERROR(VLOOKUP($A65,Filtros!$A$4:$AK$2906,26,FALSE),0) -> 0 | AC65: =IFERROR(VLOOKUP($A65,Filtros!$A$4:$AK$2906,27,FALSE),0) -> 24008 | AD65: =IFERROR(VLOOKUP($A65,Filtros!$A$4:$AK$2906,28,FALSE),0) -> 0 | AE65: =IFERROR(VLOOKUP($A65,Filtros!$A$4:$AK$2906,29,FALSE),0) -> 0 | AF65: =IFERROR(VLOOKUP($A65,Filtros!$A$4:$AK$2906,30,FALSE),0) -> 0 | AG65: =IFERROR(VLOOKUP($A65,Filtros!$A$4:$AK$2906,31,FALSE),0) -> 0 | AH65: =IFERROR(VLOOKUP($A65,Filtros!$A$4:$AK$2906,32,FALSE),0) -> 0 | AI65: =IFERROR(VLOOKUP($A65,Filtros!$A$4:$AK$2906,33,FALSE),0) -> 0 | AJ65: =IFERROR(VLOOKUP($A65,Filtros!$A$4:$AK$2906,34,FALSE),0) -> 0 | AK65: =IFERROR(VLOOKUP($A65,Filtros!$A$4:$AK$2906,35,FALSE),0) -> 0 | AL65: =IFERROR(VLOOKUP($A65,Filtros!$A$4:$AK$2906,36,FALSE),0) -> 178,200 | AM65: =IFERROR(VLOOKUP($A65,Filtros!$A$4:$AK$2906,37,FALSE),0) -> 32,517,450
C66: TOTAL ARANCEL MAI | D66: =SUM(D60:D65) -> 262177 | E66: =SUM(E60:E65) -> 260465 | F66: =SUM(F60:F65) -> 260235 | G66: =SUM(G60:G65) -> 230 | H66: =SUM(H60:H65) -> 1712 | AB66: =SUM(AB60:AB65) -> 4450 | AC66: 182360 | AD66: 74775 | AE66: 0 | AF66: 0 | AG66: 0 | AH66: 0 | AI66: 0 | AJ66: 0 | AK66: 0 | AL66: 1,181,400 | AM66: 490,807,690
A67: 01010025 | C67: Consulta por otros profesionales | D67: =IFERROR(VLOOKUP($A67,Filtros!$A$4:$AK$2906,2,FALSE),0) -> 36276 | E67: =IFERROR(VLOOKUP($A67,Filtros!$A$4:$AK$2906,3,FALSE),0) -> 33875 | F67: =IFERROR(VLOOKUP($A67,Filtros!$A$4:$AK$2906,4,FALSE),0) -> 33875 | G67: =IFERROR(VLOOKUP($A67,Filtros!$A$4:$AK$2906,5,FALSE),0) -> 0 | H67: =IFERROR(VLOOKUP($A67,Filtros!$A$4:$AK$2906,6,FALSE),0) -> 2401 | I67: =IFERROR(VLOOKUP($A67,Filtros!$A$4:$AK$2906,7,FALSE),0) -> 0 | J67: =IFERROR(VLOOKUP($A67,Filtros!$A$4:$AK$2906,8,FALSE),0) -> 0 | K67: =IFERROR(VLOOKUP($A67,Filtros!$A$4:$AK$2906,9,FALSE),0) -> 0 | L67: =IFERROR(VLOOKUP($A67,Filtros!$A$4:$AK$2906,10,FALSE),0) -> 0 | M67: =IFERROR(VLOOKUP($A67,Filtros!$A$4:$AK$2906,11,FALSE),0) -> 0 | N67: =IFERROR(VLOOKUP($A67,Filtros!$A$4:$AK$2906,12,FALSE),0) -> 0 | O67: =IFERROR(VLOOKUP($A67,Filtros!$A$4:$AK$2906,13,FALSE),0) -> 0 | P67: =IFERROR(VLOOKUP($A67,Filtros!$A$4:$AK$2906,14,FALSE),0) -> 0 | Q67: =IFERROR(VLOOKUP($A67,Filtros!$A$4:$AK$2906,15,FALSE),0) -> 0 | R67: =IFERROR(VLOOKUP($A67,Filtros!$A$4:$AK$2906,16,FALSE),0) -> 0 | S67: =IFERROR(VLOOKUP($A67,Filtros!$A$4:$AK$2906,17,FALSE),0) -> 0 | T67: =IFERROR(VLOOKUP($A67,Filtros!$A$4:$AK$2906,18,FALSE),0) -> 0 | U67: =IFERROR(VLOOKUP($A67,Filtros!$A$4:$AK$2906,19,FALSE),0) -> 0 | V67: =IFERROR(VLOOKUP($A67,Filtros!$A$4:$AK$2906,20,FALSE),0) -> 0 | W67: =IFERROR(VLOOKUP($A67,Filtros!$A$4:$AK$2906,21,FALSE),0) -> 0 | X67: =IFERROR(VLOOKUP($A67,Filtros!$A$4:$AK$2906,22,FALSE),0) -> 0 | Y67: =IFERROR(VLOOKUP($A67,Filtros!$A$4:$AK$2906,23,FALSE),0) -> 0 | Z67: =IFERROR(VLOOKUP($A67,Filtros!$A$4:$AK$2906,24,FALSE),0) -> 0 | AA67: =IFERROR(VLOOKUP($A67,Filtros!$A$4:$AK$2906,25,FALSE),0) -> 0 | AB67: =IFERROR(VLOOKUP($A67,Filtros!$A$4:$AK$2906,26,FALSE),0) -> 0 | AC67: =IFERROR(VLOOKUP($A67,Filtros!$A$4:$AK$2906,27,FALSE),0) -> 35138 | AD67: =IFERROR(VLOOKUP($A67,Filtros!$A$4:$AK$2906,28,FALSE),0) -> 0 | AE67: =IFERROR(VLOOKUP($A67,Filtros!$A$4:$AK$2906,29,FALSE),0) -> 364 | AF67: =IFERROR(VLOOKUP($A67,Filtros!$A$4:$AK$2906,30,FALSE),0) -> 0 | AG67: =IFERROR(VLOOKUP($A67,Filtros!$A$4:$AK$2906,31,FALSE),0) -> 0 | AH67: =IFERROR(VLOOKUP($A67,Filtros!$A$4:$AK$2906,32,FALSE),0) -> 0 | AI67: =IFERROR(VLOOKUP($A67,Filtros!$A$4:$AK$2906,33,FALSE),0) -> 0 | AJ67: =IFERROR(VLOOKUP($A67,Filtros!$A$4:$AK$2906,34,FALSE),0) -> 0 | AK67: =IFERROR(VLOOKUP($A67,Filtros!$A$4:$AK$2906,35,FALSE),0) -> 0 | AL67: =IFERROR(VLOOKUP($A67,Filtros!$A$4:$AK$2906,36,FALSE),0) -> 0 | AM67: =IFERROR(VLOOKUP($A67,Filtros!$A$4:$AK$2906,37,FALSE),0) -> 0
A68: 01012817 | C68: Consulta por Asistente Social | D68: =IFERROR(VLOOKUP($A68,Filtros!$A$4:$AK$2906,2,FALSE),0) -> 12638 | E68: =IFERROR(VLOOKUP($A68,Filtros!$A$4:$AK$2906,3,FALSE),0) -> 12008 | F68: =IFERROR(VLOOKUP($A68,Filtros!$A$4:$AK$2906,4,FALSE),0) -> 12008 | G68: =IFERROR(VLOOKUP($A68,Filtros!$A$4:$AK$2906,5,FALSE),0) -> 0 | H68: =IFERROR(VLOOKUP($A68,Filtros!$A$4:$AK$2906,6,FALSE),0) -> 630 | I68: =IFERROR(VLOOKUP($A68,Filtros!$A$4:$AK$2906,7,FALSE),0) -> 0 | J68: =IFERROR(VLOOKUP($A68,Filtros!$A$4:$AK$2906,8,FALSE),0) -> 0 | K68: =IFERROR(VLOOKUP($A68,Filtros!$A$4:$AK$2906,9,FALSE),0) -> 0 | L68: =IFERROR(VLOOKUP($A68,Filtros!$A$4:$AK$2906,10,FALSE),0) -> 0 | M68: =IFERROR(VLOOKUP($A68,Filtros!$A$4:$AK$2906,11,FALSE),0) -> 0 | N68: =IFERROR(VLOOKUP($A68,Filtros!$A$4:$AK$2906,12,FALSE),0) -> 0 | O68: =IFERROR(VLOOKUP($A68,Filtros!$A$4:$AK$2906,13,FALSE),0) -> 0 | P68: =IFERROR(VLOOKUP($A68,Filtros!$A$4:$AK$2906,14,FALSE),0) -> 0 | Q68: =IFERROR(VLOOKUP($A68,Filtros!$A$4:$AK$2906,15,FALSE),0) -> 0 | R68: =IFERROR(VLOOKUP($A68,Filtros!$A$4:$AK$2906,16,FALSE),0) -> 0 | S68: =IFERROR(VLOOKUP($A68,Filtros!$A$4:$AK$2906,17,FALSE),0) -> 0 | T68: =IFERROR(VLOOKUP($A68,Filtros!$A$4:$AK$2906,18,FALSE),0) -> 0 | U68: =IFERROR(VLOOKUP($A68,Filtros!$A$4:$AK$2906,19,FALSE),0) -> 0 | V68: =IFERROR(VLOOKUP($A68,Filtros!$A$4:$AK$2906,20,FALSE),0) -> 0 | W68: =IFERROR(VLOOKUP($A68,Filtros!$A$4:$AK$2906,21,FALSE),0) -> 0 | X68: =IFERROR(VLOOKUP($A68,Filtros!$A$4:$AK$2906,22,FALSE),0) -> 0 | Y68: =IFERROR(VLOOKUP($A68,Filtros!$A$4:$AK$2906,23,FALSE),0) -> 0 | Z68: =IFERROR(VLOOKUP($A68,Filtros!$A$4:$AK$2906,24,FALSE),0) -> 0 | AA68: =IFERROR(VLOOKUP($A68,Filtros!$A$4:$AK$2906,25,FALSE),0) -> 0 | AB68: =IFERROR(VLOOKUP($A68,Filtros!$A$4:$AK$2906,26,FALSE),0) -> 0 | AC68: =IFERROR(VLOOKUP($A68,Filtros!$A$4:$AK$2906,27,FALSE),0) -> 12427 | AD68: =IFERROR(VLOOKUP($A68,Filtros!$A$4:$AK$2906,28,FALSE),0) -> 0 | AE68: =IFERROR(VLOOKUP($A68,Filtros!$A$4:$AK$2906,29,FALSE),0) -> 0 | AF68: =IFERROR(VLOOKUP($A68,Filtros!$A$4:$AK$2906,30,FALSE),0) -> 0 | AG68: =IFERROR(VLOOKUP($A68,Filtros!$A$4:$AK$2906,31,FALSE),0) -> 0 | AH68: =IFERROR(VLOOKUP($A68,Filtros!$A$4:$AK$2906,32,FALSE),0) -> 0 | AI68: =IFERROR(VLOOKUP($A68,Filtros!$A$4:$AK$2906,33,FALSE),0) -> 0 | AJ68: =IFERROR(VLOOKUP($A68,Filtros!$A$4:$AK$2906,34,FALSE),0) -> 0 | AK68: =IFERROR(VLOOKUP($A68,Filtros!$A$4:$AK$2906,35,FALSE),0) -> 0 | AL68: =IFERROR(VLOOKUP($A68,Filtros!$A$4:$AK$2906,36,FALSE),0) -> 0 | AM68: =IFERROR(VLOOKUP($A68,Filtros!$A$4:$AK$2906,37,FALSE),0) -> 0
C69: TOTAL ARANCEL MLE Y NO ARANCELADO | D69: =SUM(D67:D68) -> 48914 | E69: =SUM(E67:E68) -> 45883 | F69: =SUM(F67:F68) -> 45883 | G69: =SUM(G67:G68) -> 0 | H69: =SUM(H67:H68) -> 3031 | AB69: =SUM(AB67:AB68) -> 0 | AC69: 47565 | AD69: 0 | AE69: 364 | AF69: 0 | AG69: 0 | AH69: 0 | AI69: 0 | AJ69: 0 | AK69: 0
C70: TOTAL PRODUCCION | D70: =SUM(D66+D69) -> 311091 | E70: =SUM(E66+E69) -> 306348 | F70: =SUM(F66+F69) -> 306118 | G70: =SUM(G66+G69) -> 230 | H70: =SUM(H66+H69) -> 4743 | AB70: =SUM(AB66+AB69) -> 4450 | AC70: 229925 | AD70: 74775 | AE70: 364 | AF70: 0 | AG70: 0 | AH70: 0 | AI70: 0 | AJ70: 0 | AK70: 0 | AL70: 1,181,400 | AM70: 490,807,690
C71: TELEMEDICINA POR PROFESIONALES MÉDICOS
C72: TELECONSULTAS
A73: 01013100 | B73: 0108001 | C73: Teleconsulta Medicina General | D73: =IFERROR(VLOOKUP($A73,Filtros!$A$4:$AK$2906,2,FALSE),0) -> 52 | E73: =IFERROR(VLOOKUP($A73,Filtros!$A$4:$AK$2906,3,FALSE),0) -> 52 | F73: =IFERROR(VLOOKUP($A73,Filtros!$A$4:$AK$2906,4,FALSE),0) -> 52 | G73: =IFERROR(VLOOKUP($A73,Filtros!$A$4:$AK$2906,5,FALSE),0) -> 0 | H73: =IFERROR(VLOOKUP($A73,Filtros!$A$4:$AK$2906,6,FALSE),0) -> 0 | I73: =IFERROR(VLOOKUP($A73,Filtros!$A$4:$AK$2906,7,FALSE),0) -> 0 | J73: =IFERROR(VLOOKUP($A73,Filtros!$A$4:$AK$2906,8,FALSE),0) -> 0 | K73: =IFERROR(VLOOKUP($A73,Filtros!$A$4:$AK$2906,9,FALSE),0) -> 0 | L73: =IFERROR(VLOOKUP($A73,Filtros!$A$4:$AK$2906,10,FALSE),0) -> 0 | M73: =IFERROR(VLOOKUP($A73,Filtros!$A$4:$AK$2906,11,FALSE),0) -> 0 | N73: =IFERROR(VLOOKUP($A73,Filtros!$A$4:$AK$2906,12,FALSE),0) -> 0 | O73: =IFERROR(VLOOKUP($A73,Filtros!$A$4:$AK$2906,13,FALSE),0) -> 0 | P73: =IFERROR(VLOOKUP($A73,Filtros!$A$4:$AK$2906,14,FALSE),0) -> 0 | Q73: =IFERROR(VLOOKUP($A73,Filtros!$A$4:$AK$2906,15,FALSE),0) -> 0 | R73: =IFERROR(VLOOKUP($A73,Filtros!$A$4:$AK$2906,16,FALSE),0) -> 0 | S73: =IFERROR(VLOOKUP($A73,Filtros!$A$4:$AK$2906,17,FALSE),0) -> 0 | T73: =IFERROR(VLOOKUP($A73,Filtros!$A$4:$AK$2906,18,FALSE),0) -> 0 | U73: =IFERROR(VLOOKUP($A73,Filtros!$A$4:$AK$2906,19,FALSE),0) -> 0 | V73: =IFERROR(VLOOKUP($A73,Filtros!$A$4:$AK$2906,20,FALSE),0) -> 0 | W73: =IFERROR(VLOOKUP($A73,Filtros!$A$4:$AK$2906,21,FALSE),0) -> 0 | X73: =IFERROR(VLOOKUP($A73,Filtros!$A$4:$AK$2906,22,FALSE),0) -> 0 | Y73: =IFERROR(VLOOKUP($A73,Filtros!$A$4:$AK$2906,23,FALSE),0) -> 0 | Z73: =IFERROR(VLOOKUP($A73,Filtros!$A$4:$AK$2906,24,FALSE),0) -> 0 | AA73: =IFERROR(VLOOKUP($A73,Filtros!$A$4:$AK$2906,25,FALSE),0) -> 0 | AB73: =IFERROR(VLOOKUP($A73,Filtros!$A$4:$AK$2906,26,FALSE),0) -> 0 | AC73: =IFERROR(VLOOKUP($A73,Filtros!$A$4:$AK$2906,27,FALSE),0) -> 8 | AD73: =IFERROR(VLOOKUP($A73,Filtros!$A$4:$AK$2906,28,FALSE),0) -> 44 | AE73: =IFERROR(VLOOKUP($A73,Filtros!$A$4:$AK$2906,29,FALSE),0) -> 0 | AF73: =IFERROR(VLOOKUP($A73,Filtros!$A$4:$AK$2906,30,FALSE),0) -> 0 | AG73: =IFERROR(VLOOKUP($A73,Filtros!$A$4:$AK$2906,31,FALSE),0) -> 0 | AH73: =IFERROR(VLOOKUP($A73,Filtros!$A$4:$AK$2906,32,FALSE),0) -> 0 | AI73: =IFERROR(VLOOKUP($A73,Filtros!$A$4:$AK$2906,33,FALSE),0) -> 0 | AJ73: =IFERROR(VLOOKUP($A73,Filtros!$A$4:$AK$2906,34,FALSE),0) -> 0 | AK73: =IFERROR(VLOOKUP($A73,Filtros!$A$4:$AK$2906,35,FALSE),0) -> 0 | AL73: =IFERROR(VLOOKUP($A73,Filtros!$A$4:$AK$2906,36,FALSE),0) -> 669,240 | AM73: =IFERROR(VLOOKUP($A73,Filtros!$A$4:$AK$2906,37,FALSE),0) -> 263,640
A74: 01014325 | B74: 0108201 | C74: Teleconsulta Médica de Especialidad en Dermatología | D74: =IFERROR(VLOOKUP($A74,Filtros!$A$4:$AK$2906,2,FALSE),0) -> 148 | E74: =IFERROR(VLOOKUP($A74,Filtros!$A$4:$AK$2906,3,FALSE),0) -> 148 | F74: =IFERROR(VLOOKUP($A74,Filtros!$A$4:$AK$2906,4,FALSE),0) -> 148 | G74: =IFERROR(VLOOKUP($A74,Filtros!$A$4:$AK$2906,5,FALSE),0) -> 0 | H74: =IFERROR(VLOOKUP($A74,Filtros!$A$4:$AK$2906,6,FALSE),0) -> 0 | I74: =IFERROR(VLOOKUP($A74,Filtros!$A$4:$AK$2906,7,FALSE),0) -> 0 | J74: =IFERROR(VLOOKUP($A74,Filtros!$A$4:$AK$2906,8,FALSE),0) -> 0 | K74: =IFERROR(VLOOKUP($A74,Filtros!$A$4:$AK$2906,9,FALSE),0) -> 0 | L74: =IFERROR(VLOOKUP($A74,Filtros!$A$4:$AK$2906,10,FALSE),0) -> 0 | M74: =IFERROR(VLOOKUP($A74,Filtros!$A$4:$AK$2906,11,FALSE),0) -> 0 | N74: =IFERROR(VLOOKUP($A74,Filtros!$A$4:$AK$2906,12,FALSE),0) -> 0 | O74: =IFERROR(VLOOKUP($A74,Filtros!$A$4:$AK$2906,13,FALSE),0) -> 0 | P74: =IFERROR(VLOOKUP($A74,Filtros!$A$4:$AK$2906,14,FALSE),0) -> 0 | Q74: =IFERROR(VLOOKUP($A74,Filtros!$A$4:$AK$2906,15,FALSE),0) -> 0 | R74: =IFERROR(VLOOKUP($A74,Filtros!$A$4:$AK$2906,16,FALSE),0) -> 0 | S74: =IFERROR(VLOOKUP($A74,Filtros!$A$4:$AK$2906,17,FALSE),0) -> 0 | T74: =IFERROR(VLOOKUP($A74,Filtros!$A$4:$AK$2906,18,FALSE),0) -> 0 | U74: =IFERROR(VLOOKUP($A74,Filtros!$A$4:$AK$2906,19,FALSE),0) -> 0 | V74: =IFERROR(VLOOKUP($A74,Filtros!$A$4:$AK$2906,20,FALSE),0) -> 0 | W74: =IFERROR(VLOOKUP($A74,Filtros!$A$4:$AK$2906,21,FALSE),0) -> 0 | X74: =IFERROR(VLOOKUP($A74,Filtros!$A$4:$AK$2906,22,FALSE),0) -> 0 | Y74: =IFERROR(VLOOKUP($A74,Filtros!$A$4:$AK$2906,23,FALSE),0) -> 0 | Z74: =IFERROR(VLOOKUP($A74,Filtros!$A$4:$AK$2906,24,FALSE),0) -> 0 | AA74: =IFERROR(VLOOKUP($A74,Filtros!$A$4:$AK$2906,25,FALSE),0) -> 0 | AB74: =IFERROR(VLOOKUP($A74,Filtros!$A$4:$AK$2906,26,FALSE),0) -> 0 | AC74: =IFERROR(VLOOKUP($A74,Filtros!$A$4:$AK$2906,27,FALSE),0) -> 148 | AD74: =IFERROR(VLOOKUP($A74,Filtros!$A$4:$AK$2906,28,FALSE),0) -> 0 | AE74: =IFERROR(VLOOKUP($A74,Filtros!$A$4:$AK$2906,29,FALSE),0) -> 0 | AF74: =IFERROR(VLOOKUP($A74,Filtros!$A$4:$AK$2906,30,FALSE),0) -> 0 | AG74: =IFERROR(VLOOKUP($A74,Filtros!$A$4:$AK$2906,31,FALSE),0) -> 0 | AH74: =IFERROR(VLOOKUP($A74,Filtros!$A$4:$AK$2906,32,FALSE),0) -> 0 | AI74: =IFERROR(VLOOKUP($A74,Filtros!$A$4:$AK$2906,33,FALSE),0) -> 0 | AJ74: =IFERROR(VLOOKUP($A74,Filtros!$A$4:$AK$2906,34,FALSE),0) -> 0 | AK74: =IFERROR(VLOOKUP($A74,Filtros!$A$4:$AK$2906,35,FALSE),0) -> 0 | AL74: =IFERROR(VLOOKUP($A74,Filtros!$A$4:$AK$2906,36,FALSE),0) -> 951,720 | AM74: =IFERROR(VLOOKUP($A74,Filtros!$A$4:$AK$2906,37,FALSE),0) -> 1,067,080
A75: 01014326 | B75: 0108202 | C75: Teleconsulta Médica de Especialidad en Geriatría | D75: =IFERROR(VLOOKUP($A75,Filtros!$A$4:$AK$2906,2,FALSE),0) -> 0 | E75: =IFERROR(VLOOKUP($A75,Filtros!$A$4:$AK$2906,3,FALSE),0) -> 0 | F75: =IFERROR(VLOOKUP($A75,Filtros!$A$4:$AK$2906,4,FALSE),0) -> 0 | G75: =IFERROR(VLOOKUP($A75,Filtros!$A$4:$AK$2906,5,FALSE),0) -> 0 | H75: =IFERROR(VLOOKUP($A75,Filtros!$A$4:$AK$2906,6,FALSE),0) -> 0 | I75: =IFERROR(VLOOKUP($A75,Filtros!$A$4:$AK$2906,7,FALSE),0) -> 0 | J75: =IFERROR(VLOOKUP($A75,Filtros!$A$4:$AK$2906,8,FALSE),0) -> 0 | K75: =IFERROR(VLOOKUP($A75,Filtros!$A$4:$AK$2906,9,FALSE),0) -> 0 | L75: =IFERROR(VLOOKUP($A75,Filtros!$A$4:$AK$2906,10,FALSE),0) -> 0 | M75: =IFERROR(VLOOKUP($A75,Filtros!$A$4:$AK$2906,11,FALSE),0) -> 0 | N75: =IFERROR(VLOOKUP($A75,Filtros!$A$4:$AK$2906,12,FALSE),0) -> 0 | O75: =IFERROR(VLOOKUP($A75,Filtros!$A$4:$AK$2906,13,FALSE),0) -> 0 | P75: =IFERROR(VLOOKUP($A75,Filtros!$A$4:$AK$2906,14,FALSE),0) -> 0 | Q75: =IFERROR(VLOOKUP($A75,Filtros!$A$4:$AK$2906,15,FALSE),0) -> 0 | R75: =IFERROR(VLOOKUP($A75,Filtros!$A$4:$AK$2906,16,FALSE),0) -> 0 | S75: =IFERROR(VLOOKUP($A75,Filtros!$A$4:$AK$2906,17,FALSE),0) -> 0 | T75: =IFERROR(VLOOKUP($A75,Filtros!$A$4:$AK$2906,18,FALSE),0) -> 0 | U75: =IFERROR(VLOOKUP($A75,Filtros!$A$4:$AK$2906,19,FALSE),0) -> 0 | V75: =IFERROR(VLOOKUP($A75,Filtros!$A$4:$AK$2906,20,FALSE),0) -> 0 | W75: =IFERROR(VLOOKUP($A75,Filtros!$A$4:$AK$2906,21,FALSE),0) -> 0 | X75: =IFERROR(VLOOKUP($A75,Filtros!$A$4:$AK$2906,22,FALSE),0) -> 0 | Y75: =IFERROR(VLOOKUP($A75,Filtros!$A$4:$AK$2906,23,FALSE),0) -> 0 | Z75: =IFERROR(VLOOKUP($A75,Filtros!$A$4:$AK$2906,24,FALSE),0) -> 0 | AA75: =IFERROR(VLOOKUP($A75,Filtros!$A$4:$AK$2906,25,FALSE),0) -> 0 | AB75: =IFERROR(VLOOKUP($A75,Filtros!$A$4:$AK$2906,26,FALSE),0) -> 0 | AC75: =IFERROR(VLOOKUP($A75,Filtros!$A$4:$AK$2906,27,FALSE),0) -> 0 | AD75: =IFERROR(VLOOKUP($A75,Filtros!$A$4:$AK$2906,28,FALSE),0) -> 0 | AE75: =IFERROR(VLOOKUP($A75,Filtros!$A$4:$AK$2906,29,FALSE),0) -> 0 | AF75: =IFERROR(VLOOKUP($A75,Filtros!$A$4:$AK$2906,30,FALSE),0) -> 0 | AG75: =IFERROR(VLOOKUP($A75,Filtros!$A$4:$AK$2906,31,FALSE),0) -> 0 | AH75: =IFERROR(VLOOKUP($A75,Filtros!$A$4:$AK$2906,32,FALSE),0) -> 0 | AI75: =IFERROR(VLOOKUP($A75,Filtros!$A$4:$AK$2906,33,FALSE),0) -> 0 | AJ75: =IFERROR(VLOOKUP($A75,Filtros!$A$4:$AK$2906,34,FALSE),0) -> 0 | AK75: =IFERROR(VLOOKUP($A75,Filtros!$A$4:$AK$2906,35,FALSE),0) -> 0 | AL75: =IFERROR(VLOOKUP($A75,Filtros!$A$4:$AK$2906,36,FALSE),0) -> 951,720 | AM75: =IFERROR(VLOOKUP($A75,Filtros!$A$4:$AK$2906,37,FALSE),0) -> 0
A76: 01014327 | B76: 0108206 | C76: Teleconsulta Médica de Especialidad en Reumatología | D76: =IFERROR(VLOOKUP($A76,Filtros!$A$4:$AK$2906,2,FALSE),0) -> 300 | E76: =IFERROR(VLOOKUP($A76,Filtros!$A$4:$AK$2906,3,FALSE),0) -> 300 | F76: =IFERROR(VLOOKUP($A76,Filtros!$A$4:$AK$2906,4,FALSE),0) -> 300 | G76: =IFERROR(VLOOKUP($A76,Filtros!$A$4:$AK$2906,5,FALSE),0) -> 0 | H76: =IFERROR(VLOOKUP($A76,Filtros!$A$4:$AK$2906,6,FALSE),0) -> 0 | I76: =IFERROR(VLOOKUP($A76,Filtros!$A$4:$AK$2906,7,FALSE),0) -> 0 | J76: =IFERROR(VLOOKUP($A76,Filtros!$A$4:$AK$2906,8,FALSE),0) -> 0 | K76: =IFERROR(VLOOKUP($A76,Filtros!$A$4:$AK$2906,9,FALSE),0) -> 0 | L76: =IFERROR(VLOOKUP($A76,Filtros!$A$4:$AK$2906,10,FALSE),0) -> 0 | M76: =IFERROR(VLOOKUP($A76,Filtros!$A$4:$AK$2906,11,FALSE),0) -> 0 | N76: =IFERROR(VLOOKUP($A76,Filtros!$A$4:$AK$2906,12,FALSE),0) -> 0 | O76: =IFERROR(VLOOKUP($A76,Filtros!$A$4:$AK$2906,13,FALSE),0) -> 0 | P76: =IFERROR(VLOOKUP($A76,Filtros!$A$4:$AK$2906,14,FALSE),0) -> 0 | Q76: =IFERROR(VLOOKUP($A76,Filtros!$A$4:$AK$2906,15,FALSE),0) -> 0 | R76: =IFERROR(VLOOKUP($A76,Filtros!$A$4:$AK$2906,16,FALSE),0) -> 0 | S76: =IFERROR(VLOOKUP($A76,Filtros!$A$4:$AK$2906,17,FALSE),0) -> 0 | T76: =IFERROR(VLOOKUP($A76,Filtros!$A$4:$AK$2906,18,FALSE),0) -> 0 | U76: =IFERROR(VLOOKUP($A76,Filtros!$A$4:$AK$2906,19,FALSE),0) -> 0 | V76: =IFERROR(VLOOKUP($A76,Filtros!$A$4:$AK$2906,20,FALSE),0) -> 0 | W76: =IFERROR(VLOOKUP($A76,Filtros!$A$4:$AK$2906,21,FALSE),0) -> 0 | X76: =IFERROR(VLOOKUP($A76,Filtros!$A$4:$AK$2906,22,FALSE),0) -> 0 | Y76: =IFERROR(VLOOKUP($A76,Filtros!$A$4:$AK$2906,23,FALSE),0) -> 0 | Z76: =IFERROR(VLOOKUP($A76,Filtros!$A$4:$AK$2906,24,FALSE),0) -> 0 | AA76: =IFERROR(VLOOKUP($A76,Filtros!$A$4:$AK$2906,25,FALSE),0) -> 0 | AB76: =IFERROR(VLOOKUP($A76,Filtros!$A$4:$AK$2906,26,FALSE),0) -> 0 | AC76: =IFERROR(VLOOKUP($A76,Filtros!$A$4:$AK$2906,27,FALSE),0) -> 300 | AD76: =IFERROR(VLOOKUP($A76,Filtros!$A$4:$AK$2906,28,FALSE),0) -> 0 | AE76: =IFERROR(VLOOKUP($A76,Filtros!$A$4:$AK$2906,29,FALSE),0) -> 0 | AF76: =IFERROR(VLOOKUP($A76,Filtros!$A$4:$AK$2906,30,FALSE),0) -> 0 | AG76: =IFERROR(VLOOKUP($A76,Filtros!$A$4:$AK$2906,31,FALSE),0) -> 0 | AH76: =IFERROR(VLOOKUP($A76,Filtros!$A$4:$AK$2906,32,FALSE),0) -> 0 | AI76: =IFERROR(VLOOKUP($A76,Filtros!$A$4:$AK$2906,33,FALSE),0) -> 0 | AJ76: =IFERROR(VLOOKUP($A76,Filtros!$A$4:$AK$2906,34,FALSE),0) -> 0 | AK76: =IFERROR(VLOOKUP($A76,Filtros!$A$4:$AK$2906,35,FALSE),0) -> 0 | AL76: =IFERROR(VLOOKUP($A76,Filtros!$A$4:$AK$2906,36,FALSE),0) -> 951,720 | AM76: =IFERROR(VLOOKUP($A76,Filtros!$A$4:$AK$2906,37,FALSE),0) -> 2,163,000
A77: 01014328 | B77: 0108207 | C77: Teleconsulta Médica de Especialidad en Endocrinología Adulto | D77: =IFERROR(VLOOKUP($A77,Filtros!$A$4:$AK$2906,2,FALSE),0) -> 449 | E77: =IFERROR(VLOOKUP($A77,Filtros!$A$4:$AK$2906,3,FALSE),0) -> 449 | F77: =IFERROR(VLOOKUP($A77,Filtros!$A$4:$AK$2906,4,FALSE),0) -> 449 | G77: =IFERROR(VLOOKUP($A77,Filtros!$A$4:$AK$2906,5,FALSE),0) -> 0 | H77: =IFERROR(VLOOKUP($A77,Filtros!$A$4:$AK$2906,6,FALSE),0) -> 0 | I77: =IFERROR(VLOOKUP($A77,Filtros!$A$4:$AK$2906,7,FALSE),0) -> 0 | J77: =IFERROR(VLOOKUP($A77,Filtros!$A$4:$AK$2906,8,FALSE),0) -> 0 | K77: =IFERROR(VLOOKUP($A77,Filtros!$A$4:$AK$2906,9,FALSE),0) -> 0 | L77: =IFERROR(VLOOKUP($A77,Filtros!$A$4:$AK$2906,10,FALSE),0) -> 0 | M77: =IFERROR(VLOOKUP($A77,Filtros!$A$4:$AK$2906,11,FALSE),0) -> 0 | N77: =IFERROR(VLOOKUP($A77,Filtros!$A$4:$AK$2906,12,FALSE),0) -> 0 | O77: =IFERROR(VLOOKUP($A77,Filtros!$A$4:$AK$2906,13,FALSE),0) -> 0 | P77: =IFERROR(VLOOKUP($A77,Filtros!$A$4:$AK$2906,14,FALSE),0) -> 0 | Q77: =IFERROR(VLOOKUP($A77,Filtros!$A$4:$AK$2906,15,FALSE),0) -> 0 | R77: =IFERROR(VLOOKUP($A77,Filtros!$A$4:$AK$2906,16,FALSE),0) -> 0 | S77: =IFERROR(VLOOKUP($A77,Filtros!$A$4:$AK$2906,17,FALSE),0) -> 0 | T77: =IFERROR(VLOOKUP($A77,Filtros!$A$4:$AK$2906,18,FALSE),0) -> 0 | U77: =IFERROR(VLOOKUP($A77,Filtros!$A$4:$AK$2906,19,FALSE),0) -> 0 | V77: =IFERROR(VLOOKUP($A77,Filtros!$A$4:$AK$2906,20,FALSE),0) -> 0 | W77: =IFERROR(VLOOKUP($A77,Filtros!$A$4:$AK$2906,21,FALSE),0) -> 0 | X77: =IFERROR(VLOOKUP($A77,Filtros!$A$4:$AK$2906,22,FALSE),0) -> 0 | Y77: =IFERROR(VLOOKUP($A77,Filtros!$A$4:$AK$2906,23,FALSE),0) -> 0 | Z77: =IFERROR(VLOOKUP($A77,Filtros!$A$4:$AK$2906,24,FALSE),0) -> 0 | AA77: =IFERROR(VLOOKUP($A77,Filtros!$A$4:$AK$2906,25,FALSE),0) -> 0 | AB77: =IFERROR(VLOOKUP($A77,Filtros!$A$4:$AK$2906,26,FALSE),0) -> 0 | AC77: =IFERROR(VLOOKUP($A77,Filtros!$A$4:$AK$2906,27,FALSE),0) -> 449 | AD77: =IFERROR(VLOOKUP($A77,Filtros!$A$4:$AK$2906,28,FALSE),0) -> 0 | AE77: =IFERROR(VLOOKUP($A77,Filtros!$A$4:$AK$2906,29,FALSE),0) -> 0 | AF77: =IFERROR(VLOOKUP($A77,Filtros!$A$4:$AK$2906,30,FALSE),0) -> 0 | AG77: =IFERROR(VLOOKUP($A77,Filtros!$A$4:$AK$2906,31,FALSE),0) -> 0 | AH77: =IFERROR(VLOOKUP($A77,Filtros!$A$4:$AK$2906,32,FALSE),0) -> 0 | AI77: =IFERROR(VLOOKUP($A77,Filtros!$A$4:$AK$2906,33,FALSE),0) -> 0 | AJ77: =IFERROR(VLOOKUP($A77,Filtros!$A$4:$AK$2906,34,FALSE),0) -> 0 | AK77: =IFERROR(VLOOKUP($A77,Filtros!$A$4:$AK$2906,35,FALSE),0) -> 0 | AL77: =IFERROR(VLOOKUP($A77,Filtros!$A$4:$AK$2906,36,FALSE),0) -> 951,720 | AM77: =IFERROR(VLOOKUP($A77,Filtros!$A$4:$AK$2906,37,FALSE),0) -> 3,237,290
A78: 01014329 | B78: 0108208 | C78: Teleconsulta Médica de Especialidad en Endocrinología Pediátrica | D78: =IFERROR(VLOOKUP($A78,Filtros!$A$4:$AK$2906,2,FALSE),0) -> 202 | E78: =IFERROR(VLOOKUP($A78,Filtros!$A$4:$AK$2906,3,FALSE),0) -> 202 | F78: =IFERROR(VLOOKUP($A78,Filtros!$A$4:$AK$2906,4,FALSE),0) -> 202 | G78: =IFERROR(VLOOKUP($A78,Filtros!$A$4:$AK$2906,5,FALSE),0) -> 0 | H78: =IFERROR(VLOOKUP($A78,Filtros!$A$4:$AK$2906,6,FALSE),0) -> 0 | I78: =IFERROR(VLOOKUP($A78,Filtros!$A$4:$AK$2906,7,FALSE),0) -> 0 | J78: =IFERROR(VLOOKUP($A78,Filtros!$A$4:$AK$2906,8,FALSE),0) -> 0 | K78: =IFERROR(VLOOKUP($A78,Filtros!$A$4:$AK$2906,9,FALSE),0) -> 0 | L78: =IFERROR(VLOOKUP($A78,Filtros!$A$4:$AK$2906,10,FALSE),0) -> 0 | M78: =IFERROR(VLOOKUP($A78,Filtros!$A$4:$AK$2906,11,FALSE),0) -> 0 | N78: =IFERROR(VLOOKUP($A78,Filtros!$A$4:$AK$2906,12,FALSE),0) -> 0 | O78: =IFERROR(VLOOKUP($A78,Filtros!$A$4:$AK$2906,13,FALSE),0) -> 0 | P78: =IFERROR(VLOOKUP($A78,Filtros!$A$4:$AK$2906,14,FALSE),0) -> 0 | Q78: =IFERROR(VLOOKUP($A78,Filtros!$A$4:$AK$2906,15,FALSE),0) -> 0 | R78: =IFERROR(VLOOKUP($A78,Filtros!$A$4:$AK$2906,16,FALSE),0) -> 0 | S78: =IFERROR(VLOOKUP($A78,Filtros!$A$4:$AK$2906,17,FALSE),0) -> 0 | T78: =IFERROR(VLOOKUP($A78,Filtros!$A$4:$AK$2906,18,FALSE),0) -> 0 | U78: =IFERROR(VLOOKUP($A78,Filtros!$A$4:$AK$2906,19,FALSE),0) -> 0 | V78: =IFERROR(VLOOKUP($A78,Filtros!$A$4:$AK$2906,20,FALSE),0) -> 0 | W78: =IFERROR(VLOOKUP($A78,Filtros!$A$4:$AK$2906,21,FALSE),0) -> 0 | X78: =IFERROR(VLOOKUP($A78,Filtros!$A$4:$AK$2906,22,FALSE),0) -> 0 | Y78: =IFERROR(VLOOKUP($A78,Filtros!$A$4:$AK$2906,23,FALSE),0) -> 0 | Z78: =IFERROR(VLOOKUP($A78,Filtros!$A$4:$AK$2906,24,FALSE),0) -> 0 | AA78: =IFERROR(VLOOKUP($A78,Filtros!$A$4:$AK$2906,25,FALSE),0) -> 0 | AB78: =IFERROR(VLOOKUP($A78,Filtros!$A$4:$AK$2906,26,FALSE),0) -> 0 | AC78: =IFERROR(VLOOKUP($A78,Filtros!$A$4:$AK$2906,27,FALSE),0) -> 202 | AD78: =IFERROR(VLOOKUP($A78,Filtros!$A$4:$AK$2906,28,FALSE),0) -> 0 | AE78: =IFERROR(VLOOKUP($A78,Filtros!$A$4:$AK$2906,29,FALSE),0) -> 0 | AF78: =IFERROR(VLOOKUP($A78,Filtros!$A$4:$AK$2906,30,FALSE),0) -> 0 | AG78: =IFERROR(VLOOKUP($A78,Filtros!$A$4:$AK$2906,31,FALSE),0) -> 0 | AH78: =IFERROR(VLOOKUP($A78,Filtros!$A$4:$AK$2906,32,FALSE),0) -> 0 | AI78: =IFERROR(VLOOKUP($A78,Filtros!$A$4:$AK$2906,33,FALSE),0) -> 0 | AJ78: =IFERROR(VLOOKUP($A78,Filtros!$A$4:$AK$2906,34,FALSE),0) -> 0 | AK78: =IFERROR(VLOOKUP($A78,Filtros!$A$4:$AK$2906,35,FALSE),0) -> 0 | AL78: =IFERROR(VLOOKUP($A78,Filtros!$A$4:$AK$2906,36,FALSE),0) -> 951,720 | AM78: =IFERROR(VLOOKUP($A78,Filtros!$A$4:$AK$2906,37,FALSE),0) -> 1,456,420
A79: 01014330 | B79: 0108209 | C79: Teleconsulta Médica de Especialidad en Neurología Adultos | D79: =IFERROR(VLOOKUP($A79,Filtros!$A$4:$AK$2906,2,FALSE),0) -> 249 | E79: =IFERROR(VLOOKUP($A79,Filtros!$A$4:$AK$2906,3,FALSE),0) -> 249 | F79: =IFERROR(VLOOKUP($A79,Filtros!$A$4:$AK$2906,4,FALSE),0) -> 249 | G79: =IFERROR(VLOOKUP($A79,Filtros!$A$4:$AK$2906,5,FALSE),0) -> 0 | H79: =IFERROR(VLOOKUP($A79,Filtros!$A$4:$AK$2906,6,FALSE),0) -> 0 | I79: =IFERROR(VLOOKUP($A79,Filtros!$A$4:$AK$2906,7,FALSE),0) -> 0 | J79: =IFERROR(VLOOKUP($A79,Filtros!$A$4:$AK$2906,8,FALSE),0) -> 0 | K79: =IFERROR(VLOOKUP($A79,Filtros!$A$4:$AK$2906,9,FALSE),0) -> 0 | L79: =IFERROR(VLOOKUP($A79,Filtros!$A$4:$AK$2906,10,FALSE),0) -> 0 | M79: =IFERROR(VLOOKUP($A79,Filtros!$A$4:$AK$2906,11,FALSE),0) -> 0 | N79: =IFERROR(VLOOKUP($A79,Filtros!$A$4:$AK$2906,12,FALSE),0) -> 0 | O79: =IFERROR(VLOOKUP($A79,Filtros!$A$4:$AK$2906,13,FALSE),0) -> 0 | P79: =IFERROR(VLOOKUP($A79,Filtros!$A$4:$AK$2906,14,FALSE),0) -> 0 | Q79: =IFERROR(VLOOKUP($A79,Filtros!$A$4:$AK$2906,15,FALSE),0) -> 0 | R79: =IFERROR(VLOOKUP($A79,Filtros!$A$4:$AK$2906,16,FALSE),0) -> 0 | S79: =IFERROR(VLOOKUP($A79,Filtros!$A$4:$AK$2906,17,FALSE),0) -> 0 | T79: =IFERROR(VLOOKUP($A79,Filtros!$A$4:$AK$2906,18,FALSE),0) -> 0 | U79: =IFERROR(VLOOKUP($A79,Filtros!$A$4:$AK$2906,19,FALSE),0) -> 0 | V79: =IFERROR(VLOOKUP($A79,Filtros!$A$4:$AK$2906,20,FALSE),0) -> 0 | W79: =IFERROR(VLOOKUP($A79,Filtros!$A$4:$AK$2906,21,FALSE),0) -> 0 | X79: =IFERROR(VLOOKUP($A79,Filtros!$A$4:$AK$2906,22,FALSE),0) -> 0 | Y79: =IFERROR(VLOOKUP($A79,Filtros!$A$4:$AK$2906,23,FALSE),0) -> 0 | Z79: =IFERROR(VLOOKUP($A79,Filtros!$A$4:$AK$2906,24,FALSE),0) -> 0 | AA79: =IFERROR(VLOOKUP($A79,Filtros!$A$4:$AK$2906,25,FALSE),0) -> 0 | AB79: =IFERROR(VLOOKUP($A79,Filtros!$A$4:$AK$2906,26,FALSE),0) -> 24 | AC79: =IFERROR(VLOOKUP($A79,Filtros!$A$4:$AK$2906,27,FALSE),0) -> 225 | AD79: =IFERROR(VLOOKUP($A79,Filtros!$A$4:$AK$2906,28,FALSE),0) -> 0 | AE79: =IFERROR(VLOOKUP($A79,Filtros!$A$4:$AK$2906,29,FALSE),0) -> 0 | AF79: =IFERROR(VLOOKUP($A79,Filtros!$A$4:$AK$2906,30,FALSE),0) -> 0 | AG79: =IFERROR(VLOOKUP($A79,Filtros!$A$4:$AK$2906,31,FALSE),0) -> 0 | AH79: =IFERROR(VLOOKUP($A79,Filtros!$A$4:$AK$2906,32,FALSE),0) -> 0 | AI79: =IFERROR(VLOOKUP($A79,Filtros!$A$4:$AK$2906,33,FALSE),0) -> 0 | AJ79: =IFERROR(VLOOKUP($A79,Filtros!$A$4:$AK$2906,34,FALSE),0) -> 0 | AK79: =IFERROR(VLOOKUP($A79,Filtros!$A$4:$AK$2906,35,FALSE),0) -> 0 | AL79: =IFERROR(VLOOKUP($A79,Filtros!$A$4:$AK$2906,36,FALSE),0) -> 951,720 | AM79: =IFERROR(VLOOKUP($A79,Filtros!$A$4:$AK$2906,37,FALSE),0) -> 1,795,290
A80: 01014331 | B80: 0108210 | C80: Teleconsulta Médica de Especialidad en Neurología Pediátrica | D80: =IFERROR(VLOOKUP($A80,Filtros!$A$4:$AK$2906,2,FALSE),0) -> 188 | E80: =IFERROR(VLOOKUP($A80,Filtros!$A$4:$AK$2906,3,FALSE),0) -> 188 | F80: =IFERROR(VLOOKUP($A80,Filtros!$A$4:$AK$2906,4,FALSE),0) -> 188 | G80: =IFERROR(VLOOKUP($A80,Filtros!$A$4:$AK$2906,5,FALSE),0) -> 0 | H80: =IFERROR(VLOOKUP($A80,Filtros!$A$4:$AK$2906,6,FALSE),0) -> 0 | I80: =IFERROR(VLOOKUP($A80,Filtros!$A$4:$AK$2906,7,FALSE),0) -> 0 | J80: =IFERROR(VLOOKUP($A80,Filtros!$A$4:$AK$2906,8,FALSE),0) -> 0 | K80: =IFERROR(VLOOKUP($A80,Filtros!$A$4:$AK$2906,9,FALSE),0) -> 0 | L80: =IFERROR(VLOOKUP($A80,Filtros!$A$4:$AK$2906,10,FALSE),0) -> 0 | M80: =IFERROR(VLOOKUP($A80,Filtros!$A$4:$AK$2906,11,FALSE),0) -> 0 | N80: =IFERROR(VLOOKUP($A80,Filtros!$A$4:$AK$2906,12,FALSE),0) -> 0 | O80: =IFERROR(VLOOKUP($A80,Filtros!$A$4:$AK$2906,13,FALSE),0) -> 0 | P80: =IFERROR(VLOOKUP($A80,Filtros!$A$4:$AK$2906,14,FALSE),0) -> 0 | Q80: =IFERROR(VLOOKUP($A80,Filtros!$A$4:$AK$2906,15,FALSE),0) -> 0 | R80: =IFERROR(VLOOKUP($A80,Filtros!$A$4:$AK$2906,16,FALSE),0) -> 0 | S80: =IFERROR(VLOOKUP($A80,Filtros!$A$4:$AK$2906,17,FALSE),0) -> 0 | T80: =IFERROR(VLOOKUP($A80,Filtros!$A$4:$AK$2906,18,FALSE),0) -> 0 | U80: =IFERROR(VLOOKUP($A80,Filtros!$A$4:$AK$2906,19,FALSE),0) -> 0 | V80: =IFERROR(VLOOKUP($A80,Filtros!$A$4:$AK$2906,20,FALSE),0) -> 0 | W80: =IFERROR(VLOOKUP($A80,Filtros!$A$4:$AK$2906,21,FALSE),0) -> 0 | X80: =IFERROR(VLOOKUP($A80,Filtros!$A$4:$AK$2906,22,FALSE),0) -> 0 | Y80: =IFERROR(VLOOKUP($A80,Filtros!$A$4:$AK$2906,23,FALSE),0) -> 0 | Z80: =IFERROR(VLOOKUP($A80,Filtros!$A$4:$AK$2906,24,FALSE),0) -> 0 | AA80: =IFERROR(VLOOKUP($A80,Filtros!$A$4:$AK$2906,25,FALSE),0) -> 0 | AB80: =IFERROR(VLOOKUP($A80,Filtros!$A$4:$AK$2906,26,FALSE),0) -> 0 | AC80: =IFERROR(VLOOKUP($A80,Filtros!$A$4:$AK$2906,27,FALSE),0) -> 188 | AD80: =IFERROR(VLOOKUP($A80,Filtros!$A$4:$AK$2906,28,FALSE),0) -> 0 | AE80: =IFERROR(VLOOKUP($A80,Filtros!$A$4:$AK$2906,29,FALSE),0) -> 0 | AF80: =IFERROR(VLOOKUP($A80,Filtros!$A$4:$AK$2906,30,FALSE),0) -> 0 | AG80: =IFERROR(VLOOKUP($A80,Filtros!$A$4:$AK$2906,31,FALSE),0) -> 0 | AH80: =IFERROR(VLOOKUP($A80,Filtros!$A$4:$AK$2906,32,FALSE),0) -> 0 | AI80: =IFERROR(VLOOKUP($A80,Filtros!$A$4:$AK$2906,33,FALSE),0) -> 0 | AJ80: =IFERROR(VLOOKUP($A80,Filtros!$A$4:$AK$2906,34,FALSE),0) -> 0 | AK80: =IFERROR(VLOOKUP($A80,Filtros!$A$4:$AK$2906,35,FALSE),0) -> 0 | AL80: =IFERROR(VLOOKUP($A80,Filtros!$A$4:$AK$2906,36,FALSE),0) -> 951,720 | AM80: =IFERROR(VLOOKUP($A80,Filtros!$A$4:$AK$2906,37,FALSE),0) -> 1,355,480
A81: 01014332 | B81: 0108211 | C81: Teleconsulta Médica de Especialidad en Oncología Médica | D81: =IFERROR(VLOOKUP($A81,Filtros!$A$4:$AK$2906,2,FALSE),0) -> 8101 | E81: =IFERROR(VLOOKUP($A81,Filtros!$A$4:$AK$2906,3,FALSE),0) -> 8101 | F81: =IFERROR(VLOOKUP($A81,Filtros!$A$4:$AK$2906,4,FALSE),0) -> 8101 | G81: =IFERROR(VLOOKUP($A81,Filtros!$A$4:$AK$2906,5,FALSE),0) -> 0 | H81: =IFERROR(VLOOKUP($A81,Filtros!$A$4:$AK$2906,6,FALSE),0) -> 0 | I81: =IFERROR(VLOOKUP($A81,Filtros!$A$4:$AK$2906,7,FALSE),0) -> 0 | J81: =IFERROR(VLOOKUP($A81,Filtros!$A$4:$AK$2906,8,FALSE),0) -> 0 | K81: =IFERROR(VLOOKUP($A81,Filtros!$A$4:$AK$2906,9,FALSE),0) -> 0 | L81: =IFERROR(VLOOKUP($A81,Filtros!$A$4:$AK$2906,10,FALSE),0) -> 0 | M81: =IFERROR(VLOOKUP($A81,Filtros!$A$4:$AK$2906,11,FALSE),0) -> 0 | N81: =IFERROR(VLOOKUP($A81,Filtros!$A$4:$AK$2906,12,FALSE),0) -> 0 | O81: =IFERROR(VLOOKUP($A81,Filtros!$A$4:$AK$2906,13,FALSE),0) -> 0 | P81: =IFERROR(VLOOKUP($A81,Filtros!$A$4:$AK$2906,14,FALSE),0) -> 0 | Q81: =IFERROR(VLOOKUP($A81,Filtros!$A$4:$AK$2906,15,FALSE),0) -> 0 | R81: =IFERROR(VLOOKUP($A81,Filtros!$A$4:$AK$2906,16,FALSE),0) -> 0 | S81: =IFERROR(VLOOKUP($A81,Filtros!$A$4:$AK$2906,17,FALSE),0) -> 0 | T81: =IFERROR(VLOOKUP($A81,Filtros!$A$4:$AK$2906,18,FALSE),0) -> 0 | U81: =IFERROR(VLOOKUP($A81,Filtros!$A$4:$AK$2906,19,FALSE),0) -> 0 | V81: =IFERROR(VLOOKUP($A81,Filtros!$A$4:$AK$2906,20,FALSE),0) -> 0 | W81: =IFERROR(VLOOKUP($A81,Filtros!$A$4:$AK$2906,21,FALSE),0) -> 0 | X81: =IFERROR(VLOOKUP($A81,Filtros!$A$4:$AK$2906,22,FALSE),0) -> 0 | Y81: =IFERROR(VLOOKUP($A81,Filtros!$A$4:$AK$2906,23,FALSE),0) -> 0 | Z81: =IFERROR(VLOOKUP($A81,Filtros!$A$4:$AK$2906,24,FALSE),0) -> 0 | AA81: =IFERROR(VLOOKUP($A81,Filtros!$A$4:$AK$2906,25,FALSE),0) -> 0 | AB81: =IFERROR(VLOOKUP($A81,Filtros!$A$4:$AK$2906,26,FALSE),0) -> 0 | AC81: =IFERROR(VLOOKUP($A81,Filtros!$A$4:$AK$2906,27,FALSE),0) -> 8101 | AD81: =IFERROR(VLOOKUP($A81,Filtros!$A$4:$AK$2906,28,FALSE),0) -> 0 | AE81: =IFERROR(VLOOKUP($A81,Filtros!$A$4:$AK$2906,29,FALSE),0) -> 0 | AF81: =IFERROR(VLOOKUP($A81,Filtros!$A$4:$AK$2906,30,FALSE),0) -> 0 | AG81: =IFERROR(VLOOKUP($A81,Filtros!$A$4:$AK$2906,31,FALSE),0) -> 0 | AH81: =IFERROR(VLOOKUP($A81,Filtros!$A$4:$AK$2906,32,FALSE),0) -> 0 | AI81: =IFERROR(VLOOKUP($A81,Filtros!$A$4:$AK$2906,33,FALSE),0) -> 0 | AJ81: =IFERROR(VLOOKUP($A81,Filtros!$A$4:$AK$2906,34,FALSE),0) -> 0 | AK81: =IFERROR(VLOOKUP($A81,Filtros!$A$4:$AK$2906,35,FALSE),0) -> 0 | AL81: =IFERROR(VLOOKUP($A81,Filtros!$A$4:$AK$2906,36,FALSE),0) -> 951,720 | AM81: =IFERROR(VLOOKUP($A81,Filtros!$A$4:$AK$2906,37,FALSE),0) -> 58,408,210
A82: 01014333 | B82: 0108212 | C82: Teleconsulta Médica de Especialidad en Psiquiatría adultos | D82: =IFERROR(VLOOKUP($A82,Filtros!$A$4:$AK$2906,2,FALSE),0) -> 2014 | E82: =IFERROR(VLOOKUP($A82,Filtros!$A$4:$AK$2906,3,FALSE),0) -> 2014 | F82: =IFERROR(VLOOKUP($A82,Filtros!$A$4:$AK$2906,4,FALSE),0) -> 2014 | G82: =IFERROR(VLOOKUP($A82,Filtros!$A$4:$AK$2906,5,FALSE),0) -> 0 | H82: =IFERROR(VLOOKUP($A82,Filtros!$A$4:$AK$2906,6,FALSE),0) -> 0 | I82: =IFERROR(VLOOKUP($A82,Filtros!$A$4:$AK$2906,7,FALSE),0) -> 0 | J82: =IFERROR(VLOOKUP($A82,Filtros!$A$4:$AK$2906,8,FALSE),0) -> 0 | K82: =IFERROR(VLOOKUP($A82,Filtros!$A$4:$AK$2906,9,FALSE),0) -> 0 | L82: =IFERROR(VLOOKUP($A82,Filtros!$A$4:$AK$2906,10,FALSE),0) -> 0 | M82: =IFERROR(VLOOKUP($A82,Filtros!$A$4:$AK$2906,11,FALSE),0) -> 0 | N82: =IFERROR(VLOOKUP($A82,Filtros!$A$4:$AK$2906,12,FALSE),0) -> 0 | O82: =IFERROR(VLOOKUP($A82,Filtros!$A$4:$AK$2906,13,FALSE),0) -> 0 | P82: =IFERROR(VLOOKUP($A82,Filtros!$A$4:$AK$2906,14,FALSE),0) -> 0 | Q82: =IFERROR(VLOOKUP($A82,Filtros!$A$4:$AK$2906,15,FALSE),0) -> 0 | R82: =IFERROR(VLOOKUP($A82,Filtros!$A$4:$AK$2906,16,FALSE),0) -> 0 | S82: =IFERROR(VLOOKUP($A82,Filtros!$A$4:$AK$2906,17,FALSE),0) -> 0 | T82: =IFERROR(VLOOKUP($A82,Filtros!$A$4:$AK$2906,18,FALSE),0) -> 0 | U82: =IFERROR(VLOOKUP($A82,Filtros!$A$4:$AK$2906,19,FALSE),0) -> 0 | V82: =IFERROR(VLOOKUP($A82,Filtros!$A$4:$AK$2906,20,FALSE),0) -> 0 | W82: =IFERROR(VLOOKUP($A82,Filtros!$A$4:$AK$2906,21,FALSE),0) -> 0 | X82: =IFERROR(VLOOKUP($A82,Filtros!$A$4:$AK$2906,22,FALSE),0) -> 0 | Y82: =IFERROR(VLOOKUP($A82,Filtros!$A$4:$AK$2906,23,FALSE),0) -> 0 | Z82: =IFERROR(VLOOKUP($A82,Filtros!$A$4:$AK$2906,24,FALSE),0) -> 0 | AA82: =IFERROR(VLOOKUP($A82,Filtros!$A$4:$AK$2906,25,FALSE),0) -> 0 | AB82: =IFERROR(VLOOKUP($A82,Filtros!$A$4:$AK$2906,26,FALSE),0) -> 7 | AC82: =IFERROR(VLOOKUP($A82,Filtros!$A$4:$AK$2906,27,FALSE),0) -> 2007 | AD82: =IFERROR(VLOOKUP($A82,Filtros!$A$4:$AK$2906,28,FALSE),0) -> 0 | AE82: =IFERROR(VLOOKUP($A82,Filtros!$A$4:$AK$2906,29,FALSE),0) -> 0 | AF82: =IFERROR(VLOOKUP($A82,Filtros!$A$4:$AK$2906,30,FALSE),0) -> 0 | AG82: =IFERROR(VLOOKUP($A82,Filtros!$A$4:$AK$2906,31,FALSE),0) -> 0 | AH82: =IFERROR(VLOOKUP($A82,Filtros!$A$4:$AK$2906,32,FALSE),0) -> 0 | AI82: =IFERROR(VLOOKUP($A82,Filtros!$A$4:$AK$2906,33,FALSE),0) -> 0 | AJ82: =IFERROR(VLOOKUP($A82,Filtros!$A$4:$AK$2906,34,FALSE),0) -> 0 | AK82: =IFERROR(VLOOKUP($A82,Filtros!$A$4:$AK$2906,35,FALSE),0) -> 0 | AL82: =IFERROR(VLOOKUP($A82,Filtros!$A$4:$AK$2906,36,FALSE),0) -> 951,720 | AM82: =IFERROR(VLOOKUP($A82,Filtros!$A$4:$AK$2906,37,FALSE),0) -> 14,520,940
A83: 01014334 | B83: 0108213 | C83: Teleconsulta Médica de Especialidad en Psiquiatría pediátrica y de la adolescencia | D83: =IFERROR(VLOOKUP($A83,Filtros!$A$4:$AK$2906,2,FALSE),0) -> 694 | E83: =IFERROR(VLOOKUP($A83,Filtros!$A$4:$AK$2906,3,FALSE),0) -> 694 | F83: =IFERROR(VLOOKUP($A83,Filtros!$A$4:$AK$2906,4,FALSE),0) -> 694 | G83: =IFERROR(VLOOKUP($A83,Filtros!$A$4:$AK$2906,5,FALSE),0) -> 0 | H83: =IFERROR(VLOOKUP($A83,Filtros!$A$4:$AK$2906,6,FALSE),0) -> 0 | I83: =IFERROR(VLOOKUP($A83,Filtros!$A$4:$AK$2906,7,FALSE),0) -> 0 | J83: =IFERROR(VLOOKUP($A83,Filtros!$A$4:$AK$2906,8,FALSE),0) -> 0 | K83: =IFERROR(VLOOKUP($A83,Filtros!$A$4:$AK$2906,9,FALSE),0) -> 0 | L83: =IFERROR(VLOOKUP($A83,Filtros!$A$4:$AK$2906,10,FALSE),0) -> 0 | M83: =IFERROR(VLOOKUP($A83,Filtros!$A$4:$AK$2906,11,FALSE),0) -> 0 | N83: =IFERROR(VLOOKUP($A83,Filtros!$A$4:$AK$2906,12,FALSE),0) -> 0 | O83: =IFERROR(VLOOKUP($A83,Filtros!$A$4:$AK$2906,13,FALSE),0) -> 0 | P83: =IFERROR(VLOOKUP($A83,Filtros!$A$4:$AK$2906,14,FALSE),0) -> 0 | Q83: =IFERROR(VLOOKUP($A83,Filtros!$A$4:$AK$2906,15,FALSE),0) -> 0 | R83: =IFERROR(VLOOKUP($A83,Filtros!$A$4:$AK$2906,16,FALSE),0) -> 0 | S83: =IFERROR(VLOOKUP($A83,Filtros!$A$4:$AK$2906,17,FALSE),0) -> 0 | T83: =IFERROR(VLOOKUP($A83,Filtros!$A$4:$AK$2906,18,FALSE),0) -> 0 | U83: =IFERROR(VLOOKUP($A83,Filtros!$A$4:$AK$2906,19,FALSE),0) -> 0 | V83: =IFERROR(VLOOKUP($A83,Filtros!$A$4:$AK$2906,20,FALSE),0) -> 0 | W83: =IFERROR(VLOOKUP($A83,Filtros!$A$4:$AK$2906,21,FALSE),0) -> 0 | X83: =IFERROR(VLOOKUP($A83,Filtros!$A$4:$AK$2906,22,FALSE),0) -> 0 | Y83: =IFERROR(VLOOKUP($A83,Filtros!$A$4:$AK$2906,23,FALSE),0) -> 0 | Z83: =IFERROR(VLOOKUP($A83,Filtros!$A$4:$AK$2906,24,FALSE),0) -> 0 | AA83: =IFERROR(VLOOKUP($A83,Filtros!$A$4:$AK$2906,25,FALSE),0) -> 0 | AB83: =IFERROR(VLOOKUP($A83,Filtros!$A$4:$AK$2906,26,FALSE),0) -> 0 | AC83: =IFERROR(VLOOKUP($A83,Filtros!$A$4:$AK$2906,27,FALSE),0) -> 694 | AD83: =IFERROR(VLOOKUP($A83,Filtros!$A$4:$AK$2906,28,FALSE),0) -> 0 | AE83: =IFERROR(VLOOKUP($A83,Filtros!$A$4:$AK$2906,29,FALSE),0) -> 0 | AF83: =IFERROR(VLOOKUP($A83,Filtros!$A$4:$AK$2906,30,FALSE),0) -> 0 | AG83: =IFERROR(VLOOKUP($A83,Filtros!$A$4:$AK$2906,31,FALSE),0) -> 0 | AH83: =IFERROR(VLOOKUP($A83,Filtros!$A$4:$AK$2906,32,FALSE),0) -> 0 | AI83: =IFERROR(VLOOKUP($A83,Filtros!$A$4:$AK$2906,33,FALSE),0) -> 0 | AJ83: =IFERROR(VLOOKUP($A83,Filtros!$A$4:$AK$2906,34,FALSE),0) -> 0 | AK83: =IFERROR(VLOOKUP($A83,Filtros!$A$4:$AK$2906,35,FALSE),0) -> 0 | AL83: =IFERROR(VLOOKUP($A83,Filtros!$A$4:$AK$2906,36,FALSE),0) -> 951,720 | AM83: =IFERROR(VLOOKUP($A83,Filtros!$A$4:$AK$2906,37,FALSE),0) -> 5,003,740
A84: 01014335 | B84: 0108301 | C84: Teleconsulta Médica de Especialidad en Cardiología | D84: =IFERROR(VLOOKUP($A84,Filtros!$A$4:$AK$2906,2,FALSE),0) -> 18 | E84: =IFERROR(VLOOKUP($A84,Filtros!$A$4:$AK$2906,3,FALSE),0) -> 18 | F84: =IFERROR(VLOOKUP($A84,Filtros!$A$4:$AK$2906,4,FALSE),0) -> 18 | G84: =IFERROR(VLOOKUP($A84,Filtros!$A$4:$AK$2906,5,FALSE),0) -> 0 | H84: =IFERROR(VLOOKUP($A84,Filtros!$A$4:$AK$2906,6,FALSE),0) -> 0 | I84: =IFERROR(VLOOKUP($A84,Filtros!$A$4:$AK$2906,7,FALSE),0) -> 0 | J84: =IFERROR(VLOOKUP($A84,Filtros!$A$4:$AK$2906,8,FALSE),0) -> 0 | K84: =IFERROR(VLOOKUP($A84,Filtros!$A$4:$AK$2906,9,FALSE),0) -> 0 | L84: =IFERROR(VLOOKUP($A84,Filtros!$A$4:$AK$2906,10,FALSE),0) -> 0 | M84: =IFERROR(VLOOKUP($A84,Filtros!$A$4:$AK$2906,11,FALSE),0) -> 0 | N84: =IFERROR(VLOOKUP($A84,Filtros!$A$4:$AK$2906,12,FALSE),0) -> 0 | O84: =IFERROR(VLOOKUP($A84,Filtros!$A$4:$AK$2906,13,FALSE),0) -> 0 | P84: =IFERROR(VLOOKUP($A84,Filtros!$A$4:$AK$2906,14,FALSE),0) -> 0 | Q84: =IFERROR(VLOOKUP($A84,Filtros!$A$4:$AK$2906,15,FALSE),0) -> 0 | R84: =IFERROR(VLOOKUP($A84,Filtros!$A$4:$AK$2906,16,FALSE),0) -> 0 | S84: =IFERROR(VLOOKUP($A84,Filtros!$A$4:$AK$2906,17,FALSE),0) -> 0 | T84: =IFERROR(VLOOKUP($A84,Filtros!$A$4:$AK$2906,18,FALSE),0) -> 0 | U84: =IFERROR(VLOOKUP($A84,Filtros!$A$4:$AK$2906,19,FALSE),0) -> 0 | V84: =IFERROR(VLOOKUP($A84,Filtros!$A$4:$AK$2906,20,FALSE),0) -> 0 | W84: =IFERROR(VLOOKUP($A84,Filtros!$A$4:$AK$2906,21,FALSE),0) -> 0 | X84: =IFERROR(VLOOKUP($A84,Filtros!$A$4:$AK$2906,22,FALSE),0) -> 0 | Y84: =IFERROR(VLOOKUP($A84,Filtros!$A$4:$AK$2906,23,FALSE),0) -> 0 | Z84: =IFERROR(VLOOKUP($A84,Filtros!$A$4:$AK$2906,24,FALSE),0) -> 0 | AA84: =IFERROR(VLOOKUP($A84,Filtros!$A$4:$AK$2906,25,FALSE),0) -> 0 | AB84: =IFERROR(VLOOKUP($A84,Filtros!$A$4:$AK$2906,26,FALSE),0) -> 0 | AC84: =IFERROR(VLOOKUP($A84,Filtros!$A$4:$AK$2906,27,FALSE),0) -> 18 | AD84: =IFERROR(VLOOKUP($A84,Filtros!$A$4:$AK$2906,28,FALSE),0) -> 0 | AE84: =IFERROR(VLOOKUP($A84,Filtros!$A$4:$AK$2906,29,FALSE),0) -> 0 | AF84: =IFERROR(VLOOKUP($A84,Filtros!$A$4:$AK$2906,30,FALSE),0) -> 0 | AG84: =IFERROR(VLOOKUP($A84,Filtros!$A$4:$AK$2906,31,FALSE),0) -> 0 | AH84: =IFERROR(VLOOKUP($A84,Filtros!$A$4:$AK$2906,32,FALSE),0) -> 0 | AI84: =IFERROR(VLOOKUP($A84,Filtros!$A$4:$AK$2906,33,FALSE),0) -> 0 | AJ84: =IFERROR(VLOOKUP($A84,Filtros!$A$4:$AK$2906,34,FALSE),0) -> 0 | AK84: =IFERROR(VLOOKUP($A84,Filtros!$A$4:$AK$2906,35,FALSE),0) -> 0 | AL84: =IFERROR(VLOOKUP($A84,Filtros!$A$4:$AK$2906,36,FALSE),0) -> 951,720 | AM84: =IFERROR(VLOOKUP($A84,Filtros!$A$4:$AK$2906,37,FALSE),0) -> 129,780
A85: 01014336 | B85: 0108302 | C85: Teleconsulta Médica de Especialidad en Hematología | D85: =IFERROR(VLOOKUP($A85,Filtros!$A$4:$AK$2906,2,FALSE),0) -> 3164 | E85: =IFERROR(VLOOKUP($A85,Filtros!$A$4:$AK$2906,3,FALSE),0) -> 3164 | F85: =IFERROR(VLOOKUP($A85,Filtros!$A$4:$AK$2906,4,FALSE),0) -> 3164 | G85: =IFERROR(VLOOKUP($A85,Filtros!$A$4:$AK$2906,5,FALSE),0) -> 0 | H85: =IFERROR(VLOOKUP($A85,Filtros!$A$4:$AK$2906,6,FALSE),0) -> 0 | I85: =IFERROR(VLOOKUP($A85,Filtros!$A$4:$AK$2906,7,FALSE),0) -> 0 | J85: =IFERROR(VLOOKUP($A85,Filtros!$A$4:$AK$2906,8,FALSE),0) -> 0 | K85: =IFERROR(VLOOKUP($A85,Filtros!$A$4:$AK$2906,9,FALSE),0) -> 0 | L85: =IFERROR(VLOOKUP($A85,Filtros!$A$4:$AK$2906,10,FALSE),0) -> 0 | M85: =IFERROR(VLOOKUP($A85,Filtros!$A$4:$AK$2906,11,FALSE),0) -> 0 | N85: =IFERROR(VLOOKUP($A85,Filtros!$A$4:$AK$2906,12,FALSE),0) -> 0 | O85: =IFERROR(VLOOKUP($A85,Filtros!$A$4:$AK$2906,13,FALSE),0) -> 0 | P85: =IFERROR(VLOOKUP($A85,Filtros!$A$4:$AK$2906,14,FALSE),0) -> 0 | Q85: =IFERROR(VLOOKUP($A85,Filtros!$A$4:$AK$2906,15,FALSE),0) -> 0 | R85: =IFERROR(VLOOKUP($A85,Filtros!$A$4:$AK$2906,16,FALSE),0) -> 0 | S85: =IFERROR(VLOOKUP($A85,Filtros!$A$4:$AK$2906,17,FALSE),0) -> 0 | T85: =IFERROR(VLOOKUP($A85,Filtros!$A$4:$AK$2906,18,FALSE),0) -> 0 | U85: =IFERROR(VLOOKUP($A85,Filtros!$A$4:$AK$2906,19,FALSE),0) -> 0 | V85: =IFERROR(VLOOKUP($A85,Filtros!$A$4:$AK$2906,20,FALSE),0) -> 0 | W85: =IFERROR(VLOOKUP($A85,Filtros!$A$4:$AK$2906,21,FALSE),0) -> 0 | X85: =IFERROR(VLOOKUP($A85,Filtros!$A$4:$AK$2906,22,FALSE),0) -> 0 | Y85: =IFERROR(VLOOKUP($A85,Filtros!$A$4:$AK$2906,23,FALSE),0) -> 0 | Z85: =IFERROR(VLOOKUP($A85,Filtros!$A$4:$AK$2906,24,FALSE),0) -> 0 | AA85: =IFERROR(VLOOKUP($A85,Filtros!$A$4:$AK$2906,25,FALSE),0) -> 0 | AB85: =IFERROR(VLOOKUP($A85,Filtros!$A$4:$AK$2906,26,FALSE),0) -> 0 | AC85: =IFERROR(VLOOKUP($A85,Filtros!$A$4:$AK$2906,27,FALSE),0) -> 3164 | AD85: =IFERROR(VLOOKUP($A85,Filtros!$A$4:$AK$2906,28,FALSE),0) -> 0 | AE85: =IFERROR(VLOOKUP($A85,Filtros!$A$4:$AK$2906,29,FALSE),0) -> 0 | AF85: =IFERROR(VLOOKUP($A85,Filtros!$A$4:$AK$2906,30,FALSE),0) -> 0 | AG85: =IFERROR(VLOOKUP($A85,Filtros!$A$4:$AK$2906,31,FALSE),0) -> 0 | AH85: =IFERROR(VLOOKUP($A85,Filtros!$A$4:$AK$2906,32,FALSE),0) -> 0 | AI85: =IFERROR(VLOOKUP($A85,Filtros!$A$4:$AK$2906,33,FALSE),0) -> 0 | AJ85: =IFERROR(VLOOKUP($A85,Filtros!$A$4:$AK$2906,34,FALSE),0) -> 0 | AK85: =IFERROR(VLOOKUP($A85,Filtros!$A$4:$AK$2906,35,FALSE),0) -> 0 | AL85: =IFERROR(VLOOKUP($A85,Filtros!$A$4:$AK$2906,36,FALSE),0) -> 951,720 | AM85: =IFERROR(VLOOKUP($A85,Filtros!$A$4:$AK$2906,37,FALSE),0) -> 22,812,440
A86: 01014337 | B86: 0108303 | C86: Teleconsulta Médica de Especialidad en Infectología | D86: =IFERROR(VLOOKUP($A86,Filtros!$A$4:$AK$2906,2,FALSE),0) -> 3 | E86: =IFERROR(VLOOKUP($A86,Filtros!$A$4:$AK$2906,3,FALSE),0) -> 3 | F86: =IFERROR(VLOOKUP($A86,Filtros!$A$4:$AK$2906,4,FALSE),0) -> 3 | G86: =IFERROR(VLOOKUP($A86,Filtros!$A$4:$AK$2906,5,FALSE),0) -> 0 | H86: =IFERROR(VLOOKUP($A86,Filtros!$A$4:$AK$2906,6,FALSE),0) -> 0 | I86: =IFERROR(VLOOKUP($A86,Filtros!$A$4:$AK$2906,7,FALSE),0) -> 0 | J86: =IFERROR(VLOOKUP($A86,Filtros!$A$4:$AK$2906,8,FALSE),0) -> 0 | K86: =IFERROR(VLOOKUP($A86,Filtros!$A$4:$AK$2906,9,FALSE),0) -> 0 | L86: =IFERROR(VLOOKUP($A86,Filtros!$A$4:$AK$2906,10,FALSE),0) -> 0 | M86: =IFERROR(VLOOKUP($A86,Filtros!$A$4:$AK$2906,11,FALSE),0) -> 0 | N86: =IFERROR(VLOOKUP($A86,Filtros!$A$4:$AK$2906,12,FALSE),0) -> 0 | O86: =IFERROR(VLOOKUP($A86,Filtros!$A$4:$AK$2906,13,FALSE),0) -> 0 | P86: =IFERROR(VLOOKUP($A86,Filtros!$A$4:$AK$2906,14,FALSE),0) -> 0 | Q86: =IFERROR(VLOOKUP($A86,Filtros!$A$4:$AK$2906,15,FALSE),0) -> 0 | R86: =IFERROR(VLOOKUP($A86,Filtros!$A$4:$AK$2906,16,FALSE),0) -> 0 | S86: =IFERROR(VLOOKUP($A86,Filtros!$A$4:$AK$2906,17,FALSE),0) -> 0 | T86: =IFERROR(VLOOKUP($A86,Filtros!$A$4:$AK$2906,18,FALSE),0) -> 0 | U86: =IFERROR(VLOOKUP($A86,Filtros!$A$4:$AK$2906,19,FALSE),0) -> 0 | V86: =IFERROR(VLOOKUP($A86,Filtros!$A$4:$AK$2906,20,FALSE),0) -> 0 | W86: =IFERROR(VLOOKUP($A86,Filtros!$A$4:$AK$2906,21,FALSE),0) -> 0 | X86: =IFERROR(VLOOKUP($A86,Filtros!$A$4:$AK$2906,22,FALSE),0) -> 0 | Y86: =IFERROR(VLOOKUP($A86,Filtros!$A$4:$AK$2906,23,FALSE),0) -> 0 | Z86: =IFERROR(VLOOKUP($A86,Filtros!$A$4:$AK$2906,24,FALSE),0) -> 0 | AA86: =IFERROR(VLOOKUP($A86,Filtros!$A$4:$AK$2906,25,FALSE),0) -> 0 | AB86: =IFERROR(VLOOKUP($A86,Filtros!$A$4:$AK$2906,26,FALSE),0) -> 0 | AC86: =IFERROR(VLOOKUP($A86,Filtros!$A$4:$AK$2906,27,FALSE),0) -> 3 | AD86: =IFERROR(VLOOKUP($A86,Filtros!$A$4:$AK$2906,28,FALSE),0) -> 0 | AE86: =IFERROR(VLOOKUP($A86,Filtros!$A$4:$AK$2906,29,FALSE),0) -> 0 | AF86: =IFERROR(VLOOKUP($A86,Filtros!$A$4:$AK$2906,30,FALSE),0) -> 0 | AG86: =IFERROR(VLOOKUP($A86,Filtros!$A$4:$AK$2906,31,FALSE),0) -> 0 | AH86: =IFERROR(VLOOKUP($A86,Filtros!$A$4:$AK$2906,32,FALSE),0) -> 0 | AI86: =IFERROR(VLOOKUP($A86,Filtros!$A$4:$AK$2906,33,FALSE),0) -> 0 | AJ86: =IFERROR(VLOOKUP($A86,Filtros!$A$4:$AK$2906,34,FALSE),0) -> 0 | AK86: =IFERROR(VLOOKUP($A86,Filtros!$A$4:$AK$2906,35,FALSE),0) -> 0 | AL86: =IFERROR(VLOOKUP($A86,Filtros!$A$4:$AK$2906,36,FALSE),0) -> 951,720 | AM86: =IFERROR(VLOOKUP($A86,Filtros!$A$4:$AK$2906,37,FALSE),0) -> 21,630
A87: 01014338 | B87: 0108304 | C87: Teleconsulta Médica de Especialidad en Inmunología | D87: =IFERROR(VLOOKUP($A87,Filtros!$A$4:$AK$2906,2,FALSE),0) -> 313 | E87: =IFERROR(VLOOKUP($A87,Filtros!$A$4:$AK$2906,3,FALSE),0) -> 310 | F87: =IFERROR(VLOOKUP($A87,Filtros!$A$4:$AK$2906,4,FALSE),0) -> 310 | G87: =IFERROR(VLOOKUP($A87,Filtros!$A$4:$AK$2906,5,FALSE),0) -> 0 | H87: =IFERROR(VLOOKUP($A87,Filtros!$A$4:$AK$2906,6,FALSE),0) -> 3 | I87: =IFERROR(VLOOKUP($A87,Filtros!$A$4:$AK$2906,7,FALSE),0) -> 0 | J87: =IFERROR(VLOOKUP($A87,Filtros!$A$4:$AK$2906,8,FALSE),0) -> 0 | K87: =IFERROR(VLOOKUP($A87,Filtros!$A$4:$AK$2906,9,FALSE),0) -> 0 | L87: =IFERROR(VLOOKUP($A87,Filtros!$A$4:$AK$2906,10,FALSE),0) -> 0 | M87: =IFERROR(VLOOKUP($A87,Filtros!$A$4:$AK$2906,11,FALSE),0) -> 0 | N87: =IFERROR(VLOOKUP($A87,Filtros!$A$4:$AK$2906,12,FALSE),0) -> 0 | O87: =IFERROR(VLOOKUP($A87,Filtros!$A$4:$AK$2906,13,FALSE),0) -> 0 | P87: =IFERROR(VLOOKUP($A87,Filtros!$A$4:$AK$2906,14,FALSE),0) -> 0 | Q87: =IFERROR(VLOOKUP($A87,Filtros!$A$4:$AK$2906,15,FALSE),0) -> 0 | R87: =IFERROR(VLOOKUP($A87,Filtros!$A$4:$AK$2906,16,FALSE),0) -> 0 | S87: =IFERROR(VLOOKUP($A87,Filtros!$A$4:$AK$2906,17,FALSE),0) -> 0 | T87: =IFERROR(VLOOKUP($A87,Filtros!$A$4:$AK$2906,18,FALSE),0) -> 0 | U87: =IFERROR(VLOOKUP($A87,Filtros!$A$4:$AK$2906,19,FALSE),0) -> 0 | V87: =IFERROR(VLOOKUP($A87,Filtros!$A$4:$AK$2906,20,FALSE),0) -> 0 | W87: =IFERROR(VLOOKUP($A87,Filtros!$A$4:$AK$2906,21,FALSE),0) -> 0 | X87: =IFERROR(VLOOKUP($A87,Filtros!$A$4:$AK$2906,22,FALSE),0) -> 0 | Y87: =IFERROR(VLOOKUP($A87,Filtros!$A$4:$AK$2906,23,FALSE),0) -> 0 | Z87: =IFERROR(VLOOKUP($A87,Filtros!$A$4:$AK$2906,24,FALSE),0) -> 0 | AA87: =IFERROR(VLOOKUP($A87,Filtros!$A$4:$AK$2906,25,FALSE),0) -> 0 | AB87: =IFERROR(VLOOKUP($A87,Filtros!$A$4:$AK$2906,26,FALSE),0) -> 0 | AC87: =IFERROR(VLOOKUP($A87,Filtros!$A$4:$AK$2906,27,FALSE),0) -> 313 | AD87: =IFERROR(VLOOKUP($A87,Filtros!$A$4:$AK$2906,28,FALSE),0) -> 0 | AE87: =IFERROR(VLOOKUP($A87,Filtros!$A$4:$AK$2906,29,FALSE),0) -> 0 | AF87: =IFERROR(VLOOKUP($A87,Filtros!$A$4:$AK$2906,30,FALSE),0) -> 0 | AG87: =IFERROR(VLOOKUP($A87,Filtros!$A$4:$AK$2906,31,FALSE),0) -> 0 | AH87: =IFERROR(VLOOKUP($A87,Filtros!$A$4:$AK$2906,32,FALSE),0) -> 0 | AI87: =IFERROR(VLOOKUP($A87,Filtros!$A$4:$AK$2906,33,FALSE),0) -> 0 | AJ87: =IFERROR(VLOOKUP($A87,Filtros!$A$4:$AK$2906,34,FALSE),0) -> 0 | AK87: =IFERROR(VLOOKUP($A87,Filtros!$A$4:$AK$2906,35,FALSE),0) -> 0 | AL87: =IFERROR(VLOOKUP($A87,Filtros!$A$4:$AK$2906,36,FALSE),0) -> 951,720 | AM87: =IFERROR(VLOOKUP($A87,Filtros!$A$4:$AK$2906,37,FALSE),0) -> 2,235,100
A88: 01014339 | B88: 0108305 | C88: Teleconsulta Médica de Especialidad en Medicina Familiar | D88: =IFERROR(VLOOKUP($A88,Filtros!$A$4:$AK$2906,2,FALSE),0) -> 0 | E88: =IFERROR(VLOOKUP($A88,Filtros!$A$4:$AK$2906,3,FALSE),0) -> 0 | F88: =IFERROR(VLOOKUP($A88,Filtros!$A$4:$AK$2906,4,FALSE),0) -> 0 | G88: =IFERROR(VLOOKUP($A88,Filtros!$A$4:$AK$2906,5,FALSE),0) -> 0 | H88: =IFERROR(VLOOKUP($A88,Filtros!$A$4:$AK$2906,6,FALSE),0) -> 0 | I88: =IFERROR(VLOOKUP($A88,Filtros!$A$4:$AK$2906,7,FALSE),0) -> 0 | J88: =IFERROR(VLOOKUP($A88,Filtros!$A$4:$AK$2906,8,FALSE),0) -> 0 | K88: =IFERROR(VLOOKUP($A88,Filtros!$A$4:$AK$2906,9,FALSE),0) -> 0 | L88: =IFERROR(VLOOKUP($A88,Filtros!$A$4:$AK$2906,10,FALSE),0) -> 0 | M88: =IFERROR(VLOOKUP($A88,Filtros!$A$4:$AK$2906,11,FALSE),0) -> 0 | N88: =IFERROR(VLOOKUP($A88,Filtros!$A$4:$AK$2906,12,FALSE),0) -> 0 | O88: =IFERROR(VLOOKUP($A88,Filtros!$A$4:$AK$2906,13,FALSE),0) -> 0 | P88: =IFERROR(VLOOKUP($A88,Filtros!$A$4:$AK$2906,14,FALSE),0) -> 0 | Q88: =IFERROR(VLOOKUP($A88,Filtros!$A$4:$AK$2906,15,FALSE),0) -> 0 | R88: =IFERROR(VLOOKUP($A88,Filtros!$A$4:$AK$2906,16,FALSE),0) -> 0 | S88: =IFERROR(VLOOKUP($A88,Filtros!$A$4:$AK$2906,17,FALSE),0) -> 0 | T88: =IFERROR(VLOOKUP($A88,Filtros!$A$4:$AK$2906,18,FALSE),0) -> 0 | U88: =IFERROR(VLOOKUP($A88,Filtros!$A$4:$AK$2906,19,FALSE),0) -> 0 | V88: =IFERROR(VLOOKUP($A88,Filtros!$A$4:$AK$2906,20,FALSE),0) -> 0 | W88: =IFERROR(VLOOKUP($A88,Filtros!$A$4:$AK$2906,21,FALSE),0) -> 0 | X88: =IFERROR(VLOOKUP($A88,Filtros!$A$4:$AK$2906,22,FALSE),0) -> 0 | Y88: =IFERROR(VLOOKUP($A88,Filtros!$A$4:$AK$2906,23,FALSE),0) -> 0 | Z88: =IFERROR(VLOOKUP($A88,Filtros!$A$4:$AK$2906,24,FALSE),0) -> 0 | AA88: =IFERROR(VLOOKUP($A88,Filtros!$A$4:$AK$2906,25,FALSE),0) -> 0 | AB88: =IFERROR(VLOOKUP($A88,Filtros!$A$4:$AK$2906,26,FALSE),0) -> 0 | AC88: =IFERROR(VLOOKUP($A88,Filtros!$A$4:$AK$2906,27,FALSE),0) -> 0 | AD88: =IFERROR(VLOOKUP($A88,Filtros!$A$4:$AK$2906,28,FALSE),0) -> 0 | AE88: =IFERROR(VLOOKUP($A88,Filtros!$A$4:$AK$2906,29,FALSE),0) -> 0 | AF88: =IFERROR(VLOOKUP($A88,Filtros!$A$4:$AK$2906,30,FALSE),0) -> 0 | AG88: =IFERROR(VLOOKUP($A88,Filtros!$A$4:$AK$2906,31,FALSE),0) -> 0 | AH88: =IFERROR(VLOOKUP($A88,Filtros!$A$4:$AK$2906,32,FALSE),0) -> 0 | AI88: =IFERROR(VLOOKUP($A88,Filtros!$A$4:$AK$2906,33,FALSE),0) -> 0 | AJ88: =IFERROR(VLOOKUP($A88,Filtros!$A$4:$AK$2906,34,FALSE),0) -> 0 | AK88: =IFERROR(VLOOKUP($A88,Filtros!$A$4:$AK$2906,35,FALSE),0) -> 0 | AL88: =IFERROR(VLOOKUP($A88,Filtros!$A$4:$AK$2906,36,FALSE),0) -> 951,720 | AM88: =IFERROR(VLOOKUP($A88,Filtros!$A$4:$AK$2906,37,FALSE),0) -> 0
A89: 01014340 | B89: 0108306 | C89: Teleconsulta Médica de Especialidad en Medicina Física y Rehabilitación | D89: =IFERROR(VLOOKUP($A89,Filtros!$A$4:$AK$2906,2,FALSE),0) -> 17 | E89: =IFERROR(VLOOKUP($A89,Filtros!$A$4:$AK$2906,3,FALSE),0) -> 17 | F89: =IFERROR(VLOOKUP($A89,Filtros!$A$4:$AK$2906,4,FALSE),0) -> 17 | G89: =IFERROR(VLOOKUP($A89,Filtros!$A$4:$AK$2906,5,FALSE),0) -> 0 | H89: =IFERROR(VLOOKUP($A89,Filtros!$A$4:$AK$2906,6,FALSE),0) -> 0 | I89: =IFERROR(VLOOKUP($A89,Filtros!$A$4:$AK$2906,7,FALSE),0) -> 0 | J89: =IFERROR(VLOOKUP($A89,Filtros!$A$4:$AK$2906,8,FALSE),0) -> 0 | K89: =IFERROR(VLOOKUP($A89,Filtros!$A$4:$AK$2906,9,FALSE),0) -> 0 | L89: =IFERROR(VLOOKUP($A89,Filtros!$A$4:$AK$2906,10,FALSE),0) -> 0 | M89: =IFERROR(VLOOKUP($A89,Filtros!$A$4:$AK$2906,11,FALSE),0) -> 0 | N89: =IFERROR(VLOOKUP($A89,Filtros!$A$4:$AK$2906,12,FALSE),0) -> 0 | O89: =IFERROR(VLOOKUP($A89,Filtros!$A$4:$AK$2906,13,FALSE),0) -> 0 | P89: =IFERROR(VLOOKUP($A89,Filtros!$A$4:$AK$2906,14,FALSE),0) -> 0 | Q89: =IFERROR(VLOOKUP($A89,Filtros!$A$4:$AK$2906,15,FALSE),0) -> 0 | R89: =IFERROR(VLOOKUP($A89,Filtros!$A$4:$AK$2906,16,FALSE),0) -> 0 | S89: =IFERROR(VLOOKUP($A89,Filtros!$A$4:$AK$2906,17,FALSE),0) -> 0 | T89: =IFERROR(VLOOKUP($A89,Filtros!$A$4:$AK$2906,18,FALSE),0) -> 0 | U89: =IFERROR(VLOOKUP($A89,Filtros!$A$4:$AK$2906,19,FALSE),0) -> 0 | V89: =IFERROR(VLOOKUP($A89,Filtros!$A$4:$AK$2906,20,FALSE),0) -> 0 | W89: =IFERROR(VLOOKUP($A89,Filtros!$A$4:$AK$2906,21,FALSE),0) -> 0 | X89: =IFERROR(VLOOKUP($A89,Filtros!$A$4:$AK$2906,22,FALSE),0) -> 0 | Y89: =IFERROR(VLOOKUP($A89,Filtros!$A$4:$AK$2906,23,FALSE),0) -> 0 | Z89: =IFERROR(VLOOKUP($A89,Filtros!$A$4:$AK$2906,24,FALSE),0) -> 0 | AA89: =IFERROR(VLOOKUP($A89,Filtros!$A$4:$AK$2906,25,FALSE),0) -> 0 | AB89: =IFERROR(VLOOKUP($A89,Filtros!$A$4:$AK$2906,26,FALSE),0) -> 0 | AC89: =IFERROR(VLOOKUP($A89,Filtros!$A$4:$AK$2906,27,FALSE),0) -> 17 | AD89: =IFERROR(VLOOKUP($A89,Filtros!$A$4:$AK$2906,28,FALSE),0) -> 0 | AE89: =IFERROR(VLOOKUP($A89,Filtros!$A$4:$AK$2906,29,FALSE),0) -> 0 | AF89: =IFERROR(VLOOKUP($A89,Filtros!$A$4:$AK$2906,30,FALSE),0) -> 0 | AG89: =IFERROR(VLOOKUP($A89,Filtros!$A$4:$AK$2906,31,FALSE),0) -> 0 | AH89: =IFERROR(VLOOKUP($A89,Filtros!$A$4:$AK$2906,32,FALSE),0) -> 0 | AI89: =IFERROR(VLOOKUP($A89,Filtros!$A$4:$AK$2906,33,FALSE),0) -> 0 | AJ89: =IFERROR(VLOOKUP($A89,Filtros!$A$4:$AK$2906,34,FALSE),0) -> 0 | AK89: =IFERROR(VLOOKUP($A89,Filtros!$A$4:$AK$2906,35,FALSE),0) -> 0 | AL89: =IFERROR(VLOOKUP($A89,Filtros!$A$4:$AK$2906,36,FALSE),0) -> 951,720 | AM89: =IFERROR(VLOOKUP($A89,Filtros!$A$4:$AK$2906,37,FALSE),0) -> 122,570
A90: 01014341 | B90: 0108307 | C90: Teleconsulta Médica de Especialidad en Medicina Interna | D90: =IFERROR(VLOOKUP($A90,Filtros!$A$4:$AK$2906,2,FALSE),0) -> 3409 | E90: =IFERROR(VLOOKUP($A90,Filtros!$A$4:$AK$2906,3,FALSE),0) -> 3385 | F90: =IFERROR(VLOOKUP($A90,Filtros!$A$4:$AK$2906,4,FALSE),0) -> 3385 | G90: =IFERROR(VLOOKUP($A90,Filtros!$A$4:$AK$2906,5,FALSE),0) -> 0 | H90: =IFERROR(VLOOKUP($A90,Filtros!$A$4:$AK$2906,6,FALSE),0) -> 24 | I90: =IFERROR(VLOOKUP($A90,Filtros!$A$4:$AK$2906,7,FALSE),0) -> 0 | J90: =IFERROR(VLOOKUP($A90,Filtros!$A$4:$AK$2906,8,FALSE),0) -> 0 | K90: =IFERROR(VLOOKUP($A90,Filtros!$A$4:$AK$2906,9,FALSE),0) -> 0 | L90: =IFERROR(VLOOKUP($A90,Filtros!$A$4:$AK$2906,10,FALSE),0) -> 0 | M90: =IFERROR(VLOOKUP($A90,Filtros!$A$4:$AK$2906,11,FALSE),0) -> 0 | N90: =IFERROR(VLOOKUP($A90,Filtros!$A$4:$AK$2906,12,FALSE),0) -> 0 | O90: =IFERROR(VLOOKUP($A90,Filtros!$A$4:$AK$2906,13,FALSE),0) -> 0 | P90: =IFERROR(VLOOKUP($A90,Filtros!$A$4:$AK$2906,14,FALSE),0) -> 0 | Q90: =IFERROR(VLOOKUP($A90,Filtros!$A$4:$AK$2906,15,FALSE),0) -> 0 | R90: =IFERROR(VLOOKUP($A90,Filtros!$A$4:$AK$2906,16,FALSE),0) -> 0 | S90: =IFERROR(VLOOKUP($A90,Filtros!$A$4:$AK$2906,17,FALSE),0) -> 0 | T90: =IFERROR(VLOOKUP($A90,Filtros!$A$4:$AK$2906,18,FALSE),0) -> 0 | U90: =IFERROR(VLOOKUP($A90,Filtros!$A$4:$AK$2906,19,FALSE),0) -> 0 | V90: =IFERROR(VLOOKUP($A90,Filtros!$A$4:$AK$2906,20,FALSE),0) -> 0 | W90: =IFERROR(VLOOKUP($A90,Filtros!$A$4:$AK$2906,21,FALSE),0) -> 0 | X90: =IFERROR(VLOOKUP($A90,Filtros!$A$4:$AK$2906,22,FALSE),0) -> 0 | Y90: =IFERROR(VLOOKUP($A90,Filtros!$A$4:$AK$2906,23,FALSE),0) -> 0 | Z90: =IFERROR(VLOOKUP($A90,Filtros!$A$4:$AK$2906,24,FALSE),0) -> 0 | AA90: =IFERROR(VLOOKUP($A90,Filtros!$A$4:$AK$2906,25,FALSE),0) -> 0 | AB90: =IFERROR(VLOOKUP($A90,Filtros!$A$4:$AK$2906,26,FALSE),0) -> 0 | AC90: =IFERROR(VLOOKUP($A90,Filtros!$A$4:$AK$2906,27,FALSE),0) -> 3409 | AD90: =IFERROR(VLOOKUP($A90,Filtros!$A$4:$AK$2906,28,FALSE),0) -> 0 | AE90: =IFERROR(VLOOKUP($A90,Filtros!$A$4:$AK$2906,29,FALSE),0) -> 0 | AF90: =IFERROR(VLOOKUP($A90,Filtros!$A$4:$AK$2906,30,FALSE),0) -> 0 | AG90: =IFERROR(VLOOKUP($A90,Filtros!$A$4:$AK$2906,31,FALSE),0) -> 0 | AH90: =IFERROR(VLOOKUP($A90,Filtros!$A$4:$AK$2906,32,FALSE),0) -> 0 | AI90: =IFERROR(VLOOKUP($A90,Filtros!$A$4:$AK$2906,33,FALSE),0) -> 0 | AJ90: =IFERROR(VLOOKUP($A90,Filtros!$A$4:$AK$2906,34,FALSE),0) -> 0 | AK90: =IFERROR(VLOOKUP($A90,Filtros!$A$4:$AK$2906,35,FALSE),0) -> 0 | AL90: =IFERROR(VLOOKUP($A90,Filtros!$A$4:$AK$2906,36,FALSE),0) -> 951,720 | AM90: =IFERROR(VLOOKUP($A90,Filtros!$A$4:$AK$2906,37,FALSE),0) -> 24,405,850
A91: 01014342 | B91: 0108308 | C91: Teleconsulta Médica de Especialidad en Obstetricia y Ginecología | D91: =IFERROR(VLOOKUP($A91,Filtros!$A$4:$AK$2906,2,FALSE),0) -> 185 | E91: =IFERROR(VLOOKUP($A91,Filtros!$A$4:$AK$2906,3,FALSE),0) -> 185 | F91: =IFERROR(VLOOKUP($A91,Filtros!$A$4:$AK$2906,4,FALSE),0) -> 185 | G91: =IFERROR(VLOOKUP($A91,Filtros!$A$4:$AK$2906,5,FALSE),0) -> 0 | H91: =IFERROR(VLOOKUP($A91,Filtros!$A$4:$AK$2906,6,FALSE),0) -> 0 | I91: =IFERROR(VLOOKUP($A91,Filtros!$A$4:$AK$2906,7,FALSE),0) -> 0 | J91: =IFERROR(VLOOKUP($A91,Filtros!$A$4:$AK$2906,8,FALSE),0) -> 0 | K91: =IFERROR(VLOOKUP($A91,Filtros!$A$4:$AK$2906,9,FALSE),0) -> 0 | L91: =IFERROR(VLOOKUP($A91,Filtros!$A$4:$AK$2906,10,FALSE),0) -> 0 | M91: =IFERROR(VLOOKUP($A91,Filtros!$A$4:$AK$2906,11,FALSE),0) -> 0 | N91: =IFERROR(VLOOKUP($A91,Filtros!$A$4:$AK$2906,12,FALSE),0) -> 0 | O91: =IFERROR(VLOOKUP($A91,Filtros!$A$4:$AK$2906,13,FALSE),0) -> 0 | P91: =IFERROR(VLOOKUP($A91,Filtros!$A$4:$AK$2906,14,FALSE),0) -> 0 | Q91: =IFERROR(VLOOKUP($A91,Filtros!$A$4:$AK$2906,15,FALSE),0) -> 0 | R91: =IFERROR(VLOOKUP($A91,Filtros!$A$4:$AK$2906,16,FALSE),0) -> 0 | S91: =IFERROR(VLOOKUP($A91,Filtros!$A$4:$AK$2906,17,FALSE),0) -> 0 | T91: =IFERROR(VLOOKUP($A91,Filtros!$A$4:$AK$2906,18,FALSE),0) -> 0 | U91: =IFERROR(VLOOKUP($A91,Filtros!$A$4:$AK$2906,19,FALSE),0) -> 0 | V91: =IFERROR(VLOOKUP($A91,Filtros!$A$4:$AK$2906,20,FALSE),0) -> 0 | W91: =IFERROR(VLOOKUP($A91,Filtros!$A$4:$AK$2906,21,FALSE),0) -> 0 | X91: =IFERROR(VLOOKUP($A91,Filtros!$A$4:$AK$2906,22,FALSE),0) -> 0 | Y91: =IFERROR(VLOOKUP($A91,Filtros!$A$4:$AK$2906,23,FALSE),0) -> 0 | Z91: =IFERROR(VLOOKUP($A91,Filtros!$A$4:$AK$2906,24,FALSE),0) -> 0 | AA91: =IFERROR(VLOOKUP($A91,Filtros!$A$4:$AK$2906,25,FALSE),0) -> 0 | AB91: =IFERROR(VLOOKUP($A91,Filtros!$A$4:$AK$2906,26,FALSE),0) -> 0 | AC91: =IFERROR(VLOOKUP($A91,Filtros!$A$4:$AK$2906,27,FALSE),0) -> 185 | AD91: =IFERROR(VLOOKUP($A91,Filtros!$A$4:$AK$2906,28,FALSE),0) -> 0 | AE91: =IFERROR(VLOOKUP($A91,Filtros!$A$4:$AK$2906,29,FALSE),0) -> 0 | AF91: =IFERROR(VLOOKUP($A91,Filtros!$A$4:$AK$2906,30,FALSE),0) -> 0 | AG91: =IFERROR(VLOOKUP($A91,Filtros!$A$4:$AK$2906,31,FALSE),0) -> 0 | AH91: =IFERROR(VLOOKUP($A91,Filtros!$A$4:$AK$2906,32,FALSE),0) -> 0 | AI91: =IFERROR(VLOOKUP($A91,Filtros!$A$4:$AK$2906,33,FALSE),0) -> 0 | AJ91: =IFERROR(VLOOKUP($A91,Filtros!$A$4:$AK$2906,34,FALSE),0) -> 0 | AK91: =IFERROR(VLOOKUP($A91,Filtros!$A$4:$AK$2906,35,FALSE),0) -> 0 | AL91: =IFERROR(VLOOKUP($A91,Filtros!$A$4:$AK$2906,36,FALSE),0) -> 951,720 | AM91: =IFERROR(VLOOKUP($A91,Filtros!$A$4:$AK$2906,37,FALSE),0) -> 1,333,850
A92: 01014343 | B92: 0108309 | C92: Teleconsulta Médica de Especialidad en Pediatría | D92: =IFERROR(VLOOKUP($A92,Filtros!$A$4:$AK$2906,2,FALSE),0) -> 716 | E92: =IFERROR(VLOOKUP($A92,Filtros!$A$4:$AK$2906,3,FALSE),0) -> 709 | F92: =IFERROR(VLOOKUP($A92,Filtros!$A$4:$AK$2906,4,FALSE),0) -> 709 | G92: =IFERROR(VLOOKUP($A92,Filtros!$A$4:$AK$2906,5,FALSE),0) -> 0 | H92: =IFERROR(VLOOKUP($A92,Filtros!$A$4:$AK$2906,6,FALSE),0) -> 7 | I92: =IFERROR(VLOOKUP($A92,Filtros!$A$4:$AK$2906,7,FALSE),0) -> 0 | J92: =IFERROR(VLOOKUP($A92,Filtros!$A$4:$AK$2906,8,FALSE),0) -> 0 | K92: =IFERROR(VLOOKUP($A92,Filtros!$A$4:$AK$2906,9,FALSE),0) -> 0 | L92: =IFERROR(VLOOKUP($A92,Filtros!$A$4:$AK$2906,10,FALSE),0) -> 0 | M92: =IFERROR(VLOOKUP($A92,Filtros!$A$4:$AK$2906,11,FALSE),0) -> 0 | N92: =IFERROR(VLOOKUP($A92,Filtros!$A$4:$AK$2906,12,FALSE),0) -> 0 | O92: =IFERROR(VLOOKUP($A92,Filtros!$A$4:$AK$2906,13,FALSE),0) -> 0 | P92: =IFERROR(VLOOKUP($A92,Filtros!$A$4:$AK$2906,14,FALSE),0) -> 0 | Q92: =IFERROR(VLOOKUP($A92,Filtros!$A$4:$AK$2906,15,FALSE),0) -> 0 | R92: =IFERROR(VLOOKUP($A92,Filtros!$A$4:$AK$2906,16,FALSE),0) -> 0 | S92: =IFERROR(VLOOKUP($A92,Filtros!$A$4:$AK$2906,17,FALSE),0) -> 0 | T92: =IFERROR(VLOOKUP($A92,Filtros!$A$4:$AK$2906,18,FALSE),0) -> 0 | U92: =IFERROR(VLOOKUP($A92,Filtros!$A$4:$AK$2906,19,FALSE),0) -> 0 | V92: =IFERROR(VLOOKUP($A92,Filtros!$A$4:$AK$2906,20,FALSE),0) -> 0 | W92: =IFERROR(VLOOKUP($A92,Filtros!$A$4:$AK$2906,21,FALSE),0) -> 0 | X92: =IFERROR(VLOOKUP($A92,Filtros!$A$4:$AK$2906,22,FALSE),0) -> 0 | Y92: =IFERROR(VLOOKUP($A92,Filtros!$A$4:$AK$2906,23,FALSE),0) -> 0 | Z92: =IFERROR(VLOOKUP($A92,Filtros!$A$4:$AK$2906,24,FALSE),0) -> 0 | AA92: =IFERROR(VLOOKUP($A92,Filtros!$A$4:$AK$2906,25,FALSE),0) -> 0 | AB92: =IFERROR(VLOOKUP($A92,Filtros!$A$4:$AK$2906,26,FALSE),0) -> 0 | AC92: =IFERROR(VLOOKUP($A92,Filtros!$A$4:$AK$2906,27,FALSE),0) -> 716 | AD92: =IFERROR(VLOOKUP($A92,Filtros!$A$4:$AK$2906,28,FALSE),0) -> 0 | AE92: =IFERROR(VLOOKUP($A92,Filtros!$A$4:$AK$2906,29,FALSE),0) -> 0 | AF92: =IFERROR(VLOOKUP($A92,Filtros!$A$4:$AK$2906,30,FALSE),0) -> 0 | AG92: =IFERROR(VLOOKUP($A92,Filtros!$A$4:$AK$2906,31,FALSE),0) -> 0 | AH92: =IFERROR(VLOOKUP($A92,Filtros!$A$4:$AK$2906,32,FALSE),0) -> 0 | AI92: =IFERROR(VLOOKUP($A92,Filtros!$A$4:$AK$2906,33,FALSE),0) -> 0 | AJ92: =IFERROR(VLOOKUP($A92,Filtros!$A$4:$AK$2906,34,FALSE),0) -> 0 | AK92: =IFERROR(VLOOKUP($A92,Filtros!$A$4:$AK$2906,35,FALSE),0) -> 0 | AL92: =IFERROR(VLOOKUP($A92,Filtros!$A$4:$AK$2906,36,FALSE),0) -> 951,720 | AM92: =IFERROR(VLOOKUP($A92,Filtros!$A$4:$AK$2906,37,FALSE),0) -> 5,111,890
A93: 01014344 | B93: 0108310 | C93: Teleconsulta Médica de Especialidad en Traumatología y Ortopedia | D93: =IFERROR(VLOOKUP($A93,Filtros!$A$4:$AK$2906,2,FALSE),0) -> 0 | E93: =IFERROR(VLOOKUP($A93,Filtros!$A$4:$AK$2906,3,FALSE),0) -> 0 | F93: =IFERROR(VLOOKUP($A93,Filtros!$A$4:$AK$2906,4,FALSE),0) -> 0 | G93: =IFERROR(VLOOKUP($A93,Filtros!$A$4:$AK$2906,5,FALSE),0) -> 0 | H93: =IFERROR(VLOOKUP($A93,Filtros!$A$4:$AK$2906,6,FALSE),0) -> 0 | I93: =IFERROR(VLOOKUP($A93,Filtros!$A$4:$AK$2906,7,FALSE),0) -> 0 | J93: =IFERROR(VLOOKUP($A93,Filtros!$A$4:$AK$2906,8,FALSE),0) -> 0 | K93: =IFERROR(VLOOKUP($A93,Filtros!$A$4:$AK$2906,9,FALSE),0) -> 0 | L93: =IFERROR(VLOOKUP($A93,Filtros!$A$4:$AK$2906,10,FALSE),0) -> 0 | M93: =IFERROR(VLOOKUP($A93,Filtros!$A$4:$AK$2906,11,FALSE),0) -> 0 | N93: =IFERROR(VLOOKUP($A93,Filtros!$A$4:$AK$2906,12,FALSE),0) -> 0 | O93: =IFERROR(VLOOKUP($A93,Filtros!$A$4:$AK$2906,13,FALSE),0) -> 0 | P93: =IFERROR(VLOOKUP($A93,Filtros!$A$4:$AK$2906,14,FALSE),0) -> 0 | Q93: =IFERROR(VLOOKUP($A93,Filtros!$A$4:$AK$2906,15,FALSE),0) -> 0 | R93: =IFERROR(VLOOKUP($A93,Filtros!$A$4:$AK$2906,16,FALSE),0) -> 0 | S93: =IFERROR(VLOOKUP($A93,Filtros!$A$4:$AK$2906,17,FALSE),0) -> 0 | T93: =IFERROR(VLOOKUP($A93,Filtros!$A$4:$AK$2906,18,FALSE),0) -> 0 | U93: =IFERROR(VLOOKUP($A93,Filtros!$A$4:$AK$2906,19,FALSE),0) -> 0 | V93: =IFERROR(VLOOKUP($A93,Filtros!$A$4:$AK$2906,20,FALSE),0) -> 0 | W93: =IFERROR(VLOOKUP($A93,Filtros!$A$4:$AK$2906,21,FALSE),0) -> 0 | X93: =IFERROR(VLOOKUP($A93,Filtros!$A$4:$AK$2906,22,FALSE),0) -> 0 | Y93: =IFERROR(VLOOKUP($A93,Filtros!$A$4:$AK$2906,23,FALSE),0) -> 0 | Z93: =IFERROR(VLOOKUP($A93,Filtros!$A$4:$AK$2906,24,FALSE),0) -> 0 | AA93: =IFERROR(VLOOKUP($A93,Filtros!$A$4:$AK$2906,25,FALSE),0) -> 0 | AB93: =IFERROR(VLOOKUP($A93,Filtros!$A$4:$AK$2906,26,FALSE),0) -> 0 | AC93: =IFERROR(VLOOKUP($A93,Filtros!$A$4:$AK$2906,27,FALSE),0) -> 0 | AD93: =IFERROR(VLOOKUP($A93,Filtros!$A$4:$AK$2906,28,FALSE),0) -> 0 | AE93: =IFERROR(VLOOKUP($A93,Filtros!$A$4:$AK$2906,29,FALSE),0) -> 0 | AF93: =IFERROR(VLOOKUP($A93,Filtros!$A$4:$AK$2906,30,FALSE),0) -> 0 | AG93: =IFERROR(VLOOKUP($A93,Filtros!$A$4:$AK$2906,31,FALSE),0) -> 0 | AH93: =IFERROR(VLOOKUP($A93,Filtros!$A$4:$AK$2906,32,FALSE),0) -> 0 | AI93: =IFERROR(VLOOKUP($A93,Filtros!$A$4:$AK$2906,33,FALSE),0) -> 0 | AJ93: =IFERROR(VLOOKUP($A93,Filtros!$A$4:$AK$2906,34,FALSE),0) -> 0 | AK93: =IFERROR(VLOOKUP($A93,Filtros!$A$4:$AK$2906,35,FALSE),0) -> 0 | AL93: =IFERROR(VLOOKUP($A93,Filtros!$A$4:$AK$2906,36,FALSE),0) -> 951,720 | AM93: =IFERROR(VLOOKUP($A93,Filtros!$A$4:$AK$2906,37,FALSE),0) -> 0
A94: 01014345 | B94: 0108311 | C94: Teleconsulta Médica de Especialidad en Urología | D94: =IFERROR(VLOOKUP($A94,Filtros!$A$4:$AK$2906,2,FALSE),0) -> 3 | E94: =IFERROR(VLOOKUP($A94,Filtros!$A$4:$AK$2906,3,FALSE),0) -> 3 | F94: =IFERROR(VLOOKUP($A94,Filtros!$A$4:$AK$2906,4,FALSE),0) -> 3 | G94: =IFERROR(VLOOKUP($A94,Filtros!$A$4:$AK$2906,5,FALSE),0) -> 0 | H94: =IFERROR(VLOOKUP($A94,Filtros!$A$4:$AK$2906,6,FALSE),0) -> 0 | I94: =IFERROR(VLOOKUP($A94,Filtros!$A$4:$AK$2906,7,FALSE),0) -> 0 | J94: =IFERROR(VLOOKUP($A94,Filtros!$A$4:$AK$2906,8,FALSE),0) -> 0 | K94: =IFERROR(VLOOKUP($A94,Filtros!$A$4:$AK$2906,9,FALSE),0) -> 0 | L94: =IFERROR(VLOOKUP($A94,Filtros!$A$4:$AK$2906,10,FALSE),0) -> 0 | M94: =IFERROR(VLOOKUP($A94,Filtros!$A$4:$AK$2906,11,FALSE),0) -> 0 | N94: =IFERROR(VLOOKUP($A94,Filtros!$A$4:$AK$2906,12,FALSE),0) -> 0 | O94: =IFERROR(VLOOKUP($A94,Filtros!$A$4:$AK$2906,13,FALSE),0) -> 0 | P94: =IFERROR(VLOOKUP($A94,Filtros!$A$4:$AK$2906,14,FALSE),0) -> 0 | Q94: =IFERROR(VLOOKUP($A94,Filtros!$A$4:$AK$2906,15,FALSE),0) -> 0 | R94: =IFERROR(VLOOKUP($A94,Filtros!$A$4:$AK$2906,16,FALSE),0) -> 0 | S94: =IFERROR(VLOOKUP($A94,Filtros!$A$4:$AK$2906,17,FALSE),0) -> 0 | T94: =IFERROR(VLOOKUP($A94,Filtros!$A$4:$AK$2906,18,FALSE),0) -> 0 | U94: =IFERROR(VLOOKUP($A94,Filtros!$A$4:$AK$2906,19,FALSE),0) -> 0 | V94: =IFERROR(VLOOKUP($A94,Filtros!$A$4:$AK$2906,20,FALSE),0) -> 0 | W94: =IFERROR(VLOOKUP($A94,Filtros!$A$4:$AK$2906,21,FALSE),0) -> 0 | X94: =IFERROR(VLOOKUP($A94,Filtros!$A$4:$AK$2906,22,FALSE),0) -> 0 | Y94: =IFERROR(VLOOKUP($A94,Filtros!$A$4:$AK$2906,23,FALSE),0) -> 0 | Z94: =IFERROR(VLOOKUP($A94,Filtros!$A$4:$AK$2906,24,FALSE),0) -> 0 | AA94: =IFERROR(VLOOKUP($A94,Filtros!$A$4:$AK$2906,25,FALSE),0) -> 0 | AB94: =IFERROR(VLOOKUP($A94,Filtros!$A$4:$AK$2906,26,FALSE),0) -> 0 | AC94: =IFERROR(VLOOKUP($A94,Filtros!$A$4:$AK$2906,27,FALSE),0) -> 3 | AD94: =IFERROR(VLOOKUP($A94,Filtros!$A$4:$AK$2906,28,FALSE),0) -> 0 | AE94: =IFERROR(VLOOKUP($A94,Filtros!$A$4:$AK$2906,29,FALSE),0) -> 0 | AF94: =IFERROR(VLOOKUP($A94,Filtros!$A$4:$AK$2906,30,FALSE),0) -> 0 | AG94: =IFERROR(VLOOKUP($A94,Filtros!$A$4:$AK$2906,31,FALSE),0) -> 0 | AH94: =IFERROR(VLOOKUP($A94,Filtros!$A$4:$AK$2906,32,FALSE),0) -> 0 | AI94: =IFERROR(VLOOKUP($A94,Filtros!$A$4:$AK$2906,33,FALSE),0) -> 0 | AJ94: =IFERROR(VLOOKUP($A94,Filtros!$A$4:$AK$2906,34,FALSE),0) -> 0 | AK94: =IFERROR(VLOOKUP($A94,Filtros!$A$4:$AK$2906,35,FALSE),0) -> 0 | AL94: =IFERROR(VLOOKUP($A94,Filtros!$A$4:$AK$2906,36,FALSE),0) -> 951,720 | AM94: =IFERROR(VLOOKUP($A94,Filtros!$A$4:$AK$2906,37,FALSE),0) -> 21,630
A95: 01014346 | B95: 0108319 | C95: Teleconsulta Médica de Especialidad en Coloproctología | D95: =IFERROR(VLOOKUP($A95,Filtros!$A$4:$AK$2906,2,FALSE),0) -> 11 | E95: =IFERROR(VLOOKUP($A95,Filtros!$A$4:$AK$2906,3,FALSE),0) -> 11 | F95: =IFERROR(VLOOKUP($A95,Filtros!$A$4:$AK$2906,4,FALSE),0) -> 11 | G95: =IFERROR(VLOOKUP($A95,Filtros!$A$4:$AK$2906,5,FALSE),0) -> 0 | H95: =IFERROR(VLOOKUP($A95,Filtros!$A$4:$AK$2906,6,FALSE),0) -> 0 | I95: =IFERROR(VLOOKUP($A95,Filtros!$A$4:$AK$2906,7,FALSE),0) -> 0 | J95: =IFERROR(VLOOKUP($A95,Filtros!$A$4:$AK$2906,8,FALSE),0) -> 0 | K95: =IFERROR(VLOOKUP($A95,Filtros!$A$4:$AK$2906,9,FALSE),0) -> 0 | L95: =IFERROR(VLOOKUP($A95,Filtros!$A$4:$AK$2906,10,FALSE),0) -> 0 | M95: =IFERROR(VLOOKUP($A95,Filtros!$A$4:$AK$2906,11,FALSE),0) -> 0 | N95: =IFERROR(VLOOKUP($A95,Filtros!$A$4:$AK$2906,12,FALSE),0) -> 0 | O95: =IFERROR(VLOOKUP($A95,Filtros!$A$4:$AK$2906,13,FALSE),0) -> 0 | P95: =IFERROR(VLOOKUP($A95,Filtros!$A$4:$AK$2906,14,FALSE),0) -> 0 | Q95: =IFERROR(VLOOKUP($A95,Filtros!$A$4:$AK$2906,15,FALSE),0) -> 0 | R95: =IFERROR(VLOOKUP($A95,Filtros!$A$4:$AK$2906,16,FALSE),0) -> 0 | S95: =IFERROR(VLOOKUP($A95,Filtros!$A$4:$AK$2906,17,FALSE),0) -> 0 | T95: =IFERROR(VLOOKUP($A95,Filtros!$A$4:$AK$2906,18,FALSE),0) -> 0 | U95: =IFERROR(VLOOKUP($A95,Filtros!$A$4:$AK$2906,19,FALSE),0) -> 0 | V95: =IFERROR(VLOOKUP($A95,Filtros!$A$4:$AK$2906,20,FALSE),0) -> 0 | W95: =IFERROR(VLOOKUP($A95,Filtros!$A$4:$AK$2906,21,FALSE),0) -> 0 | X95: =IFERROR(VLOOKUP($A95,Filtros!$A$4:$AK$2906,22,FALSE),0) -> 0 | Y95: =IFERROR(VLOOKUP($A95,Filtros!$A$4:$AK$2906,23,FALSE),0) -> 0 | Z95: =IFERROR(VLOOKUP($A95,Filtros!$A$4:$AK$2906,24,FALSE),0) -> 0 | AA95: =IFERROR(VLOOKUP($A95,Filtros!$A$4:$AK$2906,25,FALSE),0) -> 0 | AB95: =IFERROR(VLOOKUP($A95,Filtros!$A$4:$AK$2906,26,FALSE),0) -> 0 | AC95: =IFERROR(VLOOKUP($A95,Filtros!$A$4:$AK$2906,27,FALSE),0) -> 11 | AD95: =IFERROR(VLOOKUP($A95,Filtros!$A$4:$AK$2906,28,FALSE),0) -> 0 | AE95: =IFERROR(VLOOKUP($A95,Filtros!$A$4:$AK$2906,29,FALSE),0) -> 0 | AF95: =IFERROR(VLOOKUP($A95,Filtros!$A$4:$AK$2906,30,FALSE),0) -> 0 | AG95: =IFERROR(VLOOKUP($A95,Filtros!$A$4:$AK$2906,31,FALSE),0) -> 0 | AH95: =IFERROR(VLOOKUP($A95,Filtros!$A$4:$AK$2906,32,FALSE),0) -> 0 | AI95: =IFERROR(VLOOKUP($A95,Filtros!$A$4:$AK$2906,33,FALSE),0) -> 0 | AJ95: =IFERROR(VLOOKUP($A95,Filtros!$A$4:$AK$2906,34,FALSE),0) -> 0 | AK95: =IFERROR(VLOOKUP($A95,Filtros!$A$4:$AK$2906,35,FALSE),0) -> 0 | AL95: =IFERROR(VLOOKUP($A95,Filtros!$A$4:$AK$2906,36,FALSE),0) -> 951,720 | AM95: =IFERROR(VLOOKUP($A95,Filtros!$A$4:$AK$2906,37,FALSE),0) -> 79,310
A96: 01014347 | B96: 0108320 | C96: Teleconsulta Médica de Especialidad en Diabetología | D96: =IFERROR(VLOOKUP($A96,Filtros!$A$4:$AK$2906,2,FALSE),0) -> 5 | E96: =IFERROR(VLOOKUP($A96,Filtros!$A$4:$AK$2906,3,FALSE),0) -> 5 | F96: =IFERROR(VLOOKUP($A96,Filtros!$A$4:$AK$2906,4,FALSE),0) -> 5 | G96: =IFERROR(VLOOKUP($A96,Filtros!$A$4:$AK$2906,5,FALSE),0) -> 0 | H96: =IFERROR(VLOOKUP($A96,Filtros!$A$4:$AK$2906,6,FALSE),0) -> 0 | I96: =IFERROR(VLOOKUP($A96,Filtros!$A$4:$AK$2906,7,FALSE),0) -> 0 | J96: =IFERROR(VLOOKUP($A96,Filtros!$A$4:$AK$2906,8,FALSE),0) -> 0 | K96: =IFERROR(VLOOKUP($A96,Filtros!$A$4:$AK$2906,9,FALSE),0) -> 0 | L96: =IFERROR(VLOOKUP($A96,Filtros!$A$4:$AK$2906,10,FALSE),0) -> 0 | M96: =IFERROR(VLOOKUP($A96,Filtros!$A$4:$AK$2906,11,FALSE),0) -> 0 | N96: =IFERROR(VLOOKUP($A96,Filtros!$A$4:$AK$2906,12,FALSE),0) -> 0 | O96: =IFERROR(VLOOKUP($A96,Filtros!$A$4:$AK$2906,13,FALSE),0) -> 0 | P96: =IFERROR(VLOOKUP($A96,Filtros!$A$4:$AK$2906,14,FALSE),0) -> 0 | Q96: =IFERROR(VLOOKUP($A96,Filtros!$A$4:$AK$2906,15,FALSE),0) -> 0 | R96: =IFERROR(VLOOKUP($A96,Filtros!$A$4:$AK$2906,16,FALSE),0) -> 0 | S96: =IFERROR(VLOOKUP($A96,Filtros!$A$4:$AK$2906,17,FALSE),0) -> 0 | T96: =IFERROR(VLOOKUP($A96,Filtros!$A$4:$AK$2906,18,FALSE),0) -> 0 | U96: =IFERROR(VLOOKUP($A96,Filtros!$A$4:$AK$2906,19,FALSE),0) -> 0 | V96: =IFERROR(VLOOKUP($A96,Filtros!$A$4:$AK$2906,20,FALSE),0) -> 0 | W96: =IFERROR(VLOOKUP($A96,Filtros!$A$4:$AK$2906,21,FALSE),0) -> 0 | X96: =IFERROR(VLOOKUP($A96,Filtros!$A$4:$AK$2906,22,FALSE),0) -> 0 | Y96: =IFERROR(VLOOKUP($A96,Filtros!$A$4:$AK$2906,23,FALSE),0) -> 0 | Z96: =IFERROR(VLOOKUP($A96,Filtros!$A$4:$AK$2906,24,FALSE),0) -> 0 | AA96: =IFERROR(VLOOKUP($A96,Filtros!$A$4:$AK$2906,25,FALSE),0) -> 0 | AB96: =IFERROR(VLOOKUP($A96,Filtros!$A$4:$AK$2906,26,FALSE),0) -> 0 | AC96: =IFERROR(VLOOKUP($A96,Filtros!$A$4:$AK$2906,27,FALSE),0) -> 5 | AD96: =IFERROR(VLOOKUP($A96,Filtros!$A$4:$AK$2906,28,FALSE),0) -> 0 | AE96: =IFERROR(VLOOKUP($A96,Filtros!$A$4:$AK$2906,29,FALSE),0) -> 0 | AF96: =IFERROR(VLOOKUP($A96,Filtros!$A$4:$AK$2906,30,FALSE),0) -> 0 | AG96: =IFERROR(VLOOKUP($A96,Filtros!$A$4:$AK$2906,31,FALSE),0) -> 0 | AH96: =IFERROR(VLOOKUP($A96,Filtros!$A$4:$AK$2906,32,FALSE),0) -> 0 | AI96: =IFERROR(VLOOKUP($A96,Filtros!$A$4:$AK$2906,33,FALSE),0) -> 0 | AJ96: =IFERROR(VLOOKUP($A96,Filtros!$A$4:$AK$2906,34,FALSE),0) -> 0 | AK96: =IFERROR(VLOOKUP($A96,Filtros!$A$4:$AK$2906,35,FALSE),0) -> 0 | AL96: =IFERROR(VLOOKUP($A96,Filtros!$A$4:$AK$2906,36,FALSE),0) -> 951,720 | AM96: =IFERROR(VLOOKUP($A96,Filtros!$A$4:$AK$2906,37,FALSE),0) -> 36,050
A97: 01014348 | B97: 0108321 | C97: Teleconsulta Médica de Especialidad en Enfermedades Respiratorias Adulto | D97: =IFERROR(VLOOKUP($A97,Filtros!$A$4:$AK$2906,2,FALSE),0) -> 145 | E97: =IFERROR(VLOOKUP($A97,Filtros!$A$4:$AK$2906,3,FALSE),0) -> 145 | F97: =IFERROR(VLOOKUP($A97,Filtros!$A$4:$AK$2906,4,FALSE),0) -> 145 | G97: =IFERROR(VLOOKUP($A97,Filtros!$A$4:$AK$2906,5,FALSE),0) -> 0 | H97: =IFERROR(VLOOKUP($A97,Filtros!$A$4:$AK$2906,6,FALSE),0) -> 0 | I97: =IFERROR(VLOOKUP($A97,Filtros!$A$4:$AK$2906,7,FALSE),0) -> 0 | J97: =IFERROR(VLOOKUP($A97,Filtros!$A$4:$AK$2906,8,FALSE),0) -> 0 | K97: =IFERROR(VLOOKUP($A97,Filtros!$A$4:$AK$2906,9,FALSE),0) -> 0 | L97: =IFERROR(VLOOKUP($A97,Filtros!$A$4:$AK$2906,10,FALSE),0) -> 0 | M97: =IFERROR(VLOOKUP($A97,Filtros!$A$4:$AK$2906,11,FALSE),0) -> 0 | N97: =IFERROR(VLOOKUP($A97,Filtros!$A$4:$AK$2906,12,FALSE),0) -> 0 | O97: =IFERROR(VLOOKUP($A97,Filtros!$A$4:$AK$2906,13,FALSE),0) -> 0 | P97: =IFERROR(VLOOKUP($A97,Filtros!$A$4:$AK$2906,14,FALSE),0) -> 0 | Q97: =IFERROR(VLOOKUP($A97,Filtros!$A$4:$AK$2906,15,FALSE),0) -> 0 | R97: =IFERROR(VLOOKUP($A97,Filtros!$A$4:$AK$2906,16,FALSE),0) -> 0 | S97: =IFERROR(VLOOKUP($A97,Filtros!$A$4:$AK$2906,17,FALSE),0) -> 0 | T97: =IFERROR(VLOOKUP($A97,Filtros!$A$4:$AK$2906,18,FALSE),0) -> 0 | U97: =IFERROR(VLOOKUP($A97,Filtros!$A$4:$AK$2906,19,FALSE),0) -> 0 | V97: =IFERROR(VLOOKUP($A97,Filtros!$A$4:$AK$2906,20,FALSE),0) -> 0 | W97: =IFERROR(VLOOKUP($A97,Filtros!$A$4:$AK$2906,21,FALSE),0) -> 0 | X97: =IFERROR(VLOOKUP($A97,Filtros!$A$4:$AK$2906,22,FALSE),0) -> 0 | Y97: =IFERROR(VLOOKUP($A97,Filtros!$A$4:$AK$2906,23,FALSE),0) -> 0 | Z97: =IFERROR(VLOOKUP($A97,Filtros!$A$4:$AK$2906,24,FALSE),0) -> 0 | AA97: =IFERROR(VLOOKUP($A97,Filtros!$A$4:$AK$2906,25,FALSE),0) -> 0 | AB97: =IFERROR(VLOOKUP($A97,Filtros!$A$4:$AK$2906,26,FALSE),0) -> 0 | AC97: =IFERROR(VLOOKUP($A97,Filtros!$A$4:$AK$2906,27,FALSE),0) -> 145 | AD97: =IFERROR(VLOOKUP($A97,Filtros!$A$4:$AK$2906,28,FALSE),0) -> 0 | AE97: =IFERROR(VLOOKUP($A97,Filtros!$A$4:$AK$2906,29,FALSE),0) -> 0 | AF97: =IFERROR(VLOOKUP($A97,Filtros!$A$4:$AK$2906,30,FALSE),0) -> 0 | AG97: =IFERROR(VLOOKUP($A97,Filtros!$A$4:$AK$2906,31,FALSE),0) -> 0 | AH97: =IFERROR(VLOOKUP($A97,Filtros!$A$4:$AK$2906,32,FALSE),0) -> 0 | AI97: =IFERROR(VLOOKUP($A97,Filtros!$A$4:$AK$2906,33,FALSE),0) -> 0 | AJ97: =IFERROR(VLOOKUP($A97,Filtros!$A$4:$AK$2906,34,FALSE),0) -> 0 | AK97: =IFERROR(VLOOKUP($A97,Filtros!$A$4:$AK$2906,35,FALSE),0) -> 0 | AL97: =IFERROR(VLOOKUP($A97,Filtros!$A$4:$AK$2906,36,FALSE),0) -> 951,720 | AM97: =IFERROR(VLOOKUP($A97,Filtros!$A$4:$AK$2906,37,FALSE),0) -> 1,045,450
A98: 01014349 | B98: 0108322 | C98: Teleconsulta Médica de Especialidad en Enfermedades Respiratorias Pediátricas | D98: =IFERROR(VLOOKUP($A98,Filtros!$A$4:$AK$2906,2,FALSE),0) -> 44 | E98: =IFERROR(VLOOKUP($A98,Filtros!$A$4:$AK$2906,3,FALSE),0) -> 44 | F98: =IFERROR(VLOOKUP($A98,Filtros!$A$4:$AK$2906,4,FALSE),0) -> 44 | G98: =IFERROR(VLOOKUP($A98,Filtros!$A$4:$AK$2906,5,FALSE),0) -> 0 | H98: =IFERROR(VLOOKUP($A98,Filtros!$A$4:$AK$2906,6,FALSE),0) -> 0 | I98: =IFERROR(VLOOKUP($A98,Filtros!$A$4:$AK$2906,7,FALSE),0) -> 0 | J98: =IFERROR(VLOOKUP($A98,Filtros!$A$4:$AK$2906,8,FALSE),0) -> 0 | K98: =IFERROR(VLOOKUP($A98,Filtros!$A$4:$AK$2906,9,FALSE),0) -> 0 | L98: =IFERROR(VLOOKUP($A98,Filtros!$A$4:$AK$2906,10,FALSE),0) -> 0 | M98: =IFERROR(VLOOKUP($A98,Filtros!$A$4:$AK$2906,11,FALSE),0) -> 0 | N98: =IFERROR(VLOOKUP($A98,Filtros!$A$4:$AK$2906,12,FALSE),0) -> 0 | O98: =IFERROR(VLOOKUP($A98,Filtros!$A$4:$AK$2906,13,FALSE),0) -> 0 | P98: =IFERROR(VLOOKUP($A98,Filtros!$A$4:$AK$2906,14,FALSE),0) -> 0 | Q98: =IFERROR(VLOOKUP($A98,Filtros!$A$4:$AK$2906,15,FALSE),0) -> 0 | R98: =IFERROR(VLOOKUP($A98,Filtros!$A$4:$AK$2906,16,FALSE),0) -> 0 | S98: =IFERROR(VLOOKUP($A98,Filtros!$A$4:$AK$2906,17,FALSE),0) -> 0 | T98: =IFERROR(VLOOKUP($A98,Filtros!$A$4:$AK$2906,18,FALSE),0) -> 0 | U98: =IFERROR(VLOOKUP($A98,Filtros!$A$4:$AK$2906,19,FALSE),0) -> 0 | V98: =IFERROR(VLOOKUP($A98,Filtros!$A$4:$AK$2906,20,FALSE),0) -> 0 | W98: =IFERROR(VLOOKUP($A98,Filtros!$A$4:$AK$2906,21,FALSE),0) -> 0 | X98: =IFERROR(VLOOKUP($A98,Filtros!$A$4:$AK$2906,22,FALSE),0) -> 0 | Y98: =IFERROR(VLOOKUP($A98,Filtros!$A$4:$AK$2906,23,FALSE),0) -> 0 | Z98: =IFERROR(VLOOKUP($A98,Filtros!$A$4:$AK$2906,24,FALSE),0) -> 0 | AA98: =IFERROR(VLOOKUP($A98,Filtros!$A$4:$AK$2906,25,FALSE),0) -> 0 | AB98: =IFERROR(VLOOKUP($A98,Filtros!$A$4:$AK$2906,26,FALSE),0) -> 0 | AC98: =IFERROR(VLOOKUP($A98,Filtros!$A$4:$AK$2906,27,FALSE),0) -> 44 | AD98: =IFERROR(VLOOKUP($A98,Filtros!$A$4:$AK$2906,28,FALSE),0) -> 0 | AE98: =IFERROR(VLOOKUP($A98,Filtros!$A$4:$AK$2906,29,FALSE),0) -> 0 | AF98: =IFERROR(VLOOKUP($A98,Filtros!$A$4:$AK$2906,30,FALSE),0) -> 0 | AG98: =IFERROR(VLOOKUP($A98,Filtros!$A$4:$AK$2906,31,FALSE),0) -> 0 | AH98: =IFERROR(VLOOKUP($A98,Filtros!$A$4:$AK$2906,32,FALSE),0) -> 0 | AI98: =IFERROR(VLOOKUP($A98,Filtros!$A$4:$AK$2906,33,FALSE),0) -> 0 | AJ98: =IFERROR(VLOOKUP($A98,Filtros!$A$4:$AK$2906,34,FALSE),0) -> 0 | AK98: =IFERROR(VLOOKUP($A98,Filtros!$A$4:$AK$2906,35,FALSE),0) -> 0 | AL98: =IFERROR(VLOOKUP($A98,Filtros!$A$4:$AK$2906,36,FALSE),0) -> 951,720 | AM98: =IFERROR(VLOOKUP($A98,Filtros!$A$4:$AK$2906,37,FALSE),0) -> 317,240
A99: 01014350 | B99: 0108323 | C99: Teleconsulta Médica de Especialidad en Gastroenterología Adulto | D99: =IFERROR(VLOOKUP($A99,Filtros!$A$4:$AK$2906,2,FALSE),0) -> 140 | E99: =IFERROR(VLOOKUP($A99,Filtros!$A$4:$AK$2906,3,FALSE),0) -> 140 | F99: =IFERROR(VLOOKUP($A99,Filtros!$A$4:$AK$2906,4,FALSE),0) -> 140 | G99: =IFERROR(VLOOKUP($A99,Filtros!$A$4:$AK$2906,5,FALSE),0) -> 0 | H99: =IFERROR(VLOOKUP($A99,Filtros!$A$4:$AK$2906,6,FALSE),0) -> 0 | I99: =IFERROR(VLOOKUP($A99,Filtros!$A$4:$AK$2906,7,FALSE),0) -> 0 | J99: =IFERROR(VLOOKUP($A99,Filtros!$A$4:$AK$2906,8,FALSE),0) -> 0 | K99: =IFERROR(VLOOKUP($A99,Filtros!$A$4:$AK$2906,9,FALSE),0) -> 0 | L99: =IFERROR(VLOOKUP($A99,Filtros!$A$4:$AK$2906,10,FALSE),0) -> 0 | M99: =IFERROR(VLOOKUP($A99,Filtros!$A$4:$AK$2906,11,FALSE),0) -> 0 | N99: =IFERROR(VLOOKUP($A99,Filtros!$A$4:$AK$2906,12,FALSE),0) -> 0 | O99: =IFERROR(VLOOKUP($A99,Filtros!$A$4:$AK$2906,13,FALSE),0) -> 0 | P99: =IFERROR(VLOOKUP($A99,Filtros!$A$4:$AK$2906,14,FALSE),0) -> 0 | Q99: =IFERROR(VLOOKUP($A99,Filtros!$A$4:$AK$2906,15,FALSE),0) -> 0 | R99: =IFERROR(VLOOKUP($A99,Filtros!$A$4:$AK$2906,16,FALSE),0) -> 0 | S99: =IFERROR(VLOOKUP($A99,Filtros!$A$4:$AK$2906,17,FALSE),0) -> 0 | T99: =IFERROR(VLOOKUP($A99,Filtros!$A$4:$AK$2906,18,FALSE),0) -> 0 | U99: =IFERROR(VLOOKUP($A99,Filtros!$A$4:$AK$2906,19,FALSE),0) -> 0 | V99: =IFERROR(VLOOKUP($A99,Filtros!$A$4:$AK$2906,20,FALSE),0) -> 0 | W99: =IFERROR(VLOOKUP($A99,Filtros!$A$4:$AK$2906,21,FALSE),0) -> 0 | X99: =IFERROR(VLOOKUP($A99,Filtros!$A$4:$AK$2906,22,FALSE),0) -> 0 | Y99: =IFERROR(VLOOKUP($A99,Filtros!$A$4:$AK$2906,23,FALSE),0) -> 0 | Z99: =IFERROR(VLOOKUP($A99,Filtros!$A$4:$AK$2906,24,FALSE),0) -> 0 | AA99: =IFERROR(VLOOKUP($A99,Filtros!$A$4:$AK$2906,25,FALSE),0) -> 0 | AB99: =IFERROR(VLOOKUP($A99,Filtros!$A$4:$AK$2906,26,FALSE),0) -> 0 | AC99: =IFERROR(VLOOKUP($A99,Filtros!$A$4:$AK$2906,27,FALSE),0) -> 140 | AD99: =IFERROR(VLOOKUP($A99,Filtros!$A$4:$AK$2906,28,FALSE),0) -> 0 | AE99: =IFERROR(VLOOKUP($A99,Filtros!$A$4:$AK$2906,29,FALSE),0) -> 0 | AF99: =IFERROR(VLOOKUP($A99,Filtros!$A$4:$AK$2906,30,FALSE),0) -> 0 | AG99: =IFERROR(VLOOKUP($A99,Filtros!$A$4:$AK$2906,31,FALSE),0) -> 0 | AH99: =IFERROR(VLOOKUP($A99,Filtros!$A$4:$AK$2906,32,FALSE),0) -> 0 | AI99: =IFERROR(VLOOKUP($A99,Filtros!$A$4:$AK$2906,33,FALSE),0) -> 0 | AJ99: =IFERROR(VLOOKUP($A99,Filtros!$A$4:$AK$2906,34,FALSE),0) -> 0 | AK99: =IFERROR(VLOOKUP($A99,Filtros!$A$4:$AK$2906,35,FALSE),0) -> 0 | AL99: =IFERROR(VLOOKUP($A99,Filtros!$A$4:$AK$2906,36,FALSE),0) -> 951,720 | AM99: =IFERROR(VLOOKUP($A99,Filtros!$A$4:$AK$2906,37,FALSE),0) -> 1,009,400
A100: 01014351 | B100: 0108324 | C100: Teleconsulta Médica de Especialidad en Gastroenterología Pediátrico | D100: =IFERROR(VLOOKUP($A100,Filtros!$A$4:$AK$2906,2,FALSE),0) -> 3 | E100: =IFERROR(VLOOKUP($A100,Filtros!$A$4:$AK$2906,3,FALSE),0) -> 3 | F100: =IFERROR(VLOOKUP($A100,Filtros!$A$4:$AK$2906,4,FALSE),0) -> 3 | G100: =IFERROR(VLOOKUP($A100,Filtros!$A$4:$AK$2906,5,FALSE),0) -> 0 | H100: =IFERROR(VLOOKUP($A100,Filtros!$A$4:$AK$2906,6,FALSE),0) -> 0 | I100: =IFERROR(VLOOKUP($A100,Filtros!$A$4:$AK$2906,7,FALSE),0) -> 0 | J100: =IFERROR(VLOOKUP($A100,Filtros!$A$4:$AK$2906,8,FALSE),0) -> 0 | K100: =IFERROR(VLOOKUP($A100,Filtros!$A$4:$AK$2906,9,FALSE),0) -> 0 | L100: =IFERROR(VLOOKUP($A100,Filtros!$A$4:$AK$2906,10,FALSE),0) -> 0 | M100: =IFERROR(VLOOKUP($A100,Filtros!$A$4:$AK$2906,11,FALSE),0) -> 0 | N100: =IFERROR(VLOOKUP($A100,Filtros!$A$4:$AK$2906,12,FALSE),0) -> 0 | O100: =IFERROR(VLOOKUP($A100,Filtros!$A$4:$AK$2906,13,FALSE),0) -> 0 | P100: =IFERROR(VLOOKUP($A100,Filtros!$A$4:$AK$2906,14,FALSE),0) -> 0 | Q100: =IFERROR(VLOOKUP($A100,Filtros!$A$4:$AK$2906,15,FALSE),0) -> 0 | R100: =IFERROR(VLOOKUP($A100,Filtros!$A$4:$AK$2906,16,FALSE),0) -> 0 | S100: =IFERROR(VLOOKUP($A100,Filtros!$A$4:$AK$2906,17,FALSE),0) -> 0 | T100: =IFERROR(VLOOKUP($A100,Filtros!$A$4:$AK$2906,18,FALSE),0) -> 0 | U100: =IFERROR(VLOOKUP($A100,Filtros!$A$4:$AK$2906,19,FALSE),0) -> 0 | V100: =IFERROR(VLOOKUP($A100,Filtros!$A$4:$AK$2906,20,FALSE),0) -> 0 | W100: =IFERROR(VLOOKUP($A100,Filtros!$A$4:$AK$2906,21,FALSE),0) -> 0 | X100: =IFERROR(VLOOKUP($A100,Filtros!$A$4:$AK$2906,22,FALSE),0) -> 0 | Y100: =IFERROR(VLOOKUP($A100,Filtros!$A$4:$AK$2906,23,FALSE),0) -> 0 | Z100: =IFERROR(VLOOKUP($A100,Filtros!$A$4:$AK$2906,24,FALSE),0) -> 0 | AA100: =IFERROR(VLOOKUP($A100,Filtros!$A$4:$AK$2906,25,FALSE),0) -> 0 | AB100: =IFERROR(VLOOKUP($A100,Filtros!$A$4:$AK$2906,26,FALSE),0) -> 0 | AC100: =IFERROR(VLOOKUP($A100,Filtros!$A$4:$AK$2906,27,FALSE),0) -> 3 | AD100: =IFERROR(VLOOKUP($A100,Filtros!$A$4:$AK$2906,28,FALSE),0) -> 0 | AE100: =IFERROR(VLOOKUP($A100,Filtros!$A$4:$AK$2906,29,FALSE),0) -> 0 | AF100: =IFERROR(VLOOKUP($A100,Filtros!$A$4:$AK$2906,30,FALSE),0) -> 0 | AG100: =IFERROR(VLOOKUP($A100,Filtros!$A$4:$AK$2906,31,FALSE),0) -> 0 | AH100: =IFERROR(VLOOKUP($A100,Filtros!$A$4:$AK$2906,32,FALSE),0) -> 0 | AI100: =IFERROR(VLOOKUP($A100,Filtros!$A$4:$AK$2906,33,FALSE),0) -> 0 | AJ100: =IFERROR(VLOOKUP($A100,Filtros!$A$4:$AK$2906,34,FALSE),0) -> 0 | AK100: =IFERROR(VLOOKUP($A100,Filtros!$A$4:$AK$2906,35,FALSE),0) -> 0 | AL100: =IFERROR(VLOOKUP($A100,Filtros!$A$4:$AK$2906,36,FALSE),0) -> 951,720 | AM100: =IFERROR(VLOOKUP($A100,Filtros!$A$4:$AK$2906,37,FALSE),0) -> 21,630
A101: 01014352 | B101: 0108325 | C101: Teleconsulta Médica de Especialidad en Genética Clínica | D101: =IFERROR(VLOOKUP($A101,Filtros!$A$4:$AK$2906,2,FALSE),0) -> 0 | E101: =IFERROR(VLOOKUP($A101,Filtros!$A$4:$AK$2906,3,FALSE),0) -> 0 | F101: =IFERROR(VLOOKUP($A101,Filtros!$A$4:$AK$2906,4,FALSE),0) -> 0 | G101: =IFERROR(VLOOKUP($A101,Filtros!$A$4:$AK$2906,5,FALSE),0) -> 0 | H101: =IFERROR(VLOOKUP($A101,Filtros!$A$4:$AK$2906,6,FALSE),0) -> 0 | I101: =IFERROR(VLOOKUP($A101,Filtros!$A$4:$AK$2906,7,FALSE),0) -> 0 | J101: =IFERROR(VLOOKUP($A101,Filtros!$A$4:$AK$2906,8,FALSE),0) -> 0 | K101: =IFERROR(VLOOKUP($A101,Filtros!$A$4:$AK$2906,9,FALSE),0) -> 0 | L101: =IFERROR(VLOOKUP($A101,Filtros!$A$4:$AK$2906,10,FALSE),0) -> 0 | M101: =IFERROR(VLOOKUP($A101,Filtros!$A$4:$AK$2906,11,FALSE),0) -> 0 | N101: =IFERROR(VLOOKUP($A101,Filtros!$A$4:$AK$2906,12,FALSE),0) -> 0 | O101: =IFERROR(VLOOKUP($A101,Filtros!$A$4:$AK$2906,13,FALSE),0) -> 0 | P101: =IFERROR(VLOOKUP($A101,Filtros!$A$4:$AK$2906,14,FALSE),0) -> 0 | Q101: =IFERROR(VLOOKUP($A101,Filtros!$A$4:$AK$2906,15,FALSE),0) -> 0 | R101: =IFERROR(VLOOKUP($A101,Filtros!$A$4:$AK$2906,16,FALSE),0) -> 0 | S101: =IFERROR(VLOOKUP($A101,Filtros!$A$4:$AK$2906,17,FALSE),0) -> 0 | T101: =IFERROR(VLOOKUP($A101,Filtros!$A$4:$AK$2906,18,FALSE),0) -> 0 | U101: =IFERROR(VLOOKUP($A101,Filtros!$A$4:$AK$2906,19,FALSE),0) -> 0 | V101: =IFERROR(VLOOKUP($A101,Filtros!$A$4:$AK$2906,20,FALSE),0) -> 0 | W101: =IFERROR(VLOOKUP($A101,Filtros!$A$4:$AK$2906,21,FALSE),0) -> 0 | X101: =IFERROR(VLOOKUP($A101,Filtros!$A$4:$AK$2906,22,FALSE),0) -> 0 | Y101: =IFERROR(VLOOKUP($A101,Filtros!$A$4:$AK$2906,23,FALSE),0) -> 0 | Z101: =IFERROR(VLOOKUP($A101,Filtros!$A$4:$AK$2906,24,FALSE),0) -> 0 | AA101: =IFERROR(VLOOKUP($A101,Filtros!$A$4:$AK$2906,25,FALSE),0) -> 0 | AB101: =IFERROR(VLOOKUP($A101,Filtros!$A$4:$AK$2906,26,FALSE),0) -> 0 | AC101: =IFERROR(VLOOKUP($A101,Filtros!$A$4:$AK$2906,27,FALSE),0) -> 0 | AD101: =IFERROR(VLOOKUP($A101,Filtros!$A$4:$AK$2906,28,FALSE),0) -> 0 | AE101: =IFERROR(VLOOKUP($A101,Filtros!$A$4:$AK$2906,29,FALSE),0) -> 0 | AF101: =IFERROR(VLOOKUP($A101,Filtros!$A$4:$AK$2906,30,FALSE),0) -> 0 | AG101: =IFERROR(VLOOKUP($A101,Filtros!$A$4:$AK$2906,31,FALSE),0) -> 0 | AH101: =IFERROR(VLOOKUP($A101,Filtros!$A$4:$AK$2906,32,FALSE),0) -> 0 | AI101: =IFERROR(VLOOKUP($A101,Filtros!$A$4:$AK$2906,33,FALSE),0) -> 0 | AJ101: =IFERROR(VLOOKUP($A101,Filtros!$A$4:$AK$2906,34,FALSE),0) -> 0 | AK101: =IFERROR(VLOOKUP($A101,Filtros!$A$4:$AK$2906,35,FALSE),0) -> 0 | AL101: =IFERROR(VLOOKUP($A101,Filtros!$A$4:$AK$2906,36,FALSE),0) -> 951,720 | AM101: =IFERROR(VLOOKUP($A101,Filtros!$A$4:$AK$2906,37,FALSE),0) -> 0
A102: 01014353 | B102: 0108326 | C102: Teleconsulta Médica de Especialidad en Nefrología Adulto | D102: =IFERROR(VLOOKUP($A102,Filtros!$A$4:$AK$2906,2,FALSE),0) -> 760 | E102: =IFERROR(VLOOKUP($A102,Filtros!$A$4:$AK$2906,3,FALSE),0) -> 757 | F102: =IFERROR(VLOOKUP($A102,Filtros!$A$4:$AK$2906,4,FALSE),0) -> 757 | G102: =IFERROR(VLOOKUP($A102,Filtros!$A$4:$AK$2906,5,FALSE),0) -> 0 | H102: =IFERROR(VLOOKUP($A102,Filtros!$A$4:$AK$2906,6,FALSE),0) -> 3 | I102: =IFERROR(VLOOKUP($A102,Filtros!$A$4:$AK$2906,7,FALSE),0) -> 0 | J102: =IFERROR(VLOOKUP($A102,Filtros!$A$4:$AK$2906,8,FALSE),0) -> 0 | K102: =IFERROR(VLOOKUP($A102,Filtros!$A$4:$AK$2906,9,FALSE),0) -> 0 | L102: =IFERROR(VLOOKUP($A102,Filtros!$A$4:$AK$2906,10,FALSE),0) -> 0 | M102: =IFERROR(VLOOKUP($A102,Filtros!$A$4:$AK$2906,11,FALSE),0) -> 0 | N102: =IFERROR(VLOOKUP($A102,Filtros!$A$4:$AK$2906,12,FALSE),0) -> 0 | O102: =IFERROR(VLOOKUP($A102,Filtros!$A$4:$AK$2906,13,FALSE),0) -> 0 | P102: =IFERROR(VLOOKUP($A102,Filtros!$A$4:$AK$2906,14,FALSE),0) -> 0 | Q102: =IFERROR(VLOOKUP($A102,Filtros!$A$4:$AK$2906,15,FALSE),0) -> 0 | R102: =IFERROR(VLOOKUP($A102,Filtros!$A$4:$AK$2906,16,FALSE),0) -> 0 | S102: =IFERROR(VLOOKUP($A102,Filtros!$A$4:$AK$2906,17,FALSE),0) -> 0 | T102: =IFERROR(VLOOKUP($A102,Filtros!$A$4:$AK$2906,18,FALSE),0) -> 0 | U102: =IFERROR(VLOOKUP($A102,Filtros!$A$4:$AK$2906,19,FALSE),0) -> 0 | V102: =IFERROR(VLOOKUP($A102,Filtros!$A$4:$AK$2906,20,FALSE),0) -> 0 | W102: =IFERROR(VLOOKUP($A102,Filtros!$A$4:$AK$2906,21,FALSE),0) -> 0 | X102: =IFERROR(VLOOKUP($A102,Filtros!$A$4:$AK$2906,22,FALSE),0) -> 0 | Y102: =IFERROR(VLOOKUP($A102,Filtros!$A$4:$AK$2906,23,FALSE),0) -> 0 | Z102: =IFERROR(VLOOKUP($A102,Filtros!$A$4:$AK$2906,24,FALSE),0) -> 0 | AA102: =IFERROR(VLOOKUP($A102,Filtros!$A$4:$AK$2906,25,FALSE),0) -> 0 | AB102: =IFERROR(VLOOKUP($A102,Filtros!$A$4:$AK$2906,26,FALSE),0) -> 0 | AC102: =IFERROR(VLOOKUP($A102,Filtros!$A$4:$AK$2906,27,FALSE),0) -> 760 | AD102: =IFERROR(VLOOKUP($A102,Filtros!$A$4:$AK$2906,28,FALSE),0) -> 0 | AE102: =IFERROR(VLOOKUP($A102,Filtros!$A$4:$AK$2906,29,FALSE),0) -> 0 | AF102: =IFERROR(VLOOKUP($A102,Filtros!$A$4:$AK$2906,30,FALSE),0) -> 0 | AG102: =IFERROR(VLOOKUP($A102,Filtros!$A$4:$AK$2906,31,FALSE),0) -> 0 | AH102: =IFERROR(VLOOKUP($A102,Filtros!$A$4:$AK$2906,32,FALSE),0) -> 0 | AI102: =IFERROR(VLOOKUP($A102,Filtros!$A$4:$AK$2906,33,FALSE),0) -> 0 | AJ102: =IFERROR(VLOOKUP($A102,Filtros!$A$4:$AK$2906,34,FALSE),0) -> 0 | AK102: =IFERROR(VLOOKUP($A102,Filtros!$A$4:$AK$2906,35,FALSE),0) -> 0 | AL102: =IFERROR(VLOOKUP($A102,Filtros!$A$4:$AK$2906,36,FALSE),0) -> 951,720 | AM102: =IFERROR(VLOOKUP($A102,Filtros!$A$4:$AK$2906,37,FALSE),0) -> 5,457,970
A103: 01014354 | B103: 0108327 | C103: Teleconsulta Médica de Especialidad en Nefrología Pediátrico | D103: =IFERROR(VLOOKUP($A103,Filtros!$A$4:$AK$2906,2,FALSE),0) -> 1 | E103: =IFERROR(VLOOKUP($A103,Filtros!$A$4:$AK$2906,3,FALSE),0) -> 1 | F103: =IFERROR(VLOOKUP($A103,Filtros!$A$4:$AK$2906,4,FALSE),0) -> 1 | G103: =IFERROR(VLOOKUP($A103,Filtros!$A$4:$AK$2906,5,FALSE),0) -> 0 | H103: =IFERROR(VLOOKUP($A103,Filtros!$A$4:$AK$2906,6,FALSE),0) -> 0 | I103: =IFERROR(VLOOKUP($A103,Filtros!$A$4:$AK$2906,7,FALSE),0) -> 0 | J103: =IFERROR(VLOOKUP($A103,Filtros!$A$4:$AK$2906,8,FALSE),0) -> 0 | K103: =IFERROR(VLOOKUP($A103,Filtros!$A$4:$AK$2906,9,FALSE),0) -> 0 | L103: =IFERROR(VLOOKUP($A103,Filtros!$A$4:$AK$2906,10,FALSE),0) -> 0 | M103: =IFERROR(VLOOKUP($A103,Filtros!$A$4:$AK$2906,11,FALSE),0) -> 0 | N103: =IFERROR(VLOOKUP($A103,Filtros!$A$4:$AK$2906,12,FALSE),0) -> 0 | O103: =IFERROR(VLOOKUP($A103,Filtros!$A$4:$AK$2906,13,FALSE),0) -> 0 | P103: =IFERROR(VLOOKUP($A103,Filtros!$A$4:$AK$2906,14,FALSE),0) -> 0 | Q103: =IFERROR(VLOOKUP($A103,Filtros!$A$4:$AK$2906,15,FALSE),0) -> 0 | R103: =IFERROR(VLOOKUP($A103,Filtros!$A$4:$AK$2906,16,FALSE),0) -> 0 | S103: =IFERROR(VLOOKUP($A103,Filtros!$A$4:$AK$2906,17,FALSE),0) -> 0 | T103: =IFERROR(VLOOKUP($A103,Filtros!$A$4:$AK$2906,18,FALSE),0) -> 0 | U103: =IFERROR(VLOOKUP($A103,Filtros!$A$4:$AK$2906,19,FALSE),0) -> 0 | V103: =IFERROR(VLOOKUP($A103,Filtros!$A$4:$AK$2906,20,FALSE),0) -> 0 | W103: =IFERROR(VLOOKUP($A103,Filtros!$A$4:$AK$2906,21,FALSE),0) -> 0 | X103: =IFERROR(VLOOKUP($A103,Filtros!$A$4:$AK$2906,22,FALSE),0) -> 0 | Y103: =IFERROR(VLOOKUP($A103,Filtros!$A$4:$AK$2906,23,FALSE),0) -> 0 | Z103: =IFERROR(VLOOKUP($A103,Filtros!$A$4:$AK$2906,24,FALSE),0) -> 0 | AA103: =IFERROR(VLOOKUP($A103,Filtros!$A$4:$AK$2906,25,FALSE),0) -> 0 | AB103: =IFERROR(VLOOKUP($A103,Filtros!$A$4:$AK$2906,26,FALSE),0) -> 0 | AC103: =IFERROR(VLOOKUP($A103,Filtros!$A$4:$AK$2906,27,FALSE),0) -> 1 | AD103: =IFERROR(VLOOKUP($A103,Filtros!$A$4:$AK$2906,28,FALSE),0) -> 0 | AE103: =IFERROR(VLOOKUP($A103,Filtros!$A$4:$AK$2906,29,FALSE),0) -> 0 | AF103: =IFERROR(VLOOKUP($A103,Filtros!$A$4:$AK$2906,30,FALSE),0) -> 0 | AG103: =IFERROR(VLOOKUP($A103,Filtros!$A$4:$AK$2906,31,FALSE),0) -> 0 | AH103: =IFERROR(VLOOKUP($A103,Filtros!$A$4:$AK$2906,32,FALSE),0) -> 0 | AI103: =IFERROR(VLOOKUP($A103,Filtros!$A$4:$AK$2906,33,FALSE),0) -> 0 | AJ103: =IFERROR(VLOOKUP($A103,Filtros!$A$4:$AK$2906,34,FALSE),0) -> 0 | AK103: =IFERROR(VLOOKUP($A103,Filtros!$A$4:$AK$2906,35,FALSE),0) -> 0 | AL103: =IFERROR(VLOOKUP($A103,Filtros!$A$4:$AK$2906,36,FALSE),0) -> 951,720 | AM103: =IFERROR(VLOOKUP($A103,Filtros!$A$4:$AK$2906,37,FALSE),0) -> 7,210
A104: 01014355 | B104: 0108331 | C104: Teleconsulta Médica de Especialidad en Radioterapia Oncológica | D104: =IFERROR(VLOOKUP($A104,Filtros!$A$4:$AK$2906,2,FALSE),0) -> 0 | E104: =IFERROR(VLOOKUP($A104,Filtros!$A$4:$AK$2906,3,FALSE),0) -> 0 | F104: =IFERROR(VLOOKUP($A104,Filtros!$A$4:$AK$2906,4,FALSE),0) -> 0 | G104: =IFERROR(VLOOKUP($A104,Filtros!$A$4:$AK$2906,5,FALSE),0) -> 0 | H104: =IFERROR(VLOOKUP($A104,Filtros!$A$4:$AK$2906,6,FALSE),0) -> 0 | I104: =IFERROR(VLOOKUP($A104,Filtros!$A$4:$AK$2906,7,FALSE),0) -> 0 | J104: =IFERROR(VLOOKUP($A104,Filtros!$A$4:$AK$2906,8,FALSE),0) -> 0 | K104: =IFERROR(VLOOKUP($A104,Filtros!$A$4:$AK$2906,9,FALSE),0) -> 0 | L104: =IFERROR(VLOOKUP($A104,Filtros!$A$4:$AK$2906,10,FALSE),0) -> 0 | M104: =IFERROR(VLOOKUP($A104,Filtros!$A$4:$AK$2906,11,FALSE),0) -> 0 | N104: =IFERROR(VLOOKUP($A104,Filtros!$A$4:$AK$2906,12,FALSE),0) -> 0 | O104: =IFERROR(VLOOKUP($A104,Filtros!$A$4:$AK$2906,13,FALSE),0) -> 0 | P104: =IFERROR(VLOOKUP($A104,Filtros!$A$4:$AK$2906,14,FALSE),0) -> 0 | Q104: =IFERROR(VLOOKUP($A104,Filtros!$A$4:$AK$2906,15,FALSE),0) -> 0 | R104: =IFERROR(VLOOKUP($A104,Filtros!$A$4:$AK$2906,16,FALSE),0) -> 0 | S104: =IFERROR(VLOOKUP($A104,Filtros!$A$4:$AK$2906,17,FALSE),0) -> 0 | T104: =IFERROR(VLOOKUP($A104,Filtros!$A$4:$AK$2906,18,FALSE),0) -> 0 | U104: =IFERROR(VLOOKUP($A104,Filtros!$A$4:$AK$2906,19,FALSE),0) -> 0 | V104: =IFERROR(VLOOKUP($A104,Filtros!$A$4:$AK$2906,20,FALSE),0) -> 0 | W104: =IFERROR(VLOOKUP($A104,Filtros!$A$4:$AK$2906,21,FALSE),0) -> 0 | X104: =IFERROR(VLOOKUP($A104,Filtros!$A$4:$AK$2906,22,FALSE),0) -> 0 | Y104: =IFERROR(VLOOKUP($A104,Filtros!$A$4:$AK$2906,23,FALSE),0) -> 0 | Z104: =IFERROR(VLOOKUP($A104,Filtros!$A$4:$AK$2906,24,FALSE),0) -> 0 | AA104: =IFERROR(VLOOKUP($A104,Filtros!$A$4:$AK$2906,25,FALSE),0) -> 0 | AB104: =IFERROR(VLOOKUP($A104,Filtros!$A$4:$AK$2906,26,FALSE),0) -> 0 | AC104: =IFERROR(VLOOKUP($A104,Filtros!$A$4:$AK$2906,27,FALSE),0) -> 0 | AD104: =IFERROR(VLOOKUP($A104,Filtros!$A$4:$AK$2906,28,FALSE),0) -> 0 | AE104: =IFERROR(VLOOKUP($A104,Filtros!$A$4:$AK$2906,29,FALSE),0) -> 0 | AF104: =IFERROR(VLOOKUP($A104,Filtros!$A$4:$AK$2906,30,FALSE),0) -> 0 | AG104: =IFERROR(VLOOKUP($A104,Filtros!$A$4:$AK$2906,31,FALSE),0) -> 0 | AH104: =IFERROR(VLOOKUP($A104,Filtros!$A$4:$AK$2906,32,FALSE),0) -> 0 | AI104: =IFERROR(VLOOKUP($A104,Filtros!$A$4:$AK$2906,33,FALSE),0) -> 0 | AJ104: =IFERROR(VLOOKUP($A104,Filtros!$A$4:$AK$2906,34,FALSE),0) -> 0 | AK104: =IFERROR(VLOOKUP($A104,Filtros!$A$4:$AK$2906,35,FALSE),0) -> 0 | AL104: =IFERROR(VLOOKUP($A104,Filtros!$A$4:$AK$2906,36,FALSE),0) -> 951,720 | AM104: =IFERROR(VLOOKUP($A104,Filtros!$A$4:$AK$2906,37,FALSE),0) -> 0
A105: 01014356 | B105: 0108203 | C105: Teleconsulta Médica de Especialidad en Neurocirugía | D105: =IFERROR(VLOOKUP($A105,Filtros!$A$4:$AK$2906,2,FALSE),0) -> 0 | E105: =IFERROR(VLOOKUP($A105,Filtros!$A$4:$AK$2906,3,FALSE),0) -> 0 | F105: =IFERROR(VLOOKUP($A105,Filtros!$A$4:$AK$2906,4,FALSE),0) -> 0 | G105: =IFERROR(VLOOKUP($A105,Filtros!$A$4:$AK$2906,5,FALSE),0) -> 0 | H105: =IFERROR(VLOOKUP($A105,Filtros!$A$4:$AK$2906,6,FALSE),0) -> 0 | I105: =IFERROR(VLOOKUP($A105,Filtros!$A$4:$AK$2906,7,FALSE),0) -> 0 | J105: =IFERROR(VLOOKUP($A105,Filtros!$A$4:$AK$2906,8,FALSE),0) -> 0 | K105: =IFERROR(VLOOKUP($A105,Filtros!$A$4:$AK$2906,9,FALSE),0) -> 0 | L105: =IFERROR(VLOOKUP($A105,Filtros!$A$4:$AK$2906,10,FALSE),0) -> 0 | M105: =IFERROR(VLOOKUP($A105,Filtros!$A$4:$AK$2906,11,FALSE),0) -> 0 | N105: =IFERROR(VLOOKUP($A105,Filtros!$A$4:$AK$2906,12,FALSE),0) -> 0 | O105: =IFERROR(VLOOKUP($A105,Filtros!$A$4:$AK$2906,13,FALSE),0) -> 0 | P105: =IFERROR(VLOOKUP($A105,Filtros!$A$4:$AK$2906,14,FALSE),0) -> 0 | Q105: =IFERROR(VLOOKUP($A105,Filtros!$A$4:$AK$2906,15,FALSE),0) -> 0 | R105: =IFERROR(VLOOKUP($A105,Filtros!$A$4:$AK$2906,16,FALSE),0) -> 0 | S105: =IFERROR(VLOOKUP($A105,Filtros!$A$4:$AK$2906,17,FALSE),0) -> 0 | T105: =IFERROR(VLOOKUP($A105,Filtros!$A$4:$AK$2906,18,FALSE),0) -> 0 | U105: =IFERROR(VLOOKUP($A105,Filtros!$A$4:$AK$2906,19,FALSE),0) -> 0 | V105: =IFERROR(VLOOKUP($A105,Filtros!$A$4:$AK$2906,20,FALSE),0) -> 0 | W105: =IFERROR(VLOOKUP($A105,Filtros!$A$4:$AK$2906,21,FALSE),0) -> 0 | X105: =IFERROR(VLOOKUP($A105,Filtros!$A$4:$AK$2906,22,FALSE),0) -> 0 | Y105: =IFERROR(VLOOKUP($A105,Filtros!$A$4:$AK$2906,23,FALSE),0) -> 0 | Z105: =IFERROR(VLOOKUP($A105,Filtros!$A$4:$AK$2906,24,FALSE),0) -> 0 | AA105: =IFERROR(VLOOKUP($A105,Filtros!$A$4:$AK$2906,25,FALSE),0) -> 0 | AB105: =IFERROR(VLOOKUP($A105,Filtros!$A$4:$AK$2906,26,FALSE),0) -> 0 | AC105: =IFERROR(VLOOKUP($A105,Filtros!$A$4:$AK$2906,27,FALSE),0) -> 0 | AD105: =IFERROR(VLOOKUP($A105,Filtros!$A$4:$AK$2906,28,FALSE),0) -> 0 | AE105: =IFERROR(VLOOKUP($A105,Filtros!$A$4:$AK$2906,29,FALSE),0) -> 0 | AF105: =IFERROR(VLOOKUP($A105,Filtros!$A$4:$AK$2906,30,FALSE),0) -> 0 | AG105: =IFERROR(VLOOKUP($A105,Filtros!$A$4:$AK$2906,31,FALSE),0) -> 0 | AH105: =IFERROR(VLOOKUP($A105,Filtros!$A$4:$AK$2906,32,FALSE),0) -> 0 | AI105: =IFERROR(VLOOKUP($A105,Filtros!$A$4:$AK$2906,33,FALSE),0) -> 0 | AJ105: =IFERROR(VLOOKUP($A105,Filtros!$A$4:$AK$2906,34,FALSE),0) -> 0 | AK105: =IFERROR(VLOOKUP($A105,Filtros!$A$4:$AK$2906,35,FALSE),0) -> 0 | AL105: =IFERROR(VLOOKUP($A105,Filtros!$A$4:$AK$2906,36,FALSE),0) -> 951,720 | AM105: =IFERROR(VLOOKUP($A105,Filtros!$A$4:$AK$2906,37,FALSE),0) -> 0
A106: 01014357 | B106: 0108204 | C106: Teleconsulta Médica de Especialidad en Oftalmología | D106: =IFERROR(VLOOKUP($A106,Filtros!$A$4:$AK$2906,2,FALSE),0) -> 671 | E106: =IFERROR(VLOOKUP($A106,Filtros!$A$4:$AK$2906,3,FALSE),0) -> 671 | F106: =IFERROR(VLOOKUP($A106,Filtros!$A$4:$AK$2906,4,FALSE),0) -> 671 | G106: =IFERROR(VLOOKUP($A106,Filtros!$A$4:$AK$2906,5,FALSE),0) -> 0 | H106: =IFERROR(VLOOKUP($A106,Filtros!$A$4:$AK$2906,6,FALSE),0) -> 0 | I106: =IFERROR(VLOOKUP($A106,Filtros!$A$4:$AK$2906,7,FALSE),0) -> 0 | J106: =IFERROR(VLOOKUP($A106,Filtros!$A$4:$AK$2906,8,FALSE),0) -> 0 | K106: =IFERROR(VLOOKUP($A106,Filtros!$A$4:$AK$2906,9,FALSE),0) -> 0 | L106: =IFERROR(VLOOKUP($A106,Filtros!$A$4:$AK$2906,10,FALSE),0) -> 0 | M106: =IFERROR(VLOOKUP($A106,Filtros!$A$4:$AK$2906,11,FALSE),0) -> 0 | N106: =IFERROR(VLOOKUP($A106,Filtros!$A$4:$AK$2906,12,FALSE),0) -> 0 | O106: =IFERROR(VLOOKUP($A106,Filtros!$A$4:$AK$2906,13,FALSE),0) -> 0 | P106: =IFERROR(VLOOKUP($A106,Filtros!$A$4:$AK$2906,14,FALSE),0) -> 0 | Q106: =IFERROR(VLOOKUP($A106,Filtros!$A$4:$AK$2906,15,FALSE),0) -> 0 | R106: =IFERROR(VLOOKUP($A106,Filtros!$A$4:$AK$2906,16,FALSE),0) -> 0 | S106: =IFERROR(VLOOKUP($A106,Filtros!$A$4:$AK$2906,17,FALSE),0) -> 0 | T106: =IFERROR(VLOOKUP($A106,Filtros!$A$4:$AK$2906,18,FALSE),0) -> 0 | U106: =IFERROR(VLOOKUP($A106,Filtros!$A$4:$AK$2906,19,FALSE),0) -> 0 | V106: =IFERROR(VLOOKUP($A106,Filtros!$A$4:$AK$2906,20,FALSE),0) -> 0 | W106: =IFERROR(VLOOKUP($A106,Filtros!$A$4:$AK$2906,21,FALSE),0) -> 0 | X106: =IFERROR(VLOOKUP($A106,Filtros!$A$4:$AK$2906,22,FALSE),0) -> 0 | Y106: =IFERROR(VLOOKUP($A106,Filtros!$A$4:$AK$2906,23,FALSE),0) -> 0 | Z106: =IFERROR(VLOOKUP($A106,Filtros!$A$4:$AK$2906,24,FALSE),0) -> 0 | AA106: =IFERROR(VLOOKUP($A106,Filtros!$A$4:$AK$2906,25,FALSE),0) -> 0 | AB106: =IFERROR(VLOOKUP($A106,Filtros!$A$4:$AK$2906,26,FALSE),0) -> 0 | AC106: =IFERROR(VLOOKUP($A106,Filtros!$A$4:$AK$2906,27,FALSE),0) -> 671 | AD106: =IFERROR(VLOOKUP($A106,Filtros!$A$4:$AK$2906,28,FALSE),0) -> 0 | AE106: =IFERROR(VLOOKUP($A106,Filtros!$A$4:$AK$2906,29,FALSE),0) -> 0 | AF106: =IFERROR(VLOOKUP($A106,Filtros!$A$4:$AK$2906,30,FALSE),0) -> 0 | AG106: =IFERROR(VLOOKUP($A106,Filtros!$A$4:$AK$2906,31,FALSE),0) -> 0 | AH106: =IFERROR(VLOOKUP($A106,Filtros!$A$4:$AK$2906,32,FALSE),0) -> 0 | AI106: =IFERROR(VLOOKUP($A106,Filtros!$A$4:$AK$2906,33,FALSE),0) -> 0 | AJ106: =IFERROR(VLOOKUP($A106,Filtros!$A$4:$AK$2906,34,FALSE),0) -> 0 | AK106: =IFERROR(VLOOKUP($A106,Filtros!$A$4:$AK$2906,35,FALSE),0) -> 0 | AL106: =IFERROR(VLOOKUP($A106,Filtros!$A$4:$AK$2906,36,FALSE),0) -> 951,720 | AM106: =IFERROR(VLOOKUP($A106,Filtros!$A$4:$AK$2906,37,FALSE),0) -> 4,837,910
A107: 01014358 | B107: 0108205 | C107: Teleconsulta Médica de Especialidad en Otorrinolaringología | D107: =IFERROR(VLOOKUP($A107,Filtros!$A$4:$AK$2906,2,FALSE),0) -> 1 | E107: =IFERROR(VLOOKUP($A107,Filtros!$A$4:$AK$2906,3,FALSE),0) -> 1 | F107: =IFERROR(VLOOKUP($A107,Filtros!$A$4:$AK$2906,4,FALSE),0) -> 1 | G107: =IFERROR(VLOOKUP($A107,Filtros!$A$4:$AK$2906,5,FALSE),0) -> 0 | H107: =IFERROR(VLOOKUP($A107,Filtros!$A$4:$AK$2906,6,FALSE),0) -> 0 | I107: =IFERROR(VLOOKUP($A107,Filtros!$A$4:$AK$2906,7,FALSE),0) -> 0 | J107: =IFERROR(VLOOKUP($A107,Filtros!$A$4:$AK$2906,8,FALSE),0) -> 0 | K107: =IFERROR(VLOOKUP($A107,Filtros!$A$4:$AK$2906,9,FALSE),0) -> 0 | L107: =IFERROR(VLOOKUP($A107,Filtros!$A$4:$AK$2906,10,FALSE),0) -> 0 | M107: =IFERROR(VLOOKUP($A107,Filtros!$A$4:$AK$2906,11,FALSE),0) -> 0 | N107: =IFERROR(VLOOKUP($A107,Filtros!$A$4:$AK$2906,12,FALSE),0) -> 0 | O107: =IFERROR(VLOOKUP($A107,Filtros!$A$4:$AK$2906,13,FALSE),0) -> 0 | P107: =IFERROR(VLOOKUP($A107,Filtros!$A$4:$AK$2906,14,FALSE),0) -> 0 | Q107: =IFERROR(VLOOKUP($A107,Filtros!$A$4:$AK$2906,15,FALSE),0) -> 0 | R107: =IFERROR(VLOOKUP($A107,Filtros!$A$4:$AK$2906,16,FALSE),0) -> 0 | S107: =IFERROR(VLOOKUP($A107,Filtros!$A$4:$AK$2906,17,FALSE),0) -> 0 | T107: =IFERROR(VLOOKUP($A107,Filtros!$A$4:$AK$2906,18,FALSE),0) -> 0 | U107: =IFERROR(VLOOKUP($A107,Filtros!$A$4:$AK$2906,19,FALSE),0) -> 0 | V107: =IFERROR(VLOOKUP($A107,Filtros!$A$4:$AK$2906,20,FALSE),0) -> 0 | W107: =IFERROR(VLOOKUP($A107,Filtros!$A$4:$AK$2906,21,FALSE),0) -> 0 | X107: =IFERROR(VLOOKUP($A107,Filtros!$A$4:$AK$2906,22,FALSE),0) -> 0 | Y107: =IFERROR(VLOOKUP($A107,Filtros!$A$4:$AK$2906,23,FALSE),0) -> 0 | Z107: =IFERROR(VLOOKUP($A107,Filtros!$A$4:$AK$2906,24,FALSE),0) -> 0 | AA107: =IFERROR(VLOOKUP($A107,Filtros!$A$4:$AK$2906,25,FALSE),0) -> 0 | AB107: =IFERROR(VLOOKUP($A107,Filtros!$A$4:$AK$2906,26,FALSE),0) -> 0 | AC107: =IFERROR(VLOOKUP($A107,Filtros!$A$4:$AK$2906,27,FALSE),0) -> 1 | AD107: =IFERROR(VLOOKUP($A107,Filtros!$A$4:$AK$2906,28,FALSE),0) -> 0 | AE107: =IFERROR(VLOOKUP($A107,Filtros!$A$4:$AK$2906,29,FALSE),0) -> 0 | AF107: =IFERROR(VLOOKUP($A107,Filtros!$A$4:$AK$2906,30,FALSE),0) -> 0 | AG107: =IFERROR(VLOOKUP($A107,Filtros!$A$4:$AK$2906,31,FALSE),0) -> 0 | AH107: =IFERROR(VLOOKUP($A107,Filtros!$A$4:$AK$2906,32,FALSE),0) -> 0 | AI107: =IFERROR(VLOOKUP($A107,Filtros!$A$4:$AK$2906,33,FALSE),0) -> 0 | AJ107: =IFERROR(VLOOKUP($A107,Filtros!$A$4:$AK$2906,34,FALSE),0) -> 0 | AK107: =IFERROR(VLOOKUP($A107,Filtros!$A$4:$AK$2906,35,FALSE),0) -> 0 | AL107: =IFERROR(VLOOKUP($A107,Filtros!$A$4:$AK$2906,36,FALSE),0) -> 951,720 | AM107: =IFERROR(VLOOKUP($A107,Filtros!$A$4:$AK$2906,37,FALSE),0) -> 7,210
A108: 01014359 | B108: 0108312 | C108: Teleconsulta Médica de Especialidad en Cirugía General | D108: =IFERROR(VLOOKUP($A108,Filtros!$A$4:$AK$2906,2,FALSE),0) -> 12 | E108: =IFERROR(VLOOKUP($A108,Filtros!$A$4:$AK$2906,3,FALSE),0) -> 12 | F108: =IFERROR(VLOOKUP($A108,Filtros!$A$4:$AK$2906,4,FALSE),0) -> 12 | G108: =IFERROR(VLOOKUP($A108,Filtros!$A$4:$AK$2906,5,FALSE),0) -> 0 | H108: =IFERROR(VLOOKUP($A108,Filtros!$A$4:$AK$2906,6,FALSE),0) -> 0 | I108: =IFERROR(VLOOKUP($A108,Filtros!$A$4:$AK$2906,7,FALSE),0) -> 0 | J108: =IFERROR(VLOOKUP($A108,Filtros!$A$4:$AK$2906,8,FALSE),0) -> 0 | K108: =IFERROR(VLOOKUP($A108,Filtros!$A$4:$AK$2906,9,FALSE),0) -> 0 | L108: =IFERROR(VLOOKUP($A108,Filtros!$A$4:$AK$2906,10,FALSE),0) -> 0 | M108: =IFERROR(VLOOKUP($A108,Filtros!$A$4:$AK$2906,11,FALSE),0) -> 0 | N108: =IFERROR(VLOOKUP($A108,Filtros!$A$4:$AK$2906,12,FALSE),0) -> 0 | O108: =IFERROR(VLOOKUP($A108,Filtros!$A$4:$AK$2906,13,FALSE),0) -> 0 | P108: =IFERROR(VLOOKUP($A108,Filtros!$A$4:$AK$2906,14,FALSE),0) -> 0 | Q108: =IFERROR(VLOOKUP($A108,Filtros!$A$4:$AK$2906,15,FALSE),0) -> 0 | R108: =IFERROR(VLOOKUP($A108,Filtros!$A$4:$AK$2906,16,FALSE),0) -> 0 | S108: =IFERROR(VLOOKUP($A108,Filtros!$A$4:$AK$2906,17,FALSE),0) -> 0 | T108: =IFERROR(VLOOKUP($A108,Filtros!$A$4:$AK$2906,18,FALSE),0) -> 0 | U108: =IFERROR(VLOOKUP($A108,Filtros!$A$4:$AK$2906,19,FALSE),0) -> 0 | V108: =IFERROR(VLOOKUP($A108,Filtros!$A$4:$AK$2906,20,FALSE),0) -> 0 | W108: =IFERROR(VLOOKUP($A108,Filtros!$A$4:$AK$2906,21,FALSE),0) -> 0 | X108: =IFERROR(VLOOKUP($A108,Filtros!$A$4:$AK$2906,22,FALSE),0) -> 0 | Y108: =IFERROR(VLOOKUP($A108,Filtros!$A$4:$AK$2906,23,FALSE),0) -> 0 | Z108: =IFERROR(VLOOKUP($A108,Filtros!$A$4:$AK$2906,24,FALSE),0) -> 0 | AA108: =IFERROR(VLOOKUP($A108,Filtros!$A$4:$AK$2906,25,FALSE),0) -> 0 | AB108: =IFERROR(VLOOKUP($A108,Filtros!$A$4:$AK$2906,26,FALSE),0) -> 0 | AC108: =IFERROR(VLOOKUP($A108,Filtros!$A$4:$AK$2906,27,FALSE),0) -> 12 | AD108: =IFERROR(VLOOKUP($A108,Filtros!$A$4:$AK$2906,28,FALSE),0) -> 0 | AE108: =IFERROR(VLOOKUP($A108,Filtros!$A$4:$AK$2906,29,FALSE),0) -> 0 | AF108: =IFERROR(VLOOKUP($A108,Filtros!$A$4:$AK$2906,30,FALSE),0) -> 0 | AG108: =IFERROR(VLOOKUP($A108,Filtros!$A$4:$AK$2906,31,FALSE),0) -> 0 | AH108: =IFERROR(VLOOKUP($A108,Filtros!$A$4:$AK$2906,32,FALSE),0) -> 0 | AI108: =IFERROR(VLOOKUP($A108,Filtros!$A$4:$AK$2906,33,FALSE),0) -> 0 | AJ108: =IFERROR(VLOOKUP($A108,Filtros!$A$4:$AK$2906,34,FALSE),0) -> 0 | AK108: =IFERROR(VLOOKUP($A108,Filtros!$A$4:$AK$2906,35,FALSE),0) -> 0 | AL108: =IFERROR(VLOOKUP($A108,Filtros!$A$4:$AK$2906,36,FALSE),0) -> 951,720 | AM108: =IFERROR(VLOOKUP($A108,Filtros!$A$4:$AK$2906,37,FALSE),0) -> 86,520
A109: 01014360 | B109: 0108313 | C109: Teleconsulta Médica de Especialidad en Cirugía de Cabeza, Cuello y Maxilofacial | D109: =IFERROR(VLOOKUP($A109,Filtros!$A$4:$AK$2906,2,FALSE),0) -> 4 | E109: =IFERROR(VLOOKUP($A109,Filtros!$A$4:$AK$2906,3,FALSE),0) -> 4 | F109: =IFERROR(VLOOKUP($A109,Filtros!$A$4:$AK$2906,4,FALSE),0) -> 4 | G109: =IFERROR(VLOOKUP($A109,Filtros!$A$4:$AK$2906,5,FALSE),0) -> 0 | H109: =IFERROR(VLOOKUP($A109,Filtros!$A$4:$AK$2906,6,FALSE),0) -> 0 | I109: =IFERROR(VLOOKUP($A109,Filtros!$A$4:$AK$2906,7,FALSE),0) -> 0 | J109: =IFERROR(VLOOKUP($A109,Filtros!$A$4:$AK$2906,8,FALSE),0) -> 0 | K109: =IFERROR(VLOOKUP($A109,Filtros!$A$4:$AK$2906,9,FALSE),0) -> 0 | L109: =IFERROR(VLOOKUP($A109,Filtros!$A$4:$AK$2906,10,FALSE),0) -> 0 | M109: =IFERROR(VLOOKUP($A109,Filtros!$A$4:$AK$2906,11,FALSE),0) -> 0 | N109: =IFERROR(VLOOKUP($A109,Filtros!$A$4:$AK$2906,12,FALSE),0) -> 0 | O109: =IFERROR(VLOOKUP($A109,Filtros!$A$4:$AK$2906,13,FALSE),0) -> 0 | P109: =IFERROR(VLOOKUP($A109,Filtros!$A$4:$AK$2906,14,FALSE),0) -> 0 | Q109: =IFERROR(VLOOKUP($A109,Filtros!$A$4:$AK$2906,15,FALSE),0) -> 0 | R109: =IFERROR(VLOOKUP($A109,Filtros!$A$4:$AK$2906,16,FALSE),0) -> 0 | S109: =IFERROR(VLOOKUP($A109,Filtros!$A$4:$AK$2906,17,FALSE),0) -> 0 | T109: =IFERROR(VLOOKUP($A109,Filtros!$A$4:$AK$2906,18,FALSE),0) -> 0 | U109: =IFERROR(VLOOKUP($A109,Filtros!$A$4:$AK$2906,19,FALSE),0) -> 0 | V109: =IFERROR(VLOOKUP($A109,Filtros!$A$4:$AK$2906,20,FALSE),0) -> 0 | W109: =IFERROR(VLOOKUP($A109,Filtros!$A$4:$AK$2906,21,FALSE),0) -> 0 | X109: =IFERROR(VLOOKUP($A109,Filtros!$A$4:$AK$2906,22,FALSE),0) -> 0 | Y109: =IFERROR(VLOOKUP($A109,Filtros!$A$4:$AK$2906,23,FALSE),0) -> 0 | Z109: =IFERROR(VLOOKUP($A109,Filtros!$A$4:$AK$2906,24,FALSE),0) -> 0 | AA109: =IFERROR(VLOOKUP($A109,Filtros!$A$4:$AK$2906,25,FALSE),0) -> 0 | AB109: =IFERROR(VLOOKUP($A109,Filtros!$A$4:$AK$2906,26,FALSE),0) -> 0 | AC109: =IFERROR(VLOOKUP($A109,Filtros!$A$4:$AK$2906,27,FALSE),0) -> 4 | AD109: =IFERROR(VLOOKUP($A109,Filtros!$A$4:$AK$2906,28,FALSE),0) -> 0 | AE109: =IFERROR(VLOOKUP($A109,Filtros!$A$4:$AK$2906,29,FALSE),0) -> 0 | AF109: =IFERROR(VLOOKUP($A109,Filtros!$A$4:$AK$2906,30,FALSE),0) -> 0 | AG109: =IFERROR(VLOOKUP($A109,Filtros!$A$4:$AK$2906,31,FALSE),0) -> 0 | AH109: =IFERROR(VLOOKUP($A109,Filtros!$A$4:$AK$2906,32,FALSE),0) -> 0 | AI109: =IFERROR(VLOOKUP($A109,Filtros!$A$4:$AK$2906,33,FALSE),0) -> 0 | AJ109: =IFERROR(VLOOKUP($A109,Filtros!$A$4:$AK$2906,34,FALSE),0) -> 0 | AK109: =IFERROR(VLOOKUP($A109,Filtros!$A$4:$AK$2906,35,FALSE),0) -> 0 | AL109: =IFERROR(VLOOKUP($A109,Filtros!$A$4:$AK$2906,36,FALSE),0) -> 951,720 | AM109: =IFERROR(VLOOKUP($A109,Filtros!$A$4:$AK$2906,37,FALSE),0) -> 28,840
A110: 01014361 | B110: 0108314 | C110: Teleconsulta Médica de Especialidad en Cirugía Cardiovascular | D110: =IFERROR(VLOOKUP($A110,Filtros!$A$4:$AK$2906,2,FALSE),0) -> 0 | E110: =IFERROR(VLOOKUP($A110,Filtros!$A$4:$AK$2906,3,FALSE),0) -> 0 | F110: =IFERROR(VLOOKUP($A110,Filtros!$A$4:$AK$2906,4,FALSE),0) -> 0 | G110: =IFERROR(VLOOKUP($A110,Filtros!$A$4:$AK$2906,5,FALSE),0) -> 0 | H110: =IFERROR(VLOOKUP($A110,Filtros!$A$4:$AK$2906,6,FALSE),0) -> 0 | I110: =IFERROR(VLOOKUP($A110,Filtros!$A$4:$AK$2906,7,FALSE),0) -> 0 | J110: =IFERROR(VLOOKUP($A110,Filtros!$A$4:$AK$2906,8,FALSE),0) -> 0 | K110: =IFERROR(VLOOKUP($A110,Filtros!$A$4:$AK$2906,9,FALSE),0) -> 0 | L110: =IFERROR(VLOOKUP($A110,Filtros!$A$4:$AK$2906,10,FALSE),0) -> 0 | M110: =IFERROR(VLOOKUP($A110,Filtros!$A$4:$AK$2906,11,FALSE),0) -> 0 | N110: =IFERROR(VLOOKUP($A110,Filtros!$A$4:$AK$2906,12,FALSE),0) -> 0 | O110: =IFERROR(VLOOKUP($A110,Filtros!$A$4:$AK$2906,13,FALSE),0) -> 0 | P110: =IFERROR(VLOOKUP($A110,Filtros!$A$4:$AK$2906,14,FALSE),0) -> 0 | Q110: =IFERROR(VLOOKUP($A110,Filtros!$A$4:$AK$2906,15,FALSE),0) -> 0 | R110: =IFERROR(VLOOKUP($A110,Filtros!$A$4:$AK$2906,16,FALSE),0) -> 0 | S110: =IFERROR(VLOOKUP($A110,Filtros!$A$4:$AK$2906,17,FALSE),0) -> 0 | T110: =IFERROR(VLOOKUP($A110,Filtros!$A$4:$AK$2906,18,FALSE),0) -> 0 | U110: =IFERROR(VLOOKUP($A110,Filtros!$A$4:$AK$2906,19,FALSE),0) -> 0 | V110: =IFERROR(VLOOKUP($A110,Filtros!$A$4:$AK$2906,20,FALSE),0) -> 0 | W110: =IFERROR(VLOOKUP($A110,Filtros!$A$4:$AK$2906,21,FALSE),0) -> 0 | X110: =IFERROR(VLOOKUP($A110,Filtros!$A$4:$AK$2906,22,FALSE),0) -> 0 | Y110: =IFERROR(VLOOKUP($A110,Filtros!$A$4:$AK$2906,23,FALSE),0) -> 0 | Z110: =IFERROR(VLOOKUP($A110,Filtros!$A$4:$AK$2906,24,FALSE),0) -> 0 | AA110: =IFERROR(VLOOKUP($A110,Filtros!$A$4:$AK$2906,25,FALSE),0) -> 0 | AB110: =IFERROR(VLOOKUP($A110,Filtros!$A$4:$AK$2906,26,FALSE),0) -> 0 | AC110: =IFERROR(VLOOKUP($A110,Filtros!$A$4:$AK$2906,27,FALSE),0) -> 0 | AD110: =IFERROR(VLOOKUP($A110,Filtros!$A$4:$AK$2906,28,FALSE),0) -> 0 | AE110: =IFERROR(VLOOKUP($A110,Filtros!$A$4:$AK$2906,29,FALSE),0) -> 0 | AF110: =IFERROR(VLOOKUP($A110,Filtros!$A$4:$AK$2906,30,FALSE),0) -> 0 | AG110: =IFERROR(VLOOKUP($A110,Filtros!$A$4:$AK$2906,31,FALSE),0) -> 0 | AH110: =IFERROR(VLOOKUP($A110,Filtros!$A$4:$AK$2906,32,FALSE),0) -> 0 | AI110: =IFERROR(VLOOKUP($A110,Filtros!$A$4:$AK$2906,33,FALSE),0) -> 0 | AJ110: =IFERROR(VLOOKUP($A110,Filtros!$A$4:$AK$2906,34,FALSE),0) -> 0 | AK110: =IFERROR(VLOOKUP($A110,Filtros!$A$4:$AK$2906,35,FALSE),0) -> 0 | AL110: =IFERROR(VLOOKUP($A110,Filtros!$A$4:$AK$2906,36,FALSE),0) -> 951,720 | AM110: =IFERROR(VLOOKUP($A110,Filtros!$A$4:$AK$2906,37,FALSE),0) -> 0
A111: 01014362 | B111: 0108315 | C111: Teleconsulta Médica de Especialidad en Cirugía de Tórax | D111: =IFERROR(VLOOKUP($A111,Filtros!$A$4:$AK$2906,2,FALSE),0) -> 0 | E111: =IFERROR(VLOOKUP($A111,Filtros!$A$4:$AK$2906,3,FALSE),0) -> 0 | F111: =IFERROR(VLOOKUP($A111,Filtros!$A$4:$AK$2906,4,FALSE),0) -> 0 | G111: =IFERROR(VLOOKUP($A111,Filtros!$A$4:$AK$2906,5,FALSE),0) -> 0 | H111: =IFERROR(VLOOKUP($A111,Filtros!$A$4:$AK$2906,6,FALSE),0) -> 0 | I111: =IFERROR(VLOOKUP($A111,Filtros!$A$4:$AK$2906,7,FALSE),0) -> 0 | J111: =IFERROR(VLOOKUP($A111,Filtros!$A$4:$AK$2906,8,FALSE),0) -> 0 | K111: =IFERROR(VLOOKUP($A111,Filtros!$A$4:$AK$2906,9,FALSE),0) -> 0 | L111: =IFERROR(VLOOKUP($A111,Filtros!$A$4:$AK$2906,10,FALSE),0) -> 0 | M111: =IFERROR(VLOOKUP($A111,Filtros!$A$4:$AK$2906,11,FALSE),0) -> 0 | N111: =IFERROR(VLOOKUP($A111,Filtros!$A$4:$AK$2906,12,FALSE),0) -> 0 | O111: =IFERROR(VLOOKUP($A111,Filtros!$A$4:$AK$2906,13,FALSE),0) -> 0 | P111: =IFERROR(VLOOKUP($A111,Filtros!$A$4:$AK$2906,14,FALSE),0) -> 0 | Q111: =IFERROR(VLOOKUP($A111,Filtros!$A$4:$AK$2906,15,FALSE),0) -> 0 | R111: =IFERROR(VLOOKUP($A111,Filtros!$A$4:$AK$2906,16,FALSE),0) -> 0 | S111: =IFERROR(VLOOKUP($A111,Filtros!$A$4:$AK$2906,17,FALSE),0) -> 0 | T111: =IFERROR(VLOOKUP($A111,Filtros!$A$4:$AK$2906,18,FALSE),0) -> 0 | U111: =IFERROR(VLOOKUP($A111,Filtros!$A$4:$AK$2906,19,FALSE),0) -> 0 | V111: =IFERROR(VLOOKUP($A111,Filtros!$A$4:$AK$2906,20,FALSE),0) -> 0 | W111: =IFERROR(VLOOKUP($A111,Filtros!$A$4:$AK$2906,21,FALSE),0) -> 0 | X111: =IFERROR(VLOOKUP($A111,Filtros!$A$4:$AK$2906,22,FALSE),0) -> 0 | Y111: =IFERROR(VLOOKUP($A111,Filtros!$A$4:$AK$2906,23,FALSE),0) -> 0 | Z111: =IFERROR(VLOOKUP($A111,Filtros!$A$4:$AK$2906,24,FALSE),0) -> 0 | AA111: =IFERROR(VLOOKUP($A111,Filtros!$A$4:$AK$2906,25,FALSE),0) -> 0 | AB111: =IFERROR(VLOOKUP($A111,Filtros!$A$4:$AK$2906,26,FALSE),0) -> 0 | AC111: =IFERROR(VLOOKUP($A111,Filtros!$A$4:$AK$2906,27,FALSE),0) -> 0 | AD111: =IFERROR(VLOOKUP($A111,Filtros!$A$4:$AK$2906,28,FALSE),0) -> 0 | AE111: =IFERROR(VLOOKUP($A111,Filtros!$A$4:$AK$2906,29,FALSE),0) -> 0 | AF111: =IFERROR(VLOOKUP($A111,Filtros!$A$4:$AK$2906,30,FALSE),0) -> 0 | AG111: =IFERROR(VLOOKUP($A111,Filtros!$A$4:$AK$2906,31,FALSE),0) -> 0 | AH111: =IFERROR(VLOOKUP($A111,Filtros!$A$4:$AK$2906,32,FALSE),0) -> 0 | AI111: =IFERROR(VLOOKUP($A111,Filtros!$A$4:$AK$2906,33,FALSE),0) -> 0 | AJ111: =IFERROR(VLOOKUP($A111,Filtros!$A$4:$AK$2906,34,FALSE),0) -> 0 | AK111: =IFERROR(VLOOKUP($A111,Filtros!$A$4:$AK$2906,35,FALSE),0) -> 0 | AL111: =IFERROR(VLOOKUP($A111,Filtros!$A$4:$AK$2906,36,FALSE),0) -> 951,720 | AM111: =IFERROR(VLOOKUP($A111,Filtros!$A$4:$AK$2906,37,FALSE),0) -> 0
A112: 01014363 | B112: 0108316 | C112: Teleconsulta Médica de Especialidad en Cirugía Plástica y Reparadora | D112: =IFERROR(VLOOKUP($A112,Filtros!$A$4:$AK$2906,2,FALSE),0) -> 0 | E112: =IFERROR(VLOOKUP($A112,Filtros!$A$4:$AK$2906,3,FALSE),0) -> 0 | F112: =IFERROR(VLOOKUP($A112,Filtros!$A$4:$AK$2906,4,FALSE),0) -> 0 | G112: =IFERROR(VLOOKUP($A112,Filtros!$A$4:$AK$2906,5,FALSE),0) -> 0 | H112: =IFERROR(VLOOKUP($A112,Filtros!$A$4:$AK$2906,6,FALSE),0) -> 0 | I112: =IFERROR(VLOOKUP($A112,Filtros!$A$4:$AK$2906,7,FALSE),0) -> 0 | J112: =IFERROR(VLOOKUP($A112,Filtros!$A$4:$AK$2906,8,FALSE),0) -> 0 | K112: =IFERROR(VLOOKUP($A112,Filtros!$A$4:$AK$2906,9,FALSE),0) -> 0 | L112: =IFERROR(VLOOKUP($A112,Filtros!$A$4:$AK$2906,10,FALSE),0) -> 0 | M112: =IFERROR(VLOOKUP($A112,Filtros!$A$4:$AK$2906,11,FALSE),0) -> 0 | N112: =IFERROR(VLOOKUP($A112,Filtros!$A$4:$AK$2906,12,FALSE),0) -> 0 | O112: =IFERROR(VLOOKUP($A112,Filtros!$A$4:$AK$2906,13,FALSE),0) -> 0 | P112: =IFERROR(VLOOKUP($A112,Filtros!$A$4:$AK$2906,14,FALSE),0) -> 0 | Q112: =IFERROR(VLOOKUP($A112,Filtros!$A$4:$AK$2906,15,FALSE),0) -> 0 | R112: =IFERROR(VLOOKUP($A112,Filtros!$A$4:$AK$2906,16,FALSE),0) -> 0 | S112: =IFERROR(VLOOKUP($A112,Filtros!$A$4:$AK$2906,17,FALSE),0) -> 0 | T112: =IFERROR(VLOOKUP($A112,Filtros!$A$4:$AK$2906,18,FALSE),0) -> 0 | U112: =IFERROR(VLOOKUP($A112,Filtros!$A$4:$AK$2906,19,FALSE),0) -> 0 | V112: =IFERROR(VLOOKUP($A112,Filtros!$A$4:$AK$2906,20,FALSE),0) -> 0 | W112: =IFERROR(VLOOKUP($A112,Filtros!$A$4:$AK$2906,21,FALSE),0) -> 0 | X112: =IFERROR(VLOOKUP($A112,Filtros!$A$4:$AK$2906,22,FALSE),0) -> 0 | Y112: =IFERROR(VLOOKUP($A112,Filtros!$A$4:$AK$2906,23,FALSE),0) -> 0 | Z112: =IFERROR(VLOOKUP($A112,Filtros!$A$4:$AK$2906,24,FALSE),0) -> 0 | AA112: =IFERROR(VLOOKUP($A112,Filtros!$A$4:$AK$2906,25,FALSE),0) -> 0 | AB112: =IFERROR(VLOOKUP($A112,Filtros!$A$4:$AK$2906,26,FALSE),0) -> 0 | AC112: =IFERROR(VLOOKUP($A112,Filtros!$A$4:$AK$2906,27,FALSE),0) -> 0 | AD112: =IFERROR(VLOOKUP($A112,Filtros!$A$4:$AK$2906,28,FALSE),0) -> 0 | AE112: =IFERROR(VLOOKUP($A112,Filtros!$A$4:$AK$2906,29,FALSE),0) -> 0 | AF112: =IFERROR(VLOOKUP($A112,Filtros!$A$4:$AK$2906,30,FALSE),0) -> 0 | AG112: =IFERROR(VLOOKUP($A112,Filtros!$A$4:$AK$2906,31,FALSE),0) -> 0 | AH112: =IFERROR(VLOOKUP($A112,Filtros!$A$4:$AK$2906,32,FALSE),0) -> 0 | AI112: =IFERROR(VLOOKUP($A112,Filtros!$A$4:$AK$2906,33,FALSE),0) -> 0 | AJ112: =IFERROR(VLOOKUP($A112,Filtros!$A$4:$AK$2906,34,FALSE),0) -> 0 | AK112: =IFERROR(VLOOKUP($A112,Filtros!$A$4:$AK$2906,35,FALSE),0) -> 0 | AL112: =IFERROR(VLOOKUP($A112,Filtros!$A$4:$AK$2906,36,FALSE),0) -> 951,720 | AM112: =IFERROR(VLOOKUP($A112,Filtros!$A$4:$AK$2906,37,FALSE),0) -> 0
A113: 01014364 | B113: 0108317 | C113: Teleconsulta Médica de Especialidad en Cirugía Pediátrica | D113: =IFERROR(VLOOKUP($A113,Filtros!$A$4:$AK$2906,2,FALSE),0) -> 2 | E113: =IFERROR(VLOOKUP($A113,Filtros!$A$4:$AK$2906,3,FALSE),0) -> 2 | F113: =IFERROR(VLOOKUP($A113,Filtros!$A$4:$AK$2906,4,FALSE),0) -> 2 | G113: =IFERROR(VLOOKUP($A113,Filtros!$A$4:$AK$2906,5,FALSE),0) -> 0 | H113: =IFERROR(VLOOKUP($A113,Filtros!$A$4:$AK$2906,6,FALSE),0) -> 0 | I113: =IFERROR(VLOOKUP($A113,Filtros!$A$4:$AK$2906,7,FALSE),0) -> 0 | J113: =IFERROR(VLOOKUP($A113,Filtros!$A$4:$AK$2906,8,FALSE),0) -> 0 | K113: =IFERROR(VLOOKUP($A113,Filtros!$A$4:$AK$2906,9,FALSE),0) -> 0 | L113: =IFERROR(VLOOKUP($A113,Filtros!$A$4:$AK$2906,10,FALSE),0) -> 0 | M113: =IFERROR(VLOOKUP($A113,Filtros!$A$4:$AK$2906,11,FALSE),0) -> 0 | N113: =IFERROR(VLOOKUP($A113,Filtros!$A$4:$AK$2906,12,FALSE),0) -> 0 | O113: =IFERROR(VLOOKUP($A113,Filtros!$A$4:$AK$2906,13,FALSE),0) -> 0 | P113: =IFERROR(VLOOKUP($A113,Filtros!$A$4:$AK$2906,14,FALSE),0) -> 0 | Q113: =IFERROR(VLOOKUP($A113,Filtros!$A$4:$AK$2906,15,FALSE),0) -> 0 | R113: =IFERROR(VLOOKUP($A113,Filtros!$A$4:$AK$2906,16,FALSE),0) -> 0 | S113: =IFERROR(VLOOKUP($A113,Filtros!$A$4:$AK$2906,17,FALSE),0) -> 0 | T113: =IFERROR(VLOOKUP($A113,Filtros!$A$4:$AK$2906,18,FALSE),0) -> 0 | U113: =IFERROR(VLOOKUP($A113,Filtros!$A$4:$AK$2906,19,FALSE),0) -> 0 | V113: =IFERROR(VLOOKUP($A113,Filtros!$A$4:$AK$2906,20,FALSE),0) -> 0 | W113: =IFERROR(VLOOKUP($A113,Filtros!$A$4:$AK$2906,21,FALSE),0) -> 0 | X113: =IFERROR(VLOOKUP($A113,Filtros!$A$4:$AK$2906,22,FALSE),0) -> 0 | Y113: =IFERROR(VLOOKUP($A113,Filtros!$A$4:$AK$2906,23,FALSE),0) -> 0 | Z113: =IFERROR(VLOOKUP($A113,Filtros!$A$4:$AK$2906,24,FALSE),0) -> 0 | AA113: =IFERROR(VLOOKUP($A113,Filtros!$A$4:$AK$2906,25,FALSE),0) -> 0 | AB113: =IFERROR(VLOOKUP($A113,Filtros!$A$4:$AK$2906,26,FALSE),0) -> 0 | AC113: =IFERROR(VLOOKUP($A113,Filtros!$A$4:$AK$2906,27,FALSE),0) -> 2 | AD113: =IFERROR(VLOOKUP($A113,Filtros!$A$4:$AK$2906,28,FALSE),0) -> 0 | AE113: =IFERROR(VLOOKUP($A113,Filtros!$A$4:$AK$2906,29,FALSE),0) -> 0 | AF113: =IFERROR(VLOOKUP($A113,Filtros!$A$4:$AK$2906,30,FALSE),0) -> 0 | AG113: =IFERROR(VLOOKUP($A113,Filtros!$A$4:$AK$2906,31,FALSE),0) -> 0 | AH113: =IFERROR(VLOOKUP($A113,Filtros!$A$4:$AK$2906,32,FALSE),0) -> 0 | AI113: =IFERROR(VLOOKUP($A113,Filtros!$A$4:$AK$2906,33,FALSE),0) -> 0 | AJ113: =IFERROR(VLOOKUP($A113,Filtros!$A$4:$AK$2906,34,FALSE),0) -> 0 | AK113: =IFERROR(VLOOKUP($A113,Filtros!$A$4:$AK$2906,35,FALSE),0) -> 0 | AL113: =IFERROR(VLOOKUP($A113,Filtros!$A$4:$AK$2906,36,FALSE),0) -> 951,720 | AM113: =IFERROR(VLOOKUP($A113,Filtros!$A$4:$AK$2906,37,FALSE),0) -> 14,420
A114: 01014365 | B114: 0108318 | C114: Teleconsulta Médica de Especialidad en Cirugía Vascular Periférica | D114: =IFERROR(VLOOKUP($A114,Filtros!$A$4:$AK$2906,2,FALSE),0) -> 2 | E114: =IFERROR(VLOOKUP($A114,Filtros!$A$4:$AK$2906,3,FALSE),0) -> 2 | F114: =IFERROR(VLOOKUP($A114,Filtros!$A$4:$AK$2906,4,FALSE),0) -> 2 | G114: =IFERROR(VLOOKUP($A114,Filtros!$A$4:$AK$2906,5,FALSE),0) -> 0 | H114: =IFERROR(VLOOKUP($A114,Filtros!$A$4:$AK$2906,6,FALSE),0) -> 0 | I114: =IFERROR(VLOOKUP($A114,Filtros!$A$4:$AK$2906,7,FALSE),0) -> 0 | J114: =IFERROR(VLOOKUP($A114,Filtros!$A$4:$AK$2906,8,FALSE),0) -> 0 | K114: =IFERROR(VLOOKUP($A114,Filtros!$A$4:$AK$2906,9,FALSE),0) -> 0 | L114: =IFERROR(VLOOKUP($A114,Filtros!$A$4:$AK$2906,10,FALSE),0) -> 0 | M114: =IFERROR(VLOOKUP($A114,Filtros!$A$4:$AK$2906,11,FALSE),0) -> 0 | N114: =IFERROR(VLOOKUP($A114,Filtros!$A$4:$AK$2906,12,FALSE),0) -> 0 | O114: =IFERROR(VLOOKUP($A114,Filtros!$A$4:$AK$2906,13,FALSE),0) -> 0 | P114: =IFERROR(VLOOKUP($A114,Filtros!$A$4:$AK$2906,14,FALSE),0) -> 0 | Q114: =IFERROR(VLOOKUP($A114,Filtros!$A$4:$AK$2906,15,FALSE),0) -> 0 | R114: =IFERROR(VLOOKUP($A114,Filtros!$A$4:$AK$2906,16,FALSE),0) -> 0 | S114: =IFERROR(VLOOKUP($A114,Filtros!$A$4:$AK$2906,17,FALSE),0) -> 0 | T114: =IFERROR(VLOOKUP($A114,Filtros!$A$4:$AK$2906,18,FALSE),0) -> 0 | U114: =IFERROR(VLOOKUP($A114,Filtros!$A$4:$AK$2906,19,FALSE),0) -> 0 | V114: =IFERROR(VLOOKUP($A114,Filtros!$A$4:$AK$2906,20,FALSE),0) -> 0 | W114: =IFERROR(VLOOKUP($A114,Filtros!$A$4:$AK$2906,21,FALSE),0) -> 0 | X114: =IFERROR(VLOOKUP($A114,Filtros!$A$4:$AK$2906,22,FALSE),0) -> 0 | Y114: =IFERROR(VLOOKUP($A114,Filtros!$A$4:$AK$2906,23,FALSE),0) -> 0 | Z114: =IFERROR(VLOOKUP($A114,Filtros!$A$4:$AK$2906,24,FALSE),0) -> 0 | AA114: =IFERROR(VLOOKUP($A114,Filtros!$A$4:$AK$2906,25,FALSE),0) -> 0 | AB114: =IFERROR(VLOOKUP($A114,Filtros!$A$4:$AK$2906,26,FALSE),0) -> 0 | AC114: =IFERROR(VLOOKUP($A114,Filtros!$A$4:$AK$2906,27,FALSE),0) -> 2 | AD114: =IFERROR(VLOOKUP($A114,Filtros!$A$4:$AK$2906,28,FALSE),0) -> 0 | AE114: =IFERROR(VLOOKUP($A114,Filtros!$A$4:$AK$2906,29,FALSE),0) -> 0 | AF114: =IFERROR(VLOOKUP($A114,Filtros!$A$4:$AK$2906,30,FALSE),0) -> 0 | AG114: =IFERROR(VLOOKUP($A114,Filtros!$A$4:$AK$2906,31,FALSE),0) -> 0 | AH114: =IFERROR(VLOOKUP($A114,Filtros!$A$4:$AK$2906,32,FALSE),0) -> 0 | AI114: =IFERROR(VLOOKUP($A114,Filtros!$A$4:$AK$2906,33,FALSE),0) -> 0 | AJ114: =IFERROR(VLOOKUP($A114,Filtros!$A$4:$AK$2906,34,FALSE),0) -> 0 | AK114: =IFERROR(VLOOKUP($A114,Filtros!$A$4:$AK$2906,35,FALSE),0) -> 0 | AL114: =IFERROR(VLOOKUP($A114,Filtros!$A$4:$AK$2906,36,FALSE),0) -> 951,720 | AM114: =IFERROR(VLOOKUP($A114,Filtros!$A$4:$AK$2906,37,FALSE),0) -> 14,420
A115: 01014366 | B115: 0108329 | C115: Teleconsulta Médica de Especialidad en Anestesiología | D115: =IFERROR(VLOOKUP($A115,Filtros!$A$4:$AK$2906,2,FALSE),0) -> 2726 | E115: =IFERROR(VLOOKUP($A115,Filtros!$A$4:$AK$2906,3,FALSE),0) -> 2697 | F115: =IFERROR(VLOOKUP($A115,Filtros!$A$4:$AK$2906,4,FALSE),0) -> 2697 | G115: =IFERROR(VLOOKUP($A115,Filtros!$A$4:$AK$2906,5,FALSE),0) -> 0 | H115: =IFERROR(VLOOKUP($A115,Filtros!$A$4:$AK$2906,6,FALSE),0) -> 29 | I115: =IFERROR(VLOOKUP($A115,Filtros!$A$4:$AK$2906,7,FALSE),0) -> 0 | J115: =IFERROR(VLOOKUP($A115,Filtros!$A$4:$AK$2906,8,FALSE),0) -> 0 | K115: =IFERROR(VLOOKUP($A115,Filtros!$A$4:$AK$2906,9,FALSE),0) -> 0 | L115: =IFERROR(VLOOKUP($A115,Filtros!$A$4:$AK$2906,10,FALSE),0) -> 0 | M115: =IFERROR(VLOOKUP($A115,Filtros!$A$4:$AK$2906,11,FALSE),0) -> 0 | N115: =IFERROR(VLOOKUP($A115,Filtros!$A$4:$AK$2906,12,FALSE),0) -> 0 | O115: =IFERROR(VLOOKUP($A115,Filtros!$A$4:$AK$2906,13,FALSE),0) -> 0 | P115: =IFERROR(VLOOKUP($A115,Filtros!$A$4:$AK$2906,14,FALSE),0) -> 0 | Q115: =IFERROR(VLOOKUP($A115,Filtros!$A$4:$AK$2906,15,FALSE),0) -> 0 | R115: =IFERROR(VLOOKUP($A115,Filtros!$A$4:$AK$2906,16,FALSE),0) -> 0 | S115: =IFERROR(VLOOKUP($A115,Filtros!$A$4:$AK$2906,17,FALSE),0) -> 0 | T115: =IFERROR(VLOOKUP($A115,Filtros!$A$4:$AK$2906,18,FALSE),0) -> 0 | U115: =IFERROR(VLOOKUP($A115,Filtros!$A$4:$AK$2906,19,FALSE),0) -> 0 | V115: =IFERROR(VLOOKUP($A115,Filtros!$A$4:$AK$2906,20,FALSE),0) -> 0 | W115: =IFERROR(VLOOKUP($A115,Filtros!$A$4:$AK$2906,21,FALSE),0) -> 0 | X115: =IFERROR(VLOOKUP($A115,Filtros!$A$4:$AK$2906,22,FALSE),0) -> 0 | Y115: =IFERROR(VLOOKUP($A115,Filtros!$A$4:$AK$2906,23,FALSE),0) -> 0 | Z115: =IFERROR(VLOOKUP($A115,Filtros!$A$4:$AK$2906,24,FALSE),0) -> 0 | AA115: =IFERROR(VLOOKUP($A115,Filtros!$A$4:$AK$2906,25,FALSE),0) -> 0 | AB115: =IFERROR(VLOOKUP($A115,Filtros!$A$4:$AK$2906,26,FALSE),0) -> 0 | AC115: =IFERROR(VLOOKUP($A115,Filtros!$A$4:$AK$2906,27,FALSE),0) -> 2726 | AD115: =IFERROR(VLOOKUP($A115,Filtros!$A$4:$AK$2906,28,FALSE),0) -> 0 | AE115: =IFERROR(VLOOKUP($A115,Filtros!$A$4:$AK$2906,29,FALSE),0) -> 686 | AF115: =IFERROR(VLOOKUP($A115,Filtros!$A$4:$AK$2906,30,FALSE),0) -> 0 | AG115: =IFERROR(VLOOKUP($A115,Filtros!$A$4:$AK$2906,31,FALSE),0) -> 0 | AH115: =IFERROR(VLOOKUP($A115,Filtros!$A$4:$AK$2906,32,FALSE),0) -> 0 | AI115: =IFERROR(VLOOKUP($A115,Filtros!$A$4:$AK$2906,33,FALSE),0) -> 0 | AJ115: =IFERROR(VLOOKUP($A115,Filtros!$A$4:$AK$2906,34,FALSE),0) -> 0 | AK115: =IFERROR(VLOOKUP($A115,Filtros!$A$4:$AK$2906,35,FALSE),0) -> 0 | AL115: =IFERROR(VLOOKUP($A115,Filtros!$A$4:$AK$2906,36,FALSE),0) -> 951,720 | AM115: =IFERROR(VLOOKUP($A115,Filtros!$A$4:$AK$2906,37,FALSE),0) -> 19,445,370
A116: 01014367 | B116: 0108332 | C116: Teleconsulta Médica de Especialidad en Ginecología Pediátrica y de la Adolescencia | D116: =IFERROR(VLOOKUP($A116,Filtros!$A$4:$AK$2906,2,FALSE),0) -> 0 | E116: =IFERROR(VLOOKUP($A116,Filtros!$A$4:$AK$2906,3,FALSE),0) -> 0 | F116: =IFERROR(VLOOKUP($A116,Filtros!$A$4:$AK$2906,4,FALSE),0) -> 0 | G116: =IFERROR(VLOOKUP($A116,Filtros!$A$4:$AK$2906,5,FALSE),0) -> 0 | H116: =IFERROR(VLOOKUP($A116,Filtros!$A$4:$AK$2906,6,FALSE),0) -> 0 | I116: =IFERROR(VLOOKUP($A116,Filtros!$A$4:$AK$2906,7,FALSE),0) -> 0 | J116: =IFERROR(VLOOKUP($A116,Filtros!$A$4:$AK$2906,8,FALSE),0) -> 0 | K116: =IFERROR(VLOOKUP($A116,Filtros!$A$4:$AK$2906,9,FALSE),0) -> 0 | L116: =IFERROR(VLOOKUP($A116,Filtros!$A$4:$AK$2906,10,FALSE),0) -> 0 | M116: =IFERROR(VLOOKUP($A116,Filtros!$A$4:$AK$2906,11,FALSE),0) -> 0 | N116: =IFERROR(VLOOKUP($A116,Filtros!$A$4:$AK$2906,12,FALSE),0) -> 0 | O116: =IFERROR(VLOOKUP($A116,Filtros!$A$4:$AK$2906,13,FALSE),0) -> 0 | P116: =IFERROR(VLOOKUP($A116,Filtros!$A$4:$AK$2906,14,FALSE),0) -> 0 | Q116: =IFERROR(VLOOKUP($A116,Filtros!$A$4:$AK$2906,15,FALSE),0) -> 0 | R116: =IFERROR(VLOOKUP($A116,Filtros!$A$4:$AK$2906,16,FALSE),0) -> 0 | S116: =IFERROR(VLOOKUP($A116,Filtros!$A$4:$AK$2906,17,FALSE),0) -> 0 | T116: =IFERROR(VLOOKUP($A116,Filtros!$A$4:$AK$2906,18,FALSE),0) -> 0 | U116: =IFERROR(VLOOKUP($A116,Filtros!$A$4:$AK$2906,19,FALSE),0) -> 0 | V116: =IFERROR(VLOOKUP($A116,Filtros!$A$4:$AK$2906,20,FALSE),0) -> 0 | W116: =IFERROR(VLOOKUP($A116,Filtros!$A$4:$AK$2906,21,FALSE),0) -> 0 | X116: =IFERROR(VLOOKUP($A116,Filtros!$A$4:$AK$2906,22,FALSE),0) -> 0 | Y116: =IFERROR(VLOOKUP($A116,Filtros!$A$4:$AK$2906,23,FALSE),0) -> 0 | Z116: =IFERROR(VLOOKUP($A116,Filtros!$A$4:$AK$2906,24,FALSE),0) -> 0 | AA116: =IFERROR(VLOOKUP($A116,Filtros!$A$4:$AK$2906,25,FALSE),0) -> 0 | AB116: =IFERROR(VLOOKUP($A116,Filtros!$A$4:$AK$2906,26,FALSE),0) -> 0 | AC116: =IFERROR(VLOOKUP($A116,Filtros!$A$4:$AK$2906,27,FALSE),0) -> 0 | AD116: =IFERROR(VLOOKUP($A116,Filtros!$A$4:$AK$2906,28,FALSE),0) -> 0 | AE116: =IFERROR(VLOOKUP($A116,Filtros!$A$4:$AK$2906,29,FALSE),0) -> 0 | AF116: =IFERROR(VLOOKUP($A116,Filtros!$A$4:$AK$2906,30,FALSE),0) -> 0 | AG116: =IFERROR(VLOOKUP($A116,Filtros!$A$4:$AK$2906,31,FALSE),0) -> 0 | AH116: =IFERROR(VLOOKUP($A116,Filtros!$A$4:$AK$2906,32,FALSE),0) -> 0 | AI116: =IFERROR(VLOOKUP($A116,Filtros!$A$4:$AK$2906,33,FALSE),0) -> 0 | AJ116: =IFERROR(VLOOKUP($A116,Filtros!$A$4:$AK$2906,34,FALSE),0) -> 0 | AK116: =IFERROR(VLOOKUP($A116,Filtros!$A$4:$AK$2906,35,FALSE),0) -> 0 | AL116: =IFERROR(VLOOKUP($A116,Filtros!$A$4:$AK$2906,36,FALSE),0) -> 951,720 | AM116: =IFERROR(VLOOKUP($A116,Filtros!$A$4:$AK$2906,37,FALSE),0) -> 0
